Workbook

Sheet Index
A1: Index and File Details
B3: Index | H3: File Details
B5: Inputs | D5: Inputs / Calculations | F5: Outputs | I5: Model | J5: Transgrid | CWOREZ - Capex Forecast Model
I6: Author | J6: Transgrid
B7: Notes & Assumptions | D7: Calculations | F7: ='Outputs|Models'!$A$1 -> Outputs | Models | I7: Revision | J7: 2025-07-24
B8: Inputs | F8: ='Outputs|Tables'!$A$1 -> Outputs | Tables | I8: Status | J8: Regulatory proposal
F9: ='Outputs|RIN'!$A$1 -> Outputs | RIN
B12: Model Checks | H12: Instructions
B14: Worksheet | I14: Input Sheets
B15: =B8 -> Inputs | D15: =Inputs!C2 -> 0 | I15: Fill in any cells marked as input cells as seen on the right => | K15: user input
B16: =D7 -> Calculations | D16: =SUM(Calculations!A3:A241) -> 0 | I16: Historical / Not applicable
B17: =F7 -> Outputs | Models | D17: =SUM('Outputs|Models'!A2:A149) -> 0 | I17: Cells not marked as inputs should not be modified.
B18: =F8 -> Outputs | Tables | D18: =SUM('Outputs|Tables'!A2:A73) -> 0 | I18: Confidential information | K18: user input
B19: =F9 -> Outputs | RIN | D19: =SUM('Outputs|RIN'!A2:A286) -> 0
B21: Total Error Check | D21: =IF(SUM(D15:D19)=0,0,1) -> 0
B23: End

Sheet Notes & Assumptions
A1: Assumptions & Notes
E3: User inputs in cells coloured like this
C4: * | E4: 1. Financial years are recorded in the Capex Forecast Model as tax years (e.g. 2017/18 is shown as 2018, 2018/19 is shown as 2019)
C5: * | E5: 2. Escalation is treated as follows:
E6: a. CPI escalation and Labour escalation are treated separately.
A9: Modifications
A10: Date | B10: Version | D10: Who | E10: Notes

Sheet Inputs
A2: Section Check | C2: =IF(SUM(W124,Y150:AK150,X181,X217,H124)=0,0,1) -> 0
A4: Output Reporting Format and Year
A5: Real
A6: 2026
A8: =IF(Real_or_Nom="Real", "Real $" & Report_Year, "$ Nominal") -> Real $2026
A10: Inflation and Labour Escalation
A13: Forecasts | K13: Rates
A14: Item | B14: Source | C14: Units | K14: =K20 -> 2020 | L14: 2021 | M14: 2022 | N14: 2023 | O14: 2024 | P14: 2025 | Q14: 2026 | R14: 2027 | S14: 2028 | T14: 2029 | U14: 2030 | V14: 2031
A15: Actual / Forecast Inflation | B15: ABS June to June / RBA Forecast | C15: % | K15: -0.003484320557 | L15: 0.03846153846 | M15: 0.06144781145 | N15: 0.06026962728 | O15: 0.03814510097 | P15: 0.024 | Q15: 0.032 | R15: 0.02779809301 | S15: 0.02779809301 | T15: 0.02779809301 | U15: 0.02779809301 | V15: 0.02779809301 | X15: ◄ Actual June year on year inflation used for 2020 to 2024. Forecast inflation for 2025 to 2031 as per Regulatory Proposal, updated for RBAs February 2025 MPS.
A16: Real labour escalation | B16: AER Final Determination / Transgrid proposal | C16: % | R16: 0.004330457586 | S16: 0.003009413338 | T16: =AVERAGE(P16:S16) -> 0.003669935462 | U16: =T16 -> 0.003669935462 | V16: =U16 -> 0.003669935462 | X16: Note: Based on Final Decision values applied to both the opex and capex models with placeholder values for 2028-29, 2029-30 and 2030-31
A19: Cumulative Factors | K19: Cumulative factors
A20: Item | B20: Source | C20: Units | J20: =K20-1 -> 2019 | K20: 2020 | L20: =K20+1 -> 2021 | M20: 2022 | N20: 2023 | O20: 2024 | P20: 2025 | Q20: 2026 | R20: 2027 | S20: 2028 | T20: 2029 | U20: =T20+1 -> 2030 | V20: =U20+1 -> 2031 | W20: Nominal
A21: Inflation based to 2019 | B21: Calculated | C21: Factor | J21: 1 | K21: =J21*(1+K15) -> 0.9965156794 | L21: =K21*(1+L15) -> 1.034843206 | M21: =L21*(1+M15) -> 1.098432056 | N21: 1.164634146 | O21: 1.209059233 | P21: 1.238076655 | Q21: =P21*(1+Q15) -> 1.277695108 | R21: 1.313212595 | S21: 1.349717401 | T21: 1.387236971 | U21: =T21*(1+U15) -> 1.425799514 | V21: =U21*(1+V15) -> 1.465434021
A22: Labour based to 2024 | B22: Calculated | C22: Factor | J22: 1 | K22: =J22*(1+K16) -> 1 | L22: 1 | M22: 1 | N22: 1 | O22: 1 | P22: 1 | Q22: 1 | R22: 1.004330458 | S22: 1.007352903 | T22: 1.011049823 | U22: =T22*(1+U16) -> 1.014760311 | V22: =U22*(1+V16) -> 1.018484416
A23: Real 2024 to Real 2026 | B23: Calculated | C23: Factor | K23: =$Q$21/$O$21 -> 1.056768 | L23: =$Q$21/$O$21 -> 1.056768 | M23: =$Q$21/$O$21 -> 1.056768 | N23: =$Q$21/$O$21 -> 1.056768 | O23: =$Q$21/$O$21 -> 1.056768 | P23: 1.056768 | Q23: 1.056768 | R23: 1.056768 | S23: 1.056768 | T23: 1.056768 | U23: 1.056768 | V23: 1.056768
A25: Indexation | K25: Indexation
A26: Item | B26: Source | C26: Units | K26: =K20 -> 2020 | L26: 2021 | M26: 2022 | N26: 2023 | O26: 2024 | P26: 2025 | Q26: 2026 | R26: 2027 | S26: 2028 | T26: =T20 -> 2029 | U26: =U20 -> 2030 | V26: =V20 -> 2031
A27: Real 2026 End Period to Nominal Mid Period | B27: Calculated | C27: Factor | K27: =K21/$Q$21/(1+K$15)^0.5 -> 0.7812946244 | L27: =L21/$Q$21/(1+L$15)^0.5 -> 0.7947894845 | M27: 0.8344429381 | N27: 0.8852259302 | O27: 0.9287339395 | P27: 0.9575695434 | Q27: 0.9843740387 | R27: 1.013803774 | S27: 1.041985586 | T27: 1.070950798 | U27: 1.100721188 | V27: 1.131319138
A28: Real 2019 End Period to Nominal Mid Period | B28: Calculated | C28: Factor | K28: =K21/$J$21/(1+K$15)^0.5 -> 0.9982563195 | L28: =L21/$J$21/(1+L$15)^0.5 -> 1.015498636 | M28: 1.06616366 | N28: 1.13104884 | O28: 1.186638811 | P28: 1.223481921 | Q28: 1.257729894 | R28: 1.295332123 | S28: 1.331339886 | T28: 1.368348596 | U28: 1.406386077 | V28: 1.445480928
A31: Capital Expenditure
A33: Direct Non-Labour Costs
A36: Direct Non-Labour Costs | By Category | E36: Conversion | H36: Expenditure | I36: Mapping | K36: Spend Profile Assumption - As incurred | Y36: ="$ Spend Profile - As incurred (June "&$F$39&" dollars)" -> $ Spend Profile - As incurred (June 2026 dollars) | AN36: As Commissioned Profile Assumption | BA36: ="Direct Expenditure - As Commmissioned Profile (June "&$F$39&" dollars)" -> Direct Expenditure - As Commmissioned Profile (June 2026 dollars) | BO36: Mapping
A37: Category | B37: Source | C37: Units | E37: Dollar Year From | F37: Dollar Year To | H37: Value | I37: RIN Category | J37: RAB Asset Class | K37: =$K$20 -> 2020 | L37: =K37+1 -> 2021 | M37: 2022 | N37: 2023 | O37: 2024 | P37: 2025 | Q37: 2026 | R37: =Q37+1 -> 2027 | S37: =R37+1 -> 2028 | T37: =S37+1 -> 2029 | U37: =T37+1 -> 2030 | V37: =U37+1 -> 2031 | W37: Total | Y37: =K37 -> 2020 | Z37: 2021 | AA37: 2022 | AB37: 2023 | AC37: 2024 | AD37: 2025 | AE37: 2026 | AF37: 2027 | AG37: 2028 | AH37: 2029 | AI37: 2030 | AJ37: 2031 | AK37: Total | AL37: FY27 IPF % | AN37: =$K$20 -> 2020 | AO37: =AN37+1 -> 2021 | AP37: 2022 | AQ37: 2023 | AR37: 2024 | AS37: 2025 | AT37: 2026 | AU37: 2027 | AV37: 2028 | AW37: 2029 | AX37: 2030 | AY37: 2031 | BA37: =AN37 -> 2020 | BB37: =AO37 -> 2021 | BC37: 2022 | BD37: 2023 | BE37: 2024 | BF37: 2025 | BG37: 2026 | BH37: 2027 | BI37: 2028 | BJ37: 2029 | BK37: 2030 | BL37: 2031 | BM37: Total
A38: Augmentation works - Design and Construction
A39: Construction Costs | D&C Contract - Transmission Line | B39: Project Team Input | C39: $Millions | E39: Nominal | F39: =Report_Year -> 2026 | H39: 0 | I39: 0 | J39: Transmission Lines | P39: 0.04 | Q39: 0.11 | R39: 0.52 | S39: 0.33 | T39: 0 | U39: 0 | V39: 0 | W39: =SUM(K39:V39) -> 1 | X39: =IF(H39=0,0,IF(W39<>1,1,0)) -> 0 | Y39: =IFERROR($H39*K39 *IF($E39<>"Nominal",INDEX($K$21:$V$21,,MATCH($F39,Years,0))/INDEX($K$21:$V$21,,MATCH($E39,Years,0)), 1/K$27),0) -> 0 | Z39: =IFERROR($H39*L39 *IF($E39<>"Nominal",INDEX($K$21:$V$21,,MATCH($F39,Years,0))/INDEX($K$21:$V$21,,MATCH($E39,Years,0)), 1/L$27),0) -> 0 | AA39: =IFERROR($H39*M39 *IF($E39<>"Nominal",INDEX($K$21:$V$21,,MATCH($F39,Years,0))/INDEX($K$21:$V$21,,MATCH($E39,Years,0)), 1/M$27),0) -> 0 | AB39: =IFERROR($H39*N39 *IF($E39<>"Nominal",INDEX($K$21:$V$21,,MATCH($F39,Years,0))/INDEX($K$21:$V$21,,MATCH($E39,Years,0)), 1/N$27),0) -> 0 | AC39: =IFERROR($H39*O39 *IF($E39<>"Nominal",INDEX($K$21:$V$21,,MATCH($F39,Years,0))/INDEX($K$21:$V$21,,MATCH($E39,Years,0)), 1/O$27),0) -> 0 | AD39: 0 | AE39: 0 | AF39: 0 | AG39: 0 | AH39: 0 | AI39: =IFERROR($H39*U39 *IF($E39<>"Nominal",INDEX($K$21:$V$21,,MATCH($F39,Years,0))/INDEX($K$21:$V$21,,MATCH($E39,Years,0)), 1/U$27),0) -> 0 | AJ39: =IFERROR($H39*V39 *IF($E39<>"Nominal",INDEX($K$21:$V$21,,MATCH($F39,Years,0))/INDEX($K$21:$V$21,,MATCH($E39,Years,0)), 1/V$27),0) -> 0 | AK39: 0 | AL39: 0.18228761 | AS39: 0 | AT39: 0 | AU39: 0.4973042602 | AV39: 0.5026957398 | AW39: 0 | AX39: 0 | AY39: 0 | BA39: =$AK39*AN39 -> 0 | BB39: =$AK39*AO39 -> 0 | BC39: =$AK39*AP39 -> 0 | BD39: =$AK39*AQ39 -> 0 | BE39: =$AK39*AR39 -> 0 | BF39: =$AK39*AS39 -> 0 | BG39: =$AK39*AT39 -> 0 | BH39: =$AK39*AU39 -> 0 | BI39: =$AK39*AV39 -> 0 | BJ39: =$AK39*AW39 -> 0 | BK39: =$AK39*AX39 -> 0 | BL39: =$AK39*AY39 -> 0 | BM39: =SUM(BA39:BL39) -> 0 | BO39: =J39&" - "&I39 -> Transmission Lines - 0
A40: =A39 -> Construction Costs | D&C Contract - Transmission Line | B40: Project Team Input | C40: $Millions | E40: Nominal | F40: 2026 | H40: 0 | I40: Transmission towers | J40: =J39 -> Transmission Lines | P40: 0.04 | Q40: 0.11 | R40: 0.52 | S40: 0.33 | T40: 0 | U40: 0 | V40: 0 | W40: =SUM(K40:V40) -> 1 | X40: =IF(H40=0,0,IF(W40<>1,1,0)) -> 0 | Y40: =IFERROR($H40*K40 *IF($E40<>"Nominal",INDEX($K$21:$V$21,,MATCH($F40,Years,0))/INDEX($K$21:$V$21,,MATCH($E40,Years,0)), 1/K$27),0) -> 0 | Z40: =IFERROR($H40*L40 *IF($E40<>"Nominal",INDEX($K$21:$V$21,,MATCH($F40,Years,0))/INDEX($K$21:$V$21,,MATCH($E40,Years,0)), 1/L$27),0) -> 0 | AA40: =IFERROR($H40*M40 *IF($E40<>"Nominal",INDEX($K$21:$V$21,,MATCH($F40,Years,0))/INDEX($K$21:$V$21,,MATCH($E40,Years,0)), 1/M$27),0) -> 0 | AB40: =IFERROR($H40*N40 *IF($E40<>"Nominal",INDEX($K$21:$V$21,,MATCH($F40,Years,0))/INDEX($K$21:$V$21,,MATCH($E40,Years,0)), 1/N$27),0) -> 0 | AC40: =IFERROR($H40*O40 *IF($E40<>"Nominal",INDEX($K$21:$V$21,,MATCH($F40,Years,0))/INDEX($K$21:$V$21,,MATCH($E40,Years,0)), 1/O$27),0) -> 0 | AD40: 0 | AE40: 0 | AF40: 0 | AG40: 0 | AH40: 0 | AI40: =IFERROR($H40*U40 *IF($E40<>"Nominal",INDEX($K$21:$V$21,,MATCH($F40,Years,0))/INDEX($K$21:$V$21,,MATCH($E40,Years,0)), 1/U$27),0) -> 0 | AJ40: =IFERROR($H40*V40 *IF($E40<>"Nominal",INDEX($K$21:$V$21,,MATCH($F40,Years,0))/INDEX($K$21:$V$21,,MATCH($E40,Years,0)), 1/V$27),0) -> 0 | AK40: 0 | AL40: =AL39 -> 0.18228761 | AS40: 0 | AT40: 0 | AU40: 0.8653614414 | AV40: 0.1346385586 | AW40: 0 | AX40: 0 | AY40: 0 | BA40: =$AK40*AN40 -> 0 | BB40: 0 | BC40: 0 | BD40: 0 | BE40: 0 | BF40: 0 | BG40: 0 | BH40: 0 | BI40: 0 | BJ40: 0 | BK40: 0 | BL40: 0 | BM40: 0 | BO40: Transmission Lines - Transmission towers
A41: =A40 -> Construction Costs | D&C Contract - Transmission Line | B41: Project Team Input | C41: $Millions | E41: Nominal | F41: 2026 | H41: 0 | I41: Transmission tower support structures | J41: =J40 -> Transmission Lines | P41: 0.04 | Q41: 0.11 | R41: 0.52 | S41: 0.33 | T41: 0 | U41: 0 | V41: 0 | W41: =SUM(K41:V41) -> 1 | X41: 0 | Y41: =IFERROR($H41*K41 *IF($E41<>"Nominal",INDEX($K$21:$V$21,,MATCH($F41,Years,0))/INDEX($K$21:$V$21,,MATCH($E41,Years,0)), 1/K$27),0) -> 0 | Z41: =IFERROR($H41*L41 *IF($E41<>"Nominal",INDEX($K$21:$V$21,,MATCH($F41,Years,0))/INDEX($K$21:$V$21,,MATCH($E41,Years,0)), 1/L$27),0) -> 0 | AA41: =IFERROR($H41*M41 *IF($E41<>"Nominal",INDEX($K$21:$V$21,,MATCH($F41,Years,0))/INDEX($K$21:$V$21,,MATCH($E41,Years,0)), 1/M$27),0) -> 0 | AB41: =IFERROR($H41*N41 *IF($E41<>"Nominal",INDEX($K$21:$V$21,,MATCH($F41,Years,0))/INDEX($K$21:$V$21,,MATCH($E41,Years,0)), 1/N$27),0) -> 0 | AC41: =IFERROR($H41*O41 *IF($E41<>"Nominal",INDEX($K$21:$V$21,,MATCH($F41,Years,0))/INDEX($K$21:$V$21,,MATCH($E41,Years,0)), 1/O$27),0) -> 0 | AD41: 0 | AE41: 0 | AF41: 0 | AG41: 0 | AH41: 0 | AI41: =IFERROR($H41*U41 *IF($E41<>"Nominal",INDEX($K$21:$V$21,,MATCH($F41,Years,0))/INDEX($K$21:$V$21,,MATCH($E41,Years,0)), 1/U$27),0) -> 0 | AJ41: =IFERROR($H41*V41 *IF($E41<>"Nominal",INDEX($K$21:$V$21,,MATCH($F41,Years,0))/INDEX($K$21:$V$21,,MATCH($E41,Years,0)), 1/V$27),0) -> 0 | AK41: 0 | AL41: =AL40 -> 0.18228761 | AS41: 0 | AT41: 0 | AU41: 0.8653614414 | AV41: 0.1346385586 | AW41: 0 | AX41: 0 | AY41: 0 | BA41: 0 | BB41: 0 | BC41: 0 | BD41: 0 | BE41: 0 | BF41: 0 | BG41: 0 | BH41: 0 | BI41: 0 | BJ41: 0 | BK41: 0 | BL41: 0 | BM41: 0 | BO41: Transmission Lines - Transmission tower support structures
A42: =A41 -> Construction Costs | D&C Contract - Transmission Line | B42: Project Team Input | C42: $Millions | E42: Nominal | F42: 2026 | H42: 0 | I42: Conductors | J42: Transmission Lines | P42: 0.04 | Q42: 0.11 | R42: 0.52 | S42: 0.33 | T42: 0 | U42: 0 | V42: 0 | W42: =SUM(K42:V42) -> 1 | X42: 0 | Y42: =IFERROR($H42*K42 *IF($E42<>"Nominal",INDEX($K$21:$V$21,,MATCH($F42,Years,0))/INDEX($K$21:$V$21,,MATCH($E42,Years,0)), 1/K$27),0) -> 0 | Z42: =IFERROR($H42*L42 *IF($E42<>"Nominal",INDEX($K$21:$V$21,,MATCH($F42,Years,0))/INDEX($K$21:$V$21,,MATCH($E42,Years,0)), 1/L$27),0) -> 0 | AA42: =IFERROR($H42*M42 *IF($E42<>"Nominal",INDEX($K$21:$V$21,,MATCH($F42,Years,0))/INDEX($K$21:$V$21,,MATCH($E42,Years,0)), 1/M$27),0) -> 0 | AB42: =IFERROR($H42*N42 *IF($E42<>"Nominal",INDEX($K$21:$V$21,,MATCH($F42,Years,0))/INDEX($K$21:$V$21,,MATCH($E42,Years,0)), 1/N$27),0) -> 0 | AC42: =IFERROR($H42*O42 *IF($E42<>"Nominal",INDEX($K$21:$V$21,,MATCH($F42,Years,0))/INDEX($K$21:$V$21,,MATCH($E42,Years,0)), 1/O$27),0) -> 0 | AD42: 0 | AE42: 0 | AF42: 0 | AG42: 0 | AH42: 0 | AI42: =IFERROR($H42*U42 *IF($E42<>"Nominal",INDEX($K$21:$V$21,,MATCH($F42,Years,0))/INDEX($K$21:$V$21,,MATCH($E42,Years,0)), 1/U$27),0) -> 0 | AJ42: =IFERROR($H42*V42 *IF($E42<>"Nominal",INDEX($K$21:$V$21,,MATCH($F42,Years,0))/INDEX($K$21:$V$21,,MATCH($E42,Years,0)), 1/V$27),0) -> 0 | AK42: 0 | AL42: =AL41 -> 0.18228761 | AS42: 0 | AT42: 0 | AU42: 0 | AV42: 1 | AW42: 0 | AX42: 0 | AY42: 0 | BA42: 0 | BB42: 0 | BC42: 0 | BD42: 0 | BE42: 0 | BF42: 0 | BG42: 0 | BH42: 0 | BI42: 0 | BJ42: 0 | BK42: 0 | BL42: 0 | BM42: 0 | BO42: Transmission Lines - Conductors
A43: Construction Costs | D&C Contract - Substations | B43: Project Team Input | C43: $Millions | E43: Nominal | F43: 2026 | H43: 0 | I43: 0 | J43: Substations | P43: 0.04 | Q43: 0.11 | R43: 0.52 | S43: 0.33 | T43: 0 | U43: 0 | V43: 0 | W43: 1 | X43: 0 | Y43: =IFERROR($H43*K43 *IF($E43<>"Nominal",INDEX($K$21:$V$21,,MATCH($F43,Years,0))/INDEX($K$21:$V$21,,MATCH($E43,Years,0)), 1/K$27),0) -> 0 | Z43: =IFERROR($H43*L43 *IF($E43<>"Nominal",INDEX($K$21:$V$21,,MATCH($F43,Years,0))/INDEX($K$21:$V$21,,MATCH($E43,Years,0)), 1/L$27),0) -> 0 | AA43: =IFERROR($H43*M43 *IF($E43<>"Nominal",INDEX($K$21:$V$21,,MATCH($F43,Years,0))/INDEX($K$21:$V$21,,MATCH($E43,Years,0)), 1/M$27),0) -> 0 | AB43: =IFERROR($H43*N43 *IF($E43<>"Nominal",INDEX($K$21:$V$21,,MATCH($F43,Years,0))/INDEX($K$21:$V$21,,MATCH($E43,Years,0)), 1/N$27),0) -> 0 | AC43: =IFERROR($H43*O43 *IF($E43<>"Nominal",INDEX($K$21:$V$21,,MATCH($F43,Years,0))/INDEX($K$21:$V$21,,MATCH($E43,Years,0)), 1/O$27),0) -> 0 | AD43: 0 | AE43: 0 | AF43: 0 | AG43: 0 | AH43: 0 | AI43: =IFERROR($H43*U43 *IF($E43<>"Nominal",INDEX($K$21:$V$21,,MATCH($F43,Years,0))/INDEX($K$21:$V$21,,MATCH($E43,Years,0)), 1/U$27),0) -> 0 | AJ43: =IFERROR($H43*V43 *IF($E43<>"Nominal",INDEX($K$21:$V$21,,MATCH($F43,Years,0))/INDEX($K$21:$V$21,,MATCH($E43,Years,0)), 1/V$27),0) -> 0 | AK43: 0 | AL43: 0.2876990712 | AS43: 0 | AT43: 0 | AU43: 0 | AV43: 1 | AW43: 0 | AX43: 0 | AY43: 0 | BA43: 0 | BB43: 0 | BC43: 0 | BD43: 0 | BE43: 0 | BF43: 0 | BG43: 0 | BH43: 0 | BI43: 0 | BJ43: 0 | BK43: 0 | BL43: 0 | BM43: 0 | BO43: Substations - 0
A44: =A43 -> Construction Costs | D&C Contract - Substations | B44: Project Team Input | C44: $Millions | E44: Nominal | F44: 2026 | H44: 0 | I44: Substation switchbays | J44: Substations | P44: 0.04 | Q44: 0.11 | R44: 0.52 | S44: 0.33 | T44: 0 | U44: 0 | V44: 0 | W44: 1 | X44: 0 | Y44: =IFERROR($H44*K44 *IF($E44<>"Nominal",INDEX($K$21:$V$21,,MATCH($F44,Years,0))/INDEX($K$21:$V$21,,MATCH($E44,Years,0)), 1/K$27),0) -> 0 | Z44: =IFERROR($H44*L44 *IF($E44<>"Nominal",INDEX($K$21:$V$21,,MATCH($F44,Years,0))/INDEX($K$21:$V$21,,MATCH($E44,Years,0)), 1/L$27),0) -> 0 | AA44: =IFERROR($H44*M44 *IF($E44<>"Nominal",INDEX($K$21:$V$21,,MATCH($F44,Years,0))/INDEX($K$21:$V$21,,MATCH($E44,Years,0)), 1/M$27),0) -> 0 | AB44: =IFERROR($H44*N44 *IF($E44<>"Nominal",INDEX($K$21:$V$21,,MATCH($F44,Years,0))/INDEX($K$21:$V$21,,MATCH($E44,Years,0)), 1/N$27),0) -> 0 | AC44: =IFERROR($H44*O44 *IF($E44<>"Nominal",INDEX($K$21:$V$21,,MATCH($F44,Years,0))/INDEX($K$21:$V$21,,MATCH($E44,Years,0)), 1/O$27),0) -> 0 | AD44: 0 | AE44: 0 | AF44: 0 | AG44: 0 | AH44: 0 | AI44: =IFERROR($H44*U44 *IF($E44<>"Nominal",INDEX($K$21:$V$21,,MATCH($F44,Years,0))/INDEX($K$21:$V$21,,MATCH($E44,Years,0)), 1/U$27),0) -> 0 | AJ44: =IFERROR($H44*V44 *IF($E44<>"Nominal",INDEX($K$21:$V$21,,MATCH($F44,Years,0))/INDEX($K$21:$V$21,,MATCH($E44,Years,0)), 1/V$27),0) -> 0 | AK44: 0 | AL44: =AL43 -> 0.2876990712 | AS44: 0 | AT44: 0 | AU44: 0 | AV44: 1 | AW44: 0 | AX44: 0 | AY44: 0 | BA44: 0 | BB44: 0 | BC44: 0 | BD44: 0 | BE44: 0 | BF44: 0 | BG44: 0 | BH44: 0 | BI44: 0 | BJ44: 0 | BK44: 0 | BL44: 0 | BM44: 0 | BO44: Substations - Substation switchbays
A45: =A44 -> Construction Costs | D&C Contract - Substations | B45: Project Team Input | C45: $Millions | E45: Nominal | F45: 2026 | H45: 0 | I45: Substation power transformers | J45: Substations | P45: 0.04 | Q45: 0.11 | R45: 0.52 | S45: 0.33 | T45: 0 | U45: 0 | V45: 0 | W45: 1 | X45: 0 | Y45: =IFERROR($H45*K45 *IF($E45<>"Nominal",INDEX($K$21:$V$21,,MATCH($F45,Years,0))/INDEX($K$21:$V$21,,MATCH($E45,Years,0)), 1/K$27),0) -> 0 | Z45: =IFERROR($H45*L45 *IF($E45<>"Nominal",INDEX($K$21:$V$21,,MATCH($F45,Years,0))/INDEX($K$21:$V$21,,MATCH($E45,Years,0)), 1/L$27),0) -> 0 | AA45: =IFERROR($H45*M45 *IF($E45<>"Nominal",INDEX($K$21:$V$21,,MATCH($F45,Years,0))/INDEX($K$21:$V$21,,MATCH($E45,Years,0)), 1/M$27),0) -> 0 | AB45: =IFERROR($H45*N45 *IF($E45<>"Nominal",INDEX($K$21:$V$21,,MATCH($F45,Years,0))/INDEX($K$21:$V$21,,MATCH($E45,Years,0)), 1/N$27),0) -> 0 | AC45: =IFERROR($H45*O45 *IF($E45<>"Nominal",INDEX($K$21:$V$21,,MATCH($F45,Years,0))/INDEX($K$21:$V$21,,MATCH($E45,Years,0)), 1/O$27),0) -> 0 | AD45: 0 | AE45: 0 | AF45: 0 | AG45: 0 | AH45: 0 | AI45: =IFERROR($H45*U45 *IF($E45<>"Nominal",INDEX($K$21:$V$21,,MATCH($F45,Years,0))/INDEX($K$21:$V$21,,MATCH($E45,Years,0)), 1/U$27),0) -> 0 | AJ45: =IFERROR($H45*V45 *IF($E45<>"Nominal",INDEX($K$21:$V$21,,MATCH($F45,Years,0))/INDEX($K$21:$V$21,,MATCH($E45,Years,0)), 1/V$27),0) -> 0 | AK45: 0 | AL45: =AL44 -> 0.2876990712 | AS45: 0 | AT45: 0 | AU45: 0 | AV45: 1 | AW45: 0 | AX45: 0 | AY45: 0 | BA45: 0 | BB45: 0 | BC45: 0 | BD45: 0 | BE45: 0 | BF45: 0 | BG45: 0 | BH45: 0 | BI45: 0 | BJ45: 0 | BK45: 0 | BL45: 0 | BM45: 0 | BO45: Substations - Substation power transformers
A46: =A45 -> Construction Costs | D&C Contract - Substations | B46: Project Team Input | C46: $Millions | E46: Nominal | F46: 2026 | H46: 0 | I46: Substation reactive plant | J46: Substations | P46: 0.04 | Q46: 0.11 | R46: 0.52 | S46: 0.33 | T46: 0 | U46: 0 | V46: 0 | W46: 1 | X46: 0 | Y46: =IFERROR($H46*K46 *IF($E46<>"Nominal",INDEX($K$21:$V$21,,MATCH($F46,Years,0))/INDEX($K$21:$V$21,,MATCH($E46,Years,0)), 1/K$27),0) -> 0 | Z46: =IFERROR($H46*L46 *IF($E46<>"Nominal",INDEX($K$21:$V$21,,MATCH($F46,Years,0))/INDEX($K$21:$V$21,,MATCH($E46,Years,0)), 1/L$27),0) -> 0 | AA46: =IFERROR($H46*M46 *IF($E46<>"Nominal",INDEX($K$21:$V$21,,MATCH($F46,Years,0))/INDEX($K$21:$V$21,,MATCH($E46,Years,0)), 1/M$27),0) -> 0 | AB46: =IFERROR($H46*N46 *IF($E46<>"Nominal",INDEX($K$21:$V$21,,MATCH($F46,Years,0))/INDEX($K$21:$V$21,,MATCH($E46,Years,0)), 1/N$27),0) -> 0 | AC46: =IFERROR($H46*O46 *IF($E46<>"Nominal",INDEX($K$21:$V$21,,MATCH($F46,Years,0))/INDEX($K$21:$V$21,,MATCH($E46,Years,0)), 1/O$27),0) -> 0 | AD46: 0 | AE46: 0 | AF46: 0 | AG46: 0 | AH46: 0 | AI46: =IFERROR($H46*U46 *IF($E46<>"Nominal",INDEX($K$21:$V$21,,MATCH($F46,Years,0))/INDEX($K$21:$V$21,,MATCH($E46,Years,0)), 1/U$27),0) -> 0 | AJ46: =IFERROR($H46*V46 *IF($E46<>"Nominal",INDEX($K$21:$V$21,,MATCH($F46,Years,0))/INDEX($K$21:$V$21,,MATCH($E46,Years,0)), 1/V$27),0) -> 0 | AK46: 0 | AL46: =AL45 -> 0.2876990712 | AS46: 0 | AT46: 0 | AU46: 0 | AV46: 1 | AW46: 0 | AX46: 0 | AY46: 0 | BA46: 0 | BB46: 0 | BC46: 0 | BD46: 0 | BE46: 0 | BF46: 0 | BG46: 0 | BH46: 0 | BI46: 0 | BJ46: 0 | BK46: 0 | BL46: 0 | BM46: 0 | BO46: Substations - Substation reactive plant
A47: Construction Costs | D&C Contract - Secondary System | B47: Project Team Input | C47: $Millions | E47: Nominal | F47: 2026 | H47: 0 | I47: SCADA, network control and protection systems | J47: Secondary System | P47: 0.04 | Q47: 0.11 | R47: 0.52 | S47: 0.33 | T47: 0 | U47: 0 | V47: 0 | W47: 1 | X47: 0 | Y47: =IFERROR($H47*K47 *IF($E47<>"Nominal",INDEX($K$21:$V$21,,MATCH($F47,Years,0))/INDEX($K$21:$V$21,,MATCH($E47,Years,0)), 1/K$27),0) -> 0 | Z47: =IFERROR($H47*L47 *IF($E47<>"Nominal",INDEX($K$21:$V$21,,MATCH($F47,Years,0))/INDEX($K$21:$V$21,,MATCH($E47,Years,0)), 1/L$27),0) -> 0 | AA47: =IFERROR($H47*M47 *IF($E47<>"Nominal",INDEX($K$21:$V$21,,MATCH($F47,Years,0))/INDEX($K$21:$V$21,,MATCH($E47,Years,0)), 1/M$27),0) -> 0 | AB47: =IFERROR($H47*N47 *IF($E47<>"Nominal",INDEX($K$21:$V$21,,MATCH($F47,Years,0))/INDEX($K$21:$V$21,,MATCH($E47,Years,0)), 1/N$27),0) -> 0 | AC47: =IFERROR($H47*O47 *IF($E47<>"Nominal",INDEX($K$21:$V$21,,MATCH($F47,Years,0))/INDEX($K$21:$V$21,,MATCH($E47,Years,0)), 1/O$27),0) -> 0 | AD47: 0 | AE47: 0 | AF47: 0 | AG47: 0 | AH47: 0 | AI47: =IFERROR($H47*U47 *IF($E47<>"Nominal",INDEX($K$21:$V$21,,MATCH($F47,Years,0))/INDEX($K$21:$V$21,,MATCH($E47,Years,0)), 1/U$27),0) -> 0 | AJ47: =IFERROR($H47*V47 *IF($E47<>"Nominal",INDEX($K$21:$V$21,,MATCH($F47,Years,0))/INDEX($K$21:$V$21,,MATCH($E47,Years,0)), 1/V$27),0) -> 0 | AK47: 0 | AL47: 0.2876990712 | AS47: 0 | AT47: 0 | AU47: 0 | AV47: 1 | AW47: 0 | AX47: 0 | AY47: 0 | BA47: 0 | BB47: 0 | BC47: 0 | BD47: 0 | BE47: 0 | BF47: 0 | BG47: 0 | BH47: 0 | BI47: 0 | BJ47: 0 | BK47: 0 | BL47: 0 | BM47: 0 | BO47: Secondary System - SCADA, network control and protection systems
A48: Construction Costs | Transposition | B48: Project Team Input | C48: $Millions | E48: Nominal | F48: 2026 | H48: 0 | I48: 0 | J48: Transmission Lines | P48: 0 | Q48: 0.1658 | R48: 0.2718 | S48: 0.4077 | T48: 0.1547 | U48: 0 | V48: 0 | W48: 1 | X48: 0 | Y48: =IFERROR($H48*K48 *IF($E48<>"Nominal",INDEX($K$21:$V$21,,MATCH($F48,Years,0))/INDEX($K$21:$V$21,,MATCH($E48,Years,0)), 1/K$27),0) -> 0 | Z48: =IFERROR($H48*L48 *IF($E48<>"Nominal",INDEX($K$21:$V$21,,MATCH($F48,Years,0))/INDEX($K$21:$V$21,,MATCH($E48,Years,0)), 1/L$27),0) -> 0 | AA48: =IFERROR($H48*M48 *IF($E48<>"Nominal",INDEX($K$21:$V$21,,MATCH($F48,Years,0))/INDEX($K$21:$V$21,,MATCH($E48,Years,0)), 1/M$27),0) -> 0 | AB48: =IFERROR($H48*N48 *IF($E48<>"Nominal",INDEX($K$21:$V$21,,MATCH($F48,Years,0))/INDEX($K$21:$V$21,,MATCH($E48,Years,0)), 1/N$27),0) -> 0 | AC48: =IFERROR($H48*O48 *IF($E48<>"Nominal",INDEX($K$21:$V$21,,MATCH($F48,Years,0))/INDEX($K$21:$V$21,,MATCH($E48,Years,0)), 1/O$27),0) -> 0 | AD48: 0 | AE48: 0 | AF48: 0 | AG48: 0 | AH48: 0 | AI48: =IFERROR($H48*U48 *IF($E48<>"Nominal",INDEX($K$21:$V$21,,MATCH($F48,Years,0))/INDEX($K$21:$V$21,,MATCH($E48,Years,0)), 1/U$27),0) -> 0 | AJ48: =IFERROR($H48*V48 *IF($E48<>"Nominal",INDEX($K$21:$V$21,,MATCH($F48,Years,0))/INDEX($K$21:$V$21,,MATCH($E48,Years,0)), 1/V$27),0) -> 0 | AK48: 0 | AL48: 0.2201791497 | AS48: 0 | AT48: 0 | AU48: 0 | AV48: 0.8452931022 | AW48: 0.1547068978 | AX48: 0 | AY48: 0 | BA48: 0 | BB48: 0 | BC48: 0 | BD48: 0 | BE48: 0 | BF48: 0 | BG48: 0 | BH48: 0 | BI48: 0 | BJ48: 0 | BK48: 0 | BL48: 0 | BM48: 0 | BO48: Transmission Lines - 0
A49: =A48 -> Construction Costs | Transposition | B49: Project Team Input | C49: $Millions | E49: Nominal | F49: 2026 | H49: 0 | I49: Transmission towers | J49: =J48 -> Transmission Lines | P49: 0 | Q49: 0.1658 | R49: 0.2718 | S49: 0.4077 | T49: 0.1547 | U49: 0 | V49: 0 | W49: =SUM(K49:V49) -> 1 | X49: =IF(H49=0,0,IF(W49<>1,1,0)) -> 0 | Y49: =IFERROR($H49*K49 *IF($E49<>"Nominal",INDEX($K$21:$V$21,,MATCH($F49,Years,0))/INDEX($K$21:$V$21,,MATCH($E49,Years,0)), 1/K$27),0) -> 0 | Z49: =IFERROR($H49*L49 *IF($E49<>"Nominal",INDEX($K$21:$V$21,,MATCH($F49,Years,0))/INDEX($K$21:$V$21,,MATCH($E49,Years,0)), 1/L$27),0) -> 0 | AA49: =IFERROR($H49*M49 *IF($E49<>"Nominal",INDEX($K$21:$V$21,,MATCH($F49,Years,0))/INDEX($K$21:$V$21,,MATCH($E49,Years,0)), 1/M$27),0) -> 0 | AB49: =IFERROR($H49*N49 *IF($E49<>"Nominal",INDEX($K$21:$V$21,,MATCH($F49,Years,0))/INDEX($K$21:$V$21,,MATCH($E49,Years,0)), 1/N$27),0) -> 0 | AC49: =IFERROR($H49*O49 *IF($E49<>"Nominal",INDEX($K$21:$V$21,,MATCH($F49,Years,0))/INDEX($K$21:$V$21,,MATCH($E49,Years,0)), 1/O$27),0) -> 0 | AD49: 0 | AE49: 0 | AF49: 0 | AG49: 0 | AH49: 0 | AI49: =IFERROR($H49*U49 *IF($E49<>"Nominal",INDEX($K$21:$V$21,,MATCH($F49,Years,0))/INDEX($K$21:$V$21,,MATCH($E49,Years,0)), 1/U$27),0) -> 0 | AJ49: =IFERROR($H49*V49 *IF($E49<>"Nominal",INDEX($K$21:$V$21,,MATCH($F49,Years,0))/INDEX($K$21:$V$21,,MATCH($E49,Years,0)), 1/V$27),0) -> 0 | AK49: 0 | AL49: =AL48 -> 0.2201791497 | AS49: 0 | AT49: 0 | AU49: 0 | AV49: 0.8452931022 | AW49: 0.1547068978 | AX49: 0 | AY49: 0 | BA49: 0 | BB49: 0 | BC49: 0 | BD49: 0 | BE49: 0 | BF49: 0 | BG49: 0 | BH49: 0 | BI49: 0 | BJ49: 0 | BK49: 0 | BL49: 0 | BM49: 0 | BO49: Transmission Lines - Transmission towers
A50: =A49 -> Construction Costs | Transposition | B50: Project Team Input | C50: $Millions | E50: Nominal | F50: 2026 | H50: 0 | I50: Transmission tower support structures | J50: =J49 -> Transmission Lines | P50: 0 | Q50: 0.1658 | R50: 0.2718 | S50: 0.4077 | T50: 0.1547 | U50: 0 | V50: 0 | W50: =SUM(K50:V50) -> 1 | X50: =IF(H50=0,0,IF(W50<>1,1,0)) -> 0 | Y50: =IFERROR($H50*K50 *IF($E50<>"Nominal",INDEX($K$21:$V$21,,MATCH($F50,Years,0))/INDEX($K$21:$V$21,,MATCH($E50,Years,0)), 1/K$27),0) -> 0 | Z50: =IFERROR($H50*L50 *IF($E50<>"Nominal",INDEX($K$21:$V$21,,MATCH($F50,Years,0))/INDEX($K$21:$V$21,,MATCH($E50,Years,0)), 1/L$27),0) -> 0 | AA50: =IFERROR($H50*M50 *IF($E50<>"Nominal",INDEX($K$21:$V$21,,MATCH($F50,Years,0))/INDEX($K$21:$V$21,,MATCH($E50,Years,0)), 1/M$27),0) -> 0 | AB50: =IFERROR($H50*N50 *IF($E50<>"Nominal",INDEX($K$21:$V$21,,MATCH($F50,Years,0))/INDEX($K$21:$V$21,,MATCH($E50,Years,0)), 1/N$27),0) -> 0 | AC50: =IFERROR($H50*O50 *IF($E50<>"Nominal",INDEX($K$21:$V$21,,MATCH($F50,Years,0))/INDEX($K$21:$V$21,,MATCH($E50,Years,0)), 1/O$27),0) -> 0 | AD50: 0 | AE50: 0 | AF50: 0 | AG50: 0 | AH50: 0 | AI50: =IFERROR($H50*U50 *IF($E50<>"Nominal",INDEX($K$21:$V$21,,MATCH($F50,Years,0))/INDEX($K$21:$V$21,,MATCH($E50,Years,0)), 1/U$27),0) -> 0 | AJ50: =IFERROR($H50*V50 *IF($E50<>"Nominal",INDEX($K$21:$V$21,,MATCH($F50,Years,0))/INDEX($K$21:$V$21,,MATCH($E50,Years,0)), 1/V$27),0) -> 0 | AK50: 0 | AL50: =AL49 -> 0.2201791497 | AS50: 0 | AT50: 0 | AU50: 0 | AV50: 0.8452931022 | AW50: 0.1547068978 | AX50: 0 | AY50: 0 | BA50: 0 | BB50: 0 | BC50: 0 | BD50: 0 | BE50: 0 | BF50: 0 | BG50: 0 | BH50: 0 | BI50: 0 | BJ50: 0 | BK50: 0 | BL50: 0 | BM50: 0 | BO50: Transmission Lines - Transmission tower support structures
A51: =A50 -> Construction Costs | Transposition | B51: Project Team Input | C51: $Millions | E51: Nominal | F51: 2026 | H51: 0 | I51: Conductors | J51: =J50 -> Transmission Lines | P51: 0 | Q51: 0.1658 | R51: 0.2718 | S51: 0.4077 | T51: 0.1547 | U51: 0 | V51: 0 | W51: =SUM(K51:V51) -> 1 | X51: =IF(H51=0,0,IF(W51<>1,1,0)) -> 0 | Y51: =IFERROR($H51*K51 *IF($E51<>"Nominal",INDEX($K$21:$V$21,,MATCH($F51,Years,0))/INDEX($K$21:$V$21,,MATCH($E51,Years,0)), 1/K$27),0) -> 0 | Z51: =IFERROR($H51*L51 *IF($E51<>"Nominal",INDEX($K$21:$V$21,,MATCH($F51,Years,0))/INDEX($K$21:$V$21,,MATCH($E51,Years,0)), 1/L$27),0) -> 0 | AA51: =IFERROR($H51*M51 *IF($E51<>"Nominal",INDEX($K$21:$V$21,,MATCH($F51,Years,0))/INDEX($K$21:$V$21,,MATCH($E51,Years,0)), 1/M$27),0) -> 0 | AB51: =IFERROR($H51*N51 *IF($E51<>"Nominal",INDEX($K$21:$V$21,,MATCH($F51,Years,0))/INDEX($K$21:$V$21,,MATCH($E51,Years,0)), 1/N$27),0) -> 0 | AC51: =IFERROR($H51*O51 *IF($E51<>"Nominal",INDEX($K$21:$V$21,,MATCH($F51,Years,0))/INDEX($K$21:$V$21,,MATCH($E51,Years,0)), 1/O$27),0) -> 0 | AD51: 0 | AE51: 0 | AF51: 0 | AG51: 0 | AH51: 0 | AI51: =IFERROR($H51*U51 *IF($E51<>"Nominal",INDEX($K$21:$V$21,,MATCH($F51,Years,0))/INDEX($K$21:$V$21,,MATCH($E51,Years,0)), 1/U$27),0) -> 0 | AJ51: =IFERROR($H51*V51 *IF($E51<>"Nominal",INDEX($K$21:$V$21,,MATCH($F51,Years,0))/INDEX($K$21:$V$21,,MATCH($E51,Years,0)), 1/V$27),0) -> 0 | AK51: 0 | AL51: =AL50 -> 0.2201791497 | AS51: 0 | AT51: 0 | AU51: 0 | AV51: 0.8452931022 | AW51: 0.1547068978 | AX51: 0 | AY51: 0 | BA51: 0 | BB51: 0 | BC51: 0 | BD51: 0 | BE51: 0 | BF51: 0 | BG51: 0 | BH51: 0 | BI51: 0 | BJ51: 0 | BK51: 0 | BL51: 0 | BM51: 0 | BO51: Transmission Lines - Conductors
A52: Secondary Systems | BO52: -
A53: Secondary System | Protection Relays | B53: Project Team Input | C53: $Millions | E53: 2026 | F53: =Report_Year -> 2026 | H53: 0.4105019494 | I53: SCADA, network control and protection systems | J53: Secondary System | P53: 0 | Q53: 1 | R53: 0 | S53: 0 | T53: 0 | U53: 0 | V53: 0 | W53: =SUM(K53:V53) -> 1 | X53: =IF(H53=0,0,IF(W53<>1,1,0)) -> 0 | Y53: =IFERROR($H53*K53 *IF($E53<>"Nominal",INDEX($K$21:$V$21,,MATCH($F53,Years,0))/INDEX($K$21:$V$21,,MATCH($E53,Years,0)), 1/K$27),0) -> 0 | Z53: =IFERROR($H53*L53 *IF($E53<>"Nominal",INDEX($K$21:$V$21,,MATCH($F53,Years,0))/INDEX($K$21:$V$21,,MATCH($E53,Years,0)), 1/L$27),0) -> 0 | AA53: =IFERROR($H53*M53 *IF($E53<>"Nominal",INDEX($K$21:$V$21,,MATCH($F53,Years,0))/INDEX($K$21:$V$21,,MATCH($E53,Years,0)), 1/M$27),0) -> 0 | AB53: =IFERROR($H53*N53 *IF($E53<>"Nominal",INDEX($K$21:$V$21,,MATCH($F53,Years,0))/INDEX($K$21:$V$21,,MATCH($E53,Years,0)), 1/N$27),0) -> 0 | AC53: =IFERROR($H53*O53 *IF($E53<>"Nominal",INDEX($K$21:$V$21,,MATCH($F53,Years,0))/INDEX($K$21:$V$21,,MATCH($E53,Years,0)), 1/O$27),0) -> 0 | AD53: =IFERROR($H53*P53 *IF($E53<>"Nominal",INDEX($K$21:$V$21,,MATCH($F53,Years,0))/INDEX($K$21:$V$21,,MATCH($E53,Years,0)), 1/P$27),0) -> 0 | AE53: =IFERROR($H53*Q53 *IF($E53<>"Nominal",INDEX($K$21:$V$21,,MATCH($F53,Years,0))/INDEX($K$21:$V$21,,MATCH($E53,Years,0)), 1/Q$27),0) -> 0.4105019494 | AF53: =IFERROR($H53*R53 *IF($E53<>"Nominal",INDEX($K$21:$V$21,,MATCH($F53,Years,0))/INDEX($K$21:$V$21,,MATCH($E53,Years,0)), 1/R$27),0) -> 0 | AG53: =IFERROR($H53*S53 *IF($E53<>"Nominal",INDEX($K$21:$V$21,,MATCH($F53,Years,0))/INDEX($K$21:$V$21,,MATCH($E53,Years,0)), 1/S$27),0) -> 0 | AH53: =IFERROR($H53*T53 *IF($E53<>"Nominal",INDEX($K$21:$V$21,,MATCH($F53,Years,0))/INDEX($K$21:$V$21,,MATCH($E53,Years,0)), 1/T$27),0) -> 0 | AI53: =IFERROR($H53*U53 *IF($E53<>"Nominal",INDEX($K$21:$V$21,,MATCH($F53,Years,0))/INDEX($K$21:$V$21,,MATCH($E53,Years,0)), 1/U$27),0) -> 0 | AJ53: =IFERROR($H53*V53 *IF($E53<>"Nominal",INDEX($K$21:$V$21,,MATCH($F53,Years,0))/INDEX($K$21:$V$21,,MATCH($E53,Years,0)), 1/V$27),0) -> 0 | AK53: =SUM(Y53:AJ53) -> 0.4105019494 | AL53: 1 | AS53: 0 | AT53: 1 | AU53: 0 | AV53: 0 | AW53: 0 | AX53: 0 | AY53: 0 | BA53: =$AK53*AN53 -> 0 | BB53: =$AK53*AO53 -> 0 | BC53: =$AK53*AP53 -> 0 | BD53: =$AK53*AQ53 -> 0 | BE53: =$AK53*AR53 -> 0 | BF53: =$AK53*AS53 -> 0 | BG53: =$AK53*AT53 -> 0.4105019494 | BH53: =$AK53*AU53 -> 0 | BI53: =$AK53*AV53 -> 0 | BJ53: =$AK53*AW53 -> 0 | BK53: =$AK53*AX53 -> 0 | BL53: =$AK53*AY53 -> 0 | BM53: =SUM(BA53:BL53) -> 0.4105019494 | BO53: Secondary System - SCADA, network control and protection systems
A54: Secondary System | IED SEL Terminals | B54: Project Team Input | C54: $Millions | E54: 2026 | F54: 2026 | H54: 0.1042373129 | I54: SCADA, network control and protection systems | J54: Secondary System | P54: 0 | Q54: 1 | R54: 0 | S54: 0 | T54: 0 | U54: 0 | V54: 0 | W54: 1 | X54: 0 | Y54: =IFERROR($H54*K54 *IF($E54<>"Nominal",INDEX($K$21:$V$21,,MATCH($F54,Years,0))/INDEX($K$21:$V$21,,MATCH($E54,Years,0)), 1/K$27),0) -> 0 | Z54: =IFERROR($H54*L54 *IF($E54<>"Nominal",INDEX($K$21:$V$21,,MATCH($F54,Years,0))/INDEX($K$21:$V$21,,MATCH($E54,Years,0)), 1/L$27),0) -> 0 | AA54: =IFERROR($H54*M54 *IF($E54<>"Nominal",INDEX($K$21:$V$21,,MATCH($F54,Years,0))/INDEX($K$21:$V$21,,MATCH($E54,Years,0)), 1/M$27),0) -> 0 | AB54: =IFERROR($H54*N54 *IF($E54<>"Nominal",INDEX($K$21:$V$21,,MATCH($F54,Years,0))/INDEX($K$21:$V$21,,MATCH($E54,Years,0)), 1/N$27),0) -> 0 | AC54: =IFERROR($H54*O54 *IF($E54<>"Nominal",INDEX($K$21:$V$21,,MATCH($F54,Years,0))/INDEX($K$21:$V$21,,MATCH($E54,Years,0)), 1/O$27),0) -> 0 | AD54: =IFERROR($H54*P54 *IF($E54<>"Nominal",INDEX($K$21:$V$21,,MATCH($F54,Years,0))/INDEX($K$21:$V$21,,MATCH($E54,Years,0)), 1/P$27),0) -> 0 | AE54: =IFERROR($H54*Q54 *IF($E54<>"Nominal",INDEX($K$21:$V$21,,MATCH($F54,Years,0))/INDEX($K$21:$V$21,,MATCH($E54,Years,0)), 1/Q$27),0) -> 0.1042373129 | AF54: =IFERROR($H54*R54 *IF($E54<>"Nominal",INDEX($K$21:$V$21,,MATCH($F54,Years,0))/INDEX($K$21:$V$21,,MATCH($E54,Years,0)), 1/R$27),0) -> 0 | AG54: =IFERROR($H54*S54 *IF($E54<>"Nominal",INDEX($K$21:$V$21,,MATCH($F54,Years,0))/INDEX($K$21:$V$21,,MATCH($E54,Years,0)), 1/S$27),0) -> 0 | AH54: =IFERROR($H54*T54 *IF($E54<>"Nominal",INDEX($K$21:$V$21,,MATCH($F54,Years,0))/INDEX($K$21:$V$21,,MATCH($E54,Years,0)), 1/T$27),0) -> 0 | AI54: =IFERROR($H54*U54 *IF($E54<>"Nominal",INDEX($K$21:$V$21,,MATCH($F54,Years,0))/INDEX($K$21:$V$21,,MATCH($E54,Years,0)), 1/U$27),0) -> 0 | AJ54: =IFERROR($H54*V54 *IF($E54<>"Nominal",INDEX($K$21:$V$21,,MATCH($F54,Years,0))/INDEX($K$21:$V$21,,MATCH($E54,Years,0)), 1/V$27),0) -> 0 | AK54: 0.1042373129 | AL54: 1 | AS54: 0 | AT54: 1 | AU54: 0 | AV54: 0 | AW54: 0 | AX54: 0 | AY54: 0 | BA54: 0 | BB54: 0 | BC54: 0 | BD54: 0 | BE54: 0 | BF54: 0 | BG54: 0.1042373129 | BH54: 0 | BI54: 0 | BJ54: 0 | BK54: 0 | BL54: 0 | BM54: 0.1042373129 | BO54: Secondary System - SCADA, network control and protection systems
A55: Secondary System | QOS Meter | B55: Project Team Input | C55: $Millions | E55: 2026 | F55: 2026 | H55: 0.1616886 | I55: SCADA, network control and protection systems | J55: Secondary System | P55: 0 | Q55: 1 | R55: 0 | S55: 0 | T55: 0 | U55: 0 | V55: 0 | W55: 1 | X55: 0 | Y55: =IFERROR($H55*K55 *IF($E55<>"Nominal",INDEX($K$21:$V$21,,MATCH($F55,Years,0))/INDEX($K$21:$V$21,,MATCH($E55,Years,0)), 1/K$27),0) -> 0 | Z55: =IFERROR($H55*L55 *IF($E55<>"Nominal",INDEX($K$21:$V$21,,MATCH($F55,Years,0))/INDEX($K$21:$V$21,,MATCH($E55,Years,0)), 1/L$27),0) -> 0 | AA55: =IFERROR($H55*M55 *IF($E55<>"Nominal",INDEX($K$21:$V$21,,MATCH($F55,Years,0))/INDEX($K$21:$V$21,,MATCH($E55,Years,0)), 1/M$27),0) -> 0 | AB55: =IFERROR($H55*N55 *IF($E55<>"Nominal",INDEX($K$21:$V$21,,MATCH($F55,Years,0))/INDEX($K$21:$V$21,,MATCH($E55,Years,0)), 1/N$27),0) -> 0 | AC55: =IFERROR($H55*O55 *IF($E55<>"Nominal",INDEX($K$21:$V$21,,MATCH($F55,Years,0))/INDEX($K$21:$V$21,,MATCH($E55,Years,0)), 1/O$27),0) -> 0 | AD55: =IFERROR($H55*P55 *IF($E55<>"Nominal",INDEX($K$21:$V$21,,MATCH($F55,Years,0))/INDEX($K$21:$V$21,,MATCH($E55,Years,0)), 1/P$27),0) -> 0 | AE55: =IFERROR($H55*Q55 *IF($E55<>"Nominal",INDEX($K$21:$V$21,,MATCH($F55,Years,0))/INDEX($K$21:$V$21,,MATCH($E55,Years,0)), 1/Q$27),0) -> 0.1616886 | AF55: =IFERROR($H55*R55 *IF($E55<>"Nominal",INDEX($K$21:$V$21,,MATCH($F55,Years,0))/INDEX($K$21:$V$21,,MATCH($E55,Years,0)), 1/R$27),0) -> 0 | AG55: =IFERROR($H55*S55 *IF($E55<>"Nominal",INDEX($K$21:$V$21,,MATCH($F55,Years,0))/INDEX($K$21:$V$21,,MATCH($E55,Years,0)), 1/S$27),0) -> 0 | AH55: =IFERROR($H55*T55 *IF($E55<>"Nominal",INDEX($K$21:$V$21,,MATCH($F55,Years,0))/INDEX($K$21:$V$21,,MATCH($E55,Years,0)), 1/T$27),0) -> 0 | AI55: =IFERROR($H55*U55 *IF($E55<>"Nominal",INDEX($K$21:$V$21,,MATCH($F55,Years,0))/INDEX($K$21:$V$21,,MATCH($E55,Years,0)), 1/U$27),0) -> 0 | AJ55: =IFERROR($H55*V55 *IF($E55<>"Nominal",INDEX($K$21:$V$21,,MATCH($F55,Years,0))/INDEX($K$21:$V$21,,MATCH($E55,Years,0)), 1/V$27),0) -> 0 | AK55: 0.1616886 | AL55: 1 | AS55: 0 | AT55: 1 | AU55: 0 | AV55: 0 | AW55: 0 | AX55: 0 | AY55: 0 | BA55: 0 | BB55: 0 | BC55: 0 | BD55: 0 | BE55: 0 | BF55: 0 | BG55: 0.1616886 | BH55: 0 | BI55: 0 | BJ55: 0 | BK55: 0 | BL55: 0 | BM55: 0.1616886 | BO55: Secondary System - SCADA, network control and protection systems
A56: Secondary System | Disturbance Recorder | B56: Project Team Input | C56: $Millions | E56: 2026 | F56: 2026 | H56: 0.07411824 | I56: SCADA, network control and protection systems | J56: Secondary System | P56: 0 | Q56: 1 | R56: 0 | S56: 0 | T56: 0 | U56: 0 | V56: 0 | W56: 1 | X56: 0 | Y56: =IFERROR($H56*K56 *IF($E56<>"Nominal",INDEX($K$21:$V$21,,MATCH($F56,Years,0))/INDEX($K$21:$V$21,,MATCH($E56,Years,0)), 1/K$27),0) -> 0 | Z56: =IFERROR($H56*L56 *IF($E56<>"Nominal",INDEX($K$21:$V$21,,MATCH($F56,Years,0))/INDEX($K$21:$V$21,,MATCH($E56,Years,0)), 1/L$27),0) -> 0 | AA56: =IFERROR($H56*M56 *IF($E56<>"Nominal",INDEX($K$21:$V$21,,MATCH($F56,Years,0))/INDEX($K$21:$V$21,,MATCH($E56,Years,0)), 1/M$27),0) -> 0 | AB56: =IFERROR($H56*N56 *IF($E56<>"Nominal",INDEX($K$21:$V$21,,MATCH($F56,Years,0))/INDEX($K$21:$V$21,,MATCH($E56,Years,0)), 1/N$27),0) -> 0 | AC56: =IFERROR($H56*O56 *IF($E56<>"Nominal",INDEX($K$21:$V$21,,MATCH($F56,Years,0))/INDEX($K$21:$V$21,,MATCH($E56,Years,0)), 1/O$27),0) -> 0 | AD56: =IFERROR($H56*P56 *IF($E56<>"Nominal",INDEX($K$21:$V$21,,MATCH($F56,Years,0))/INDEX($K$21:$V$21,,MATCH($E56,Years,0)), 1/P$27),0) -> 0 | AE56: =IFERROR($H56*Q56 *IF($E56<>"Nominal",INDEX($K$21:$V$21,,MATCH($F56,Years,0))/INDEX($K$21:$V$21,,MATCH($E56,Years,0)), 1/Q$27),0) -> 0.07411824 | AF56: =IFERROR($H56*R56 *IF($E56<>"Nominal",INDEX($K$21:$V$21,,MATCH($F56,Years,0))/INDEX($K$21:$V$21,,MATCH($E56,Years,0)), 1/R$27),0) -> 0 | AG56: =IFERROR($H56*S56 *IF($E56<>"Nominal",INDEX($K$21:$V$21,,MATCH($F56,Years,0))/INDEX($K$21:$V$21,,MATCH($E56,Years,0)), 1/S$27),0) -> 0 | AH56: =IFERROR($H56*T56 *IF($E56<>"Nominal",INDEX($K$21:$V$21,,MATCH($F56,Years,0))/INDEX($K$21:$V$21,,MATCH($E56,Years,0)), 1/T$27),0) -> 0 | AI56: =IFERROR($H56*U56 *IF($E56<>"Nominal",INDEX($K$21:$V$21,,MATCH($F56,Years,0))/INDEX($K$21:$V$21,,MATCH($E56,Years,0)), 1/U$27),0) -> 0 | AJ56: =IFERROR($H56*V56 *IF($E56<>"Nominal",INDEX($K$21:$V$21,,MATCH($F56,Years,0))/INDEX($K$21:$V$21,,MATCH($E56,Years,0)), 1/V$27),0) -> 0 | AK56: 0.07411824 | AL56: 1 | AS56: 0 | AT56: 1 | AU56: 0 | AV56: 0 | AW56: 0 | AX56: 0 | AY56: 0 | BA56: 0 | BB56: 0 | BC56: 0 | BD56: 0 | BE56: 0 | BF56: 0 | BG56: 0.07411824 | BH56: 0 | BI56: 0 | BJ56: 0 | BK56: 0 | BL56: 0 | BM56: 0.07411824 | BO56: Secondary System - SCADA, network control and protection systems
A57: Secondary System | Metering Panel | B57: Project Team Input | C57: $Millions | E57: 2026 | F57: 2026 | H57: 0.06306791424 | I57: SCADA, network control and protection systems | J57: Secondary System | P57: 0 | Q57: 1 | R57: 0 | S57: 0 | T57: 0 | U57: 0 | V57: 0 | W57: 1 | X57: 0 | Y57: =IFERROR($H57*K57 *IF($E57<>"Nominal",INDEX($K$21:$V$21,,MATCH($F57,Years,0))/INDEX($K$21:$V$21,,MATCH($E57,Years,0)), 1/K$27),0) -> 0 | Z57: =IFERROR($H57*L57 *IF($E57<>"Nominal",INDEX($K$21:$V$21,,MATCH($F57,Years,0))/INDEX($K$21:$V$21,,MATCH($E57,Years,0)), 1/L$27),0) -> 0 | AA57: =IFERROR($H57*M57 *IF($E57<>"Nominal",INDEX($K$21:$V$21,,MATCH($F57,Years,0))/INDEX($K$21:$V$21,,MATCH($E57,Years,0)), 1/M$27),0) -> 0 | AB57: =IFERROR($H57*N57 *IF($E57<>"Nominal",INDEX($K$21:$V$21,,MATCH($F57,Years,0))/INDEX($K$21:$V$21,,MATCH($E57,Years,0)), 1/N$27),0) -> 0 | AC57: =IFERROR($H57*O57 *IF($E57<>"Nominal",INDEX($K$21:$V$21,,MATCH($F57,Years,0))/INDEX($K$21:$V$21,,MATCH($E57,Years,0)), 1/O$27),0) -> 0 | AD57: =IFERROR($H57*P57 *IF($E57<>"Nominal",INDEX($K$21:$V$21,,MATCH($F57,Years,0))/INDEX($K$21:$V$21,,MATCH($E57,Years,0)), 1/P$27),0) -> 0 | AE57: =IFERROR($H57*Q57 *IF($E57<>"Nominal",INDEX($K$21:$V$21,,MATCH($F57,Years,0))/INDEX($K$21:$V$21,,MATCH($E57,Years,0)), 1/Q$27),0) -> 0.06306791424 | AF57: =IFERROR($H57*R57 *IF($E57<>"Nominal",INDEX($K$21:$V$21,,MATCH($F57,Years,0))/INDEX($K$21:$V$21,,MATCH($E57,Years,0)), 1/R$27),0) -> 0 | AG57: =IFERROR($H57*S57 *IF($E57<>"Nominal",INDEX($K$21:$V$21,,MATCH($F57,Years,0))/INDEX($K$21:$V$21,,MATCH($E57,Years,0)), 1/S$27),0) -> 0 | AH57: =IFERROR($H57*T57 *IF($E57<>"Nominal",INDEX($K$21:$V$21,,MATCH($F57,Years,0))/INDEX($K$21:$V$21,,MATCH($E57,Years,0)), 1/T$27),0) -> 0 | AI57: =IFERROR($H57*U57 *IF($E57<>"Nominal",INDEX($K$21:$V$21,,MATCH($F57,Years,0))/INDEX($K$21:$V$21,,MATCH($E57,Years,0)), 1/U$27),0) -> 0 | AJ57: =IFERROR($H57*V57 *IF($E57<>"Nominal",INDEX($K$21:$V$21,,MATCH($F57,Years,0))/INDEX($K$21:$V$21,,MATCH($E57,Years,0)), 1/V$27),0) -> 0 | AK57: 0.06306791424 | AL57: 1 | AS57: 0 | AT57: 1 | AU57: 0 | AV57: 0 | AW57: 0 | AX57: 0 | AY57: 0 | BA57: 0 | BB57: 0 | BC57: 0 | BD57: 0 | BE57: 0 | BF57: 0 | BG57: 0.06306791424 | BH57: 0 | BI57: 0 | BJ57: 0 | BK57: 0 | BL57: 0 | BM57: 0.06306791424 | BO57: Secondary System - SCADA, network control and protection systems
A58: Secondary System | TWFL | B58: Project Team Input | C58: $Millions | E58: 2026 | F58: 2026 | H58: 0.0679063965 | I58: SCADA, network control and protection systems | J58: Secondary System | P58: 0 | Q58: 1 | R58: 0 | S58: 0 | T58: 0 | U58: 0 | V58: 0 | W58: 1 | X58: 0 | Y58: =IFERROR($H58*K58 *IF($E58<>"Nominal",INDEX($K$21:$V$21,,MATCH($F58,Years,0))/INDEX($K$21:$V$21,,MATCH($E58,Years,0)), 1/K$27),0) -> 0 | Z58: =IFERROR($H58*L58 *IF($E58<>"Nominal",INDEX($K$21:$V$21,,MATCH($F58,Years,0))/INDEX($K$21:$V$21,,MATCH($E58,Years,0)), 1/L$27),0) -> 0 | AA58: =IFERROR($H58*M58 *IF($E58<>"Nominal",INDEX($K$21:$V$21,,MATCH($F58,Years,0))/INDEX($K$21:$V$21,,MATCH($E58,Years,0)), 1/M$27),0) -> 0 | AB58: =IFERROR($H58*N58 *IF($E58<>"Nominal",INDEX($K$21:$V$21,,MATCH($F58,Years,0))/INDEX($K$21:$V$21,,MATCH($E58,Years,0)), 1/N$27),0) -> 0 | AC58: =IFERROR($H58*O58 *IF($E58<>"Nominal",INDEX($K$21:$V$21,,MATCH($F58,Years,0))/INDEX($K$21:$V$21,,MATCH($E58,Years,0)), 1/O$27),0) -> 0 | AD58: =IFERROR($H58*P58 *IF($E58<>"Nominal",INDEX($K$21:$V$21,,MATCH($F58,Years,0))/INDEX($K$21:$V$21,,MATCH($E58,Years,0)), 1/P$27),0) -> 0 | AE58: =IFERROR($H58*Q58 *IF($E58<>"Nominal",INDEX($K$21:$V$21,,MATCH($F58,Years,0))/INDEX($K$21:$V$21,,MATCH($E58,Years,0)), 1/Q$27),0) -> 0.0679063965 | AF58: =IFERROR($H58*R58 *IF($E58<>"Nominal",INDEX($K$21:$V$21,,MATCH($F58,Years,0))/INDEX($K$21:$V$21,,MATCH($E58,Years,0)), 1/R$27),0) -> 0 | AG58: =IFERROR($H58*S58 *IF($E58<>"Nominal",INDEX($K$21:$V$21,,MATCH($F58,Years,0))/INDEX($K$21:$V$21,,MATCH($E58,Years,0)), 1/S$27),0) -> 0 | AH58: =IFERROR($H58*T58 *IF($E58<>"Nominal",INDEX($K$21:$V$21,,MATCH($F58,Years,0))/INDEX($K$21:$V$21,,MATCH($E58,Years,0)), 1/T$27),0) -> 0 | AI58: =IFERROR($H58*U58 *IF($E58<>"Nominal",INDEX($K$21:$V$21,,MATCH($F58,Years,0))/INDEX($K$21:$V$21,,MATCH($E58,Years,0)), 1/U$27),0) -> 0 | AJ58: =IFERROR($H58*V58 *IF($E58<>"Nominal",INDEX($K$21:$V$21,,MATCH($F58,Years,0))/INDEX($K$21:$V$21,,MATCH($E58,Years,0)), 1/V$27),0) -> 0 | AK58: 0.0679063965 | AL58: 1 | AS58: 0 | AT58: 1 | AU58: 0 | AV58: 0 | AW58: 0 | AX58: 0 | AY58: 0 | BA58: 0 | BB58: 0 | BC58: 0 | BD58: 0 | BE58: 0 | BF58: 0 | BG58: 0.0679063965 | BH58: 0 | BI58: 0 | BJ58: 0 | BK58: 0 | BL58: 0 | BM58: 0.0679063965 | BO58: Secondary System - SCADA, network control and protection systems
A59: Secondary System | Comms - XTRAN | B59: Project Team Input | C59: $Millions | E59: 2026 | F59: 2026 | H59: 0.2758191106 | I59: SCADA, network control and protection systems | J59: Secondary System | P59: 0 | Q59: 1 | R59: 0 | S59: 0 | T59: 0 | U59: 0 | V59: 0 | W59: 1 | X59: 0 | Y59: =IFERROR($H59*K59 *IF($E59<>"Nominal",INDEX($K$21:$V$21,,MATCH($F59,Years,0))/INDEX($K$21:$V$21,,MATCH($E59,Years,0)), 1/K$27),0) -> 0 | Z59: =IFERROR($H59*L59 *IF($E59<>"Nominal",INDEX($K$21:$V$21,,MATCH($F59,Years,0))/INDEX($K$21:$V$21,,MATCH($E59,Years,0)), 1/L$27),0) -> 0 | AA59: =IFERROR($H59*M59 *IF($E59<>"Nominal",INDEX($K$21:$V$21,,MATCH($F59,Years,0))/INDEX($K$21:$V$21,,MATCH($E59,Years,0)), 1/M$27),0) -> 0 | AB59: =IFERROR($H59*N59 *IF($E59<>"Nominal",INDEX($K$21:$V$21,,MATCH($F59,Years,0))/INDEX($K$21:$V$21,,MATCH($E59,Years,0)), 1/N$27),0) -> 0 | AC59: =IFERROR($H59*O59 *IF($E59<>"Nominal",INDEX($K$21:$V$21,,MATCH($F59,Years,0))/INDEX($K$21:$V$21,,MATCH($E59,Years,0)), 1/O$27),0) -> 0 | AD59: =IFERROR($H59*P59 *IF($E59<>"Nominal",INDEX($K$21:$V$21,,MATCH($F59,Years,0))/INDEX($K$21:$V$21,,MATCH($E59,Years,0)), 1/P$27),0) -> 0 | AE59: =IFERROR($H59*Q59 *IF($E59<>"Nominal",INDEX($K$21:$V$21,,MATCH($F59,Years,0))/INDEX($K$21:$V$21,,MATCH($E59,Years,0)), 1/Q$27),0) -> 0.2758191106 | AF59: =IFERROR($H59*R59 *IF($E59<>"Nominal",INDEX($K$21:$V$21,,MATCH($F59,Years,0))/INDEX($K$21:$V$21,,MATCH($E59,Years,0)), 1/R$27),0) -> 0 | AG59: =IFERROR($H59*S59 *IF($E59<>"Nominal",INDEX($K$21:$V$21,,MATCH($F59,Years,0))/INDEX($K$21:$V$21,,MATCH($E59,Years,0)), 1/S$27),0) -> 0 | AH59: =IFERROR($H59*T59 *IF($E59<>"Nominal",INDEX($K$21:$V$21,,MATCH($F59,Years,0))/INDEX($K$21:$V$21,,MATCH($E59,Years,0)), 1/T$27),0) -> 0 | AI59: =IFERROR($H59*U59 *IF($E59<>"Nominal",INDEX($K$21:$V$21,,MATCH($F59,Years,0))/INDEX($K$21:$V$21,,MATCH($E59,Years,0)), 1/U$27),0) -> 0 | AJ59: =IFERROR($H59*V59 *IF($E59<>"Nominal",INDEX($K$21:$V$21,,MATCH($F59,Years,0))/INDEX($K$21:$V$21,,MATCH($E59,Years,0)), 1/V$27),0) -> 0 | AK59: 0.2758191106 | AL59: 1 | AS59: 0 | AT59: 1 | AU59: 0 | AV59: 0 | AW59: 0 | AX59: 0 | AY59: 0 | BA59: 0 | BB59: 0 | BC59: 0 | BD59: 0 | BE59: 0 | BF59: 0 | BG59: 0.2758191106 | BH59: 0 | BI59: 0 | BJ59: 0 | BK59: 0 | BL59: 0 | BM59: 0.2758191106 | BO59: Secondary System - SCADA, network control and protection systems
A60: Secondary System | Comms - RAD | B60: Project Team Input | C60: $Millions | E60: 2026 | F60: 2026 | H60: 0.1023300157 | I60: SCADA, network control and protection systems | J60: Secondary System | P60: 0 | Q60: 1 | R60: 0 | S60: 0 | T60: 0 | U60: 0 | V60: 0 | W60: 1 | X60: 0 | Y60: =IFERROR($H60*K60 *IF($E60<>"Nominal",INDEX($K$21:$V$21,,MATCH($F60,Years,0))/INDEX($K$21:$V$21,,MATCH($E60,Years,0)), 1/K$27),0) -> 0 | Z60: =IFERROR($H60*L60 *IF($E60<>"Nominal",INDEX($K$21:$V$21,,MATCH($F60,Years,0))/INDEX($K$21:$V$21,,MATCH($E60,Years,0)), 1/L$27),0) -> 0 | AA60: =IFERROR($H60*M60 *IF($E60<>"Nominal",INDEX($K$21:$V$21,,MATCH($F60,Years,0))/INDEX($K$21:$V$21,,MATCH($E60,Years,0)), 1/M$27),0) -> 0 | AB60: =IFERROR($H60*N60 *IF($E60<>"Nominal",INDEX($K$21:$V$21,,MATCH($F60,Years,0))/INDEX($K$21:$V$21,,MATCH($E60,Years,0)), 1/N$27),0) -> 0 | AC60: =IFERROR($H60*O60 *IF($E60<>"Nominal",INDEX($K$21:$V$21,,MATCH($F60,Years,0))/INDEX($K$21:$V$21,,MATCH($E60,Years,0)), 1/O$27),0) -> 0 | AD60: =IFERROR($H60*P60 *IF($E60<>"Nominal",INDEX($K$21:$V$21,,MATCH($F60,Years,0))/INDEX($K$21:$V$21,,MATCH($E60,Years,0)), 1/P$27),0) -> 0 | AE60: =IFERROR($H60*Q60 *IF($E60<>"Nominal",INDEX($K$21:$V$21,,MATCH($F60,Years,0))/INDEX($K$21:$V$21,,MATCH($E60,Years,0)), 1/Q$27),0) -> 0.1023300157 | AF60: =IFERROR($H60*R60 *IF($E60<>"Nominal",INDEX($K$21:$V$21,,MATCH($F60,Years,0))/INDEX($K$21:$V$21,,MATCH($E60,Years,0)), 1/R$27),0) -> 0 | AG60: =IFERROR($H60*S60 *IF($E60<>"Nominal",INDEX($K$21:$V$21,,MATCH($F60,Years,0))/INDEX($K$21:$V$21,,MATCH($E60,Years,0)), 1/S$27),0) -> 0 | AH60: =IFERROR($H60*T60 *IF($E60<>"Nominal",INDEX($K$21:$V$21,,MATCH($F60,Years,0))/INDEX($K$21:$V$21,,MATCH($E60,Years,0)), 1/T$27),0) -> 0 | AI60: =IFERROR($H60*U60 *IF($E60<>"Nominal",INDEX($K$21:$V$21,,MATCH($F60,Years,0))/INDEX($K$21:$V$21,,MATCH($E60,Years,0)), 1/U$27),0) -> 0 | AJ60: =IFERROR($H60*V60 *IF($E60<>"Nominal",INDEX($K$21:$V$21,,MATCH($F60,Years,0))/INDEX($K$21:$V$21,,MATCH($E60,Years,0)), 1/V$27),0) -> 0 | AK60: 0.1023300157 | AL60: 1 | AS60: 0 | AT60: 1 | AU60: 0 | AV60: 0 | AW60: 0 | AX60: 0 | AY60: 0 | BA60: 0 | BB60: 0 | BC60: 0 | BD60: 0 | BE60: 0 | BF60: 0 | BG60: 0.1023300157 | BH60: 0 | BI60: 0 | BJ60: 0 | BK60: 0 | BL60: 0 | BM60: 0.1023300157 | BO60: Secondary System - SCADA, network control and protection systems
BO61: -
BO62: -
A63: Equipment | BO63: -
A64: Equipment Costs | Transformers (CT) | B64: Project Team Input | C64: $Millions | E64: 2026 | F64: =Report_Year -> 2026 | H64: 0 | I64: 0 | J64: Substations | P64: 0 | Q64: 1 | R64: 0 | S64: 0 | T64: 0 | U64: 0 | V64: 0 | W64: 1 | X64: 0 | Y64: =IFERROR($H64*K64 *IF($E64<>"Nominal",INDEX($K$21:$V$21,,MATCH($F64,Years,0))/INDEX($K$21:$V$21,,MATCH($E64,Years,0)), 1/K$27),0) -> 0 | Z64: =IFERROR($H64*L64 *IF($E64<>"Nominal",INDEX($K$21:$V$21,,MATCH($F64,Years,0))/INDEX($K$21:$V$21,,MATCH($E64,Years,0)), 1/L$27),0) -> 0 | AA64: =IFERROR($H64*M64 *IF($E64<>"Nominal",INDEX($K$21:$V$21,,MATCH($F64,Years,0))/INDEX($K$21:$V$21,,MATCH($E64,Years,0)), 1/M$27),0) -> 0 | AB64: =IFERROR($H64*N64 *IF($E64<>"Nominal",INDEX($K$21:$V$21,,MATCH($F64,Years,0))/INDEX($K$21:$V$21,,MATCH($E64,Years,0)), 1/N$27),0) -> 0 | AC64: =IFERROR($H64*O64 *IF($E64<>"Nominal",INDEX($K$21:$V$21,,MATCH($F64,Years,0))/INDEX($K$21:$V$21,,MATCH($E64,Years,0)), 1/O$27),0) -> 0 | AD64: =IFERROR($H64*P64 *IF($E64<>"Nominal",INDEX($K$21:$V$21,,MATCH($F64,Years,0))/INDEX($K$21:$V$21,,MATCH($E64,Years,0)), 1/P$27),0) -> 0 | AE64: =IFERROR($H64*Q64 *IF($E64<>"Nominal",INDEX($K$21:$V$21,,MATCH($F64,Years,0))/INDEX($K$21:$V$21,,MATCH($E64,Years,0)), 1/Q$27),0) -> 0 | AF64: =IFERROR($H64*R64 *IF($E64<>"Nominal",INDEX($K$21:$V$21,,MATCH($F64,Years,0))/INDEX($K$21:$V$21,,MATCH($E64,Years,0)), 1/R$27),0) -> 0 | AG64: =IFERROR($H64*S64 *IF($E64<>"Nominal",INDEX($K$21:$V$21,,MATCH($F64,Years,0))/INDEX($K$21:$V$21,,MATCH($E64,Years,0)), 1/S$27),0) -> 0 | AH64: =IFERROR($H64*T64 *IF($E64<>"Nominal",INDEX($K$21:$V$21,,MATCH($F64,Years,0))/INDEX($K$21:$V$21,,MATCH($E64,Years,0)), 1/T$27),0) -> 0 | AI64: =IFERROR($H64*U64 *IF($E64<>"Nominal",INDEX($K$21:$V$21,,MATCH($F64,Years,0))/INDEX($K$21:$V$21,,MATCH($E64,Years,0)), 1/U$27),0) -> 0 | AJ64: =IFERROR($H64*V64 *IF($E64<>"Nominal",INDEX($K$21:$V$21,,MATCH($F64,Years,0))/INDEX($K$21:$V$21,,MATCH($E64,Years,0)), 1/V$27),0) -> 0 | AK64: =SUM(Y64:AJ64) -> 0 | AL64: 1 | AS64: 0 | AT64: 1 | AU64: 0 | AV64: 0 | AW64: 0 | AX64: 0 | AY64: 0 | BA64: =$AK64*AN64 -> 0 | BB64: =$AK64*AO64 -> 0 | BC64: =$AK64*AP64 -> 0 | BD64: =$AK64*AQ64 -> 0 | BE64: =$AK64*AR64 -> 0 | BF64: =$AK64*AS64 -> 0 | BG64: =$AK64*AT64 -> 0 | BH64: =$AK64*AU64 -> 0 | BI64: =$AK64*AV64 -> 0 | BJ64: =$AK64*AW64 -> 0 | BK64: =$AK64*AX64 -> 0 | BL64: =$AK64*AY64 -> 0 | BM64: =SUM(BA64:BL64) -> 0 | BO64: Substations - 0
A65: =A64 -> Equipment Costs | Transformers (CT) | B65: Project Team Input | C65: $Millions | E65: 2026 | F65: 2026 | H65: 0 | I65: Substation switchbays | J65: =J64 -> Substations | P65: 0 | Q65: 1 | R65: 0 | S65: 0 | T65: 0 | U65: 0 | V65: 0 | W65: 1 | X65: 0 | Y65: =IFERROR($H65*K65 *IF($E65<>"Nominal",INDEX($K$21:$V$21,,MATCH($F65,Years,0))/INDEX($K$21:$V$21,,MATCH($E65,Years,0)), 1/K$27),0) -> 0 | Z65: =IFERROR($H65*L65 *IF($E65<>"Nominal",INDEX($K$21:$V$21,,MATCH($F65,Years,0))/INDEX($K$21:$V$21,,MATCH($E65,Years,0)), 1/L$27),0) -> 0 | AA65: =IFERROR($H65*M65 *IF($E65<>"Nominal",INDEX($K$21:$V$21,,MATCH($F65,Years,0))/INDEX($K$21:$V$21,,MATCH($E65,Years,0)), 1/M$27),0) -> 0 | AB65: =IFERROR($H65*N65 *IF($E65<>"Nominal",INDEX($K$21:$V$21,,MATCH($F65,Years,0))/INDEX($K$21:$V$21,,MATCH($E65,Years,0)), 1/N$27),0) -> 0 | AC65: =IFERROR($H65*O65 *IF($E65<>"Nominal",INDEX($K$21:$V$21,,MATCH($F65,Years,0))/INDEX($K$21:$V$21,,MATCH($E65,Years,0)), 1/O$27),0) -> 0 | AD65: =IFERROR($H65*P65 *IF($E65<>"Nominal",INDEX($K$21:$V$21,,MATCH($F65,Years,0))/INDEX($K$21:$V$21,,MATCH($E65,Years,0)), 1/P$27),0) -> 0 | AE65: =IFERROR($H65*Q65 *IF($E65<>"Nominal",INDEX($K$21:$V$21,,MATCH($F65,Years,0))/INDEX($K$21:$V$21,,MATCH($E65,Years,0)), 1/Q$27),0) -> 0 | AF65: =IFERROR($H65*R65 *IF($E65<>"Nominal",INDEX($K$21:$V$21,,MATCH($F65,Years,0))/INDEX($K$21:$V$21,,MATCH($E65,Years,0)), 1/R$27),0) -> 0 | AG65: =IFERROR($H65*S65 *IF($E65<>"Nominal",INDEX($K$21:$V$21,,MATCH($F65,Years,0))/INDEX($K$21:$V$21,,MATCH($E65,Years,0)), 1/S$27),0) -> 0 | AH65: =IFERROR($H65*T65 *IF($E65<>"Nominal",INDEX($K$21:$V$21,,MATCH($F65,Years,0))/INDEX($K$21:$V$21,,MATCH($E65,Years,0)), 1/T$27),0) -> 0 | AI65: =IFERROR($H65*U65 *IF($E65<>"Nominal",INDEX($K$21:$V$21,,MATCH($F65,Years,0))/INDEX($K$21:$V$21,,MATCH($E65,Years,0)), 1/U$27),0) -> 0 | AJ65: =IFERROR($H65*V65 *IF($E65<>"Nominal",INDEX($K$21:$V$21,,MATCH($F65,Years,0))/INDEX($K$21:$V$21,,MATCH($E65,Years,0)), 1/V$27),0) -> 0 | AK65: 0 | AL65: 1 | AS65: 0 | AT65: 1 | AU65: 0 | AV65: 0 | AW65: 0 | AX65: 0 | AY65: 0 | BA65: 0 | BB65: 0 | BC65: 0 | BD65: 0 | BE65: 0 | BF65: 0 | BG65: 0 | BH65: 0 | BI65: 0 | BJ65: 0 | BK65: 0 | BL65: 0 | BM65: 0 | BO65: =J65&" - "&I65 -> Substations - Substation switchbays
A66: =A65 -> Equipment Costs | Transformers (CT) | B66: Project Team Input | C66: $Millions | E66: 2026 | F66: 2026 | H66: 0.857567232 | I66: Substation power transformers | J66: =J65 -> Substations | P66: 0 | Q66: 1 | R66: 0 | S66: 0 | T66: 0 | U66: 0 | V66: 0 | W66: 1 | X66: 0 | Y66: =IFERROR($H66*K66 *IF($E66<>"Nominal",INDEX($K$21:$V$21,,MATCH($F66,Years,0))/INDEX($K$21:$V$21,,MATCH($E66,Years,0)), 1/K$27),0) -> 0 | Z66: =IFERROR($H66*L66 *IF($E66<>"Nominal",INDEX($K$21:$V$21,,MATCH($F66,Years,0))/INDEX($K$21:$V$21,,MATCH($E66,Years,0)), 1/L$27),0) -> 0 | AA66: =IFERROR($H66*M66 *IF($E66<>"Nominal",INDEX($K$21:$V$21,,MATCH($F66,Years,0))/INDEX($K$21:$V$21,,MATCH($E66,Years,0)), 1/M$27),0) -> 0 | AB66: =IFERROR($H66*N66 *IF($E66<>"Nominal",INDEX($K$21:$V$21,,MATCH($F66,Years,0))/INDEX($K$21:$V$21,,MATCH($E66,Years,0)), 1/N$27),0) -> 0 | AC66: =IFERROR($H66*O66 *IF($E66<>"Nominal",INDEX($K$21:$V$21,,MATCH($F66,Years,0))/INDEX($K$21:$V$21,,MATCH($E66,Years,0)), 1/O$27),0) -> 0 | AD66: =IFERROR($H66*P66 *IF($E66<>"Nominal",INDEX($K$21:$V$21,,MATCH($F66,Years,0))/INDEX($K$21:$V$21,,MATCH($E66,Years,0)), 1/P$27),0) -> 0 | AE66: =IFERROR($H66*Q66 *IF($E66<>"Nominal",INDEX($K$21:$V$21,,MATCH($F66,Years,0))/INDEX($K$21:$V$21,,MATCH($E66,Years,0)), 1/Q$27),0) -> 0.857567232 | AF66: =IFERROR($H66*R66 *IF($E66<>"Nominal",INDEX($K$21:$V$21,,MATCH($F66,Years,0))/INDEX($K$21:$V$21,,MATCH($E66,Years,0)), 1/R$27),0) -> 0 | AG66: =IFERROR($H66*S66 *IF($E66<>"Nominal",INDEX($K$21:$V$21,,MATCH($F66,Years,0))/INDEX($K$21:$V$21,,MATCH($E66,Years,0)), 1/S$27),0) -> 0 | AH66: =IFERROR($H66*T66 *IF($E66<>"Nominal",INDEX($K$21:$V$21,,MATCH($F66,Years,0))/INDEX($K$21:$V$21,,MATCH($E66,Years,0)), 1/T$27),0) -> 0 | AI66: =IFERROR($H66*U66 *IF($E66<>"Nominal",INDEX($K$21:$V$21,,MATCH($F66,Years,0))/INDEX($K$21:$V$21,,MATCH($E66,Years,0)), 1/U$27),0) -> 0 | AJ66: =IFERROR($H66*V66 *IF($E66<>"Nominal",INDEX($K$21:$V$21,,MATCH($F66,Years,0))/INDEX($K$21:$V$21,,MATCH($E66,Years,0)), 1/V$27),0) -> 0 | AK66: 0.857567232 | AL66: 1 | AS66: 0 | AT66: 1 | AU66: 0 | AV66: 0 | AW66: 0 | AX66: 0 | AY66: 0 | BA66: 0 | BB66: 0 | BC66: 0 | BD66: 0 | BE66: 0 | BF66: 0 | BG66: 0.857567232 | BH66: 0 | BI66: 0 | BJ66: 0 | BK66: 0 | BL66: 0 | BM66: 0.857567232 | BO66: Substations - Substation power transformers
A67: =A66 -> Equipment Costs | Transformers (CT) | B67: Project Team Input | C67: $Millions | E67: 2026 | F67: 2026 | H67: 0 | I67: Substation reactive plant | J67: =J66 -> Substations | P67: 0 | Q67: 1 | R67: 0 | S67: 0 | T67: 0 | U67: 0 | V67: 0 | W67: 1 | X67: 0 | Y67: =IFERROR($H67*K67 *IF($E67<>"Nominal",INDEX($K$21:$V$21,,MATCH($F67,Years,0))/INDEX($K$21:$V$21,,MATCH($E67,Years,0)), 1/K$27),0) -> 0 | Z67: =IFERROR($H67*L67 *IF($E67<>"Nominal",INDEX($K$21:$V$21,,MATCH($F67,Years,0))/INDEX($K$21:$V$21,,MATCH($E67,Years,0)), 1/L$27),0) -> 0 | AA67: =IFERROR($H67*M67 *IF($E67<>"Nominal",INDEX($K$21:$V$21,,MATCH($F67,Years,0))/INDEX($K$21:$V$21,,MATCH($E67,Years,0)), 1/M$27),0) -> 0 | AB67: =IFERROR($H67*N67 *IF($E67<>"Nominal",INDEX($K$21:$V$21,,MATCH($F67,Years,0))/INDEX($K$21:$V$21,,MATCH($E67,Years,0)), 1/N$27),0) -> 0 | AC67: =IFERROR($H67*O67 *IF($E67<>"Nominal",INDEX($K$21:$V$21,,MATCH($F67,Years,0))/INDEX($K$21:$V$21,,MATCH($E67,Years,0)), 1/O$27),0) -> 0 | AD67: =IFERROR($H67*P67 *IF($E67<>"Nominal",INDEX($K$21:$V$21,,MATCH($F67,Years,0))/INDEX($K$21:$V$21,,MATCH($E67,Years,0)), 1/P$27),0) -> 0 | AE67: =IFERROR($H67*Q67 *IF($E67<>"Nominal",INDEX($K$21:$V$21,,MATCH($F67,Years,0))/INDEX($K$21:$V$21,,MATCH($E67,Years,0)), 1/Q$27),0) -> 0 | AF67: =IFERROR($H67*R67 *IF($E67<>"Nominal",INDEX($K$21:$V$21,,MATCH($F67,Years,0))/INDEX($K$21:$V$21,,MATCH($E67,Years,0)), 1/R$27),0) -> 0 | AG67: =IFERROR($H67*S67 *IF($E67<>"Nominal",INDEX($K$21:$V$21,,MATCH($F67,Years,0))/INDEX($K$21:$V$21,,MATCH($E67,Years,0)), 1/S$27),0) -> 0 | AH67: =IFERROR($H67*T67 *IF($E67<>"Nominal",INDEX($K$21:$V$21,,MATCH($F67,Years,0))/INDEX($K$21:$V$21,,MATCH($E67,Years,0)), 1/T$27),0) -> 0 | AI67: =IFERROR($H67*U67 *IF($E67<>"Nominal",INDEX($K$21:$V$21,,MATCH($F67,Years,0))/INDEX($K$21:$V$21,,MATCH($E67,Years,0)), 1/U$27),0) -> 0 | AJ67: =IFERROR($H67*V67 *IF($E67<>"Nominal",INDEX($K$21:$V$21,,MATCH($F67,Years,0))/INDEX($K$21:$V$21,,MATCH($E67,Years,0)), 1/V$27),0) -> 0 | AK67: 0 | AL67: 1 | AS67: 0 | AT67: 1 | AU67: 0 | AV67: 0 | AW67: 0 | AX67: 0 | AY67: 0 | BA67: 0 | BB67: 0 | BC67: 0 | BD67: 0 | BE67: 0 | BF67: 0 | BG67: 0 | BH67: 0 | BI67: 0 | BJ67: 0 | BK67: 0 | BL67: 0 | BM67: 0 | BO67: Substations - Substation reactive plant
A68: Equipment Costs | Circuit Breakers (CB) | B68: Project Team Input | C68: $Millions | E68: 2026 | F68: 2026 | H68: 0 | I68: 0 | J68: Substations | P68: 0 | Q68: 1 | R68: 0 | S68: 0 | T68: 0 | U68: 0 | V68: 0 | W68: 1 | X68: 0 | Y68: =IFERROR($H68*K68 *IF($E68<>"Nominal",INDEX($K$21:$V$21,,MATCH($F68,Years,0))/INDEX($K$21:$V$21,,MATCH($E68,Years,0)), 1/K$27),0) -> 0 | Z68: =IFERROR($H68*L68 *IF($E68<>"Nominal",INDEX($K$21:$V$21,,MATCH($F68,Years,0))/INDEX($K$21:$V$21,,MATCH($E68,Years,0)), 1/L$27),0) -> 0 | AA68: =IFERROR($H68*M68 *IF($E68<>"Nominal",INDEX($K$21:$V$21,,MATCH($F68,Years,0))/INDEX($K$21:$V$21,,MATCH($E68,Years,0)), 1/M$27),0) -> 0 | AB68: =IFERROR($H68*N68 *IF($E68<>"Nominal",INDEX($K$21:$V$21,,MATCH($F68,Years,0))/INDEX($K$21:$V$21,,MATCH($E68,Years,0)), 1/N$27),0) -> 0 | AC68: =IFERROR($H68*O68 *IF($E68<>"Nominal",INDEX($K$21:$V$21,,MATCH($F68,Years,0))/INDEX($K$21:$V$21,,MATCH($E68,Years,0)), 1/O$27),0) -> 0 | AD68: =IFERROR($H68*P68 *IF($E68<>"Nominal",INDEX($K$21:$V$21,,MATCH($F68,Years,0))/INDEX($K$21:$V$21,,MATCH($E68,Years,0)), 1/P$27),0) -> 0 | AE68: =IFERROR($H68*Q68 *IF($E68<>"Nominal",INDEX($K$21:$V$21,,MATCH($F68,Years,0))/INDEX($K$21:$V$21,,MATCH($E68,Years,0)), 1/Q$27),0) -> 0 | AF68: =IFERROR($H68*R68 *IF($E68<>"Nominal",INDEX($K$21:$V$21,,MATCH($F68,Years,0))/INDEX($K$21:$V$21,,MATCH($E68,Years,0)), 1/R$27),0) -> 0 | AG68: =IFERROR($H68*S68 *IF($E68<>"Nominal",INDEX($K$21:$V$21,,MATCH($F68,Years,0))/INDEX($K$21:$V$21,,MATCH($E68,Years,0)), 1/S$27),0) -> 0 | AH68: =IFERROR($H68*T68 *IF($E68<>"Nominal",INDEX($K$21:$V$21,,MATCH($F68,Years,0))/INDEX($K$21:$V$21,,MATCH($E68,Years,0)), 1/T$27),0) -> 0 | AI68: =IFERROR($H68*U68 *IF($E68<>"Nominal",INDEX($K$21:$V$21,,MATCH($F68,Years,0))/INDEX($K$21:$V$21,,MATCH($E68,Years,0)), 1/U$27),0) -> 0 | AJ68: =IFERROR($H68*V68 *IF($E68<>"Nominal",INDEX($K$21:$V$21,,MATCH($F68,Years,0))/INDEX($K$21:$V$21,,MATCH($E68,Years,0)), 1/V$27),0) -> 0 | AK68: 0 | AL68: 1 | AS68: 0 | AT68: 1 | AU68: 0 | AV68: 0 | AW68: 0 | AX68: 0 | AY68: 0 | BA68: 0 | BB68: 0 | BC68: 0 | BD68: 0 | BE68: 0 | BF68: 0 | BG68: 0 | BH68: 0 | BI68: 0 | BJ68: 0 | BK68: 0 | BL68: 0 | BM68: 0 | BO68: Substations - 0
A69: =A68 -> Equipment Costs | Circuit Breakers (CB) | B69: Project Team Input | C69: $Millions | E69: 2026 | F69: 2026 | H69: 0.5737583208 | I69: Substation switchbays | J69: =J68 -> Substations | P69: 0 | Q69: 1 | R69: 0 | S69: 0 | T69: 0 | U69: 0 | V69: 0 | W69: 1 | X69: 0 | Y69: =IFERROR($H69*K69 *IF($E69<>"Nominal",INDEX($K$21:$V$21,,MATCH($F69,Years,0))/INDEX($K$21:$V$21,,MATCH($E69,Years,0)), 1/K$27),0) -> 0 | Z69: =IFERROR($H69*L69 *IF($E69<>"Nominal",INDEX($K$21:$V$21,,MATCH($F69,Years,0))/INDEX($K$21:$V$21,,MATCH($E69,Years,0)), 1/L$27),0) -> 0 | AA69: =IFERROR($H69*M69 *IF($E69<>"Nominal",INDEX($K$21:$V$21,,MATCH($F69,Years,0))/INDEX($K$21:$V$21,,MATCH($E69,Years,0)), 1/M$27),0) -> 0 | AB69: =IFERROR($H69*N69 *IF($E69<>"Nominal",INDEX($K$21:$V$21,,MATCH($F69,Years,0))/INDEX($K$21:$V$21,,MATCH($E69,Years,0)), 1/N$27),0) -> 0 | AC69: =IFERROR($H69*O69 *IF($E69<>"Nominal",INDEX($K$21:$V$21,,MATCH($F69,Years,0))/INDEX($K$21:$V$21,,MATCH($E69,Years,0)), 1/O$27),0) -> 0 | AD69: =IFERROR($H69*P69 *IF($E69<>"Nominal",INDEX($K$21:$V$21,,MATCH($F69,Years,0))/INDEX($K$21:$V$21,,MATCH($E69,Years,0)), 1/P$27),0) -> 0 | AE69: =IFERROR($H69*Q69 *IF($E69<>"Nominal",INDEX($K$21:$V$21,,MATCH($F69,Years,0))/INDEX($K$21:$V$21,,MATCH($E69,Years,0)), 1/Q$27),0) -> 0.5737583208 | AF69: =IFERROR($H69*R69 *IF($E69<>"Nominal",INDEX($K$21:$V$21,,MATCH($F69,Years,0))/INDEX($K$21:$V$21,,MATCH($E69,Years,0)), 1/R$27),0) -> 0 | AG69: =IFERROR($H69*S69 *IF($E69<>"Nominal",INDEX($K$21:$V$21,,MATCH($F69,Years,0))/INDEX($K$21:$V$21,,MATCH($E69,Years,0)), 1/S$27),0) -> 0 | AH69: =IFERROR($H69*T69 *IF($E69<>"Nominal",INDEX($K$21:$V$21,,MATCH($F69,Years,0))/INDEX($K$21:$V$21,,MATCH($E69,Years,0)), 1/T$27),0) -> 0 | AI69: =IFERROR($H69*U69 *IF($E69<>"Nominal",INDEX($K$21:$V$21,,MATCH($F69,Years,0))/INDEX($K$21:$V$21,,MATCH($E69,Years,0)), 1/U$27),0) -> 0 | AJ69: =IFERROR($H69*V69 *IF($E69<>"Nominal",INDEX($K$21:$V$21,,MATCH($F69,Years,0))/INDEX($K$21:$V$21,,MATCH($E69,Years,0)), 1/V$27),0) -> 0 | AK69: 0.5737583208 | AL69: 1 | AS69: 0 | AT69: 1 | AU69: 0 | AV69: 0 | AW69: 0 | AX69: 0 | AY69: 0 | BA69: 0 | BB69: 0 | BC69: 0 | BD69: 0 | BE69: 0 | BF69: 0 | BG69: 0.5737583208 | BH69: 0 | BI69: 0 | BJ69: 0 | BK69: 0 | BL69: 0 | BM69: 0.5737583208 | BO69: Substations - Substation switchbays
A70: =A69 -> Equipment Costs | Circuit Breakers (CB) | B70: Project Team Input | C70: $Millions | E70: 2026 | F70: 2026 | H70: 0 | I70: Substation power transformers | J70: =J69 -> Substations | P70: 0 | Q70: 1 | R70: 0 | S70: 0 | T70: 0 | U70: 0 | V70: 0 | W70: 1 | X70: 0 | Y70: =IFERROR($H70*K70 *IF($E70<>"Nominal",INDEX($K$21:$V$21,,MATCH($F70,Years,0))/INDEX($K$21:$V$21,,MATCH($E70,Years,0)), 1/K$27),0) -> 0 | Z70: =IFERROR($H70*L70 *IF($E70<>"Nominal",INDEX($K$21:$V$21,,MATCH($F70,Years,0))/INDEX($K$21:$V$21,,MATCH($E70,Years,0)), 1/L$27),0) -> 0 | AA70: =IFERROR($H70*M70 *IF($E70<>"Nominal",INDEX($K$21:$V$21,,MATCH($F70,Years,0))/INDEX($K$21:$V$21,,MATCH($E70,Years,0)), 1/M$27),0) -> 0 | AB70: =IFERROR($H70*N70 *IF($E70<>"Nominal",INDEX($K$21:$V$21,,MATCH($F70,Years,0))/INDEX($K$21:$V$21,,MATCH($E70,Years,0)), 1/N$27),0) -> 0 | AC70: =IFERROR($H70*O70 *IF($E70<>"Nominal",INDEX($K$21:$V$21,,MATCH($F70,Years,0))/INDEX($K$21:$V$21,,MATCH($E70,Years,0)), 1/O$27),0) -> 0 | AD70: =IFERROR($H70*P70 *IF($E70<>"Nominal",INDEX($K$21:$V$21,,MATCH($F70,Years,0))/INDEX($K$21:$V$21,,MATCH($E70,Years,0)), 1/P$27),0) -> 0 | AE70: =IFERROR($H70*Q70 *IF($E70<>"Nominal",INDEX($K$21:$V$21,,MATCH($F70,Years,0))/INDEX($K$21:$V$21,,MATCH($E70,Years,0)), 1/Q$27),0) -> 0 | AF70: =IFERROR($H70*R70 *IF($E70<>"Nominal",INDEX($K$21:$V$21,,MATCH($F70,Years,0))/INDEX($K$21:$V$21,,MATCH($E70,Years,0)), 1/R$27),0) -> 0 | AG70: =IFERROR($H70*S70 *IF($E70<>"Nominal",INDEX($K$21:$V$21,,MATCH($F70,Years,0))/INDEX($K$21:$V$21,,MATCH($E70,Years,0)), 1/S$27),0) -> 0 | AH70: =IFERROR($H70*T70 *IF($E70<>"Nominal",INDEX($K$21:$V$21,,MATCH($F70,Years,0))/INDEX($K$21:$V$21,,MATCH($E70,Years,0)), 1/T$27),0) -> 0 | AI70: =IFERROR($H70*U70 *IF($E70<>"Nominal",INDEX($K$21:$V$21,,MATCH($F70,Years,0))/INDEX($K$21:$V$21,,MATCH($E70,Years,0)), 1/U$27),0) -> 0 | AJ70: =IFERROR($H70*V70 *IF($E70<>"Nominal",INDEX($K$21:$V$21,,MATCH($F70,Years,0))/INDEX($K$21:$V$21,,MATCH($E70,Years,0)), 1/V$27),0) -> 0 | AK70: 0 | AL70: 1 | AS70: 0 | AT70: 1 | AU70: 0 | AV70: 0 | AW70: 0 | AX70: 0 | AY70: 0 | BA70: 0 | BB70: 0 | BC70: 0 | BD70: 0 | BE70: 0 | BF70: 0 | BG70: 0 | BH70: 0 | BI70: 0 | BJ70: 0 | BK70: 0 | BL70: 0 | BM70: 0 | BO70: Substations - Substation power transformers
A71: =A70 -> Equipment Costs | Circuit Breakers (CB) | B71: Project Team Input | C71: $Millions | E71: 2026 | F71: 2026 | H71: 0 | I71: Substation reactive plant | J71: =J70 -> Substations | P71: 0 | Q71: 1 | R71: 0 | S71: 0 | T71: 0 | U71: 0 | V71: 0 | W71: 1 | X71: 0 | Y71: =IFERROR($H71*K71 *IF($E71<>"Nominal",INDEX($K$21:$V$21,,MATCH($F71,Years,0))/INDEX($K$21:$V$21,,MATCH($E71,Years,0)), 1/K$27),0) -> 0 | Z71: =IFERROR($H71*L71 *IF($E71<>"Nominal",INDEX($K$21:$V$21,,MATCH($F71,Years,0))/INDEX($K$21:$V$21,,MATCH($E71,Years,0)), 1/L$27),0) -> 0 | AA71: =IFERROR($H71*M71 *IF($E71<>"Nominal",INDEX($K$21:$V$21,,MATCH($F71,Years,0))/INDEX($K$21:$V$21,,MATCH($E71,Years,0)), 1/M$27),0) -> 0 | AB71: =IFERROR($H71*N71 *IF($E71<>"Nominal",INDEX($K$21:$V$21,,MATCH($F71,Years,0))/INDEX($K$21:$V$21,,MATCH($E71,Years,0)), 1/N$27),0) -> 0 | AC71: =IFERROR($H71*O71 *IF($E71<>"Nominal",INDEX($K$21:$V$21,,MATCH($F71,Years,0))/INDEX($K$21:$V$21,,MATCH($E71,Years,0)), 1/O$27),0) -> 0 | AD71: =IFERROR($H71*P71 *IF($E71<>"Nominal",INDEX($K$21:$V$21,,MATCH($F71,Years,0))/INDEX($K$21:$V$21,,MATCH($E71,Years,0)), 1/P$27),0) -> 0 | AE71: =IFERROR($H71*Q71 *IF($E71<>"Nominal",INDEX($K$21:$V$21,,MATCH($F71,Years,0))/INDEX($K$21:$V$21,,MATCH($E71,Years,0)), 1/Q$27),0) -> 0 | AF71: =IFERROR($H71*R71 *IF($E71<>"Nominal",INDEX($K$21:$V$21,,MATCH($F71,Years,0))/INDEX($K$21:$V$21,,MATCH($E71,Years,0)), 1/R$27),0) -> 0 | AG71: =IFERROR($H71*S71 *IF($E71<>"Nominal",INDEX($K$21:$V$21,,MATCH($F71,Years,0))/INDEX($K$21:$V$21,,MATCH($E71,Years,0)), 1/S$27),0) -> 0 | AH71: =IFERROR($H71*T71 *IF($E71<>"Nominal",INDEX($K$21:$V$21,,MATCH($F71,Years,0))/INDEX($K$21:$V$21,,MATCH($E71,Years,0)), 1/T$27),0) -> 0 | AI71: =IFERROR($H71*U71 *IF($E71<>"Nominal",INDEX($K$21:$V$21,,MATCH($F71,Years,0))/INDEX($K$21:$V$21,,MATCH($E71,Years,0)), 1/U$27),0) -> 0 | AJ71: =IFERROR($H71*V71 *IF($E71<>"Nominal",INDEX($K$21:$V$21,,MATCH($F71,Years,0))/INDEX($K$21:$V$21,,MATCH($E71,Years,0)), 1/V$27),0) -> 0 | AK71: 0 | AL71: 1 | AS71: 0 | AT71: 1 | AU71: 0 | AV71: 0 | AW71: 0 | AX71: 0 | AY71: 0 | BA71: 0 | BB71: 0 | BC71: 0 | BD71: 0 | BE71: 0 | BF71: 0 | BG71: 0 | BH71: 0 | BI71: 0 | BJ71: 0 | BK71: 0 | BL71: 0 | BM71: 0 | BO71: Substations - Substation reactive plant
A72: Equipment Costs | Voltage Transformers (VT) | B72: Project Team Input | C72: $Millions | E72: 2026 | F72: 2026 | H72: 0 | I72: 0 | J72: Substations | P72: 0 | Q72: 1 | R72: 0 | S72: 0 | T72: 0 | U72: 0 | V72: 0 | W72: 1 | X72: 0 | Y72: =IFERROR($H72*K72 *IF($E72<>"Nominal",INDEX($K$21:$V$21,,MATCH($F72,Years,0))/INDEX($K$21:$V$21,,MATCH($E72,Years,0)), 1/K$27),0) -> 0 | Z72: =IFERROR($H72*L72 *IF($E72<>"Nominal",INDEX($K$21:$V$21,,MATCH($F72,Years,0))/INDEX($K$21:$V$21,,MATCH($E72,Years,0)), 1/L$27),0) -> 0 | AA72: =IFERROR($H72*M72 *IF($E72<>"Nominal",INDEX($K$21:$V$21,,MATCH($F72,Years,0))/INDEX($K$21:$V$21,,MATCH($E72,Years,0)), 1/M$27),0) -> 0 | AB72: =IFERROR($H72*N72 *IF($E72<>"Nominal",INDEX($K$21:$V$21,,MATCH($F72,Years,0))/INDEX($K$21:$V$21,,MATCH($E72,Years,0)), 1/N$27),0) -> 0 | AC72: =IFERROR($H72*O72 *IF($E72<>"Nominal",INDEX($K$21:$V$21,,MATCH($F72,Years,0))/INDEX($K$21:$V$21,,MATCH($E72,Years,0)), 1/O$27),0) -> 0 | AD72: =IFERROR($H72*P72 *IF($E72<>"Nominal",INDEX($K$21:$V$21,,MATCH($F72,Years,0))/INDEX($K$21:$V$21,,MATCH($E72,Years,0)), 1/P$27),0) -> 0 | AE72: =IFERROR($H72*Q72 *IF($E72<>"Nominal",INDEX($K$21:$V$21,,MATCH($F72,Years,0))/INDEX($K$21:$V$21,,MATCH($E72,Years,0)), 1/Q$27),0) -> 0 | AF72: =IFERROR($H72*R72 *IF($E72<>"Nominal",INDEX($K$21:$V$21,,MATCH($F72,Years,0))/INDEX($K$21:$V$21,,MATCH($E72,Years,0)), 1/R$27),0) -> 0 | AG72: =IFERROR($H72*S72 *IF($E72<>"Nominal",INDEX($K$21:$V$21,,MATCH($F72,Years,0))/INDEX($K$21:$V$21,,MATCH($E72,Years,0)), 1/S$27),0) -> 0 | AH72: =IFERROR($H72*T72 *IF($E72<>"Nominal",INDEX($K$21:$V$21,,MATCH($F72,Years,0))/INDEX($K$21:$V$21,,MATCH($E72,Years,0)), 1/T$27),0) -> 0 | AI72: =IFERROR($H72*U72 *IF($E72<>"Nominal",INDEX($K$21:$V$21,,MATCH($F72,Years,0))/INDEX($K$21:$V$21,,MATCH($E72,Years,0)), 1/U$27),0) -> 0 | AJ72: =IFERROR($H72*V72 *IF($E72<>"Nominal",INDEX($K$21:$V$21,,MATCH($F72,Years,0))/INDEX($K$21:$V$21,,MATCH($E72,Years,0)), 1/V$27),0) -> 0 | AK72: 0 | AL72: 1 | AS72: 0 | AT72: 1 | AU72: 0 | AV72: 0 | AW72: 0 | AX72: 0 | AY72: 0 | BA72: 0 | BB72: 0 | BC72: 0 | BD72: 0 | BE72: 0 | BF72: 0 | BG72: 0 | BH72: 0 | BI72: 0 | BJ72: 0 | BK72: 0 | BL72: 0 | BM72: 0 | BO72: Substations - 0
A73: =A72 -> Equipment Costs | Voltage Transformers (VT) | B73: Project Team Input | C73: $Millions | E73: 2026 | F73: 2026 | H73: 0 | I73: Substation switchbays | J73: =J72 -> Substations | P73: 0 | Q73: 1 | R73: 0 | S73: 0 | T73: 0 | U73: 0 | V73: 0 | W73: 1 | X73: 0 | Y73: =IFERROR($H73*K73 *IF($E73<>"Nominal",INDEX($K$21:$V$21,,MATCH($F73,Years,0))/INDEX($K$21:$V$21,,MATCH($E73,Years,0)), 1/K$27),0) -> 0 | Z73: =IFERROR($H73*L73 *IF($E73<>"Nominal",INDEX($K$21:$V$21,,MATCH($F73,Years,0))/INDEX($K$21:$V$21,,MATCH($E73,Years,0)), 1/L$27),0) -> 0 | AA73: =IFERROR($H73*M73 *IF($E73<>"Nominal",INDEX($K$21:$V$21,,MATCH($F73,Years,0))/INDEX($K$21:$V$21,,MATCH($E73,Years,0)), 1/M$27),0) -> 0 | AB73: =IFERROR($H73*N73 *IF($E73<>"Nominal",INDEX($K$21:$V$21,,MATCH($F73,Years,0))/INDEX($K$21:$V$21,,MATCH($E73,Years,0)), 1/N$27),0) -> 0 | AC73: =IFERROR($H73*O73 *IF($E73<>"Nominal",INDEX($K$21:$V$21,,MATCH($F73,Years,0))/INDEX($K$21:$V$21,,MATCH($E73,Years,0)), 1/O$27),0) -> 0 | AD73: =IFERROR($H73*P73 *IF($E73<>"Nominal",INDEX($K$21:$V$21,,MATCH($F73,Years,0))/INDEX($K$21:$V$21,,MATCH($E73,Years,0)), 1/P$27),0) -> 0 | AE73: =IFERROR($H73*Q73 *IF($E73<>"Nominal",INDEX($K$21:$V$21,,MATCH($F73,Years,0))/INDEX($K$21:$V$21,,MATCH($E73,Years,0)), 1/Q$27),0) -> 0 | AF73: =IFERROR($H73*R73 *IF($E73<>"Nominal",INDEX($K$21:$V$21,,MATCH($F73,Years,0))/INDEX($K$21:$V$21,,MATCH($E73,Years,0)), 1/R$27),0) -> 0 | AG73: =IFERROR($H73*S73 *IF($E73<>"Nominal",INDEX($K$21:$V$21,,MATCH($F73,Years,0))/INDEX($K$21:$V$21,,MATCH($E73,Years,0)), 1/S$27),0) -> 0 | AH73: =IFERROR($H73*T73 *IF($E73<>"Nominal",INDEX($K$21:$V$21,,MATCH($F73,Years,0))/INDEX($K$21:$V$21,,MATCH($E73,Years,0)), 1/T$27),0) -> 0 | AI73: =IFERROR($H73*U73 *IF($E73<>"Nominal",INDEX($K$21:$V$21,,MATCH($F73,Years,0))/INDEX($K$21:$V$21,,MATCH($E73,Years,0)), 1/U$27),0) -> 0 | AJ73: =IFERROR($H73*V73 *IF($E73<>"Nominal",INDEX($K$21:$V$21,,MATCH($F73,Years,0))/INDEX($K$21:$V$21,,MATCH($E73,Years,0)), 1/V$27),0) -> 0 | AK73: 0 | AL73: 1 | AS73: 0 | AT73: 1 | AU73: 0 | AV73: 0 | AW73: 0 | AX73: 0 | AY73: 0 | BA73: 0 | BB73: 0 | BC73: 0 | BD73: 0 | BE73: 0 | BF73: 0 | BG73: 0 | BH73: 0 | BI73: 0 | BJ73: 0 | BK73: 0 | BL73: 0 | BM73: 0 | BO73: Substations - Substation switchbays
A74: =A73 -> Equipment Costs | Voltage Transformers (VT) | B74: Project Team Input | C74: $Millions | E74: 2026 | F74: 2026 | H74: 0.292790784 | I74: Substation power transformers | J74: =J73 -> Substations | P74: 0 | Q74: 1 | R74: 0 | S74: 0 | T74: 0 | U74: 0 | V74: 0 | W74: 1 | X74: 0 | Y74: =IFERROR($H74*K74 *IF($E74<>"Nominal",INDEX($K$21:$V$21,,MATCH($F74,Years,0))/INDEX($K$21:$V$21,,MATCH($E74,Years,0)), 1/K$27),0) -> 0 | Z74: =IFERROR($H74*L74 *IF($E74<>"Nominal",INDEX($K$21:$V$21,,MATCH($F74,Years,0))/INDEX($K$21:$V$21,,MATCH($E74,Years,0)), 1/L$27),0) -> 0 | AA74: =IFERROR($H74*M74 *IF($E74<>"Nominal",INDEX($K$21:$V$21,,MATCH($F74,Years,0))/INDEX($K$21:$V$21,,MATCH($E74,Years,0)), 1/M$27),0) -> 0 | AB74: =IFERROR($H74*N74 *IF($E74<>"Nominal",INDEX($K$21:$V$21,,MATCH($F74,Years,0))/INDEX($K$21:$V$21,,MATCH($E74,Years,0)), 1/N$27),0) -> 0 | AC74: =IFERROR($H74*O74 *IF($E74<>"Nominal",INDEX($K$21:$V$21,,MATCH($F74,Years,0))/INDEX($K$21:$V$21,,MATCH($E74,Years,0)), 1/O$27),0) -> 0 | AD74: =IFERROR($H74*P74 *IF($E74<>"Nominal",INDEX($K$21:$V$21,,MATCH($F74,Years,0))/INDEX($K$21:$V$21,,MATCH($E74,Years,0)), 1/P$27),0) -> 0 | AE74: =IFERROR($H74*Q74 *IF($E74<>"Nominal",INDEX($K$21:$V$21,,MATCH($F74,Years,0))/INDEX($K$21:$V$21,,MATCH($E74,Years,0)), 1/Q$27),0) -> 0.292790784 | AF74: =IFERROR($H74*R74 *IF($E74<>"Nominal",INDEX($K$21:$V$21,,MATCH($F74,Years,0))/INDEX($K$21:$V$21,,MATCH($E74,Years,0)), 1/R$27),0) -> 0 | AG74: =IFERROR($H74*S74 *IF($E74<>"Nominal",INDEX($K$21:$V$21,,MATCH($F74,Years,0))/INDEX($K$21:$V$21,,MATCH($E74,Years,0)), 1/S$27),0) -> 0 | AH74: =IFERROR($H74*T74 *IF($E74<>"Nominal",INDEX($K$21:$V$21,,MATCH($F74,Years,0))/INDEX($K$21:$V$21,,MATCH($E74,Years,0)), 1/T$27),0) -> 0 | AI74: =IFERROR($H74*U74 *IF($E74<>"Nominal",INDEX($K$21:$V$21,,MATCH($F74,Years,0))/INDEX($K$21:$V$21,,MATCH($E74,Years,0)), 1/U$27),0) -> 0 | AJ74: =IFERROR($H74*V74 *IF($E74<>"Nominal",INDEX($K$21:$V$21,,MATCH($F74,Years,0))/INDEX($K$21:$V$21,,MATCH($E74,Years,0)), 1/V$27),0) -> 0 | AK74: 0.292790784 | AL74: 1 | AS74: 0 | AT74: 1 | AU74: 0 | AV74: 0 | AW74: 0 | AX74: 0 | AY74: 0 | BA74: 0 | BB74: 0 | BC74: 0 | BD74: 0 | BE74: 0 | BF74: 0 | BG74: 0.292790784 | BH74: 0 | BI74: 0 | BJ74: 0 | BK74: 0 | BL74: 0 | BM74: 0.292790784 | BO74: Substations - Substation power transformers
A75: =A74 -> Equipment Costs | Voltage Transformers (VT) | B75: Project Team Input | C75: $Millions | E75: 2026 | F75: 2026 | H75: 0 | I75: Substation reactive plant | J75: =J74 -> Substations | P75: 0 | Q75: 1 | R75: 0 | S75: 0 | T75: 0 | U75: 0 | V75: 0 | W75: 1 | X75: 0 | Y75: =IFERROR($H75*K75 *IF($E75<>"Nominal",INDEX($K$21:$V$21,,MATCH($F75,Years,0))/INDEX($K$21:$V$21,,MATCH($E75,Years,0)), 1/K$27),0) -> 0 | Z75: =IFERROR($H75*L75 *IF($E75<>"Nominal",INDEX($K$21:$V$21,,MATCH($F75,Years,0))/INDEX($K$21:$V$21,,MATCH($E75,Years,0)), 1/L$27),0) -> 0 | AA75: =IFERROR($H75*M75 *IF($E75<>"Nominal",INDEX($K$21:$V$21,,MATCH($F75,Years,0))/INDEX($K$21:$V$21,,MATCH($E75,Years,0)), 1/M$27),0) -> 0 | AB75: =IFERROR($H75*N75 *IF($E75<>"Nominal",INDEX($K$21:$V$21,,MATCH($F75,Years,0))/INDEX($K$21:$V$21,,MATCH($E75,Years,0)), 1/N$27),0) -> 0 | AC75: =IFERROR($H75*O75 *IF($E75<>"Nominal",INDEX($K$21:$V$21,,MATCH($F75,Years,0))/INDEX($K$21:$V$21,,MATCH($E75,Years,0)), 1/O$27),0) -> 0 | AD75: =IFERROR($H75*P75 *IF($E75<>"Nominal",INDEX($K$21:$V$21,,MATCH($F75,Years,0))/INDEX($K$21:$V$21,,MATCH($E75,Years,0)), 1/P$27),0) -> 0 | AE75: =IFERROR($H75*Q75 *IF($E75<>"Nominal",INDEX($K$21:$V$21,,MATCH($F75,Years,0))/INDEX($K$21:$V$21,,MATCH($E75,Years,0)), 1/Q$27),0) -> 0 | AF75: =IFERROR($H75*R75 *IF($E75<>"Nominal",INDEX($K$21:$V$21,,MATCH($F75,Years,0))/INDEX($K$21:$V$21,,MATCH($E75,Years,0)), 1/R$27),0) -> 0 | AG75: =IFERROR($H75*S75 *IF($E75<>"Nominal",INDEX($K$21:$V$21,,MATCH($F75,Years,0))/INDEX($K$21:$V$21,,MATCH($E75,Years,0)), 1/S$27),0) -> 0 | AH75: =IFERROR($H75*T75 *IF($E75<>"Nominal",INDEX($K$21:$V$21,,MATCH($F75,Years,0))/INDEX($K$21:$V$21,,MATCH($E75,Years,0)), 1/T$27),0) -> 0 | AI75: =IFERROR($H75*U75 *IF($E75<>"Nominal",INDEX($K$21:$V$21,,MATCH($F75,Years,0))/INDEX($K$21:$V$21,,MATCH($E75,Years,0)), 1/U$27),0) -> 0 | AJ75: =IFERROR($H75*V75 *IF($E75<>"Nominal",INDEX($K$21:$V$21,,MATCH($F75,Years,0))/INDEX($K$21:$V$21,,MATCH($E75,Years,0)), 1/V$27),0) -> 0 | AK75: 0 | AL75: 1 | AS75: 0 | AT75: 1 | AU75: 0 | AV75: 0 | AW75: 0 | AX75: 0 | AY75: 0 | BA75: 0 | BB75: 0 | BC75: 0 | BD75: 0 | BE75: 0 | BF75: 0 | BG75: 0 | BH75: 0 | BI75: 0 | BJ75: 0 | BK75: 0 | BL75: 0 | BM75: 0 | BO75: Substations - Substation reactive plant
A76: Equipment Costs | Line Trap (LT) | B76: Project Team Input | C76: $Millions | E76: 2026 | F76: 2026 | H76: 0 | I76: 0 | J76: Substations | P76: 0 | Q76: 1 | R76: 0 | S76: 0 | T76: 0 | U76: 0 | V76: 0 | W76: 1 | X76: 0 | Y76: =IFERROR($H76*K76 *IF($E76<>"Nominal",INDEX($K$21:$V$21,,MATCH($F76,Years,0))/INDEX($K$21:$V$21,,MATCH($E76,Years,0)), 1/K$27),0) -> 0 | Z76: =IFERROR($H76*L76 *IF($E76<>"Nominal",INDEX($K$21:$V$21,,MATCH($F76,Years,0))/INDEX($K$21:$V$21,,MATCH($E76,Years,0)), 1/L$27),0) -> 0 | AA76: =IFERROR($H76*M76 *IF($E76<>"Nominal",INDEX($K$21:$V$21,,MATCH($F76,Years,0))/INDEX($K$21:$V$21,,MATCH($E76,Years,0)), 1/M$27),0) -> 0 | AB76: =IFERROR($H76*N76 *IF($E76<>"Nominal",INDEX($K$21:$V$21,,MATCH($F76,Years,0))/INDEX($K$21:$V$21,,MATCH($E76,Years,0)), 1/N$27),0) -> 0 | AC76: =IFERROR($H76*O76 *IF($E76<>"Nominal",INDEX($K$21:$V$21,,MATCH($F76,Years,0))/INDEX($K$21:$V$21,,MATCH($E76,Years,0)), 1/O$27),0) -> 0 | AD76: =IFERROR($H76*P76 *IF($E76<>"Nominal",INDEX($K$21:$V$21,,MATCH($F76,Years,0))/INDEX($K$21:$V$21,,MATCH($E76,Years,0)), 1/P$27),0) -> 0 | AE76: =IFERROR($H76*Q76 *IF($E76<>"Nominal",INDEX($K$21:$V$21,,MATCH($F76,Years,0))/INDEX($K$21:$V$21,,MATCH($E76,Years,0)), 1/Q$27),0) -> 0 | AF76: =IFERROR($H76*R76 *IF($E76<>"Nominal",INDEX($K$21:$V$21,,MATCH($F76,Years,0))/INDEX($K$21:$V$21,,MATCH($E76,Years,0)), 1/R$27),0) -> 0 | AG76: =IFERROR($H76*S76 *IF($E76<>"Nominal",INDEX($K$21:$V$21,,MATCH($F76,Years,0))/INDEX($K$21:$V$21,,MATCH($E76,Years,0)), 1/S$27),0) -> 0 | AH76: =IFERROR($H76*T76 *IF($E76<>"Nominal",INDEX($K$21:$V$21,,MATCH($F76,Years,0))/INDEX($K$21:$V$21,,MATCH($E76,Years,0)), 1/T$27),0) -> 0 | AI76: =IFERROR($H76*U76 *IF($E76<>"Nominal",INDEX($K$21:$V$21,,MATCH($F76,Years,0))/INDEX($K$21:$V$21,,MATCH($E76,Years,0)), 1/U$27),0) -> 0 | AJ76: =IFERROR($H76*V76 *IF($E76<>"Nominal",INDEX($K$21:$V$21,,MATCH($F76,Years,0))/INDEX($K$21:$V$21,,MATCH($E76,Years,0)), 1/V$27),0) -> 0 | AK76: 0 | AL76: 1 | AS76: 0 | AT76: 1 | AU76: 0 | AV76: 0 | AW76: 0 | AX76: 0 | AY76: 0 | BA76: 0 | BB76: 0 | BC76: 0 | BD76: 0 | BE76: 0 | BF76: 0 | BG76: 0 | BH76: 0 | BI76: 0 | BJ76: 0 | BK76: 0 | BL76: 0 | BM76: 0 | BO76: Substations - 0
A77: =A76 -> Equipment Costs | Line Trap (LT) | B77: Project Team Input | C77: $Millions | E77: 2026 | F77: 2026 | H77: 0.6190879661 | I77: Substation switchbays | J77: =J76 -> Substations | P77: 0 | Q77: 1 | R77: 0 | S77: 0 | T77: 0 | U77: 0 | V77: 0 | W77: =SUM(K77:V77) -> 1 | X77: =IF(H77=0,0,IF(W77<>1,1,0)) -> 0 | Y77: =IFERROR($H77*K77 *IF($E77<>"Nominal",INDEX($K$21:$V$21,,MATCH($F77,Years,0))/INDEX($K$21:$V$21,,MATCH($E77,Years,0)), 1/K$27),0) -> 0 | Z77: =IFERROR($H77*L77 *IF($E77<>"Nominal",INDEX($K$21:$V$21,,MATCH($F77,Years,0))/INDEX($K$21:$V$21,,MATCH($E77,Years,0)), 1/L$27),0) -> 0 | AA77: =IFERROR($H77*M77 *IF($E77<>"Nominal",INDEX($K$21:$V$21,,MATCH($F77,Years,0))/INDEX($K$21:$V$21,,MATCH($E77,Years,0)), 1/M$27),0) -> 0 | AB77: =IFERROR($H77*N77 *IF($E77<>"Nominal",INDEX($K$21:$V$21,,MATCH($F77,Years,0))/INDEX($K$21:$V$21,,MATCH($E77,Years,0)), 1/N$27),0) -> 0 | AC77: =IFERROR($H77*O77 *IF($E77<>"Nominal",INDEX($K$21:$V$21,,MATCH($F77,Years,0))/INDEX($K$21:$V$21,,MATCH($E77,Years,0)), 1/O$27),0) -> 0 | AD77: =IFERROR($H77*P77 *IF($E77<>"Nominal",INDEX($K$21:$V$21,,MATCH($F77,Years,0))/INDEX($K$21:$V$21,,MATCH($E77,Years,0)), 1/P$27),0) -> 0 | AE77: =IFERROR($H77*Q77 *IF($E77<>"Nominal",INDEX($K$21:$V$21,,MATCH($F77,Years,0))/INDEX($K$21:$V$21,,MATCH($E77,Years,0)), 1/Q$27),0) -> 0.6190879661 | AF77: =IFERROR($H77*R77 *IF($E77<>"Nominal",INDEX($K$21:$V$21,,MATCH($F77,Years,0))/INDEX($K$21:$V$21,,MATCH($E77,Years,0)), 1/R$27),0) -> 0 | AG77: =IFERROR($H77*S77 *IF($E77<>"Nominal",INDEX($K$21:$V$21,,MATCH($F77,Years,0))/INDEX($K$21:$V$21,,MATCH($E77,Years,0)), 1/S$27),0) -> 0 | AH77: =IFERROR($H77*T77 *IF($E77<>"Nominal",INDEX($K$21:$V$21,,MATCH($F77,Years,0))/INDEX($K$21:$V$21,,MATCH($E77,Years,0)), 1/T$27),0) -> 0 | AI77: =IFERROR($H77*U77 *IF($E77<>"Nominal",INDEX($K$21:$V$21,,MATCH($F77,Years,0))/INDEX($K$21:$V$21,,MATCH($E77,Years,0)), 1/U$27),0) -> 0 | AJ77: =IFERROR($H77*V77 *IF($E77<>"Nominal",INDEX($K$21:$V$21,,MATCH($F77,Years,0))/INDEX($K$21:$V$21,,MATCH($E77,Years,0)), 1/V$27),0) -> 0 | AK77: =SUM(Y77:AJ77) -> 0.6190879661 | AL77: 1 | AS77: 0 | AT77: 1 | AU77: 0 | AV77: 0 | AW77: 0 | AX77: 0 | AY77: 0 | BA77: 0 | BB77: 0 | BC77: 0 | BD77: 0 | BE77: 0 | BF77: 0 | BG77: 0.6190879661 | BH77: 0 | BI77: 0 | BJ77: 0 | BK77: 0 | BL77: 0 | BM77: =SUM(BA77:BL77) -> 0.6190879661 | BO77: Substations - Substation switchbays
A78: =A77 -> Equipment Costs | Line Trap (LT) | B78: Project Team Input | C78: $Millions | E78: 2026 | F78: 2026 | H78: 0 | I78: Substation power transformers | J78: =J77 -> Substations | P78: 0 | Q78: 1 | R78: 0 | S78: 0 | T78: 0 | U78: 0 | V78: 0 | W78: 1 | X78: 0 | Y78: =IFERROR($H78*K78 *IF($E78<>"Nominal",INDEX($K$21:$V$21,,MATCH($F78,Years,0))/INDEX($K$21:$V$21,,MATCH($E78,Years,0)), 1/K$27),0) -> 0 | Z78: =IFERROR($H78*L78 *IF($E78<>"Nominal",INDEX($K$21:$V$21,,MATCH($F78,Years,0))/INDEX($K$21:$V$21,,MATCH($E78,Years,0)), 1/L$27),0) -> 0 | AA78: =IFERROR($H78*M78 *IF($E78<>"Nominal",INDEX($K$21:$V$21,,MATCH($F78,Years,0))/INDEX($K$21:$V$21,,MATCH($E78,Years,0)), 1/M$27),0) -> 0 | AB78: =IFERROR($H78*N78 *IF($E78<>"Nominal",INDEX($K$21:$V$21,,MATCH($F78,Years,0))/INDEX($K$21:$V$21,,MATCH($E78,Years,0)), 1/N$27),0) -> 0 | AC78: =IFERROR($H78*O78 *IF($E78<>"Nominal",INDEX($K$21:$V$21,,MATCH($F78,Years,0))/INDEX($K$21:$V$21,,MATCH($E78,Years,0)), 1/O$27),0) -> 0 | AD78: =IFERROR($H78*P78 *IF($E78<>"Nominal",INDEX($K$21:$V$21,,MATCH($F78,Years,0))/INDEX($K$21:$V$21,,MATCH($E78,Years,0)), 1/P$27),0) -> 0 | AE78: =IFERROR($H78*Q78 *IF($E78<>"Nominal",INDEX($K$21:$V$21,,MATCH($F78,Years,0))/INDEX($K$21:$V$21,,MATCH($E78,Years,0)), 1/Q$27),0) -> 0 | AF78: =IFERROR($H78*R78 *IF($E78<>"Nominal",INDEX($K$21:$V$21,,MATCH($F78,Years,0))/INDEX($K$21:$V$21,,MATCH($E78,Years,0)), 1/R$27),0) -> 0 | AG78: =IFERROR($H78*S78 *IF($E78<>"Nominal",INDEX($K$21:$V$21,,MATCH($F78,Years,0))/INDEX($K$21:$V$21,,MATCH($E78,Years,0)), 1/S$27),0) -> 0 | AH78: =IFERROR($H78*T78 *IF($E78<>"Nominal",INDEX($K$21:$V$21,,MATCH($F78,Years,0))/INDEX($K$21:$V$21,,MATCH($E78,Years,0)), 1/T$27),0) -> 0 | AI78: =IFERROR($H78*U78 *IF($E78<>"Nominal",INDEX($K$21:$V$21,,MATCH($F78,Years,0))/INDEX($K$21:$V$21,,MATCH($E78,Years,0)), 1/U$27),0) -> 0 | AJ78: =IFERROR($H78*V78 *IF($E78<>"Nominal",INDEX($K$21:$V$21,,MATCH($F78,Years,0))/INDEX($K$21:$V$21,,MATCH($E78,Years,0)), 1/V$27),0) -> 0 | AK78: 0 | AL78: 1 | AS78: 0 | AT78: 1 | AU78: 0 | AV78: 0 | AW78: 0 | AX78: 0 | AY78: 0 | BA78: 0 | BB78: 0 | BC78: 0 | BD78: 0 | BE78: 0 | BF78: 0 | BG78: 0 | BH78: 0 | BI78: 0 | BJ78: 0 | BK78: 0 | BL78: 0 | BM78: 0 | BO78: Substations - Substation power transformers
A79: =A78 -> Equipment Costs | Line Trap (LT) | B79: Project Team Input | C79: $Millions | E79: 2026 | F79: 2026 | H79: 0 | I79: Substation reactive plant | J79: =J78 -> Substations | P79: 0 | Q79: 1 | R79: 0 | S79: 0 | T79: 0 | U79: 0 | V79: 0 | W79: 1 | X79: 0 | Y79: =IFERROR($H79*K79 *IF($E79<>"Nominal",INDEX($K$21:$V$21,,MATCH($F79,Years,0))/INDEX($K$21:$V$21,,MATCH($E79,Years,0)), 1/K$27),0) -> 0 | Z79: =IFERROR($H79*L79 *IF($E79<>"Nominal",INDEX($K$21:$V$21,,MATCH($F79,Years,0))/INDEX($K$21:$V$21,,MATCH($E79,Years,0)), 1/L$27),0) -> 0 | AA79: =IFERROR($H79*M79 *IF($E79<>"Nominal",INDEX($K$21:$V$21,,MATCH($F79,Years,0))/INDEX($K$21:$V$21,,MATCH($E79,Years,0)), 1/M$27),0) -> 0 | AB79: =IFERROR($H79*N79 *IF($E79<>"Nominal",INDEX($K$21:$V$21,,MATCH($F79,Years,0))/INDEX($K$21:$V$21,,MATCH($E79,Years,0)), 1/N$27),0) -> 0 | AC79: =IFERROR($H79*O79 *IF($E79<>"Nominal",INDEX($K$21:$V$21,,MATCH($F79,Years,0))/INDEX($K$21:$V$21,,MATCH($E79,Years,0)), 1/O$27),0) -> 0 | AD79: =IFERROR($H79*P79 *IF($E79<>"Nominal",INDEX($K$21:$V$21,,MATCH($F79,Years,0))/INDEX($K$21:$V$21,,MATCH($E79,Years,0)), 1/P$27),0) -> 0 | AE79: =IFERROR($H79*Q79 *IF($E79<>"Nominal",INDEX($K$21:$V$21,,MATCH($F79,Years,0))/INDEX($K$21:$V$21,,MATCH($E79,Years,0)), 1/Q$27),0) -> 0 | AF79: =IFERROR($H79*R79 *IF($E79<>"Nominal",INDEX($K$21:$V$21,,MATCH($F79,Years,0))/INDEX($K$21:$V$21,,MATCH($E79,Years,0)), 1/R$27),0) -> 0 | AG79: =IFERROR($H79*S79 *IF($E79<>"Nominal",INDEX($K$21:$V$21,,MATCH($F79,Years,0))/INDEX($K$21:$V$21,,MATCH($E79,Years,0)), 1/S$27),0) -> 0 | AH79: =IFERROR($H79*T79 *IF($E79<>"Nominal",INDEX($K$21:$V$21,,MATCH($F79,Years,0))/INDEX($K$21:$V$21,,MATCH($E79,Years,0)), 1/T$27),0) -> 0 | AI79: =IFERROR($H79*U79 *IF($E79<>"Nominal",INDEX($K$21:$V$21,,MATCH($F79,Years,0))/INDEX($K$21:$V$21,,MATCH($E79,Years,0)), 1/U$27),0) -> 0 | AJ79: =IFERROR($H79*V79 *IF($E79<>"Nominal",INDEX($K$21:$V$21,,MATCH($F79,Years,0))/INDEX($K$21:$V$21,,MATCH($E79,Years,0)), 1/V$27),0) -> 0 | AK79: 0 | AL79: 1 | AS79: 0 | AT79: 1 | AU79: 0 | AV79: 0 | AW79: 0 | AX79: 0 | AY79: 0 | BA79: 0 | BB79: 0 | BC79: 0 | BD79: 0 | BE79: 0 | BF79: 0 | BG79: 0 | BH79: 0 | BI79: 0 | BJ79: 0 | BK79: 0 | BL79: 0 | BM79: 0 | BO79: Substations - Substation reactive plant
A80: Equipment Costs | Earth Switch | B80: Project Team Input | C80: $Millions | E80: 2026 | F80: 2026 | H80: 0 | I80: 0 | J80: Substations | P80: 0 | Q80: 1 | R80: 0 | S80: 0 | T80: 0 | U80: 0 | V80: 0 | W80: 1 | X80: 0 | Y80: =IFERROR($H80*K80 *IF($E80<>"Nominal",INDEX($K$21:$V$21,,MATCH($F80,Years,0))/INDEX($K$21:$V$21,,MATCH($E80,Years,0)), 1/K$27),0) -> 0 | Z80: =IFERROR($H80*L80 *IF($E80<>"Nominal",INDEX($K$21:$V$21,,MATCH($F80,Years,0))/INDEX($K$21:$V$21,,MATCH($E80,Years,0)), 1/L$27),0) -> 0 | AA80: =IFERROR($H80*M80 *IF($E80<>"Nominal",INDEX($K$21:$V$21,,MATCH($F80,Years,0))/INDEX($K$21:$V$21,,MATCH($E80,Years,0)), 1/M$27),0) -> 0 | AB80: =IFERROR($H80*N80 *IF($E80<>"Nominal",INDEX($K$21:$V$21,,MATCH($F80,Years,0))/INDEX($K$21:$V$21,,MATCH($E80,Years,0)), 1/N$27),0) -> 0 | AC80: =IFERROR($H80*O80 *IF($E80<>"Nominal",INDEX($K$21:$V$21,,MATCH($F80,Years,0))/INDEX($K$21:$V$21,,MATCH($E80,Years,0)), 1/O$27),0) -> 0 | AD80: =IFERROR($H80*P80 *IF($E80<>"Nominal",INDEX($K$21:$V$21,,MATCH($F80,Years,0))/INDEX($K$21:$V$21,,MATCH($E80,Years,0)), 1/P$27),0) -> 0 | AE80: =IFERROR($H80*Q80 *IF($E80<>"Nominal",INDEX($K$21:$V$21,,MATCH($F80,Years,0))/INDEX($K$21:$V$21,,MATCH($E80,Years,0)), 1/Q$27),0) -> 0 | AF80: =IFERROR($H80*R80 *IF($E80<>"Nominal",INDEX($K$21:$V$21,,MATCH($F80,Years,0))/INDEX($K$21:$V$21,,MATCH($E80,Years,0)), 1/R$27),0) -> 0 | AG80: =IFERROR($H80*S80 *IF($E80<>"Nominal",INDEX($K$21:$V$21,,MATCH($F80,Years,0))/INDEX($K$21:$V$21,,MATCH($E80,Years,0)), 1/S$27),0) -> 0 | AH80: =IFERROR($H80*T80 *IF($E80<>"Nominal",INDEX($K$21:$V$21,,MATCH($F80,Years,0))/INDEX($K$21:$V$21,,MATCH($E80,Years,0)), 1/T$27),0) -> 0 | AI80: =IFERROR($H80*U80 *IF($E80<>"Nominal",INDEX($K$21:$V$21,,MATCH($F80,Years,0))/INDEX($K$21:$V$21,,MATCH($E80,Years,0)), 1/U$27),0) -> 0 | AJ80: =IFERROR($H80*V80 *IF($E80<>"Nominal",INDEX($K$21:$V$21,,MATCH($F80,Years,0))/INDEX($K$21:$V$21,,MATCH($E80,Years,0)), 1/V$27),0) -> 0 | AK80: 0 | AL80: 1 | AS80: 0 | AT80: 1 | AU80: 0 | AV80: 0 | AW80: 0 | AX80: 0 | AY80: 0 | BA80: 0 | BB80: 0 | BC80: 0 | BD80: 0 | BE80: 0 | BF80: 0 | BG80: 0 | BH80: 0 | BI80: 0 | BJ80: 0 | BK80: 0 | BL80: 0 | BM80: 0 | BO80: Substations - 0
A81: =A80 -> Equipment Costs | Earth Switch | B81: Project Team Input | C81: $Millions | E81: 2026 | F81: 2026 | H81: 0.3225681496 | I81: Substation switchbays | J81: =J80 -> Substations | P81: 0 | Q81: 1 | R81: 0 | S81: 0 | T81: 0 | U81: 0 | V81: 0 | W81: 1 | X81: 0 | Y81: =IFERROR($H81*K81 *IF($E81<>"Nominal",INDEX($K$21:$V$21,,MATCH($F81,Years,0))/INDEX($K$21:$V$21,,MATCH($E81,Years,0)), 1/K$27),0) -> 0 | Z81: =IFERROR($H81*L81 *IF($E81<>"Nominal",INDEX($K$21:$V$21,,MATCH($F81,Years,0))/INDEX($K$21:$V$21,,MATCH($E81,Years,0)), 1/L$27),0) -> 0 | AA81: =IFERROR($H81*M81 *IF($E81<>"Nominal",INDEX($K$21:$V$21,,MATCH($F81,Years,0))/INDEX($K$21:$V$21,,MATCH($E81,Years,0)), 1/M$27),0) -> 0 | AB81: =IFERROR($H81*N81 *IF($E81<>"Nominal",INDEX($K$21:$V$21,,MATCH($F81,Years,0))/INDEX($K$21:$V$21,,MATCH($E81,Years,0)), 1/N$27),0) -> 0 | AC81: =IFERROR($H81*O81 *IF($E81<>"Nominal",INDEX($K$21:$V$21,,MATCH($F81,Years,0))/INDEX($K$21:$V$21,,MATCH($E81,Years,0)), 1/O$27),0) -> 0 | AD81: =IFERROR($H81*P81 *IF($E81<>"Nominal",INDEX($K$21:$V$21,,MATCH($F81,Years,0))/INDEX($K$21:$V$21,,MATCH($E81,Years,0)), 1/P$27),0) -> 0 | AE81: =IFERROR($H81*Q81 *IF($E81<>"Nominal",INDEX($K$21:$V$21,,MATCH($F81,Years,0))/INDEX($K$21:$V$21,,MATCH($E81,Years,0)), 1/Q$27),0) -> 0.3225681496 | AF81: =IFERROR($H81*R81 *IF($E81<>"Nominal",INDEX($K$21:$V$21,,MATCH($F81,Years,0))/INDEX($K$21:$V$21,,MATCH($E81,Years,0)), 1/R$27),0) -> 0 | AG81: =IFERROR($H81*S81 *IF($E81<>"Nominal",INDEX($K$21:$V$21,,MATCH($F81,Years,0))/INDEX($K$21:$V$21,,MATCH($E81,Years,0)), 1/S$27),0) -> 0 | AH81: =IFERROR($H81*T81 *IF($E81<>"Nominal",INDEX($K$21:$V$21,,MATCH($F81,Years,0))/INDEX($K$21:$V$21,,MATCH($E81,Years,0)), 1/T$27),0) -> 0 | AI81: =IFERROR($H81*U81 *IF($E81<>"Nominal",INDEX($K$21:$V$21,,MATCH($F81,Years,0))/INDEX($K$21:$V$21,,MATCH($E81,Years,0)), 1/U$27),0) -> 0 | AJ81: =IFERROR($H81*V81 *IF($E81<>"Nominal",INDEX($K$21:$V$21,,MATCH($F81,Years,0))/INDEX($K$21:$V$21,,MATCH($E81,Years,0)), 1/V$27),0) -> 0 | AK81: 0.3225681496 | AL81: 1 | AS81: 0 | AT81: 1 | AU81: 0 | AV81: 0 | AW81: 0 | AX81: 0 | AY81: 0 | BA81: 0 | BB81: 0 | BC81: 0 | BD81: 0 | BE81: 0 | BF81: 0 | BG81: 0.3225681496 | BH81: 0 | BI81: 0 | BJ81: 0 | BK81: 0 | BL81: 0 | BM81: 0.3225681496 | BO81: Substations - Substation switchbays
A82: =A81 -> Equipment Costs | Earth Switch | B82: Project Team Input | C82: $Millions | E82: 2026 | F82: 2026 | H82: 0 | I82: Substation power transformers | J82: =J81 -> Substations | P82: 0 | Q82: 1 | R82: 0 | S82: 0 | T82: 0 | U82: 0 | V82: 0 | W82: 1 | X82: 0 | Y82: =IFERROR($H82*K82 *IF($E82<>"Nominal",INDEX($K$21:$V$21,,MATCH($F82,Years,0))/INDEX($K$21:$V$21,,MATCH($E82,Years,0)), 1/K$27),0) -> 0 | Z82: =IFERROR($H82*L82 *IF($E82<>"Nominal",INDEX($K$21:$V$21,,MATCH($F82,Years,0))/INDEX($K$21:$V$21,,MATCH($E82,Years,0)), 1/L$27),0) -> 0 | AA82: =IFERROR($H82*M82 *IF($E82<>"Nominal",INDEX($K$21:$V$21,,MATCH($F82,Years,0))/INDEX($K$21:$V$21,,MATCH($E82,Years,0)), 1/M$27),0) -> 0 | AB82: =IFERROR($H82*N82 *IF($E82<>"Nominal",INDEX($K$21:$V$21,,MATCH($F82,Years,0))/INDEX($K$21:$V$21,,MATCH($E82,Years,0)), 1/N$27),0) -> 0 | AC82: =IFERROR($H82*O82 *IF($E82<>"Nominal",INDEX($K$21:$V$21,,MATCH($F82,Years,0))/INDEX($K$21:$V$21,,MATCH($E82,Years,0)), 1/O$27),0) -> 0 | AD82: =IFERROR($H82*P82 *IF($E82<>"Nominal",INDEX($K$21:$V$21,,MATCH($F82,Years,0))/INDEX($K$21:$V$21,,MATCH($E82,Years,0)), 1/P$27),0) -> 0 | AE82: =IFERROR($H82*Q82 *IF($E82<>"Nominal",INDEX($K$21:$V$21,,MATCH($F82,Years,0))/INDEX($K$21:$V$21,,MATCH($E82,Years,0)), 1/Q$27),0) -> 0 | AF82: =IFERROR($H82*R82 *IF($E82<>"Nominal",INDEX($K$21:$V$21,,MATCH($F82,Years,0))/INDEX($K$21:$V$21,,MATCH($E82,Years,0)), 1/R$27),0) -> 0 | AG82: =IFERROR($H82*S82 *IF($E82<>"Nominal",INDEX($K$21:$V$21,,MATCH($F82,Years,0))/INDEX($K$21:$V$21,,MATCH($E82,Years,0)), 1/S$27),0) -> 0 | AH82: =IFERROR($H82*T82 *IF($E82<>"Nominal",INDEX($K$21:$V$21,,MATCH($F82,Years,0))/INDEX($K$21:$V$21,,MATCH($E82,Years,0)), 1/T$27),0) -> 0 | AI82: =IFERROR($H82*U82 *IF($E82<>"Nominal",INDEX($K$21:$V$21,,MATCH($F82,Years,0))/INDEX($K$21:$V$21,,MATCH($E82,Years,0)), 1/U$27),0) -> 0 | AJ82: =IFERROR($H82*V82 *IF($E82<>"Nominal",INDEX($K$21:$V$21,,MATCH($F82,Years,0))/INDEX($K$21:$V$21,,MATCH($E82,Years,0)), 1/V$27),0) -> 0 | AK82: 0 | AL82: 1 | AS82: 0 | AT82: 1 | AU82: 0 | AV82: 0 | AW82: 0 | AX82: 0 | AY82: 0 | BA82: 0 | BB82: 0 | BC82: 0 | BD82: 0 | BE82: 0 | BF82: 0 | BG82: 0 | BH82: 0 | BI82: 0 | BJ82: 0 | BK82: 0 | BL82: 0 | BM82: 0 | BO82: Substations - Substation power transformers
A83: =A82 -> Equipment Costs | Earth Switch | B83: Project Team Input | C83: $Millions | E83: 2026 | F83: 2026 | H83: 0 | I83: Substation reactive plant | J83: =J82 -> Substations | P83: 0 | Q83: 1 | R83: 0 | S83: 0 | T83: 0 | U83: 0 | V83: 0 | W83: 1 | X83: 0 | Y83: =IFERROR($H83*K83 *IF($E83<>"Nominal",INDEX($K$21:$V$21,,MATCH($F83,Years,0))/INDEX($K$21:$V$21,,MATCH($E83,Years,0)), 1/K$27),0) -> 0 | Z83: =IFERROR($H83*L83 *IF($E83<>"Nominal",INDEX($K$21:$V$21,,MATCH($F83,Years,0))/INDEX($K$21:$V$21,,MATCH($E83,Years,0)), 1/L$27),0) -> 0 | AA83: =IFERROR($H83*M83 *IF($E83<>"Nominal",INDEX($K$21:$V$21,,MATCH($F83,Years,0))/INDEX($K$21:$V$21,,MATCH($E83,Years,0)), 1/M$27),0) -> 0 | AB83: =IFERROR($H83*N83 *IF($E83<>"Nominal",INDEX($K$21:$V$21,,MATCH($F83,Years,0))/INDEX($K$21:$V$21,,MATCH($E83,Years,0)), 1/N$27),0) -> 0 | AC83: =IFERROR($H83*O83 *IF($E83<>"Nominal",INDEX($K$21:$V$21,,MATCH($F83,Years,0))/INDEX($K$21:$V$21,,MATCH($E83,Years,0)), 1/O$27),0) -> 0 | AD83: =IFERROR($H83*P83 *IF($E83<>"Nominal",INDEX($K$21:$V$21,,MATCH($F83,Years,0))/INDEX($K$21:$V$21,,MATCH($E83,Years,0)), 1/P$27),0) -> 0 | AE83: =IFERROR($H83*Q83 *IF($E83<>"Nominal",INDEX($K$21:$V$21,,MATCH($F83,Years,0))/INDEX($K$21:$V$21,,MATCH($E83,Years,0)), 1/Q$27),0) -> 0 | AF83: =IFERROR($H83*R83 *IF($E83<>"Nominal",INDEX($K$21:$V$21,,MATCH($F83,Years,0))/INDEX($K$21:$V$21,,MATCH($E83,Years,0)), 1/R$27),0) -> 0 | AG83: =IFERROR($H83*S83 *IF($E83<>"Nominal",INDEX($K$21:$V$21,,MATCH($F83,Years,0))/INDEX($K$21:$V$21,,MATCH($E83,Years,0)), 1/S$27),0) -> 0 | AH83: =IFERROR($H83*T83 *IF($E83<>"Nominal",INDEX($K$21:$V$21,,MATCH($F83,Years,0))/INDEX($K$21:$V$21,,MATCH($E83,Years,0)), 1/T$27),0) -> 0 | AI83: =IFERROR($H83*U83 *IF($E83<>"Nominal",INDEX($K$21:$V$21,,MATCH($F83,Years,0))/INDEX($K$21:$V$21,,MATCH($E83,Years,0)), 1/U$27),0) -> 0 | AJ83: =IFERROR($H83*V83 *IF($E83<>"Nominal",INDEX($K$21:$V$21,,MATCH($F83,Years,0))/INDEX($K$21:$V$21,,MATCH($E83,Years,0)), 1/V$27),0) -> 0 | AK83: 0 | AL83: 1 | AS83: 0 | AT83: 1 | AU83: 0 | AV83: 0 | AW83: 0 | AX83: 0 | AY83: 0 | BA83: 0 | BB83: 0 | BC83: 0 | BD83: 0 | BE83: 0 | BF83: 0 | BG83: 0 | BH83: 0 | BI83: 0 | BJ83: 0 | BK83: 0 | BL83: 0 | BM83: 0 | BO83: Substations - Substation reactive plant
A84: Equipment Costs | Surge Arrestor | B84: Project Team Input | C84: $Millions | E84: 2026 | F84: 2026 | H84: 0 | I84: 0 | J84: Substations | P84: 0 | Q84: 1 | R84: 0 | S84: 0 | T84: 0 | U84: 0 | V84: 0 | W84: 1 | X84: 0 | Y84: =IFERROR($H84*K84 *IF($E84<>"Nominal",INDEX($K$21:$V$21,,MATCH($F84,Years,0))/INDEX($K$21:$V$21,,MATCH($E84,Years,0)), 1/K$27),0) -> 0 | Z84: =IFERROR($H84*L84 *IF($E84<>"Nominal",INDEX($K$21:$V$21,,MATCH($F84,Years,0))/INDEX($K$21:$V$21,,MATCH($E84,Years,0)), 1/L$27),0) -> 0 | AA84: =IFERROR($H84*M84 *IF($E84<>"Nominal",INDEX($K$21:$V$21,,MATCH($F84,Years,0))/INDEX($K$21:$V$21,,MATCH($E84,Years,0)), 1/M$27),0) -> 0 | AB84: =IFERROR($H84*N84 *IF($E84<>"Nominal",INDEX($K$21:$V$21,,MATCH($F84,Years,0))/INDEX($K$21:$V$21,,MATCH($E84,Years,0)), 1/N$27),0) -> 0 | AC84: =IFERROR($H84*O84 *IF($E84<>"Nominal",INDEX($K$21:$V$21,,MATCH($F84,Years,0))/INDEX($K$21:$V$21,,MATCH($E84,Years,0)), 1/O$27),0) -> 0 | AD84: =IFERROR($H84*P84 *IF($E84<>"Nominal",INDEX($K$21:$V$21,,MATCH($F84,Years,0))/INDEX($K$21:$V$21,,MATCH($E84,Years,0)), 1/P$27),0) -> 0 | AE84: =IFERROR($H84*Q84 *IF($E84<>"Nominal",INDEX($K$21:$V$21,,MATCH($F84,Years,0))/INDEX($K$21:$V$21,,MATCH($E84,Years,0)), 1/Q$27),0) -> 0 | AF84: =IFERROR($H84*R84 *IF($E84<>"Nominal",INDEX($K$21:$V$21,,MATCH($F84,Years,0))/INDEX($K$21:$V$21,,MATCH($E84,Years,0)), 1/R$27),0) -> 0 | AG84: =IFERROR($H84*S84 *IF($E84<>"Nominal",INDEX($K$21:$V$21,,MATCH($F84,Years,0))/INDEX($K$21:$V$21,,MATCH($E84,Years,0)), 1/S$27),0) -> 0 | AH84: =IFERROR($H84*T84 *IF($E84<>"Nominal",INDEX($K$21:$V$21,,MATCH($F84,Years,0))/INDEX($K$21:$V$21,,MATCH($E84,Years,0)), 1/T$27),0) -> 0 | AI84: =IFERROR($H84*U84 *IF($E84<>"Nominal",INDEX($K$21:$V$21,,MATCH($F84,Years,0))/INDEX($K$21:$V$21,,MATCH($E84,Years,0)), 1/U$27),0) -> 0 | AJ84: =IFERROR($H84*V84 *IF($E84<>"Nominal",INDEX($K$21:$V$21,,MATCH($F84,Years,0))/INDEX($K$21:$V$21,,MATCH($E84,Years,0)), 1/V$27),0) -> 0 | AK84: 0 | AL84: 1 | AS84: 0 | AT84: 1 | AU84: 0 | AV84: 0 | AW84: 0 | AX84: 0 | AY84: 0 | BA84: 0 | BB84: 0 | BC84: 0 | BD84: 0 | BE84: 0 | BF84: 0 | BG84: 0 | BH84: 0 | BI84: 0 | BJ84: 0 | BK84: 0 | BL84: 0 | BM84: 0 | BO84: Substations - 0
A85: =A84 -> Equipment Costs | Surge Arrestor | B85: Project Team Input | C85: $Millions | E85: 2026 | F85: 2026 | H85: 0 | I85: Substation switchbays | J85: =J84 -> Substations | P85: 0 | Q85: 1 | R85: 0 | S85: 0 | T85: 0 | U85: 0 | V85: 0 | W85: 1 | X85: 0 | Y85: =IFERROR($H85*K85 *IF($E85<>"Nominal",INDEX($K$21:$V$21,,MATCH($F85,Years,0))/INDEX($K$21:$V$21,,MATCH($E85,Years,0)), 1/K$27),0) -> 0 | Z85: =IFERROR($H85*L85 *IF($E85<>"Nominal",INDEX($K$21:$V$21,,MATCH($F85,Years,0))/INDEX($K$21:$V$21,,MATCH($E85,Years,0)), 1/L$27),0) -> 0 | AA85: =IFERROR($H85*M85 *IF($E85<>"Nominal",INDEX($K$21:$V$21,,MATCH($F85,Years,0))/INDEX($K$21:$V$21,,MATCH($E85,Years,0)), 1/M$27),0) -> 0 | AB85: =IFERROR($H85*N85 *IF($E85<>"Nominal",INDEX($K$21:$V$21,,MATCH($F85,Years,0))/INDEX($K$21:$V$21,,MATCH($E85,Years,0)), 1/N$27),0) -> 0 | AC85: =IFERROR($H85*O85 *IF($E85<>"Nominal",INDEX($K$21:$V$21,,MATCH($F85,Years,0))/INDEX($K$21:$V$21,,MATCH($E85,Years,0)), 1/O$27),0) -> 0 | AD85: =IFERROR($H85*P85 *IF($E85<>"Nominal",INDEX($K$21:$V$21,,MATCH($F85,Years,0))/INDEX($K$21:$V$21,,MATCH($E85,Years,0)), 1/P$27),0) -> 0 | AE85: =IFERROR($H85*Q85 *IF($E85<>"Nominal",INDEX($K$21:$V$21,,MATCH($F85,Years,0))/INDEX($K$21:$V$21,,MATCH($E85,Years,0)), 1/Q$27),0) -> 0 | AF85: =IFERROR($H85*R85 *IF($E85<>"Nominal",INDEX($K$21:$V$21,,MATCH($F85,Years,0))/INDEX($K$21:$V$21,,MATCH($E85,Years,0)), 1/R$27),0) -> 0 | AG85: =IFERROR($H85*S85 *IF($E85<>"Nominal",INDEX($K$21:$V$21,,MATCH($F85,Years,0))/INDEX($K$21:$V$21,,MATCH($E85,Years,0)), 1/S$27),0) -> 0 | AH85: =IFERROR($H85*T85 *IF($E85<>"Nominal",INDEX($K$21:$V$21,,MATCH($F85,Years,0))/INDEX($K$21:$V$21,,MATCH($E85,Years,0)), 1/T$27),0) -> 0 | AI85: =IFERROR($H85*U85 *IF($E85<>"Nominal",INDEX($K$21:$V$21,,MATCH($F85,Years,0))/INDEX($K$21:$V$21,,MATCH($E85,Years,0)), 1/U$27),0) -> 0 | AJ85: =IFERROR($H85*V85 *IF($E85<>"Nominal",INDEX($K$21:$V$21,,MATCH($F85,Years,0))/INDEX($K$21:$V$21,,MATCH($E85,Years,0)), 1/V$27),0) -> 0 | AK85: 0 | AL85: 1 | AS85: 0 | AT85: 1 | AU85: 0 | AV85: 0 | AW85: 0 | AX85: 0 | AY85: 0 | BA85: 0 | BB85: 0 | BC85: 0 | BD85: 0 | BE85: 0 | BF85: 0 | BG85: 0 | BH85: 0 | BI85: 0 | BJ85: 0 | BK85: 0 | BL85: 0 | BM85: 0 | BO85: Substations - Substation switchbays
A86: =A85 -> Equipment Costs | Surge Arrestor | B86: Project Team Input | C86: $Millions | E86: 2026 | F86: 2026 | H86: 0 | I86: Substation power transformers | J86: =J85 -> Substations | P86: 0 | Q86: 1 | R86: 0 | S86: 0 | T86: 0 | U86: 0 | V86: 0 | W86: 1 | X86: 0 | Y86: =IFERROR($H86*K86 *IF($E86<>"Nominal",INDEX($K$21:$V$21,,MATCH($F86,Years,0))/INDEX($K$21:$V$21,,MATCH($E86,Years,0)), 1/K$27),0) -> 0 | Z86: =IFERROR($H86*L86 *IF($E86<>"Nominal",INDEX($K$21:$V$21,,MATCH($F86,Years,0))/INDEX($K$21:$V$21,,MATCH($E86,Years,0)), 1/L$27),0) -> 0 | AA86: =IFERROR($H86*M86 *IF($E86<>"Nominal",INDEX($K$21:$V$21,,MATCH($F86,Years,0))/INDEX($K$21:$V$21,,MATCH($E86,Years,0)), 1/M$27),0) -> 0 | AB86: =IFERROR($H86*N86 *IF($E86<>"Nominal",INDEX($K$21:$V$21,,MATCH($F86,Years,0))/INDEX($K$21:$V$21,,MATCH($E86,Years,0)), 1/N$27),0) -> 0 | AC86: =IFERROR($H86*O86 *IF($E86<>"Nominal",INDEX($K$21:$V$21,,MATCH($F86,Years,0))/INDEX($K$21:$V$21,,MATCH($E86,Years,0)), 1/O$27),0) -> 0 | AD86: =IFERROR($H86*P86 *IF($E86<>"Nominal",INDEX($K$21:$V$21,,MATCH($F86,Years,0))/INDEX($K$21:$V$21,,MATCH($E86,Years,0)), 1/P$27),0) -> 0 | AE86: =IFERROR($H86*Q86 *IF($E86<>"Nominal",INDEX($K$21:$V$21,,MATCH($F86,Years,0))/INDEX($K$21:$V$21,,MATCH($E86,Years,0)), 1/Q$27),0) -> 0 | AF86: =IFERROR($H86*R86 *IF($E86<>"Nominal",INDEX($K$21:$V$21,,MATCH($F86,Years,0))/INDEX($K$21:$V$21,,MATCH($E86,Years,0)), 1/R$27),0) -> 0 | AG86: =IFERROR($H86*S86 *IF($E86<>"Nominal",INDEX($K$21:$V$21,,MATCH($F86,Years,0))/INDEX($K$21:$V$21,,MATCH($E86,Years,0)), 1/S$27),0) -> 0 | AH86: =IFERROR($H86*T86 *IF($E86<>"Nominal",INDEX($K$21:$V$21,,MATCH($F86,Years,0))/INDEX($K$21:$V$21,,MATCH($E86,Years,0)), 1/T$27),0) -> 0 | AI86: =IFERROR($H86*U86 *IF($E86<>"Nominal",INDEX($K$21:$V$21,,MATCH($F86,Years,0))/INDEX($K$21:$V$21,,MATCH($E86,Years,0)), 1/U$27),0) -> 0 | AJ86: =IFERROR($H86*V86 *IF($E86<>"Nominal",INDEX($K$21:$V$21,,MATCH($F86,Years,0))/INDEX($K$21:$V$21,,MATCH($E86,Years,0)), 1/V$27),0) -> 0 | AK86: 0 | AL86: 1 | AS86: 0 | AT86: 1 | AU86: 0 | AV86: 0 | AW86: 0 | AX86: 0 | AY86: 0 | BA86: 0 | BB86: 0 | BC86: 0 | BD86: 0 | BE86: 0 | BF86: 0 | BG86: 0 | BH86: 0 | BI86: 0 | BJ86: 0 | BK86: 0 | BL86: 0 | BM86: 0 | BO86: Substations - Substation power transformers
A87: =A86 -> Equipment Costs | Surge Arrestor | B87: Project Team Input | C87: $Millions | E87: 2026 | F87: 2026 | H87: 0.07818768432 | I87: Substation reactive plant | J87: =J86 -> Substations | P87: 0 | Q87: 1 | R87: 0 | S87: 0 | T87: 0 | U87: 0 | V87: 0 | W87: 1 | X87: 0 | Y87: =IFERROR($H87*K87 *IF($E87<>"Nominal",INDEX($K$21:$V$21,,MATCH($F87,Years,0))/INDEX($K$21:$V$21,,MATCH($E87,Years,0)), 1/K$27),0) -> 0 | Z87: =IFERROR($H87*L87 *IF($E87<>"Nominal",INDEX($K$21:$V$21,,MATCH($F87,Years,0))/INDEX($K$21:$V$21,,MATCH($E87,Years,0)), 1/L$27),0) -> 0 | AA87: =IFERROR($H87*M87 *IF($E87<>"Nominal",INDEX($K$21:$V$21,,MATCH($F87,Years,0))/INDEX($K$21:$V$21,,MATCH($E87,Years,0)), 1/M$27),0) -> 0 | AB87: =IFERROR($H87*N87 *IF($E87<>"Nominal",INDEX($K$21:$V$21,,MATCH($F87,Years,0))/INDEX($K$21:$V$21,,MATCH($E87,Years,0)), 1/N$27),0) -> 0 | AC87: =IFERROR($H87*O87 *IF($E87<>"Nominal",INDEX($K$21:$V$21,,MATCH($F87,Years,0))/INDEX($K$21:$V$21,,MATCH($E87,Years,0)), 1/O$27),0) -> 0 | AD87: =IFERROR($H87*P87 *IF($E87<>"Nominal",INDEX($K$21:$V$21,,MATCH($F87,Years,0))/INDEX($K$21:$V$21,,MATCH($E87,Years,0)), 1/P$27),0) -> 0 | AE87: =IFERROR($H87*Q87 *IF($E87<>"Nominal",INDEX($K$21:$V$21,,MATCH($F87,Years,0))/INDEX($K$21:$V$21,,MATCH($E87,Years,0)), 1/Q$27),0) -> 0.07818768432 | AF87: =IFERROR($H87*R87 *IF($E87<>"Nominal",INDEX($K$21:$V$21,,MATCH($F87,Years,0))/INDEX($K$21:$V$21,,MATCH($E87,Years,0)), 1/R$27),0) -> 0 | AG87: =IFERROR($H87*S87 *IF($E87<>"Nominal",INDEX($K$21:$V$21,,MATCH($F87,Years,0))/INDEX($K$21:$V$21,,MATCH($E87,Years,0)), 1/S$27),0) -> 0 | AH87: =IFERROR($H87*T87 *IF($E87<>"Nominal",INDEX($K$21:$V$21,,MATCH($F87,Years,0))/INDEX($K$21:$V$21,,MATCH($E87,Years,0)), 1/T$27),0) -> 0 | AI87: =IFERROR($H87*U87 *IF($E87<>"Nominal",INDEX($K$21:$V$21,,MATCH($F87,Years,0))/INDEX($K$21:$V$21,,MATCH($E87,Years,0)), 1/U$27),0) -> 0 | AJ87: =IFERROR($H87*V87 *IF($E87<>"Nominal",INDEX($K$21:$V$21,,MATCH($F87,Years,0))/INDEX($K$21:$V$21,,MATCH($E87,Years,0)), 1/V$27),0) -> 0 | AK87: 0.07818768432 | AL87: 1 | AS87: 0 | AT87: 1 | AU87: 0 | AV87: 0 | AW87: 0 | AX87: 0 | AY87: 0 | BA87: 0 | BB87: 0 | BC87: 0 | BD87: 0 | BE87: 0 | BF87: 0 | BG87: 0.07818768432 | BH87: 0 | BI87: 0 | BJ87: 0 | BK87: 0 | BL87: 0 | BM87: 0.07818768432 | BO87: Substations - Substation reactive plant
A88: Equipment Costs | Disconnector | B88: Project Team Input | C88: $Millions | E88: 2026 | F88: 2026 | H88: 0 | I88: 0 | J88: Substations | P88: 0 | Q88: 1 | R88: 0 | S88: 0 | T88: 0 | U88: 0 | V88: 0 | W88: 1 | X88: 0 | Y88: =IFERROR($H88*K88 *IF($E88<>"Nominal",INDEX($K$21:$V$21,,MATCH($F88,Years,0))/INDEX($K$21:$V$21,,MATCH($E88,Years,0)), 1/K$27),0) -> 0 | Z88: =IFERROR($H88*L88 *IF($E88<>"Nominal",INDEX($K$21:$V$21,,MATCH($F88,Years,0))/INDEX($K$21:$V$21,,MATCH($E88,Years,0)), 1/L$27),0) -> 0 | AA88: =IFERROR($H88*M88 *IF($E88<>"Nominal",INDEX($K$21:$V$21,,MATCH($F88,Years,0))/INDEX($K$21:$V$21,,MATCH($E88,Years,0)), 1/M$27),0) -> 0 | AB88: =IFERROR($H88*N88 *IF($E88<>"Nominal",INDEX($K$21:$V$21,,MATCH($F88,Years,0))/INDEX($K$21:$V$21,,MATCH($E88,Years,0)), 1/N$27),0) -> 0 | AC88: =IFERROR($H88*O88 *IF($E88<>"Nominal",INDEX($K$21:$V$21,,MATCH($F88,Years,0))/INDEX($K$21:$V$21,,MATCH($E88,Years,0)), 1/O$27),0) -> 0 | AD88: =IFERROR($H88*P88 *IF($E88<>"Nominal",INDEX($K$21:$V$21,,MATCH($F88,Years,0))/INDEX($K$21:$V$21,,MATCH($E88,Years,0)), 1/P$27),0) -> 0 | AE88: =IFERROR($H88*Q88 *IF($E88<>"Nominal",INDEX($K$21:$V$21,,MATCH($F88,Years,0))/INDEX($K$21:$V$21,,MATCH($E88,Years,0)), 1/Q$27),0) -> 0 | AF88: =IFERROR($H88*R88 *IF($E88<>"Nominal",INDEX($K$21:$V$21,,MATCH($F88,Years,0))/INDEX($K$21:$V$21,,MATCH($E88,Years,0)), 1/R$27),0) -> 0 | AG88: =IFERROR($H88*S88 *IF($E88<>"Nominal",INDEX($K$21:$V$21,,MATCH($F88,Years,0))/INDEX($K$21:$V$21,,MATCH($E88,Years,0)), 1/S$27),0) -> 0 | AH88: =IFERROR($H88*T88 *IF($E88<>"Nominal",INDEX($K$21:$V$21,,MATCH($F88,Years,0))/INDEX($K$21:$V$21,,MATCH($E88,Years,0)), 1/T$27),0) -> 0 | AI88: =IFERROR($H88*U88 *IF($E88<>"Nominal",INDEX($K$21:$V$21,,MATCH($F88,Years,0))/INDEX($K$21:$V$21,,MATCH($E88,Years,0)), 1/U$27),0) -> 0 | AJ88: =IFERROR($H88*V88 *IF($E88<>"Nominal",INDEX($K$21:$V$21,,MATCH($F88,Years,0))/INDEX($K$21:$V$21,,MATCH($E88,Years,0)), 1/V$27),0) -> 0 | AK88: 0 | AL88: 1 | AS88: 0 | AT88: 1 | AU88: 0 | AV88: 0 | AW88: 0 | AX88: 0 | AY88: 0 | BA88: 0 | BB88: 0 | BC88: 0 | BD88: 0 | BE88: 0 | BF88: 0 | BG88: 0 | BH88: 0 | BI88: 0 | BJ88: 0 | BK88: 0 | BL88: 0 | BM88: 0 | BO88: Substations - 0
A89: =A88 -> Equipment Costs | Disconnector | B89: Project Team Input | C89: $Millions | E89: 2026 | F89: 2026 | H89: 0 | I89: Substation switchbays | J89: =J88 -> Substations | P89: 0 | Q89: 1 | R89: 0 | S89: 0 | T89: 0 | U89: 0 | V89: 0 | W89: 1 | X89: 0 | Y89: =IFERROR($H89*K89 *IF($E89<>"Nominal",INDEX($K$21:$V$21,,MATCH($F89,Years,0))/INDEX($K$21:$V$21,,MATCH($E89,Years,0)), 1/K$27),0) -> 0 | Z89: =IFERROR($H89*L89 *IF($E89<>"Nominal",INDEX($K$21:$V$21,,MATCH($F89,Years,0))/INDEX($K$21:$V$21,,MATCH($E89,Years,0)), 1/L$27),0) -> 0 | AA89: =IFERROR($H89*M89 *IF($E89<>"Nominal",INDEX($K$21:$V$21,,MATCH($F89,Years,0))/INDEX($K$21:$V$21,,MATCH($E89,Years,0)), 1/M$27),0) -> 0 | AB89: =IFERROR($H89*N89 *IF($E89<>"Nominal",INDEX($K$21:$V$21,,MATCH($F89,Years,0))/INDEX($K$21:$V$21,,MATCH($E89,Years,0)), 1/N$27),0) -> 0 | AC89: =IFERROR($H89*O89 *IF($E89<>"Nominal",INDEX($K$21:$V$21,,MATCH($F89,Years,0))/INDEX($K$21:$V$21,,MATCH($E89,Years,0)), 1/O$27),0) -> 0 | AD89: =IFERROR($H89*P89 *IF($E89<>"Nominal",INDEX($K$21:$V$21,,MATCH($F89,Years,0))/INDEX($K$21:$V$21,,MATCH($E89,Years,0)), 1/P$27),0) -> 0 | AE89: =IFERROR($H89*Q89 *IF($E89<>"Nominal",INDEX($K$21:$V$21,,MATCH($F89,Years,0))/INDEX($K$21:$V$21,,MATCH($E89,Years,0)), 1/Q$27),0) -> 0 | AF89: =IFERROR($H89*R89 *IF($E89<>"Nominal",INDEX($K$21:$V$21,,MATCH($F89,Years,0))/INDEX($K$21:$V$21,,MATCH($E89,Years,0)), 1/R$27),0) -> 0 | AG89: =IFERROR($H89*S89 *IF($E89<>"Nominal",INDEX($K$21:$V$21,,MATCH($F89,Years,0))/INDEX($K$21:$V$21,,MATCH($E89,Years,0)), 1/S$27),0) -> 0 | AH89: =IFERROR($H89*T89 *IF($E89<>"Nominal",INDEX($K$21:$V$21,,MATCH($F89,Years,0))/INDEX($K$21:$V$21,,MATCH($E89,Years,0)), 1/T$27),0) -> 0 | AI89: =IFERROR($H89*U89 *IF($E89<>"Nominal",INDEX($K$21:$V$21,,MATCH($F89,Years,0))/INDEX($K$21:$V$21,,MATCH($E89,Years,0)), 1/U$27),0) -> 0 | AJ89: =IFERROR($H89*V89 *IF($E89<>"Nominal",INDEX($K$21:$V$21,,MATCH($F89,Years,0))/INDEX($K$21:$V$21,,MATCH($E89,Years,0)), 1/V$27),0) -> 0 | AK89: 0 | AL89: 1 | AS89: 0 | AT89: 1 | AU89: 0 | AV89: 0 | AW89: 0 | AX89: 0 | AY89: 0 | BA89: 0 | BB89: 0 | BC89: 0 | BD89: 0 | BE89: 0 | BF89: 0 | BG89: 0 | BH89: 0 | BI89: 0 | BJ89: 0 | BK89: 0 | BL89: 0 | BM89: 0 | BO89: Substations - Substation switchbays
A90: =A89 -> Equipment Costs | Disconnector | B90: Project Team Input | C90: $Millions | E90: 2026 | F90: 2026 | H90: 0 | I90: Substation power transformers | J90: =J89 -> Substations | P90: 0 | Q90: 1 | R90: 0 | S90: 0 | T90: 0 | U90: 0 | V90: 0 | W90: 1 | X90: 0 | Y90: =IFERROR($H90*K90 *IF($E90<>"Nominal",INDEX($K$21:$V$21,,MATCH($F90,Years,0))/INDEX($K$21:$V$21,,MATCH($E90,Years,0)), 1/K$27),0) -> 0 | Z90: =IFERROR($H90*L90 *IF($E90<>"Nominal",INDEX($K$21:$V$21,,MATCH($F90,Years,0))/INDEX($K$21:$V$21,,MATCH($E90,Years,0)), 1/L$27),0) -> 0 | AA90: =IFERROR($H90*M90 *IF($E90<>"Nominal",INDEX($K$21:$V$21,,MATCH($F90,Years,0))/INDEX($K$21:$V$21,,MATCH($E90,Years,0)), 1/M$27),0) -> 0 | AB90: =IFERROR($H90*N90 *IF($E90<>"Nominal",INDEX($K$21:$V$21,,MATCH($F90,Years,0))/INDEX($K$21:$V$21,,MATCH($E90,Years,0)), 1/N$27),0) -> 0 | AC90: =IFERROR($H90*O90 *IF($E90<>"Nominal",INDEX($K$21:$V$21,,MATCH($F90,Years,0))/INDEX($K$21:$V$21,,MATCH($E90,Years,0)), 1/O$27),0) -> 0 | AD90: =IFERROR($H90*P90 *IF($E90<>"Nominal",INDEX($K$21:$V$21,,MATCH($F90,Years,0))/INDEX($K$21:$V$21,,MATCH($E90,Years,0)), 1/P$27),0) -> 0 | AE90: =IFERROR($H90*Q90 *IF($E90<>"Nominal",INDEX($K$21:$V$21,,MATCH($F90,Years,0))/INDEX($K$21:$V$21,,MATCH($E90,Years,0)), 1/Q$27),0) -> 0 | AF90: =IFERROR($H90*R90 *IF($E90<>"Nominal",INDEX($K$21:$V$21,,MATCH($F90,Years,0))/INDEX($K$21:$V$21,,MATCH($E90,Years,0)), 1/R$27),0) -> 0 | AG90: =IFERROR($H90*S90 *IF($E90<>"Nominal",INDEX($K$21:$V$21,,MATCH($F90,Years,0))/INDEX($K$21:$V$21,,MATCH($E90,Years,0)), 1/S$27),0) -> 0 | AH90: =IFERROR($H90*T90 *IF($E90<>"Nominal",INDEX($K$21:$V$21,,MATCH($F90,Years,0))/INDEX($K$21:$V$21,,MATCH($E90,Years,0)), 1/T$27),0) -> 0 | AI90: =IFERROR($H90*U90 *IF($E90<>"Nominal",INDEX($K$21:$V$21,,MATCH($F90,Years,0))/INDEX($K$21:$V$21,,MATCH($E90,Years,0)), 1/U$27),0) -> 0 | AJ90: =IFERROR($H90*V90 *IF($E90<>"Nominal",INDEX($K$21:$V$21,,MATCH($F90,Years,0))/INDEX($K$21:$V$21,,MATCH($E90,Years,0)), 1/V$27),0) -> 0 | AK90: 0 | AL90: 1 | AS90: 0 | AT90: 1 | AU90: 0 | AV90: 0 | AW90: 0 | AX90: 0 | AY90: 0 | BA90: 0 | BB90: 0 | BC90: 0 | BD90: 0 | BE90: 0 | BF90: 0 | BG90: 0 | BH90: 0 | BI90: 0 | BJ90: 0 | BK90: 0 | BL90: 0 | BM90: 0 | BO90: Substations - Substation power transformers
A91: =A90 -> Equipment Costs | Disconnector | B91: Project Team Input | C91: $Millions | E91: 2026 | F91: 2026 | H91: 0.7884344205 | I91: Substation reactive plant | J91: =J90 -> Substations | P91: 0 | Q91: 1 | R91: 0 | S91: 0 | T91: 0 | U91: 0 | V91: 0 | W91: 1 | X91: 0 | Y91: =IFERROR($H91*K91 *IF($E91<>"Nominal",INDEX($K$21:$V$21,,MATCH($F91,Years,0))/INDEX($K$21:$V$21,,MATCH($E91,Years,0)), 1/K$27),0) -> 0 | Z91: =IFERROR($H91*L91 *IF($E91<>"Nominal",INDEX($K$21:$V$21,,MATCH($F91,Years,0))/INDEX($K$21:$V$21,,MATCH($E91,Years,0)), 1/L$27),0) -> 0 | AA91: =IFERROR($H91*M91 *IF($E91<>"Nominal",INDEX($K$21:$V$21,,MATCH($F91,Years,0))/INDEX($K$21:$V$21,,MATCH($E91,Years,0)), 1/M$27),0) -> 0 | AB91: =IFERROR($H91*N91 *IF($E91<>"Nominal",INDEX($K$21:$V$21,,MATCH($F91,Years,0))/INDEX($K$21:$V$21,,MATCH($E91,Years,0)), 1/N$27),0) -> 0 | AC91: =IFERROR($H91*O91 *IF($E91<>"Nominal",INDEX($K$21:$V$21,,MATCH($F91,Years,0))/INDEX($K$21:$V$21,,MATCH($E91,Years,0)), 1/O$27),0) -> 0 | AD91: =IFERROR($H91*P91 *IF($E91<>"Nominal",INDEX($K$21:$V$21,,MATCH($F91,Years,0))/INDEX($K$21:$V$21,,MATCH($E91,Years,0)), 1/P$27),0) -> 0 | AE91: =IFERROR($H91*Q91 *IF($E91<>"Nominal",INDEX($K$21:$V$21,,MATCH($F91,Years,0))/INDEX($K$21:$V$21,,MATCH($E91,Years,0)), 1/Q$27),0) -> 0.7884344205 | AF91: =IFERROR($H91*R91 *IF($E91<>"Nominal",INDEX($K$21:$V$21,,MATCH($F91,Years,0))/INDEX($K$21:$V$21,,MATCH($E91,Years,0)), 1/R$27),0) -> 0 | AG91: =IFERROR($H91*S91 *IF($E91<>"Nominal",INDEX($K$21:$V$21,,MATCH($F91,Years,0))/INDEX($K$21:$V$21,,MATCH($E91,Years,0)), 1/S$27),0) -> 0 | AH91: =IFERROR($H91*T91 *IF($E91<>"Nominal",INDEX($K$21:$V$21,,MATCH($F91,Years,0))/INDEX($K$21:$V$21,,MATCH($E91,Years,0)), 1/T$27),0) -> 0 | AI91: =IFERROR($H91*U91 *IF($E91<>"Nominal",INDEX($K$21:$V$21,,MATCH($F91,Years,0))/INDEX($K$21:$V$21,,MATCH($E91,Years,0)), 1/U$27),0) -> 0 | AJ91: =IFERROR($H91*V91 *IF($E91<>"Nominal",INDEX($K$21:$V$21,,MATCH($F91,Years,0))/INDEX($K$21:$V$21,,MATCH($E91,Years,0)), 1/V$27),0) -> 0 | AK91: 0.7884344205 | AL91: 1 | AS91: 0 | AT91: 1 | AU91: 0 | AV91: 0 | AW91: 0 | AX91: 0 | AY91: 0 | BA91: 0 | BB91: 0 | BC91: 0 | BD91: 0 | BE91: 0 | BF91: 0 | BG91: 0.7884344205 | BH91: 0 | BI91: 0 | BJ91: 0 | BK91: 0 | BL91: 0 | BM91: 0.7884344205 | BO91: Substations - Substation reactive plant
A92: Equipment Costs | Insulator (16KN) | B92: Project Team Input | C92: $Millions | E92: 2026 | F92: 2026 | H92: 0 | I92: 0 | J92: Substations | P92: 0 | Q92: 1 | R92: 0 | S92: 0 | T92: 0 | U92: 0 | V92: 0 | W92: 1 | X92: 0 | Y92: =IFERROR($H92*K92 *IF($E92<>"Nominal",INDEX($K$21:$V$21,,MATCH($F92,Years,0))/INDEX($K$21:$V$21,,MATCH($E92,Years,0)), 1/K$27),0) -> 0 | Z92: =IFERROR($H92*L92 *IF($E92<>"Nominal",INDEX($K$21:$V$21,,MATCH($F92,Years,0))/INDEX($K$21:$V$21,,MATCH($E92,Years,0)), 1/L$27),0) -> 0 | AA92: =IFERROR($H92*M92 *IF($E92<>"Nominal",INDEX($K$21:$V$21,,MATCH($F92,Years,0))/INDEX($K$21:$V$21,,MATCH($E92,Years,0)), 1/M$27),0) -> 0 | AB92: =IFERROR($H92*N92 *IF($E92<>"Nominal",INDEX($K$21:$V$21,,MATCH($F92,Years,0))/INDEX($K$21:$V$21,,MATCH($E92,Years,0)), 1/N$27),0) -> 0 | AC92: =IFERROR($H92*O92 *IF($E92<>"Nominal",INDEX($K$21:$V$21,,MATCH($F92,Years,0))/INDEX($K$21:$V$21,,MATCH($E92,Years,0)), 1/O$27),0) -> 0 | AD92: =IFERROR($H92*P92 *IF($E92<>"Nominal",INDEX($K$21:$V$21,,MATCH($F92,Years,0))/INDEX($K$21:$V$21,,MATCH($E92,Years,0)), 1/P$27),0) -> 0 | AE92: =IFERROR($H92*Q92 *IF($E92<>"Nominal",INDEX($K$21:$V$21,,MATCH($F92,Years,0))/INDEX($K$21:$V$21,,MATCH($E92,Years,0)), 1/Q$27),0) -> 0 | AF92: =IFERROR($H92*R92 *IF($E92<>"Nominal",INDEX($K$21:$V$21,,MATCH($F92,Years,0))/INDEX($K$21:$V$21,,MATCH($E92,Years,0)), 1/R$27),0) -> 0 | AG92: =IFERROR($H92*S92 *IF($E92<>"Nominal",INDEX($K$21:$V$21,,MATCH($F92,Years,0))/INDEX($K$21:$V$21,,MATCH($E92,Years,0)), 1/S$27),0) -> 0 | AH92: =IFERROR($H92*T92 *IF($E92<>"Nominal",INDEX($K$21:$V$21,,MATCH($F92,Years,0))/INDEX($K$21:$V$21,,MATCH($E92,Years,0)), 1/T$27),0) -> 0 | AI92: =IFERROR($H92*U92 *IF($E92<>"Nominal",INDEX($K$21:$V$21,,MATCH($F92,Years,0))/INDEX($K$21:$V$21,,MATCH($E92,Years,0)), 1/U$27),0) -> 0 | AJ92: =IFERROR($H92*V92 *IF($E92<>"Nominal",INDEX($K$21:$V$21,,MATCH($F92,Years,0))/INDEX($K$21:$V$21,,MATCH($E92,Years,0)), 1/V$27),0) -> 0 | AK92: 0 | AL92: 1 | AS92: 0 | AT92: 1 | AU92: 0 | AV92: 0 | AW92: 0 | AX92: 0 | AY92: 0 | BA92: 0 | BB92: 0 | BC92: 0 | BD92: 0 | BE92: 0 | BF92: 0 | BG92: 0 | BH92: 0 | BI92: 0 | BJ92: 0 | BK92: 0 | BL92: 0 | BM92: 0 | BO92: Substations - 0
A93: =A92 -> Equipment Costs | Insulator (16KN) | B93: Project Team Input | C93: $Millions | E93: 2026 | F93: 2026 | H93: 0 | I93: Substation switchbays | J93: =J92 -> Substations | P93: 0 | Q93: 1 | R93: 0 | S93: 0 | T93: 0 | U93: 0 | V93: 0 | W93: 1 | X93: 0 | Y93: =IFERROR($H93*K93 *IF($E93<>"Nominal",INDEX($K$21:$V$21,,MATCH($F93,Years,0))/INDEX($K$21:$V$21,,MATCH($E93,Years,0)), 1/K$27),0) -> 0 | Z93: =IFERROR($H93*L93 *IF($E93<>"Nominal",INDEX($K$21:$V$21,,MATCH($F93,Years,0))/INDEX($K$21:$V$21,,MATCH($E93,Years,0)), 1/L$27),0) -> 0 | AA93: =IFERROR($H93*M93 *IF($E93<>"Nominal",INDEX($K$21:$V$21,,MATCH($F93,Years,0))/INDEX($K$21:$V$21,,MATCH($E93,Years,0)), 1/M$27),0) -> 0 | AB93: =IFERROR($H93*N93 *IF($E93<>"Nominal",INDEX($K$21:$V$21,,MATCH($F93,Years,0))/INDEX($K$21:$V$21,,MATCH($E93,Years,0)), 1/N$27),0) -> 0 | AC93: =IFERROR($H93*O93 *IF($E93<>"Nominal",INDEX($K$21:$V$21,,MATCH($F93,Years,0))/INDEX($K$21:$V$21,,MATCH($E93,Years,0)), 1/O$27),0) -> 0 | AD93: =IFERROR($H93*P93 *IF($E93<>"Nominal",INDEX($K$21:$V$21,,MATCH($F93,Years,0))/INDEX($K$21:$V$21,,MATCH($E93,Years,0)), 1/P$27),0) -> 0 | AE93: =IFERROR($H93*Q93 *IF($E93<>"Nominal",INDEX($K$21:$V$21,,MATCH($F93,Years,0))/INDEX($K$21:$V$21,,MATCH($E93,Years,0)), 1/Q$27),0) -> 0 | AF93: =IFERROR($H93*R93 *IF($E93<>"Nominal",INDEX($K$21:$V$21,,MATCH($F93,Years,0))/INDEX($K$21:$V$21,,MATCH($E93,Years,0)), 1/R$27),0) -> 0 | AG93: =IFERROR($H93*S93 *IF($E93<>"Nominal",INDEX($K$21:$V$21,,MATCH($F93,Years,0))/INDEX($K$21:$V$21,,MATCH($E93,Years,0)), 1/S$27),0) -> 0 | AH93: =IFERROR($H93*T93 *IF($E93<>"Nominal",INDEX($K$21:$V$21,,MATCH($F93,Years,0))/INDEX($K$21:$V$21,,MATCH($E93,Years,0)), 1/T$27),0) -> 0 | AI93: =IFERROR($H93*U93 *IF($E93<>"Nominal",INDEX($K$21:$V$21,,MATCH($F93,Years,0))/INDEX($K$21:$V$21,,MATCH($E93,Years,0)), 1/U$27),0) -> 0 | AJ93: =IFERROR($H93*V93 *IF($E93<>"Nominal",INDEX($K$21:$V$21,,MATCH($F93,Years,0))/INDEX($K$21:$V$21,,MATCH($E93,Years,0)), 1/V$27),0) -> 0 | AK93: 0 | AL93: 1 | AS93: 0 | AT93: 1 | AU93: 0 | AV93: 0 | AW93: 0 | AX93: 0 | AY93: 0 | BA93: 0 | BB93: 0 | BC93: 0 | BD93: 0 | BE93: 0 | BF93: 0 | BG93: 0 | BH93: 0 | BI93: 0 | BJ93: 0 | BK93: 0 | BL93: 0 | BM93: 0 | BO93: Substations - Substation switchbays
A94: =A93 -> Equipment Costs | Insulator (16KN) | B94: Project Team Input | C94: $Millions | E94: 2026 | F94: 2026 | H94: 0 | I94: Substation power transformers | J94: =J93 -> Substations | P94: 0 | Q94: 1 | R94: 0 | S94: 0 | T94: 0 | U94: 0 | V94: 0 | W94: 1 | X94: 0 | Y94: =IFERROR($H94*K94 *IF($E94<>"Nominal",INDEX($K$21:$V$21,,MATCH($F94,Years,0))/INDEX($K$21:$V$21,,MATCH($E94,Years,0)), 1/K$27),0) -> 0 | Z94: =IFERROR($H94*L94 *IF($E94<>"Nominal",INDEX($K$21:$V$21,,MATCH($F94,Years,0))/INDEX($K$21:$V$21,,MATCH($E94,Years,0)), 1/L$27),0) -> 0 | AA94: =IFERROR($H94*M94 *IF($E94<>"Nominal",INDEX($K$21:$V$21,,MATCH($F94,Years,0))/INDEX($K$21:$V$21,,MATCH($E94,Years,0)), 1/M$27),0) -> 0 | AB94: =IFERROR($H94*N94 *IF($E94<>"Nominal",INDEX($K$21:$V$21,,MATCH($F94,Years,0))/INDEX($K$21:$V$21,,MATCH($E94,Years,0)), 1/N$27),0) -> 0 | AC94: =IFERROR($H94*O94 *IF($E94<>"Nominal",INDEX($K$21:$V$21,,MATCH($F94,Years,0))/INDEX($K$21:$V$21,,MATCH($E94,Years,0)), 1/O$27),0) -> 0 | AD94: =IFERROR($H94*P94 *IF($E94<>"Nominal",INDEX($K$21:$V$21,,MATCH($F94,Years,0))/INDEX($K$21:$V$21,,MATCH($E94,Years,0)), 1/P$27),0) -> 0 | AE94: =IFERROR($H94*Q94 *IF($E94<>"Nominal",INDEX($K$21:$V$21,,MATCH($F94,Years,0))/INDEX($K$21:$V$21,,MATCH($E94,Years,0)), 1/Q$27),0) -> 0 | AF94: =IFERROR($H94*R94 *IF($E94<>"Nominal",INDEX($K$21:$V$21,,MATCH($F94,Years,0))/INDEX($K$21:$V$21,,MATCH($E94,Years,0)), 1/R$27),0) -> 0 | AG94: =IFERROR($H94*S94 *IF($E94<>"Nominal",INDEX($K$21:$V$21,,MATCH($F94,Years,0))/INDEX($K$21:$V$21,,MATCH($E94,Years,0)), 1/S$27),0) -> 0 | AH94: =IFERROR($H94*T94 *IF($E94<>"Nominal",INDEX($K$21:$V$21,,MATCH($F94,Years,0))/INDEX($K$21:$V$21,,MATCH($E94,Years,0)), 1/T$27),0) -> 0 | AI94: =IFERROR($H94*U94 *IF($E94<>"Nominal",INDEX($K$21:$V$21,,MATCH($F94,Years,0))/INDEX($K$21:$V$21,,MATCH($E94,Years,0)), 1/U$27),0) -> 0 | AJ94: =IFERROR($H94*V94 *IF($E94<>"Nominal",INDEX($K$21:$V$21,,MATCH($F94,Years,0))/INDEX($K$21:$V$21,,MATCH($E94,Years,0)), 1/V$27),0) -> 0 | AK94: 0 | AL94: 1 | AS94: 0 | AT94: 1 | AU94: 0 | AV94: 0 | AW94: 0 | AX94: 0 | AY94: 0 | BA94: 0 | BB94: 0 | BC94: 0 | BD94: 0 | BE94: 0 | BF94: 0 | BG94: 0 | BH94: 0 | BI94: 0 | BJ94: 0 | BK94: 0 | BL94: 0 | BM94: 0 | BO94: Substations - Substation power transformers
A95: =A94 -> Equipment Costs | Insulator (16KN) | B95: Project Team Input | C95: $Millions | E95: 2026 | F95: 2026 | H95: 0.01396032799 | I95: Substation reactive plant | J95: =J94 -> Substations | P95: 0 | Q95: 1 | R95: 0 | S95: 0 | T95: 0 | U95: 0 | V95: 0 | W95: 1 | X95: 0 | Y95: =IFERROR($H95*K95 *IF($E95<>"Nominal",INDEX($K$21:$V$21,,MATCH($F95,Years,0))/INDEX($K$21:$V$21,,MATCH($E95,Years,0)), 1/K$27),0) -> 0 | Z95: =IFERROR($H95*L95 *IF($E95<>"Nominal",INDEX($K$21:$V$21,,MATCH($F95,Years,0))/INDEX($K$21:$V$21,,MATCH($E95,Years,0)), 1/L$27),0) -> 0 | AA95: =IFERROR($H95*M95 *IF($E95<>"Nominal",INDEX($K$21:$V$21,,MATCH($F95,Years,0))/INDEX($K$21:$V$21,,MATCH($E95,Years,0)), 1/M$27),0) -> 0 | AB95: =IFERROR($H95*N95 *IF($E95<>"Nominal",INDEX($K$21:$V$21,,MATCH($F95,Years,0))/INDEX($K$21:$V$21,,MATCH($E95,Years,0)), 1/N$27),0) -> 0 | AC95: =IFERROR($H95*O95 *IF($E95<>"Nominal",INDEX($K$21:$V$21,,MATCH($F95,Years,0))/INDEX($K$21:$V$21,,MATCH($E95,Years,0)), 1/O$27),0) -> 0 | AD95: =IFERROR($H95*P95 *IF($E95<>"Nominal",INDEX($K$21:$V$21,,MATCH($F95,Years,0))/INDEX($K$21:$V$21,,MATCH($E95,Years,0)), 1/P$27),0) -> 0 | AE95: =IFERROR($H95*Q95 *IF($E95<>"Nominal",INDEX($K$21:$V$21,,MATCH($F95,Years,0))/INDEX($K$21:$V$21,,MATCH($E95,Years,0)), 1/Q$27),0) -> 0.01396032799 | AF95: =IFERROR($H95*R95 *IF($E95<>"Nominal",INDEX($K$21:$V$21,,MATCH($F95,Years,0))/INDEX($K$21:$V$21,,MATCH($E95,Years,0)), 1/R$27),0) -> 0 | AG95: =IFERROR($H95*S95 *IF($E95<>"Nominal",INDEX($K$21:$V$21,,MATCH($F95,Years,0))/INDEX($K$21:$V$21,,MATCH($E95,Years,0)), 1/S$27),0) -> 0 | AH95: =IFERROR($H95*T95 *IF($E95<>"Nominal",INDEX($K$21:$V$21,,MATCH($F95,Years,0))/INDEX($K$21:$V$21,,MATCH($E95,Years,0)), 1/T$27),0) -> 0 | AI95: =IFERROR($H95*U95 *IF($E95<>"Nominal",INDEX($K$21:$V$21,,MATCH($F95,Years,0))/INDEX($K$21:$V$21,,MATCH($E95,Years,0)), 1/U$27),0) -> 0 | AJ95: =IFERROR($H95*V95 *IF($E95<>"Nominal",INDEX($K$21:$V$21,,MATCH($F95,Years,0))/INDEX($K$21:$V$21,,MATCH($E95,Years,0)), 1/V$27),0) -> 0 | AK95: 0.01396032799 | AL95: 1 | AS95: 0 | AT95: 1 | AU95: 0 | AV95: 0 | AW95: 0 | AX95: 0 | AY95: 0 | BA95: 0 | BB95: 0 | BC95: 0 | BD95: 0 | BE95: 0 | BF95: 0 | BG95: 0.01396032799 | BH95: 0 | BI95: 0 | BJ95: 0 | BK95: 0 | BL95: 0 | BM95: 0.01396032799 | BO95: Substations - Substation reactive plant
A96: Equipment Costs | Insulator (6KN) | B96: Project Team Input | C96: $Millions | E96: 2026 | F96: 2026 | H96: 0 | I96: 0 | J96: Substations | P96: 0 | Q96: 1 | R96: 0 | S96: 0 | T96: 0 | U96: 0 | V96: 0 | W96: 1 | X96: 0 | Y96: =IFERROR($H96*K96 *IF($E96<>"Nominal",INDEX($K$21:$V$21,,MATCH($F96,Years,0))/INDEX($K$21:$V$21,,MATCH($E96,Years,0)), 1/K$27),0) -> 0 | Z96: =IFERROR($H96*L96 *IF($E96<>"Nominal",INDEX($K$21:$V$21,,MATCH($F96,Years,0))/INDEX($K$21:$V$21,,MATCH($E96,Years,0)), 1/L$27),0) -> 0 | AA96: =IFERROR($H96*M96 *IF($E96<>"Nominal",INDEX($K$21:$V$21,,MATCH($F96,Years,0))/INDEX($K$21:$V$21,,MATCH($E96,Years,0)), 1/M$27),0) -> 0 | AB96: =IFERROR($H96*N96 *IF($E96<>"Nominal",INDEX($K$21:$V$21,,MATCH($F96,Years,0))/INDEX($K$21:$V$21,,MATCH($E96,Years,0)), 1/N$27),0) -> 0 | AC96: =IFERROR($H96*O96 *IF($E96<>"Nominal",INDEX($K$21:$V$21,,MATCH($F96,Years,0))/INDEX($K$21:$V$21,,MATCH($E96,Years,0)), 1/O$27),0) -> 0 | AD96: =IFERROR($H96*P96 *IF($E96<>"Nominal",INDEX($K$21:$V$21,,MATCH($F96,Years,0))/INDEX($K$21:$V$21,,MATCH($E96,Years,0)), 1/P$27),0) -> 0 | AE96: =IFERROR($H96*Q96 *IF($E96<>"Nominal",INDEX($K$21:$V$21,,MATCH($F96,Years,0))/INDEX($K$21:$V$21,,MATCH($E96,Years,0)), 1/Q$27),0) -> 0 | AF96: =IFERROR($H96*R96 *IF($E96<>"Nominal",INDEX($K$21:$V$21,,MATCH($F96,Years,0))/INDEX($K$21:$V$21,,MATCH($E96,Years,0)), 1/R$27),0) -> 0 | AG96: =IFERROR($H96*S96 *IF($E96<>"Nominal",INDEX($K$21:$V$21,,MATCH($F96,Years,0))/INDEX($K$21:$V$21,,MATCH($E96,Years,0)), 1/S$27),0) -> 0 | AH96: =IFERROR($H96*T96 *IF($E96<>"Nominal",INDEX($K$21:$V$21,,MATCH($F96,Years,0))/INDEX($K$21:$V$21,,MATCH($E96,Years,0)), 1/T$27),0) -> 0 | AI96: =IFERROR($H96*U96 *IF($E96<>"Nominal",INDEX($K$21:$V$21,,MATCH($F96,Years,0))/INDEX($K$21:$V$21,,MATCH($E96,Years,0)), 1/U$27),0) -> 0 | AJ96: =IFERROR($H96*V96 *IF($E96<>"Nominal",INDEX($K$21:$V$21,,MATCH($F96,Years,0))/INDEX($K$21:$V$21,,MATCH($E96,Years,0)), 1/V$27),0) -> 0 | AK96: 0 | AL96: 1 | AS96: 0 | AT96: 1 | AU96: 0 | AV96: 0 | AW96: 0 | AX96: 0 | AY96: 0 | BA96: 0 | BB96: 0 | BC96: 0 | BD96: 0 | BE96: 0 | BF96: 0 | BG96: 0 | BH96: 0 | BI96: 0 | BJ96: 0 | BK96: 0 | BL96: 0 | BM96: 0 | BO96: Substations - 0
A97: =A96 -> Equipment Costs | Insulator (6KN) | B97: Project Team Input | C97: $Millions | E97: 2026 | F97: 2026 | H97: 0 | I97: Substation switchbays | J97: =J96 -> Substations | P97: 0 | Q97: 1 | R97: 0 | S97: 0 | T97: 0 | U97: 0 | V97: 0 | W97: 1 | X97: 0 | Y97: =IFERROR($H97*K97 *IF($E97<>"Nominal",INDEX($K$21:$V$21,,MATCH($F97,Years,0))/INDEX($K$21:$V$21,,MATCH($E97,Years,0)), 1/K$27),0) -> 0 | Z97: =IFERROR($H97*L97 *IF($E97<>"Nominal",INDEX($K$21:$V$21,,MATCH($F97,Years,0))/INDEX($K$21:$V$21,,MATCH($E97,Years,0)), 1/L$27),0) -> 0 | AA97: =IFERROR($H97*M97 *IF($E97<>"Nominal",INDEX($K$21:$V$21,,MATCH($F97,Years,0))/INDEX($K$21:$V$21,,MATCH($E97,Years,0)), 1/M$27),0) -> 0 | AB97: =IFERROR($H97*N97 *IF($E97<>"Nominal",INDEX($K$21:$V$21,,MATCH($F97,Years,0))/INDEX($K$21:$V$21,,MATCH($E97,Years,0)), 1/N$27),0) -> 0 | AC97: =IFERROR($H97*O97 *IF($E97<>"Nominal",INDEX($K$21:$V$21,,MATCH($F97,Years,0))/INDEX($K$21:$V$21,,MATCH($E97,Years,0)), 1/O$27),0) -> 0 | AD97: =IFERROR($H97*P97 *IF($E97<>"Nominal",INDEX($K$21:$V$21,,MATCH($F97,Years,0))/INDEX($K$21:$V$21,,MATCH($E97,Years,0)), 1/P$27),0) -> 0 | AE97: =IFERROR($H97*Q97 *IF($E97<>"Nominal",INDEX($K$21:$V$21,,MATCH($F97,Years,0))/INDEX($K$21:$V$21,,MATCH($E97,Years,0)), 1/Q$27),0) -> 0 | AF97: =IFERROR($H97*R97 *IF($E97<>"Nominal",INDEX($K$21:$V$21,,MATCH($F97,Years,0))/INDEX($K$21:$V$21,,MATCH($E97,Years,0)), 1/R$27),0) -> 0 | AG97: =IFERROR($H97*S97 *IF($E97<>"Nominal",INDEX($K$21:$V$21,,MATCH($F97,Years,0))/INDEX($K$21:$V$21,,MATCH($E97,Years,0)), 1/S$27),0) -> 0 | AH97: =IFERROR($H97*T97 *IF($E97<>"Nominal",INDEX($K$21:$V$21,,MATCH($F97,Years,0))/INDEX($K$21:$V$21,,MATCH($E97,Years,0)), 1/T$27),0) -> 0 | AI97: =IFERROR($H97*U97 *IF($E97<>"Nominal",INDEX($K$21:$V$21,,MATCH($F97,Years,0))/INDEX($K$21:$V$21,,MATCH($E97,Years,0)), 1/U$27),0) -> 0 | AJ97: =IFERROR($H97*V97 *IF($E97<>"Nominal",INDEX($K$21:$V$21,,MATCH($F97,Years,0))/INDEX($K$21:$V$21,,MATCH($E97,Years,0)), 1/V$27),0) -> 0 | AK97: 0 | AL97: 1 | AS97: 0 | AT97: 1 | AU97: 0 | AV97: 0 | AW97: 0 | AX97: 0 | AY97: 0 | BA97: 0 | BB97: 0 | BC97: 0 | BD97: 0 | BE97: 0 | BF97: 0 | BG97: 0 | BH97: 0 | BI97: 0 | BJ97: 0 | BK97: 0 | BL97: 0 | BM97: 0 | BO97: =J97&" - "&I97 -> Substations - Substation switchbays
A98: =A97 -> Equipment Costs | Insulator (6KN) | B98: Project Team Input | C98: $Millions | E98: 2026 | F98: 2026 | H98: 0 | I98: Substation power transformers | J98: =J97 -> Substations | P98: 0 | Q98: 1 | R98: 0 | S98: 0 | T98: 0 | U98: 0 | V98: 0 | W98: 1 | X98: 0 | Y98: =IFERROR($H98*K98 *IF($E98<>"Nominal",INDEX($K$21:$V$21,,MATCH($F98,Years,0))/INDEX($K$21:$V$21,,MATCH($E98,Years,0)), 1/K$27),0) -> 0 | Z98: =IFERROR($H98*L98 *IF($E98<>"Nominal",INDEX($K$21:$V$21,,MATCH($F98,Years,0))/INDEX($K$21:$V$21,,MATCH($E98,Years,0)), 1/L$27),0) -> 0 | AA98: =IFERROR($H98*M98 *IF($E98<>"Nominal",INDEX($K$21:$V$21,,MATCH($F98,Years,0))/INDEX($K$21:$V$21,,MATCH($E98,Years,0)), 1/M$27),0) -> 0 | AB98: =IFERROR($H98*N98 *IF($E98<>"Nominal",INDEX($K$21:$V$21,,MATCH($F98,Years,0))/INDEX($K$21:$V$21,,MATCH($E98,Years,0)), 1/N$27),0) -> 0 | AC98: =IFERROR($H98*O98 *IF($E98<>"Nominal",INDEX($K$21:$V$21,,MATCH($F98,Years,0))/INDEX($K$21:$V$21,,MATCH($E98,Years,0)), 1/O$27),0) -> 0 | AD98: =IFERROR($H98*P98 *IF($E98<>"Nominal",INDEX($K$21:$V$21,,MATCH($F98,Years,0))/INDEX($K$21:$V$21,,MATCH($E98,Years,0)), 1/P$27),0) -> 0 | AE98: =IFERROR($H98*Q98 *IF($E98<>"Nominal",INDEX($K$21:$V$21,,MATCH($F98,Years,0))/INDEX($K$21:$V$21,,MATCH($E98,Years,0)), 1/Q$27),0) -> 0 | AF98: =IFERROR($H98*R98 *IF($E98<>"Nominal",INDEX($K$21:$V$21,,MATCH($F98,Years,0))/INDEX($K$21:$V$21,,MATCH($E98,Years,0)), 1/R$27),0) -> 0 | AG98: =IFERROR($H98*S98 *IF($E98<>"Nominal",INDEX($K$21:$V$21,,MATCH($F98,Years,0))/INDEX($K$21:$V$21,,MATCH($E98,Years,0)), 1/S$27),0) -> 0 | AH98: =IFERROR($H98*T98 *IF($E98<>"Nominal",INDEX($K$21:$V$21,,MATCH($F98,Years,0))/INDEX($K$21:$V$21,,MATCH($E98,Years,0)), 1/T$27),0) -> 0 | AI98: =IFERROR($H98*U98 *IF($E98<>"Nominal",INDEX($K$21:$V$21,,MATCH($F98,Years,0))/INDEX($K$21:$V$21,,MATCH($E98,Years,0)), 1/U$27),0) -> 0 | AJ98: =IFERROR($H98*V98 *IF($E98<>"Nominal",INDEX($K$21:$V$21,,MATCH($F98,Years,0))/INDEX($K$21:$V$21,,MATCH($E98,Years,0)), 1/V$27),0) -> 0 | AK98: 0 | AL98: 1 | AS98: 0 | AT98: 1 | AU98: 0 | AV98: 0 | AW98: 0 | AX98: 0 | AY98: 0 | BA98: 0 | BB98: 0 | BC98: 0 | BD98: 0 | BE98: 0 | BF98: 0 | BG98: 0 | BH98: 0 | BI98: 0 | BJ98: 0 | BK98: 0 | BL98: 0 | BM98: 0 | BO98: Substations - Substation power transformers
A99: =A98 -> Equipment Costs | Insulator (6KN) | B99: Project Team Input | C99: $Millions | E99: 2026 | F99: 2026 | H99: 0.01215568527 | I99: Substation reactive plant | J99: =J98 -> Substations | P99: 0 | Q99: 1 | R99: 0 | S99: 0 | T99: 0 | U99: 0 | V99: 0 | W99: 1 | X99: 0 | Y99: =IFERROR($H99*K99 *IF($E99<>"Nominal",INDEX($K$21:$V$21,,MATCH($F99,Years,0))/INDEX($K$21:$V$21,,MATCH($E99,Years,0)), 1/K$27),0) -> 0 | Z99: =IFERROR($H99*L99 *IF($E99<>"Nominal",INDEX($K$21:$V$21,,MATCH($F99,Years,0))/INDEX($K$21:$V$21,,MATCH($E99,Years,0)), 1/L$27),0) -> 0 | AA99: =IFERROR($H99*M99 *IF($E99<>"Nominal",INDEX($K$21:$V$21,,MATCH($F99,Years,0))/INDEX($K$21:$V$21,,MATCH($E99,Years,0)), 1/M$27),0) -> 0 | AB99: =IFERROR($H99*N99 *IF($E99<>"Nominal",INDEX($K$21:$V$21,,MATCH($F99,Years,0))/INDEX($K$21:$V$21,,MATCH($E99,Years,0)), 1/N$27),0) -> 0 | AC99: =IFERROR($H99*O99 *IF($E99<>"Nominal",INDEX($K$21:$V$21,,MATCH($F99,Years,0))/INDEX($K$21:$V$21,,MATCH($E99,Years,0)), 1/O$27),0) -> 0 | AD99: =IFERROR($H99*P99 *IF($E99<>"Nominal",INDEX($K$21:$V$21,,MATCH($F99,Years,0))/INDEX($K$21:$V$21,,MATCH($E99,Years,0)), 1/P$27),0) -> 0 | AE99: =IFERROR($H99*Q99 *IF($E99<>"Nominal",INDEX($K$21:$V$21,,MATCH($F99,Years,0))/INDEX($K$21:$V$21,,MATCH($E99,Years,0)), 1/Q$27),0) -> 0.01215568527 | AF99: =IFERROR($H99*R99 *IF($E99<>"Nominal",INDEX($K$21:$V$21,,MATCH($F99,Years,0))/INDEX($K$21:$V$21,,MATCH($E99,Years,0)), 1/R$27),0) -> 0 | AG99: =IFERROR($H99*S99 *IF($E99<>"Nominal",INDEX($K$21:$V$21,,MATCH($F99,Years,0))/INDEX($K$21:$V$21,,MATCH($E99,Years,0)), 1/S$27),0) -> 0 | AH99: =IFERROR($H99*T99 *IF($E99<>"Nominal",INDEX($K$21:$V$21,,MATCH($F99,Years,0))/INDEX($K$21:$V$21,,MATCH($E99,Years,0)), 1/T$27),0) -> 0 | AI99: =IFERROR($H99*U99 *IF($E99<>"Nominal",INDEX($K$21:$V$21,,MATCH($F99,Years,0))/INDEX($K$21:$V$21,,MATCH($E99,Years,0)), 1/U$27),0) -> 0 | AJ99: =IFERROR($H99*V99 *IF($E99<>"Nominal",INDEX($K$21:$V$21,,MATCH($F99,Years,0))/INDEX($K$21:$V$21,,MATCH($E99,Years,0)), 1/V$27),0) -> 0 | AK99: 0.01215568527 | AL99: 1 | AS99: 0 | AT99: 1 | AU99: 0 | AV99: 0 | AW99: 0 | AX99: 0 | AY99: 0 | BA99: 0 | BB99: 0 | BC99: 0 | BD99: 0 | BE99: 0 | BF99: 0 | BG99: 0.01215568527 | BH99: 0 | BI99: 0 | BJ99: 0 | BK99: 0 | BL99: 0 | BM99: 0.01215568527 | BO99: Substations - Substation reactive plant
A100: Equipment Costs | Insulator (6KN) (UH) | B100: Project Team Input | C100: $Millions | E100: 2026 | F100: 2026 | H100: 0 | I100: 0 | J100: Substations | P100: 0 | Q100: 1 | R100: 0 | S100: 0 | T100: 0 | U100: 0 | V100: 0 | W100: 1 | X100: 0 | Y100: =IFERROR($H100*K100 *IF($E100<>"Nominal",INDEX($K$21:$V$21,,MATCH($F100,Years,0))/INDEX($K$21:$V$21,,MATCH($E100,Years,0)), 1/K$27),0) -> 0 | Z100: =IFERROR($H100*L100 *IF($E100<>"Nominal",INDEX($K$21:$V$21,,MATCH($F100,Years,0))/INDEX($K$21:$V$21,,MATCH($E100,Years,0)), 1/L$27),0) -> 0 | AA100: =IFERROR($H100*M100 *IF($E100<>"Nominal",INDEX($K$21:$V$21,,MATCH($F100,Years,0))/INDEX($K$21:$V$21,,MATCH($E100,Years,0)), 1/M$27),0) -> 0 | AB100: =IFERROR($H100*N100 *IF($E100<>"Nominal",INDEX($K$21:$V$21,,MATCH($F100,Years,0))/INDEX($K$21:$V$21,,MATCH($E100,Years,0)), 1/N$27),0) -> 0 | AC100: =IFERROR($H100*O100 *IF($E100<>"Nominal",INDEX($K$21:$V$21,,MATCH($F100,Years,0))/INDEX($K$21:$V$21,,MATCH($E100,Years,0)), 1/O$27),0) -> 0 | AD100: =IFERROR($H100*P100 *IF($E100<>"Nominal",INDEX($K$21:$V$21,,MATCH($F100,Years,0))/INDEX($K$21:$V$21,,MATCH($E100,Years,0)), 1/P$27),0) -> 0 | AE100: =IFERROR($H100*Q100 *IF($E100<>"Nominal",INDEX($K$21:$V$21,,MATCH($F100,Years,0))/INDEX($K$21:$V$21,,MATCH($E100,Years,0)), 1/Q$27),0) -> 0 | AF100: =IFERROR($H100*R100 *IF($E100<>"Nominal",INDEX($K$21:$V$21,,MATCH($F100,Years,0))/INDEX($K$21:$V$21,,MATCH($E100,Years,0)), 1/R$27),0) -> 0 | AG100: =IFERROR($H100*S100 *IF($E100<>"Nominal",INDEX($K$21:$V$21,,MATCH($F100,Years,0))/INDEX($K$21:$V$21,,MATCH($E100,Years,0)), 1/S$27),0) -> 0 | AH100: =IFERROR($H100*T100 *IF($E100<>"Nominal",INDEX($K$21:$V$21,,MATCH($F100,Years,0))/INDEX($K$21:$V$21,,MATCH($E100,Years,0)), 1/T$27),0) -> 0 | AI100: =IFERROR($H100*U100 *IF($E100<>"Nominal",INDEX($K$21:$V$21,,MATCH($F100,Years,0))/INDEX($K$21:$V$21,,MATCH($E100,Years,0)), 1/U$27),0) -> 0 | AJ100: =IFERROR($H100*V100 *IF($E100<>"Nominal",INDEX($K$21:$V$21,,MATCH($F100,Years,0))/INDEX($K$21:$V$21,,MATCH($E100,Years,0)), 1/V$27),0) -> 0 | AK100: 0 | AL100: 1 | AS100: 0 | AT100: 1 | AU100: 0 | AV100: 0 | AW100: 0 | AX100: 0 | AY100: 0 | BA100: 0 | BB100: 0 | BC100: 0 | BD100: 0 | BE100: 0 | BF100: 0 | BG100: 0 | BH100: 0 | BI100: 0 | BJ100: 0 | BK100: 0 | BL100: 0 | BM100: 0 | BO100: Substations - 0
A101: =A100 -> Equipment Costs | Insulator (6KN) (UH) | B101: Project Team Input | C101: $Millions | E101: 2026 | F101: 2026 | H101: 0 | I101: Substation switchbays | J101: =J100 -> Substations | P101: 0 | Q101: 1 | R101: 0 | S101: 0 | T101: 0 | U101: 0 | V101: 0 | W101: 1 | X101: 0 | Y101: =IFERROR($H101*K101 *IF($E101<>"Nominal",INDEX($K$21:$V$21,,MATCH($F101,Years,0))/INDEX($K$21:$V$21,,MATCH($E101,Years,0)), 1/K$27),0) -> 0 | Z101: =IFERROR($H101*L101 *IF($E101<>"Nominal",INDEX($K$21:$V$21,,MATCH($F101,Years,0))/INDEX($K$21:$V$21,,MATCH($E101,Years,0)), 1/L$27),0) -> 0 | AA101: =IFERROR($H101*M101 *IF($E101<>"Nominal",INDEX($K$21:$V$21,,MATCH($F101,Years,0))/INDEX($K$21:$V$21,,MATCH($E101,Years,0)), 1/M$27),0) -> 0 | AB101: =IFERROR($H101*N101 *IF($E101<>"Nominal",INDEX($K$21:$V$21,,MATCH($F101,Years,0))/INDEX($K$21:$V$21,,MATCH($E101,Years,0)), 1/N$27),0) -> 0 | AC101: =IFERROR($H101*O101 *IF($E101<>"Nominal",INDEX($K$21:$V$21,,MATCH($F101,Years,0))/INDEX($K$21:$V$21,,MATCH($E101,Years,0)), 1/O$27),0) -> 0 | AD101: =IFERROR($H101*P101 *IF($E101<>"Nominal",INDEX($K$21:$V$21,,MATCH($F101,Years,0))/INDEX($K$21:$V$21,,MATCH($E101,Years,0)), 1/P$27),0) -> 0 | AE101: =IFERROR($H101*Q101 *IF($E101<>"Nominal",INDEX($K$21:$V$21,,MATCH($F101,Years,0))/INDEX($K$21:$V$21,,MATCH($E101,Years,0)), 1/Q$27),0) -> 0 | AF101: =IFERROR($H101*R101 *IF($E101<>"Nominal",INDEX($K$21:$V$21,,MATCH($F101,Years,0))/INDEX($K$21:$V$21,,MATCH($E101,Years,0)), 1/R$27),0) -> 0 | AG101: =IFERROR($H101*S101 *IF($E101<>"Nominal",INDEX($K$21:$V$21,,MATCH($F101,Years,0))/INDEX($K$21:$V$21,,MATCH($E101,Years,0)), 1/S$27),0) -> 0 | AH101: =IFERROR($H101*T101 *IF($E101<>"Nominal",INDEX($K$21:$V$21,,MATCH($F101,Years,0))/INDEX($K$21:$V$21,,MATCH($E101,Years,0)), 1/T$27),0) -> 0 | AI101: =IFERROR($H101*U101 *IF($E101<>"Nominal",INDEX($K$21:$V$21,,MATCH($F101,Years,0))/INDEX($K$21:$V$21,,MATCH($E101,Years,0)), 1/U$27),0) -> 0 | AJ101: =IFERROR($H101*V101 *IF($E101<>"Nominal",INDEX($K$21:$V$21,,MATCH($F101,Years,0))/INDEX($K$21:$V$21,,MATCH($E101,Years,0)), 1/V$27),0) -> 0 | AK101: 0 | AL101: 1 | AS101: 0 | AT101: 1 | AU101: 0 | AV101: 0 | AW101: 0 | AX101: 0 | AY101: 0 | BA101: 0 | BB101: 0 | BC101: 0 | BD101: 0 | BE101: 0 | BF101: 0 | BG101: 0 | BH101: 0 | BI101: 0 | BJ101: 0 | BK101: 0 | BL101: 0 | BM101: 0 | BO101: Substations - Substation switchbays
A102: =A101 -> Equipment Costs | Insulator (6KN) (UH) | B102: Project Team Input | C102: $Millions | E102: 2026 | F102: 2026 | H102: 0 | I102: Substation power transformers | J102: =J101 -> Substations | P102: 0 | Q102: 1 | R102: 0 | S102: 0 | T102: 0 | U102: 0 | V102: 0 | W102: 1 | X102: 0 | Y102: =IFERROR($H102*K102 *IF($E102<>"Nominal",INDEX($K$21:$V$21,,MATCH($F102,Years,0))/INDEX($K$21:$V$21,,MATCH($E102,Years,0)), 1/K$27),0) -> 0 | Z102: =IFERROR($H102*L102 *IF($E102<>"Nominal",INDEX($K$21:$V$21,,MATCH($F102,Years,0))/INDEX($K$21:$V$21,,MATCH($E102,Years,0)), 1/L$27),0) -> 0 | AA102: =IFERROR($H102*M102 *IF($E102<>"Nominal",INDEX($K$21:$V$21,,MATCH($F102,Years,0))/INDEX($K$21:$V$21,,MATCH($E102,Years,0)), 1/M$27),0) -> 0 | AB102: =IFERROR($H102*N102 *IF($E102<>"Nominal",INDEX($K$21:$V$21,,MATCH($F102,Years,0))/INDEX($K$21:$V$21,,MATCH($E102,Years,0)), 1/N$27),0) -> 0 | AC102: =IFERROR($H102*O102 *IF($E102<>"Nominal",INDEX($K$21:$V$21,,MATCH($F102,Years,0))/INDEX($K$21:$V$21,,MATCH($E102,Years,0)), 1/O$27),0) -> 0 | AD102: =IFERROR($H102*P102 *IF($E102<>"Nominal",INDEX($K$21:$V$21,,MATCH($F102,Years,0))/INDEX($K$21:$V$21,,MATCH($E102,Years,0)), 1/P$27),0) -> 0 | AE102: =IFERROR($H102*Q102 *IF($E102<>"Nominal",INDEX($K$21:$V$21,,MATCH($F102,Years,0))/INDEX($K$21:$V$21,,MATCH($E102,Years,0)), 1/Q$27),0) -> 0 | AF102: =IFERROR($H102*R102 *IF($E102<>"Nominal",INDEX($K$21:$V$21,,MATCH($F102,Years,0))/INDEX($K$21:$V$21,,MATCH($E102,Years,0)), 1/R$27),0) -> 0 | AG102: =IFERROR($H102*S102 *IF($E102<>"Nominal",INDEX($K$21:$V$21,,MATCH($F102,Years,0))/INDEX($K$21:$V$21,,MATCH($E102,Years,0)), 1/S$27),0) -> 0 | AH102: =IFERROR($H102*T102 *IF($E102<>"Nominal",INDEX($K$21:$V$21,,MATCH($F102,Years,0))/INDEX($K$21:$V$21,,MATCH($E102,Years,0)), 1/T$27),0) -> 0 | AI102: =IFERROR($H102*U102 *IF($E102<>"Nominal",INDEX($K$21:$V$21,,MATCH($F102,Years,0))/INDEX($K$21:$V$21,,MATCH($E102,Years,0)), 1/U$27),0) -> 0 | AJ102: =IFERROR($H102*V102 *IF($E102<>"Nominal",INDEX($K$21:$V$21,,MATCH($F102,Years,0))/INDEX($K$21:$V$21,,MATCH($E102,Years,0)), 1/V$27),0) -> 0 | AK102: 0 | AL102: 1 | AS102: 0 | AT102: 1 | AU102: 0 | AV102: 0 | AW102: 0 | AX102: 0 | AY102: 0 | BA102: 0 | BB102: 0 | BC102: 0 | BD102: 0 | BE102: 0 | BF102: 0 | BG102: 0 | BH102: 0 | BI102: 0 | BJ102: 0 | BK102: 0 | BL102: 0 | BM102: 0 | BO102: Substations - Substation power transformers
A103: =A102 -> Equipment Costs | Insulator (6KN) (UH) | B103: Project Team Input | C103: $Millions | E103: 2026 | F103: 2026 | H103: 0.004275154944 | I103: Substation reactive plant | J103: =J102 -> Substations | P103: 0 | Q103: 1 | R103: 0 | S103: 0 | T103: 0 | U103: 0 | V103: 0 | W103: 1 | X103: 0 | Y103: =IFERROR($H103*K103 *IF($E103<>"Nominal",INDEX($K$21:$V$21,,MATCH($F103,Years,0))/INDEX($K$21:$V$21,,MATCH($E103,Years,0)), 1/K$27),0) -> 0 | Z103: =IFERROR($H103*L103 *IF($E103<>"Nominal",INDEX($K$21:$V$21,,MATCH($F103,Years,0))/INDEX($K$21:$V$21,,MATCH($E103,Years,0)), 1/L$27),0) -> 0 | AA103: =IFERROR($H103*M103 *IF($E103<>"Nominal",INDEX($K$21:$V$21,,MATCH($F103,Years,0))/INDEX($K$21:$V$21,,MATCH($E103,Years,0)), 1/M$27),0) -> 0 | AB103: =IFERROR($H103*N103 *IF($E103<>"Nominal",INDEX($K$21:$V$21,,MATCH($F103,Years,0))/INDEX($K$21:$V$21,,MATCH($E103,Years,0)), 1/N$27),0) -> 0 | AC103: =IFERROR($H103*O103 *IF($E103<>"Nominal",INDEX($K$21:$V$21,,MATCH($F103,Years,0))/INDEX($K$21:$V$21,,MATCH($E103,Years,0)), 1/O$27),0) -> 0 | AD103: =IFERROR($H103*P103 *IF($E103<>"Nominal",INDEX($K$21:$V$21,,MATCH($F103,Years,0))/INDEX($K$21:$V$21,,MATCH($E103,Years,0)), 1/P$27),0) -> 0 | AE103: =IFERROR($H103*Q103 *IF($E103<>"Nominal",INDEX($K$21:$V$21,,MATCH($F103,Years,0))/INDEX($K$21:$V$21,,MATCH($E103,Years,0)), 1/Q$27),0) -> 0.004275154944 | AF103: =IFERROR($H103*R103 *IF($E103<>"Nominal",INDEX($K$21:$V$21,,MATCH($F103,Years,0))/INDEX($K$21:$V$21,,MATCH($E103,Years,0)), 1/R$27),0) -> 0 | AG103: =IFERROR($H103*S103 *IF($E103<>"Nominal",INDEX($K$21:$V$21,,MATCH($F103,Years,0))/INDEX($K$21:$V$21,,MATCH($E103,Years,0)), 1/S$27),0) -> 0 | AH103: =IFERROR($H103*T103 *IF($E103<>"Nominal",INDEX($K$21:$V$21,,MATCH($F103,Years,0))/INDEX($K$21:$V$21,,MATCH($E103,Years,0)), 1/T$27),0) -> 0 | AI103: =IFERROR($H103*U103 *IF($E103<>"Nominal",INDEX($K$21:$V$21,,MATCH($F103,Years,0))/INDEX($K$21:$V$21,,MATCH($E103,Years,0)), 1/U$27),0) -> 0 | AJ103: =IFERROR($H103*V103 *IF($E103<>"Nominal",INDEX($K$21:$V$21,,MATCH($F103,Years,0))/INDEX($K$21:$V$21,,MATCH($E103,Years,0)), 1/V$27),0) -> 0 | AK103: 0.004275154944 | AL103: 1 | AS103: 0 | AT103: 1 | AU103: 0 | AV103: 0 | AW103: 0 | AX103: 0 | AY103: 0 | BA103: 0 | BB103: 0 | BC103: 0 | BD103: 0 | BE103: 0 | BF103: 0 | BG103: 0.004275154944 | BH103: 0 | BI103: 0 | BJ103: 0 | BK103: 0 | BL103: 0 | BM103: 0.004275154944 | BO103: Substations - Substation reactive plant
BO104: -
A105: Land and Environment | BO105: -
A106: Property Costs | Easements - Augmentation | B106: Project Team Input | C106: $Millions | E106: 2026 | F106: =Report_Year -> 2026 | H106: 0 | I106: Other | J106: Land & Easements | P106: 0.2 | Q106: 0.8 | R106: 0 | S106: 0 | T106: 0 | U106: 0 | V106: 0 | W106: =SUM(K106:V106) -> 1 | X106: =IF(H106=0,0,IF(W106<>1,1,0)) -> 0 | Y106: =IFERROR($H106*K106 *IF($E106<>"Nominal",INDEX($K$21:$V$21,,MATCH($F106,Years,0))/INDEX($K$21:$V$21,,MATCH($E106,Years,0)), 1/K$27),0) -> 0 | Z106: =IFERROR($H106*L106 *IF($E106<>"Nominal",INDEX($K$21:$V$21,,MATCH($F106,Years,0))/INDEX($K$21:$V$21,,MATCH($E106,Years,0)), 1/L$27),0) -> 0 | AA106: =IFERROR($H106*M106 *IF($E106<>"Nominal",INDEX($K$21:$V$21,,MATCH($F106,Years,0))/INDEX($K$21:$V$21,,MATCH($E106,Years,0)), 1/M$27),0) -> 0 | AB106: =IFERROR($H106*N106 *IF($E106<>"Nominal",INDEX($K$21:$V$21,,MATCH($F106,Years,0))/INDEX($K$21:$V$21,,MATCH($E106,Years,0)), 1/N$27),0) -> 0 | AC106: =IFERROR($H106*O106 *IF($E106<>"Nominal",INDEX($K$21:$V$21,,MATCH($F106,Years,0))/INDEX($K$21:$V$21,,MATCH($E106,Years,0)), 1/O$27),0) -> 0 | AD106: 0 | AE106: 0 | AF106: 0 | AG106: =IFERROR($H106*S106 *IF($E106<>"Nominal",INDEX($K$21:$V$21,,MATCH($F106,Years,0))/INDEX($K$21:$V$21,,MATCH($E106,Years,0)), 1/S$27),0) -> 0 | AH106: =IFERROR($H106*T106 *IF($E106<>"Nominal",INDEX($K$21:$V$21,,MATCH($F106,Years,0))/INDEX($K$21:$V$21,,MATCH($E106,Years,0)), 1/T$27),0) -> 0 | AI106: =IFERROR($H106*U106 *IF($E106<>"Nominal",INDEX($K$21:$V$21,,MATCH($F106,Years,0))/INDEX($K$21:$V$21,,MATCH($E106,Years,0)), 1/U$27),0) -> 0 | AJ106: =IFERROR($H106*V106 *IF($E106<>"Nominal",INDEX($K$21:$V$21,,MATCH($F106,Years,0))/INDEX($K$21:$V$21,,MATCH($E106,Years,0)), 1/V$27),0) -> 0 | AK106: 0 | AL106: 0.1 | AS106: 0 | AT106: 1 | AU106: 0 | AV106: 0 | AW106: 0 | AX106: 0 | AY106: 0 | BA106: =$AK106*AN106 -> 0 | BB106: 0 | BC106: 0 | BD106: 0 | BE106: 0 | BF106: 0 | BG106: 0 | BH106: 0 | BI106: 0 | BJ106: 0 | BK106: 0 | BL106: 0 | BM106: [C-i-C] | BO106: Land & Easements - Other
A107: Property Costs | Easements - Transposition | B107: Project Team Input | C107: $Millions | E107: 2026 | F107: =Report_Year -> 2026 | H107: 0 | I107: Other | J107: Land & Easements | P107: 0.1175 | Q107: 0.6325 | R107: 0.25 | S107: 0 | T107: 0 | U107: 0 | V107: 0 | W107: =SUM(K107:V107) -> 1 | X107: =IF(H107=0,0,IF(W107<>1,1,0)) -> 0 | Y107: =IFERROR($H107*K107 *IF($E107<>"Nominal",INDEX($K$21:$V$21,,MATCH($F107,Years,0))/INDEX($K$21:$V$21,,MATCH($E107,Years,0)), 1/K$27),0) -> 0 | Z107: =IFERROR($H107*L107 *IF($E107<>"Nominal",INDEX($K$21:$V$21,,MATCH($F107,Years,0))/INDEX($K$21:$V$21,,MATCH($E107,Years,0)), 1/L$27),0) -> 0 | AA107: =IFERROR($H107*M107 *IF($E107<>"Nominal",INDEX($K$21:$V$21,,MATCH($F107,Years,0))/INDEX($K$21:$V$21,,MATCH($E107,Years,0)), 1/M$27),0) -> 0 | AB107: =IFERROR($H107*N107 *IF($E107<>"Nominal",INDEX($K$21:$V$21,,MATCH($F107,Years,0))/INDEX($K$21:$V$21,,MATCH($E107,Years,0)), 1/N$27),0) -> 0 | AC107: =IFERROR($H107*O107 *IF($E107<>"Nominal",INDEX($K$21:$V$21,,MATCH($F107,Years,0))/INDEX($K$21:$V$21,,MATCH($E107,Years,0)), 1/O$27),0) -> 0 | AD107: 0 | AE107: 0 | AF107: 0 | AG107: =IFERROR($H107*S107 *IF($E107<>"Nominal",INDEX($K$21:$V$21,,MATCH($F107,Years,0))/INDEX($K$21:$V$21,,MATCH($E107,Years,0)), 1/S$27),0) -> 0 | AH107: =IFERROR($H107*T107 *IF($E107<>"Nominal",INDEX($K$21:$V$21,,MATCH($F107,Years,0))/INDEX($K$21:$V$21,,MATCH($E107,Years,0)), 1/T$27),0) -> 0 | AI107: =IFERROR($H107*U107 *IF($E107<>"Nominal",INDEX($K$21:$V$21,,MATCH($F107,Years,0))/INDEX($K$21:$V$21,,MATCH($E107,Years,0)), 1/U$27),0) -> 0 | AJ107: =IFERROR($H107*V107 *IF($E107<>"Nominal",INDEX($K$21:$V$21,,MATCH($F107,Years,0))/INDEX($K$21:$V$21,,MATCH($E107,Years,0)), 1/V$27),0) -> 0 | AK107: 0 | AL107: 0.1 | AS107: 0 | AT107: 0 | AU107: 1 | AV107: 0 | AW107: 0 | AX107: 0 | AY107: 0 | BA107: 0 | BB107: 0 | BC107: 0 | BD107: 0 | BE107: 0 | BF107: 0 | BG107: 0 | BH107: 0 | BI107: 0 | BJ107: 0 | BK107: 0 | BL107: 0 | BM107: [C-i-C] | BO107: Land & Easements - Other
A108: Environment | Biodiversity Offsets | B108: Project Team Input | C108: $Millions | E108: 2026 | F108: =Report_Year -> 2026 | H108: 0 | I108: Biodiversity Offsets | J108: Biodiversity offsets - Stewardship sites | P108: 0 | Q108: 0.43 | R108: 0.22 | S108: 0.35 | T108: 0 | U108: 0 | V108: 0 | W108: =SUM(K108:V108) -> 1 | X108: =IF(H108=0,0,IF(W108<>1,1,0)) -> 0 | Y108: =IFERROR($H108*K108 *IF($E108<>"Nominal",INDEX($K$21:$V$21,,MATCH($F108,Years,0))/INDEX($K$21:$V$21,,MATCH($E108,Years,0)), 1/K$27),0) -> 0 | Z108: =IFERROR($H108*L108 *IF($E108<>"Nominal",INDEX($K$21:$V$21,,MATCH($F108,Years,0))/INDEX($K$21:$V$21,,MATCH($E108,Years,0)), 1/L$27),0) -> 0 | AA108: =IFERROR($H108*M108 *IF($E108<>"Nominal",INDEX($K$21:$V$21,,MATCH($F108,Years,0))/INDEX($K$21:$V$21,,MATCH($E108,Years,0)), 1/M$27),0) -> 0 | AB108: =IFERROR($H108*N108 *IF($E108<>"Nominal",INDEX($K$21:$V$21,,MATCH($F108,Years,0))/INDEX($K$21:$V$21,,MATCH($E108,Years,0)), 1/N$27),0) -> 0 | AC108: =IFERROR($H108*O108 *IF($E108<>"Nominal",INDEX($K$21:$V$21,,MATCH($F108,Years,0))/INDEX($K$21:$V$21,,MATCH($E108,Years,0)), 1/O$27),0) -> 0 | AD108: =IFERROR($H108*P108 *IF($E108<>"Nominal",INDEX($K$21:$V$21,,MATCH($F108,Years,0))/INDEX($K$21:$V$21,,MATCH($E108,Years,0)), 1/P$27),0) -> 0 | AE108: 0 | AF108: 0 | AG108: 0 | AH108: =IFERROR($H108*T108 *IF($E108<>"Nominal",INDEX($K$21:$V$21,,MATCH($F108,Years,0))/INDEX($K$21:$V$21,,MATCH($E108,Years,0)), 1/T$27),0) -> 0 | AI108: =IFERROR($H108*U108 *IF($E108<>"Nominal",INDEX($K$21:$V$21,,MATCH($F108,Years,0))/INDEX($K$21:$V$21,,MATCH($E108,Years,0)), 1/U$27),0) -> 0 | AJ108: =IFERROR($H108*V108 *IF($E108<>"Nominal",INDEX($K$21:$V$21,,MATCH($F108,Years,0))/INDEX($K$21:$V$21,,MATCH($E108,Years,0)), 1/V$27),0) -> 0 | AK108: 0 | AL108: 0.1 | AS108: 0 | AT108: 0.43 | AU108: 0.22 | AV108: 0.35 | AW108: 0 | AX108: 0 | AY108: 0 | BA108: =$AK108*AN108 -> 0 | BB108: 0 | BC108: 0 | BD108: 0 | BE108: 0 | BF108: 0 | BG108: 0 | BH108: 0 | BI108: 0 | BJ108: 0 | BK108: 0 | BL108: 0 | BM108: [C-i-C] | BO108: Biodiversity offsets - Stewardship sites - Biodiversity Offsets
A109: =A108 -> Environment | Biodiversity Offsets | B109: Project Team Input | C109: $Millions | E109: 2026 | F109: =Report_Year -> 2026 | H109: 0 | I109: Biodiversity Offsets | J109: Biodiversity offsets - Direct payments & Other costs | P109: 0 | Q109: 0.43 | R109: 0.22 | S109: 0.35 | T109: 0 | U109: 0 | V109: 0 | W109: =SUM(K109:V109) -> 1 | X109: =IF(H109=0,0,IF(W109<>1,1,0)) -> 0 | Y109: =IFERROR($H109*K109 *IF($E109<>"Nominal",INDEX($K$21:$V$21,,MATCH($F109,Years,0))/INDEX($K$21:$V$21,,MATCH($E109,Years,0)), 1/K$27),0) -> 0 | Z109: =IFERROR($H109*L109 *IF($E109<>"Nominal",INDEX($K$21:$V$21,,MATCH($F109,Years,0))/INDEX($K$21:$V$21,,MATCH($E109,Years,0)), 1/L$27),0) -> 0 | AA109: =IFERROR($H109*M109 *IF($E109<>"Nominal",INDEX($K$21:$V$21,,MATCH($F109,Years,0))/INDEX($K$21:$V$21,,MATCH($E109,Years,0)), 1/M$27),0) -> 0 | AB109: =IFERROR($H109*N109 *IF($E109<>"Nominal",INDEX($K$21:$V$21,,MATCH($F109,Years,0))/INDEX($K$21:$V$21,,MATCH($E109,Years,0)), 1/N$27),0) -> 0 | AC109: =IFERROR($H109*O109 *IF($E109<>"Nominal",INDEX($K$21:$V$21,,MATCH($F109,Years,0))/INDEX($K$21:$V$21,,MATCH($E109,Years,0)), 1/O$27),0) -> 0 | AD109: =IFERROR($H109*P109 *IF($E109<>"Nominal",INDEX($K$21:$V$21,,MATCH($F109,Years,0))/INDEX($K$21:$V$21,,MATCH($E109,Years,0)), 1/P$27),0) -> 0 | AE109: 0 | AF109: 0 | AG109: 0 | AH109: =IFERROR($H109*T109 *IF($E109<>"Nominal",INDEX($K$21:$V$21,,MATCH($F109,Years,0))/INDEX($K$21:$V$21,,MATCH($E109,Years,0)), 1/T$27),0) -> 0 | AI109: =IFERROR($H109*U109 *IF($E109<>"Nominal",INDEX($K$21:$V$21,,MATCH($F109,Years,0))/INDEX($K$21:$V$21,,MATCH($E109,Years,0)), 1/U$27),0) -> 0 | AJ109: =IFERROR($H109*V109 *IF($E109<>"Nominal",INDEX($K$21:$V$21,,MATCH($F109,Years,0))/INDEX($K$21:$V$21,,MATCH($E109,Years,0)), 1/V$27),0) -> 0 | AK109: 0 | AL109: 0.1 | AS109: 0 | AT109: 0.43 | AU109: 0.22 | AV109: 0.35 | AW109: 0 | AX109: 0 | AY109: 0 | BA109: 0 | BB109: 0 | BC109: 0 | BD109: 0 | BE109: 0 | BF109: 0 | BG109: 0 | BH109: 0 | BI109: 0 | BJ109: 0 | BK109: 0 | BL109: 0 | BM109: [C-i-C] | BO109: Biodiversity offsets - Direct payments & Other costs - Biodiversity Offsets
A110: Other construction costs | BO110: -
A111: Infrastructure Planner Fee - Other | B111: Commercial Team Input | C111: $Millions | E111: Nominal | F111: =Report_Year -> 2026 | H111: 3.271683495 | I111: Transmission towers | J111: Transmission Lines | P111: 0 | Q111: 0 | R111: 1 | S111: 0 | T111: 0 | U111: 0 | V111: 0 | W111: =SUM(K111:V111) -> 1 | X111: =IF(H111=0,0,IF(W111<>1,1,0)) -> 0 | Y111: =IFERROR($H111*K111 *IF($E111<>"Nominal",INDEX($K$21:$V$21,,MATCH($F111,Years,0))/INDEX($K$21:$V$21,,MATCH($E111,Years,0)), 1/K$27),0) -> 0 | Z111: =IFERROR($H111*L111 *IF($E111<>"Nominal",INDEX($K$21:$V$21,,MATCH($F111,Years,0))/INDEX($K$21:$V$21,,MATCH($E111,Years,0)), 1/L$27),0) -> 0 | AA111: =IFERROR($H111*M111 *IF($E111<>"Nominal",INDEX($K$21:$V$21,,MATCH($F111,Years,0))/INDEX($K$21:$V$21,,MATCH($E111,Years,0)), 1/M$27),0) -> 0 | AB111: =IFERROR($H111*N111 *IF($E111<>"Nominal",INDEX($K$21:$V$21,,MATCH($F111,Years,0))/INDEX($K$21:$V$21,,MATCH($E111,Years,0)), 1/N$27),0) -> 0 | AC111: =IFERROR($H111*O111 *IF($E111<>"Nominal",INDEX($K$21:$V$21,,MATCH($F111,Years,0))/INDEX($K$21:$V$21,,MATCH($E111,Years,0)), 1/O$27),0) -> 0 | AD111: =IFERROR($H111*P111 *IF($E111<>"Nominal",INDEX($K$21:$V$21,,MATCH($F111,Years,0))/INDEX($K$21:$V$21,,MATCH($E111,Years,0)), 1/P$27),0) -> 0 | AE111: =IFERROR($H111*Q111 *IF($E111<>"Nominal",INDEX($K$21:$V$21,,MATCH($F111,Years,0))/INDEX($K$21:$V$21,,MATCH($E111,Years,0)), 1/Q$27),0) -> 0 | AF111: =IFERROR($H111*R111 *IF($E111<>"Nominal",INDEX($K$21:$V$21,,MATCH($F111,Years,0))/INDEX($K$21:$V$21,,MATCH($E111,Years,0)), 1/R$27),0) -> 3.227136827 | AG111: =IFERROR($H111*S111 *IF($E111<>"Nominal",INDEX($K$21:$V$21,,MATCH($F111,Years,0))/INDEX($K$21:$V$21,,MATCH($E111,Years,0)), 1/S$27),0) -> 0 | AH111: =IFERROR($H111*T111 *IF($E111<>"Nominal",INDEX($K$21:$V$21,,MATCH($F111,Years,0))/INDEX($K$21:$V$21,,MATCH($E111,Years,0)), 1/T$27),0) -> 0 | AI111: =IFERROR($H111*U111 *IF($E111<>"Nominal",INDEX($K$21:$V$21,,MATCH($F111,Years,0))/INDEX($K$21:$V$21,,MATCH($E111,Years,0)), 1/U$27),0) -> 0 | AJ111: =IFERROR($H111*V111 *IF($E111<>"Nominal",INDEX($K$21:$V$21,,MATCH($F111,Years,0))/INDEX($K$21:$V$21,,MATCH($E111,Years,0)), 1/V$27),0) -> 0 | AK111: =SUM(Y111:AJ111) -> 3.227136827 | AL111: 1 | AS111: 0 | AT111: 0 | AU111: 1 | AV111: 0 | AW111: 0 | AX111: 0 | AY111: 0 | BA111: =$AK111*AN111 -> 0 | BB111: 0 | BC111: 0 | BD111: 0 | BE111: 0 | BF111: 0 | BG111: 0 | BH111: 3.227136827 | BI111: 0 | BJ111: 0 | BK111: 0 | BL111: 0 | BM111: =SUM(BA111:BL111) -> 3.227136827 | BO111: Transmission Lines - Transmission towers
A112: Infrastructure Planner Fee - Other | B112: Commercial Team Input | C112: $Millions | E112: Nominal | F112: =Report_Year -> 2026 | H112: 0.7446235365 | I112: Substation switchbays | J112: Substations | P112: 0 | Q112: 0 | R112: 1 | S112: 0 | T112: 0 | U112: 0 | V112: 0 | W112: =SUM(K112:V112) -> 1 | X112: =IF(H112=0,0,IF(W112<>1,1,0)) -> 0 | Y112: =IFERROR($H112*K112 *IF($E112<>"Nominal",INDEX($K$21:$V$21,,MATCH($F112,Years,0))/INDEX($K$21:$V$21,,MATCH($E112,Years,0)), 1/K$27),0) -> 0 | Z112: =IFERROR($H112*L112 *IF($E112<>"Nominal",INDEX($K$21:$V$21,,MATCH($F112,Years,0))/INDEX($K$21:$V$21,,MATCH($E112,Years,0)), 1/L$27),0) -> 0 | AA112: =IFERROR($H112*M112 *IF($E112<>"Nominal",INDEX($K$21:$V$21,,MATCH($F112,Years,0))/INDEX($K$21:$V$21,,MATCH($E112,Years,0)), 1/M$27),0) -> 0 | AB112: =IFERROR($H112*N112 *IF($E112<>"Nominal",INDEX($K$21:$V$21,,MATCH($F112,Years,0))/INDEX($K$21:$V$21,,MATCH($E112,Years,0)), 1/N$27),0) -> 0 | AC112: =IFERROR($H112*O112 *IF($E112<>"Nominal",INDEX($K$21:$V$21,,MATCH($F112,Years,0))/INDEX($K$21:$V$21,,MATCH($E112,Years,0)), 1/O$27),0) -> 0 | AD112: =IFERROR($H112*P112 *IF($E112<>"Nominal",INDEX($K$21:$V$21,,MATCH($F112,Years,0))/INDEX($K$21:$V$21,,MATCH($E112,Years,0)), 1/P$27),0) -> 0 | AE112: =IFERROR($H112*Q112 *IF($E112<>"Nominal",INDEX($K$21:$V$21,,MATCH($F112,Years,0))/INDEX($K$21:$V$21,,MATCH($E112,Years,0)), 1/Q$27),0) -> 0 | AF112: =IFERROR($H112*R112 *IF($E112<>"Nominal",INDEX($K$21:$V$21,,MATCH($F112,Years,0))/INDEX($K$21:$V$21,,MATCH($E112,Years,0)), 1/R$27),0) -> 0.734484873 | AG112: =IFERROR($H112*S112 *IF($E112<>"Nominal",INDEX($K$21:$V$21,,MATCH($F112,Years,0))/INDEX($K$21:$V$21,,MATCH($E112,Years,0)), 1/S$27),0) -> 0 | AH112: =IFERROR($H112*T112 *IF($E112<>"Nominal",INDEX($K$21:$V$21,,MATCH($F112,Years,0))/INDEX($K$21:$V$21,,MATCH($E112,Years,0)), 1/T$27),0) -> 0 | AI112: =IFERROR($H112*U112 *IF($E112<>"Nominal",INDEX($K$21:$V$21,,MATCH($F112,Years,0))/INDEX($K$21:$V$21,,MATCH($E112,Years,0)), 1/U$27),0) -> 0 | AJ112: =IFERROR($H112*V112 *IF($E112<>"Nominal",INDEX($K$21:$V$21,,MATCH($F112,Years,0))/INDEX($K$21:$V$21,,MATCH($E112,Years,0)), 1/V$27),0) -> 0 | AK112: =SUM(Y112:AJ112) -> 0.734484873 | AL112: 1 | AS112: 0 | AT112: 0 | AU112: 1 | AV112: 0 | AW112: 0 | AX112: 0 | AY112: 0 | BA112: 0 | BB112: 0 | BC112: 0 | BD112: 0 | BE112: 0 | BF112: 0 | BG112: 0 | BH112: 0.734484873 | BI112: 0 | BJ112: 0 | BK112: 0 | BL112: 0 | BM112: =SUM(BA112:BL112) -> 0.734484873 | BO112: Substations - Substation switchbays
A113: Infrastructure Planner Fee - Other | B113: Commercial Team Input | C113: $Millions | E113: Nominal | F113: =Report_Year -> 2026 | H113: 0.1632287415 | I113: Biodiversity Offsets | J113: Biodiversity offsets - Stewardship sites | P113: 0 | Q113: 0 | R113: 1 | S113: 0 | T113: 0 | U113: 0 | V113: 0 | W113: =SUM(K113:V113) -> 1 | X113: =IF(H113=0,0,IF(W113<>1,1,0)) -> 0 | Y113: =IFERROR($H113*K113 *IF($E113<>"Nominal",INDEX($K$21:$V$21,,MATCH($F113,Years,0))/INDEX($K$21:$V$21,,MATCH($E113,Years,0)), 1/K$27),0) -> 0 | Z113: =IFERROR($H113*L113 *IF($E113<>"Nominal",INDEX($K$21:$V$21,,MATCH($F113,Years,0))/INDEX($K$21:$V$21,,MATCH($E113,Years,0)), 1/L$27),0) -> 0 | AA113: =IFERROR($H113*M113 *IF($E113<>"Nominal",INDEX($K$21:$V$21,,MATCH($F113,Years,0))/INDEX($K$21:$V$21,,MATCH($E113,Years,0)), 1/M$27),0) -> 0 | AB113: =IFERROR($H113*N113 *IF($E113<>"Nominal",INDEX($K$21:$V$21,,MATCH($F113,Years,0))/INDEX($K$21:$V$21,,MATCH($E113,Years,0)), 1/N$27),0) -> 0 | AC113: =IFERROR($H113*O113 *IF($E113<>"Nominal",INDEX($K$21:$V$21,,MATCH($F113,Years,0))/INDEX($K$21:$V$21,,MATCH($E113,Years,0)), 1/O$27),0) -> 0 | AD113: =IFERROR($H113*P113 *IF($E113<>"Nominal",INDEX($K$21:$V$21,,MATCH($F113,Years,0))/INDEX($K$21:$V$21,,MATCH($E113,Years,0)), 1/P$27),0) -> 0 | AE113: =IFERROR($H113*Q113 *IF($E113<>"Nominal",INDEX($K$21:$V$21,,MATCH($F113,Years,0))/INDEX($K$21:$V$21,,MATCH($E113,Years,0)), 1/Q$27),0) -> 0 | AF113: =IFERROR($H113*R113 *IF($E113<>"Nominal",INDEX($K$21:$V$21,,MATCH($F113,Years,0))/INDEX($K$21:$V$21,,MATCH($E113,Years,0)), 1/R$27),0) -> 0.1610062475 | AG113: =IFERROR($H113*S113 *IF($E113<>"Nominal",INDEX($K$21:$V$21,,MATCH($F113,Years,0))/INDEX($K$21:$V$21,,MATCH($E113,Years,0)), 1/S$27),0) -> 0 | AH113: =IFERROR($H113*T113 *IF($E113<>"Nominal",INDEX($K$21:$V$21,,MATCH($F113,Years,0))/INDEX($K$21:$V$21,,MATCH($E113,Years,0)), 1/T$27),0) -> 0 | AI113: =IFERROR($H113*U113 *IF($E113<>"Nominal",INDEX($K$21:$V$21,,MATCH($F113,Years,0))/INDEX($K$21:$V$21,,MATCH($E113,Years,0)), 1/U$27),0) -> 0 | AJ113: =IFERROR($H113*V113 *IF($E113<>"Nominal",INDEX($K$21:$V$21,,MATCH($F113,Years,0))/INDEX($K$21:$V$21,,MATCH($E113,Years,0)), 1/V$27),0) -> 0 | AK113: =SUM(Y113:AJ113) -> 0.1610062475 | AL113: 1 | AS113: 0 | AT113: 0 | AU113: 1 | AV113: 0 | AW113: 0 | AX113: 0 | AY113: 0 | BA113: 0 | BB113: 0 | BC113: 0 | BD113: 0 | BE113: 0 | BF113: 0 | BG113: 0 | BH113: 0.1610062475 | BI113: 0 | BJ113: 0 | BK113: 0 | BL113: 0 | BM113: =SUM(BA113:BL113) -> 0.1610062475 | BO113: Biodiversity offsets - Stewardship sites - Biodiversity Offsets
A114: Infrastructure Planner Fee - Other | B114: Commercial Team Input | C114: $Millions | E114: Nominal | F114: 2026 | H114: 0.3910680283 | I114: Biodiversity Offsets | J114: Biodiversity offsets - Direct payments & Other costs | P114: 0 | Q114: 0 | R114: 1 | S114: 0 | T114: 0 | U114: 0 | V114: 0 | W114: =SUM(K114:V114) -> 1 | X114: =IF(H114=0,0,IF(W114<>1,1,0)) -> 0 | Y114: =IFERROR($H114*K114 *IF($E114<>"Nominal",INDEX($K$21:$V$21,,MATCH($F114,Years,0))/INDEX($K$21:$V$21,,MATCH($E114,Years,0)), 1/K$27),0) -> 0 | Z114: =IFERROR($H114*L114 *IF($E114<>"Nominal",INDEX($K$21:$V$21,,MATCH($F114,Years,0))/INDEX($K$21:$V$21,,MATCH($E114,Years,0)), 1/L$27),0) -> 0 | AA114: =IFERROR($H114*M114 *IF($E114<>"Nominal",INDEX($K$21:$V$21,,MATCH($F114,Years,0))/INDEX($K$21:$V$21,,MATCH($E114,Years,0)), 1/M$27),0) -> 0 | AB114: =IFERROR($H114*N114 *IF($E114<>"Nominal",INDEX($K$21:$V$21,,MATCH($F114,Years,0))/INDEX($K$21:$V$21,,MATCH($E114,Years,0)), 1/N$27),0) -> 0 | AC114: =IFERROR($H114*O114 *IF($E114<>"Nominal",INDEX($K$21:$V$21,,MATCH($F114,Years,0))/INDEX($K$21:$V$21,,MATCH($E114,Years,0)), 1/O$27),0) -> 0 | AD114: =IFERROR($H114*P114 *IF($E114<>"Nominal",INDEX($K$21:$V$21,,MATCH($F114,Years,0))/INDEX($K$21:$V$21,,MATCH($E114,Years,0)), 1/P$27),0) -> 0 | AE114: =IFERROR($H114*Q114 *IF($E114<>"Nominal",INDEX($K$21:$V$21,,MATCH($F114,Years,0))/INDEX($K$21:$V$21,,MATCH($E114,Years,0)), 1/Q$27),0) -> 0 | AF114: =IFERROR($H114*R114 *IF($E114<>"Nominal",INDEX($K$21:$V$21,,MATCH($F114,Years,0))/INDEX($K$21:$V$21,,MATCH($E114,Years,0)), 1/R$27),0) -> 0.3857433146 | AG114: =IFERROR($H114*S114 *IF($E114<>"Nominal",INDEX($K$21:$V$21,,MATCH($F114,Years,0))/INDEX($K$21:$V$21,,MATCH($E114,Years,0)), 1/S$27),0) -> 0 | AH114: =IFERROR($H114*T114 *IF($E114<>"Nominal",INDEX($K$21:$V$21,,MATCH($F114,Years,0))/INDEX($K$21:$V$21,,MATCH($E114,Years,0)), 1/T$27),0) -> 0 | AI114: =IFERROR($H114*U114 *IF($E114<>"Nominal",INDEX($K$21:$V$21,,MATCH($F114,Years,0))/INDEX($K$21:$V$21,,MATCH($E114,Years,0)), 1/U$27),0) -> 0 | AJ114: =IFERROR($H114*V114 *IF($E114<>"Nominal",INDEX($K$21:$V$21,,MATCH($F114,Years,0))/INDEX($K$21:$V$21,,MATCH($E114,Years,0)), 1/V$27),0) -> 0 | AK114: =SUM(Y114:AJ114) -> 0.3857433146 | AL114: 1 | AS114: 0 | AT114: 0 | AU114: 1 | AV114: 0 | AW114: 0 | AX114: 0 | AY114: 0 | BA114: 0 | BB114: 0 | BC114: 0 | BD114: 0 | BE114: 0 | BF114: 0 | BG114: 0 | BH114: 0.3857433146 | BI114: 0 | BJ114: 0 | BK114: 0 | BL114: 0 | BM114: =SUM(BA114:BL114) -> 0.3857433146 | BO114: Biodiversity offsets - Direct payments & Other costs - Biodiversity Offsets
A115: Infrastructure Planner Fee - Other | B115: Commercial Team Input | C115: $Millions | E115: Nominal | F115: 2026 | H115: 0.3293961983 | I115: SCADA, network control and protection systems | J115: Secondary System | P115: 0 | Q115: 0 | R115: 1 | S115: 0 | T115: 0 | U115: 0 | V115: 0 | W115: =SUM(K115:V115) -> 1 | X115: =IF(H115=0,0,IF(W115<>1,1,0)) -> 0 | Y115: =IFERROR($H115*K115 *IF($E115<>"Nominal",INDEX($K$21:$V$21,,MATCH($F115,Years,0))/INDEX($K$21:$V$21,,MATCH($E115,Years,0)), 1/K$27),0) -> 0 | Z115: =IFERROR($H115*L115 *IF($E115<>"Nominal",INDEX($K$21:$V$21,,MATCH($F115,Years,0))/INDEX($K$21:$V$21,,MATCH($E115,Years,0)), 1/L$27),0) -> 0 | AA115: =IFERROR($H115*M115 *IF($E115<>"Nominal",INDEX($K$21:$V$21,,MATCH($F115,Years,0))/INDEX($K$21:$V$21,,MATCH($E115,Years,0)), 1/M$27),0) -> 0 | AB115: =IFERROR($H115*N115 *IF($E115<>"Nominal",INDEX($K$21:$V$21,,MATCH($F115,Years,0))/INDEX($K$21:$V$21,,MATCH($E115,Years,0)), 1/N$27),0) -> 0 | AC115: =IFERROR($H115*O115 *IF($E115<>"Nominal",INDEX($K$21:$V$21,,MATCH($F115,Years,0))/INDEX($K$21:$V$21,,MATCH($E115,Years,0)), 1/O$27),0) -> 0 | AD115: =IFERROR($H115*P115 *IF($E115<>"Nominal",INDEX($K$21:$V$21,,MATCH($F115,Years,0))/INDEX($K$21:$V$21,,MATCH($E115,Years,0)), 1/P$27),0) -> 0 | AE115: =IFERROR($H115*Q115 *IF($E115<>"Nominal",INDEX($K$21:$V$21,,MATCH($F115,Years,0))/INDEX($K$21:$V$21,,MATCH($E115,Years,0)), 1/Q$27),0) -> 0 | AF115: =IFERROR($H115*R115 *IF($E115<>"Nominal",INDEX($K$21:$V$21,,MATCH($F115,Years,0))/INDEX($K$21:$V$21,,MATCH($E115,Years,0)), 1/R$27),0) -> 0.3249111974 | AG115: =IFERROR($H115*S115 *IF($E115<>"Nominal",INDEX($K$21:$V$21,,MATCH($F115,Years,0))/INDEX($K$21:$V$21,,MATCH($E115,Years,0)), 1/S$27),0) -> 0 | AH115: =IFERROR($H115*T115 *IF($E115<>"Nominal",INDEX($K$21:$V$21,,MATCH($F115,Years,0))/INDEX($K$21:$V$21,,MATCH($E115,Years,0)), 1/T$27),0) -> 0 | AI115: =IFERROR($H115*U115 *IF($E115<>"Nominal",INDEX($K$21:$V$21,,MATCH($F115,Years,0))/INDEX($K$21:$V$21,,MATCH($E115,Years,0)), 1/U$27),0) -> 0 | AJ115: =IFERROR($H115*V115 *IF($E115<>"Nominal",INDEX($K$21:$V$21,,MATCH($F115,Years,0))/INDEX($K$21:$V$21,,MATCH($E115,Years,0)), 1/V$27),0) -> 0 | AK115: =SUM(Y115:AJ115) -> 0.3249111974 | AL115: 1 | AS115: 0 | AT115: 0 | AU115: 1 | AV115: 0 | AW115: 0 | AX115: 0 | AY115: 0 | BA115: =$AK115*AN115 -> 0 | BB115: 0 | BC115: 0 | BD115: 0 | BE115: 0 | BF115: 0 | BG115: 0 | BH115: 0.3249111974 | BI115: 0 | BJ115: 0 | BK115: 0 | BL115: 0 | BM115: =SUM(BA115:BL115) -> 0.3249111974 | BO115: =J115&" - "&I115 -> Secondary System - SCADA, network control and protection systems
A116: Risk | Other Construction Cost | B116: Project Team Input | C116: $Millions | E116: Nominal | F116: 2026 | H116: 0 | I116: 0 | J116: Transmission Lines | P116: 0 | Q116: 0.0456 | R116: 0.3821 | S116: 0.4095 | T116: 0.1628 | U116: 0 | V116: 0 | W116: =SUM(K116:V116) -> 1 | X116: =IF(H116=0,0,IF(W116<>1,1,0)) -> 0 | Y116: =IFERROR($H116*K116 *IF($E116<>"Nominal",INDEX($K$21:$V$21,,MATCH($F116,Years,0))/INDEX($K$21:$V$21,,MATCH($E116,Years,0)), 1/K$27),0) -> 0 | Z116: =IFERROR($H116*L116 *IF($E116<>"Nominal",INDEX($K$21:$V$21,,MATCH($F116,Years,0))/INDEX($K$21:$V$21,,MATCH($E116,Years,0)), 1/L$27),0) -> 0 | AA116: =IFERROR($H116*M116 *IF($E116<>"Nominal",INDEX($K$21:$V$21,,MATCH($F116,Years,0))/INDEX($K$21:$V$21,,MATCH($E116,Years,0)), 1/M$27),0) -> 0 | AB116: =IFERROR($H116*N116 *IF($E116<>"Nominal",INDEX($K$21:$V$21,,MATCH($F116,Years,0))/INDEX($K$21:$V$21,,MATCH($E116,Years,0)), 1/N$27),0) -> 0 | AC116: =IFERROR($H116*O116 *IF($E116<>"Nominal",INDEX($K$21:$V$21,,MATCH($F116,Years,0))/INDEX($K$21:$V$21,,MATCH($E116,Years,0)), 1/O$27),0) -> 0 | AD116: =IFERROR($H116*P116 *IF($E116<>"Nominal",INDEX($K$21:$V$21,,MATCH($F116,Years,0))/INDEX($K$21:$V$21,,MATCH($E116,Years,0)), 1/P$27),0) -> 0 | AE116: =IFERROR($H116*Q116 *IF($E116<>"Nominal",INDEX($K$21:$V$21,,MATCH($F116,Years,0))/INDEX($K$21:$V$21,,MATCH($E116,Years,0)), 1/Q$27),0) -> 0 | AF116: =IFERROR($H116*R116 *IF($E116<>"Nominal",INDEX($K$21:$V$21,,MATCH($F116,Years,0))/INDEX($K$21:$V$21,,MATCH($E116,Years,0)), 1/R$27),0) -> 0 | AG116: =IFERROR($H116*S116 *IF($E116<>"Nominal",INDEX($K$21:$V$21,,MATCH($F116,Years,0))/INDEX($K$21:$V$21,,MATCH($E116,Years,0)), 1/S$27),0) -> 0 | AH116: =IFERROR($H116*T116 *IF($E116<>"Nominal",INDEX($K$21:$V$21,,MATCH($F116,Years,0))/INDEX($K$21:$V$21,,MATCH($E116,Years,0)), 1/T$27),0) -> 0 | AI116: =IFERROR($H116*U116 *IF($E116<>"Nominal",INDEX($K$21:$V$21,,MATCH($F116,Years,0))/INDEX($K$21:$V$21,,MATCH($E116,Years,0)), 1/U$27),0) -> 0 | AJ116: =IFERROR($H116*V116 *IF($E116<>"Nominal",INDEX($K$21:$V$21,,MATCH($F116,Years,0))/INDEX($K$21:$V$21,,MATCH($E116,Years,0)), 1/V$27),0) -> 0 | AK116: =SUM(Y116:AJ116) -> 0 | AL116: 0 | AS116: 0 | AT116: 0 | AU116: 0 | AV116: 0 | AW116: 1 | AX116: 0 | AY116: 0 | BA116: =$AK116*AN116 -> 0 | BB116: =$AK116*AO116 -> 0 | BC116: =$AK116*AP116 -> 0 | BD116: =$AK116*AQ116 -> 0 | BE116: =$AK116*AR116 -> 0 | BF116: =$AK116*AS116 -> 0 | BG116: =$AK116*AT116 -> 0 | BH116: =$AK116*AU116 -> 0 | BI116: =$AK116*AV116 -> 0 | BJ116: =$AK116*AW116 -> 0 | BK116: =$AK116*AX116 -> 0 | BL116: =$AK116*AY116 -> 0 | BM116: =SUM(BA116:BL116) -> 0 | BO116: Transmission Lines - 0
A117: =A116 -> Risk | Other Construction Cost | B117: Project Team Input | C117: $Millions | E117: Nominal | F117: 2026 | H117: 3.791351848 | I117: Transmission towers | J117: =J116 -> Transmission Lines | P117: 0 | Q117: 0.0456 | R117: 0.3821 | S117: 0.4095 | T117: 0.1628 | U117: 0 | V117: 0 | W117: 1 | X117: 0 | Y117: =IFERROR($H117*K117 *IF($E117<>"Nominal",INDEX($K$21:$V$21,,MATCH($F117,Years,0))/INDEX($K$21:$V$21,,MATCH($E117,Years,0)), 1/K$27),0) -> 0 | Z117: =IFERROR($H117*L117 *IF($E117<>"Nominal",INDEX($K$21:$V$21,,MATCH($F117,Years,0))/INDEX($K$21:$V$21,,MATCH($E117,Years,0)), 1/L$27),0) -> 0 | AA117: =IFERROR($H117*M117 *IF($E117<>"Nominal",INDEX($K$21:$V$21,,MATCH($F117,Years,0))/INDEX($K$21:$V$21,,MATCH($E117,Years,0)), 1/M$27),0) -> 0 | AB117: =IFERROR($H117*N117 *IF($E117<>"Nominal",INDEX($K$21:$V$21,,MATCH($F117,Years,0))/INDEX($K$21:$V$21,,MATCH($E117,Years,0)), 1/N$27),0) -> 0 | AC117: =IFERROR($H117*O117 *IF($E117<>"Nominal",INDEX($K$21:$V$21,,MATCH($F117,Years,0))/INDEX($K$21:$V$21,,MATCH($E117,Years,0)), 1/O$27),0) -> 0 | AD117: =IFERROR($H117*P117 *IF($E117<>"Nominal",INDEX($K$21:$V$21,,MATCH($F117,Years,0))/INDEX($K$21:$V$21,,MATCH($E117,Years,0)), 1/P$27),0) -> 0 | AE117: =IFERROR($H117*Q117 *IF($E117<>"Nominal",INDEX($K$21:$V$21,,MATCH($F117,Years,0))/INDEX($K$21:$V$21,,MATCH($E117,Years,0)), 1/Q$27),0) -> 0.1756300323 | AF117: =IFERROR($H117*R117 *IF($E117<>"Nominal",INDEX($K$21:$V$21,,MATCH($F117,Years,0))/INDEX($K$21:$V$21,,MATCH($E117,Years,0)), 1/R$27),0) -> 1.428950629 | AG117: =IFERROR($H117*S117 *IF($E117<>"Nominal",INDEX($K$21:$V$21,,MATCH($F117,Years,0))/INDEX($K$21:$V$21,,MATCH($E117,Years,0)), 1/S$27),0) -> 1.490000056 | AH117: =IFERROR($H117*T117 *IF($E117<>"Nominal",INDEX($K$21:$V$21,,MATCH($F117,Years,0))/INDEX($K$21:$V$21,,MATCH($E117,Years,0)), 1/T$27),0) -> 0.576340278 | AI117: =IFERROR($H117*U117 *IF($E117<>"Nominal",INDEX($K$21:$V$21,,MATCH($F117,Years,0))/INDEX($K$21:$V$21,,MATCH($E117,Years,0)), 1/U$27),0) -> 0 | AJ117: =IFERROR($H117*V117 *IF($E117<>"Nominal",INDEX($K$21:$V$21,,MATCH($F117,Years,0))/INDEX($K$21:$V$21,,MATCH($E117,Years,0)), 1/V$27),0) -> 0 | AK117: 3.670920995 | AL117: 0 | AS117: 0 | AT117: 0 | AU117: 0 | AV117: 0 | AW117: 1 | AX117: 0 | AY117: 0 | BA117: 0 | BB117: 0 | BC117: 0 | BD117: 0 | BE117: 0 | BF117: 0 | BG117: 0 | BH117: 0 | BI117: 0 | BJ117: 3.670920995 | BK117: 0 | BL117: 0 | BM117: 3.670920995 | BO117: Transmission Lines - Transmission towers
A118: =A117 -> Risk | Other Construction Cost | B118: Project Team Input | C118: $Millions | E118: Nominal | F118: 2026 | H118: 4.022951119 | I118: Transmission tower support structures | J118: =J117 -> Transmission Lines | P118: 0 | Q118: 0.0456 | R118: 0.3821 | S118: 0.4095 | T118: 0.1628 | U118: 0 | V118: 0 | W118: =SUM(K118:V118) -> 1 | X118: =IF(H118=0,0,IF(W118<>1,1,0)) -> 0 | Y118: =IFERROR($H118*K118 *IF($E118<>"Nominal",INDEX($K$21:$V$21,,MATCH($F118,Years,0))/INDEX($K$21:$V$21,,MATCH($E118,Years,0)), 1/K$27),0) -> 0 | Z118: =IFERROR($H118*L118 *IF($E118<>"Nominal",INDEX($K$21:$V$21,,MATCH($F118,Years,0))/INDEX($K$21:$V$21,,MATCH($E118,Years,0)), 1/L$27),0) -> 0 | AA118: =IFERROR($H118*M118 *IF($E118<>"Nominal",INDEX($K$21:$V$21,,MATCH($F118,Years,0))/INDEX($K$21:$V$21,,MATCH($E118,Years,0)), 1/M$27),0) -> 0 | AB118: =IFERROR($H118*N118 *IF($E118<>"Nominal",INDEX($K$21:$V$21,,MATCH($F118,Years,0))/INDEX($K$21:$V$21,,MATCH($E118,Years,0)), 1/N$27),0) -> 0 | AC118: =IFERROR($H118*O118 *IF($E118<>"Nominal",INDEX($K$21:$V$21,,MATCH($F118,Years,0))/INDEX($K$21:$V$21,,MATCH($E118,Years,0)), 1/O$27),0) -> 0 | AD118: =IFERROR($H118*P118 *IF($E118<>"Nominal",INDEX($K$21:$V$21,,MATCH($F118,Years,0))/INDEX($K$21:$V$21,,MATCH($E118,Years,0)), 1/P$27),0) -> 0 | AE118: =IFERROR($H118*Q118 *IF($E118<>"Nominal",INDEX($K$21:$V$21,,MATCH($F118,Years,0))/INDEX($K$21:$V$21,,MATCH($E118,Years,0)), 1/Q$27),0) -> 0.1863586033 | AF118: =IFERROR($H118*R118 *IF($E118<>"Nominal",INDEX($K$21:$V$21,,MATCH($F118,Years,0))/INDEX($K$21:$V$21,,MATCH($E118,Years,0)), 1/R$27),0) -> 1.51623979 | AG118: =IFERROR($H118*S118 *IF($E118<>"Nominal",INDEX($K$21:$V$21,,MATCH($F118,Years,0))/INDEX($K$21:$V$21,,MATCH($E118,Years,0)), 1/S$27),0) -> 1.581018495 | AH118: =IFERROR($H118*T118 *IF($E118<>"Nominal",INDEX($K$21:$V$21,,MATCH($F118,Years,0))/INDEX($K$21:$V$21,,MATCH($E118,Years,0)), 1/T$27),0) -> 0.6115467146 | AI118: =IFERROR($H118*U118 *IF($E118<>"Nominal",INDEX($K$21:$V$21,,MATCH($F118,Years,0))/INDEX($K$21:$V$21,,MATCH($E118,Years,0)), 1/U$27),0) -> 0 | AJ118: =IFERROR($H118*V118 *IF($E118<>"Nominal",INDEX($K$21:$V$21,,MATCH($F118,Years,0))/INDEX($K$21:$V$21,,MATCH($E118,Years,0)), 1/V$27),0) -> 0 | AK118: =SUM(Y118:AJ118) -> 3.895163603 | AL118: 0 | AS118: 0 | AT118: 0 | AU118: 0 | AV118: 0 | AW118: 1 | AX118: 0 | AY118: 0 | BA118: 0 | BB118: 0 | BC118: 0 | BD118: 0 | BE118: 0 | BF118: 0 | BG118: 0 | BH118: 0 | BI118: 0 | BJ118: 3.895163603 | BK118: 0 | BL118: 0 | BM118: 3.895163603 | BO118: Transmission Lines - Transmission tower support structures
A119: =A118 -> Risk | Other Construction Cost | B119: Project Team Input | C119: $Millions | E119: Nominal | F119: 2026 | H119: 2.037885192 | I119: Conductors | J119: =J118 -> Transmission Lines | P119: 0 | Q119: 0.0456 | R119: 0.3821 | S119: 0.4095 | T119: 0.1628 | U119: 0 | V119: 0 | W119: =SUM(K119:V119) -> 1 | X119: =IF(H119=0,0,IF(W119<>1,1,0)) -> 0 | Y119: =IFERROR($H119*K119 *IF($E119<>"Nominal",INDEX($K$21:$V$21,,MATCH($F119,Years,0))/INDEX($K$21:$V$21,,MATCH($E119,Years,0)), 1/K$27),0) -> 0 | Z119: =IFERROR($H119*L119 *IF($E119<>"Nominal",INDEX($K$21:$V$21,,MATCH($F119,Years,0))/INDEX($K$21:$V$21,,MATCH($E119,Years,0)), 1/L$27),0) -> 0 | AA119: =IFERROR($H119*M119 *IF($E119<>"Nominal",INDEX($K$21:$V$21,,MATCH($F119,Years,0))/INDEX($K$21:$V$21,,MATCH($E119,Years,0)), 1/M$27),0) -> 0 | AB119: =IFERROR($H119*N119 *IF($E119<>"Nominal",INDEX($K$21:$V$21,,MATCH($F119,Years,0))/INDEX($K$21:$V$21,,MATCH($E119,Years,0)), 1/N$27),0) -> 0 | AC119: =IFERROR($H119*O119 *IF($E119<>"Nominal",INDEX($K$21:$V$21,,MATCH($F119,Years,0))/INDEX($K$21:$V$21,,MATCH($E119,Years,0)), 1/O$27),0) -> 0 | AD119: =IFERROR($H119*P119 *IF($E119<>"Nominal",INDEX($K$21:$V$21,,MATCH($F119,Years,0))/INDEX($K$21:$V$21,,MATCH($E119,Years,0)), 1/P$27),0) -> 0 | AE119: =IFERROR($H119*Q119 *IF($E119<>"Nominal",INDEX($K$21:$V$21,,MATCH($F119,Years,0))/INDEX($K$21:$V$21,,MATCH($E119,Years,0)), 1/Q$27),0) -> 0.09440269763 | AF119: =IFERROR($H119*R119 *IF($E119<>"Nominal",INDEX($K$21:$V$21,,MATCH($F119,Years,0))/INDEX($K$21:$V$21,,MATCH($E119,Years,0)), 1/R$27),0) -> 0.7680736168 | AG119: =IFERROR($H119*S119 *IF($E119<>"Nominal",INDEX($K$21:$V$21,,MATCH($F119,Years,0))/INDEX($K$21:$V$21,,MATCH($E119,Years,0)), 1/S$27),0) -> 0.8008882245 | AH119: =IFERROR($H119*T119 *IF($E119<>"Nominal",INDEX($K$21:$V$21,,MATCH($F119,Years,0))/INDEX($K$21:$V$21,,MATCH($E119,Years,0)), 1/T$27),0) -> 0.3097880031 | AI119: =IFERROR($H119*U119 *IF($E119<>"Nominal",INDEX($K$21:$V$21,,MATCH($F119,Years,0))/INDEX($K$21:$V$21,,MATCH($E119,Years,0)), 1/U$27),0) -> 0 | AJ119: =IFERROR($H119*V119 *IF($E119<>"Nominal",INDEX($K$21:$V$21,,MATCH($F119,Years,0))/INDEX($K$21:$V$21,,MATCH($E119,Years,0)), 1/V$27),0) -> 0 | AK119: =SUM(Y119:AJ119) -> 1.973152542 | AL119: 0 | AS119: 0 | AT119: 0 | AU119: 0 | AV119: 0 | AW119: 1 | AX119: 0 | AY119: 0 | BA119: 0 | BB119: 0 | BC119: 0 | BD119: 0 | BE119: 0 | BF119: 0 | BG119: 0 | BH119: 0 | BI119: 0 | BJ119: 1.973152542 | BK119: 0 | BL119: 0 | BM119: 1.973152542 | BO119: Transmission Lines - Conductors
A120: =A119 -> Risk | Other Construction Cost | B120: Project Team Input | C120: $Millions | E120: Nominal | F120: 2026 | H120: 1.637058056 | I120: Substation switchbays | J120: Substations | P120: 0 | Q120: 0.0456 | R120: 0.3821 | S120: 0.4095 | T120: 0.1628 | U120: 0 | V120: 0 | W120: =SUM(K120:V120) -> 1 | X120: =IF(H120=0,0,IF(W120<>1,1,0)) -> 0 | Y120: =IFERROR($H120*K120 *IF($E120<>"Nominal",INDEX($K$21:$V$21,,MATCH($F120,Years,0))/INDEX($K$21:$V$21,,MATCH($E120,Years,0)), 1/K$27),0) -> 0 | Z120: =IFERROR($H120*L120 *IF($E120<>"Nominal",INDEX($K$21:$V$21,,MATCH($F120,Years,0))/INDEX($K$21:$V$21,,MATCH($E120,Years,0)), 1/L$27),0) -> 0 | AA120: =IFERROR($H120*M120 *IF($E120<>"Nominal",INDEX($K$21:$V$21,,MATCH($F120,Years,0))/INDEX($K$21:$V$21,,MATCH($E120,Years,0)), 1/M$27),0) -> 0 | AB120: =IFERROR($H120*N120 *IF($E120<>"Nominal",INDEX($K$21:$V$21,,MATCH($F120,Years,0))/INDEX($K$21:$V$21,,MATCH($E120,Years,0)), 1/N$27),0) -> 0 | AC120: =IFERROR($H120*O120 *IF($E120<>"Nominal",INDEX($K$21:$V$21,,MATCH($F120,Years,0))/INDEX($K$21:$V$21,,MATCH($E120,Years,0)), 1/O$27),0) -> 0 | AD120: =IFERROR($H120*P120 *IF($E120<>"Nominal",INDEX($K$21:$V$21,,MATCH($F120,Years,0))/INDEX($K$21:$V$21,,MATCH($E120,Years,0)), 1/P$27),0) -> 0 | AE120: =IFERROR($H120*Q120 *IF($E120<>"Nominal",INDEX($K$21:$V$21,,MATCH($F120,Years,0))/INDEX($K$21:$V$21,,MATCH($E120,Years,0)), 1/Q$27),0) -> 0.07583483963 | AF120: =IFERROR($H120*R120 *IF($E120<>"Nominal",INDEX($K$21:$V$21,,MATCH($F120,Years,0))/INDEX($K$21:$V$21,,MATCH($E120,Years,0)), 1/R$27),0) -> 0.6170029142 | AG120: =IFERROR($H120*S120 *IF($E120<>"Nominal",INDEX($K$21:$V$21,,MATCH($F120,Years,0))/INDEX($K$21:$V$21,,MATCH($E120,Years,0)), 1/S$27),0) -> 0.6433632892 | AH120: =IFERROR($H120*T120 *IF($E120<>"Nominal",INDEX($K$21:$V$21,,MATCH($F120,Years,0))/INDEX($K$21:$V$21,,MATCH($E120,Years,0)), 1/T$27),0) -> 0.2488564852 | AI120: =IFERROR($H120*U120 *IF($E120<>"Nominal",INDEX($K$21:$V$21,,MATCH($F120,Years,0))/INDEX($K$21:$V$21,,MATCH($E120,Years,0)), 1/U$27),0) -> 0 | AJ120: =IFERROR($H120*V120 *IF($E120<>"Nominal",INDEX($K$21:$V$21,,MATCH($F120,Years,0))/INDEX($K$21:$V$21,,MATCH($E120,Years,0)), 1/V$27),0) -> 0 | AK120: =SUM(Y120:AJ120) -> 1.585057528 | AL120: 0 | AS120: 0 | AT120: 0 | AU120: 0 | AV120: 0 | AW120: 1 | AX120: 0 | AY120: 0 | BA120: 0 | BB120: 0 | BC120: 0 | BD120: 0 | BE120: 0 | BF120: 0 | BG120: 0 | BH120: 0 | BI120: 0 | BJ120: 1.585057528 | BK120: 0 | BL120: 0 | BM120: 1.585057528 | BO120: Substations - Substation switchbays
A121: =A120 -> Risk | Other Construction Cost | B121: Project Team Input | C121: $Millions | E121: Nominal | F121: 2026 | H121: 1.194556786 | I121: Substation power transformers | J121: =J120 -> Substations | P121: 0 | Q121: 0.0456 | R121: 0.3821 | S121: 0.4095 | T121: 0.1628 | U121: 0 | V121: 0 | W121: 1 | X121: 0 | Y121: =IFERROR($H121*K121 *IF($E121<>"Nominal",INDEX($K$21:$V$21,,MATCH($F121,Years,0))/INDEX($K$21:$V$21,,MATCH($E121,Years,0)), 1/K$27),0) -> 0 | Z121: =IFERROR($H121*L121 *IF($E121<>"Nominal",INDEX($K$21:$V$21,,MATCH($F121,Years,0))/INDEX($K$21:$V$21,,MATCH($E121,Years,0)), 1/L$27),0) -> 0 | AA121: =IFERROR($H121*M121 *IF($E121<>"Nominal",INDEX($K$21:$V$21,,MATCH($F121,Years,0))/INDEX($K$21:$V$21,,MATCH($E121,Years,0)), 1/M$27),0) -> 0 | AB121: =IFERROR($H121*N121 *IF($E121<>"Nominal",INDEX($K$21:$V$21,,MATCH($F121,Years,0))/INDEX($K$21:$V$21,,MATCH($E121,Years,0)), 1/N$27),0) -> 0 | AC121: =IFERROR($H121*O121 *IF($E121<>"Nominal",INDEX($K$21:$V$21,,MATCH($F121,Years,0))/INDEX($K$21:$V$21,,MATCH($E121,Years,0)), 1/O$27),0) -> 0 | AD121: =IFERROR($H121*P121 *IF($E121<>"Nominal",INDEX($K$21:$V$21,,MATCH($F121,Years,0))/INDEX($K$21:$V$21,,MATCH($E121,Years,0)), 1/P$27),0) -> 0 | AE121: =IFERROR($H121*Q121 *IF($E121<>"Nominal",INDEX($K$21:$V$21,,MATCH($F121,Years,0))/INDEX($K$21:$V$21,,MATCH($E121,Years,0)), 1/Q$27),0) -> 0.05533647506 | AF121: =IFERROR($H121*R121 *IF($E121<>"Nominal",INDEX($K$21:$V$21,,MATCH($F121,Years,0))/INDEX($K$21:$V$21,,MATCH($E121,Years,0)), 1/R$27),0) -> 0.4502253389 | AG121: =IFERROR($H121*S121 *IF($E121<>"Nominal",INDEX($K$21:$V$21,,MATCH($F121,Years,0))/INDEX($K$21:$V$21,,MATCH($E121,Years,0)), 1/S$27),0) -> 0.4694604325 | AH121: =IFERROR($H121*T121 *IF($E121<>"Nominal",INDEX($K$21:$V$21,,MATCH($F121,Years,0))/INDEX($K$21:$V$21,,MATCH($E121,Years,0)), 1/T$27),0) -> 0.1815898966 | AI121: =IFERROR($H121*U121 *IF($E121<>"Nominal",INDEX($K$21:$V$21,,MATCH($F121,Years,0))/INDEX($K$21:$V$21,,MATCH($E121,Years,0)), 1/U$27),0) -> 0 | AJ121: =IFERROR($H121*V121 *IF($E121<>"Nominal",INDEX($K$21:$V$21,,MATCH($F121,Years,0))/INDEX($K$21:$V$21,,MATCH($E121,Years,0)), 1/V$27),0) -> 0 | AK121: 1.156612143 | AL121: 0 | AS121: 0 | AT121: 0 | AU121: 0 | AV121: 0 | AW121: 1 | AX121: 0 | AY121: 0 | BA121: 0 | BB121: 0 | BC121: 0 | BD121: 0 | BE121: 0 | BF121: 0 | BG121: 0 | BH121: 0 | BI121: 0 | BJ121: 1.156612143 | BK121: 0 | BL121: 0 | BM121: 1.156612143 | BO121: Substations - Substation power transformers
H123: 258.2691378 | I123: ◄ Notional sum with various dollar basis for cross check only | X123: Total Direct Non Labour | Y123: 0 | Z123: 0 | AA123: 0 | AB123: 0 | AC123: 0 | AD123: 8.330881448 | AE123: 47.52259611 | AF123: 110.9279759 | AG123: 80.49414048 | AH123: 6.783403396 | AI123: 0 | AJ123: 0 | AK123: 254.0589974 | BA123: 0 | BB123: 0 | BC123: 0 | BD123: 0 | BE123: 0 | BF123: 0 | BG123: 21.53813641 | BH123: 93.50779828 | BI123: 121.6764329 | BJ123: 17.33662978 | BK123: 0 | BL123: 0 | BM123: 254.0589974
H124: 0 | W124: =IF(SUM(X39:X121)=0,0,1) -> 0
A125: Direct Non-Labour Costs | By Capex Category | Y125: ="Expenditure by Cost Category - As incurred (June "&F39&" dollars)" -> Expenditure by Cost Category - As incurred (June 2026 dollars) | BA125: ="Expenditure - As Commissioned - by Cost Category (June "&F39&" dollars)" -> Expenditure - As Commissioned - by Cost Category (June 2026 dollars)
A126: Category | B126: RAB Asset class | C126: Source | D126: Units | Y126: =K$37 -> 2020 | Z126: 2021 | AA126: 2022 | AB126: 2023 | AC126: 2024 | AD126: 2025 | AE126: 2026 | AF126: 2027 | AG126: 2028 | AH126: 2029 | AI126: 2030 | AJ126: 2031 | AK126: Total | BA126: =AN$37 -> 2020 | BB126: =AO$37 -> 2021 | BC126: 2022 | BD126: 2023 | BE126: 2024 | BF126: 2025 | BG126: 2026 | BH126: 2027 | BI126: 2028 | BJ126: 2029 | BK126: 2030 | BL126: 2031 | BM126: Total
A127: =A242 -> Transmission Lines - Transmission Towers | B127: =B242 -> Transmission Lines | C127: Calculated | D127: $Millions | Y127: =SUM(Y$39:Y$121*($BO$39:$BO$121=$A127)) -> 0 | Z127: =SUM(Z$39:Z$121*($BO$39:$BO$121=$A127)) -> 0 | AA127: =SUM(AA$39:AA$121*($BO$39:$BO$121=$A127)) -> 0 | AB127: =SUM(AB$39:AB$121*($BO$39:$BO$121=$A127)) -> 0 | AC127: =SUM(AC$39:AC$121*($BO$39:$BO$121=$A127)) -> 0 | AD127: =SUM(AD$39:AD$121*($BO$39:$BO$121=$A127)) -> 0 | AE127: =SUM(AE$39:AE$121*($BO$39:$BO$121=$A127)) -> 0.1756300323 | AF127: =SUM(AF$39:AF$121*($BO$39:$BO$121=$A127)) -> 4.656087456 | AG127: =SUM(AG$39:AG$121*($BO$39:$BO$121=$A127)) -> 1.490000056 | AH127: =SUM(AH$39:AH$121*($BO$39:$BO$121=$A127)) -> 0.576340278 | AI127: =SUM(AI$39:AI$121*($BO$39:$BO$121=$A127)) -> 0 | AJ127: =SUM(AJ$39:AJ$121*($BO$39:$BO$121=$A127)) -> 0 | AK127: =SUM(Y127:AJ127) -> 6.898057822 | BA127: =SUM(BA$39:BA$121*($BO$39:$BO$121=$A127)) -> 0 | BB127: =SUM(BB$39:BB$121*($BO$39:$BO$121=$A127)) -> 0 | BC127: =SUM(BC$39:BC$121*($BO$39:$BO$121=$A127)) -> 0 | BD127: =SUM(BD$39:BD$121*($BO$39:$BO$121=$A127)) -> 0 | BE127: =SUM(BE$39:BE$121*($BO$39:$BO$121=$A127)) -> 0 | BF127: =SUM(BF$39:BF$121*($BO$39:$BO$121=$A127)) -> 0 | BG127: =SUM(BG$39:BG$121*($BO$39:$BO$121=$A127)) -> 0 | BH127: =SUM(BH$39:BH$121*($BO$39:$BO$121=$A127)) -> 3.227136827 | BI127: =SUM(BI$39:BI$121*($BO$39:$BO$121=$A127)) -> 0 | BJ127: =SUM(BJ$39:BJ$121*($BO$39:$BO$121=$A127)) -> 3.670920995 | BK127: =SUM(BK$39:BK$121*($BO$39:$BO$121=$A127)) -> 0 | BL127: =SUM(BL$39:BL$121*($BO$39:$BO$121=$A127)) -> 0 | BM127: =SUM(BA127:BL127) -> 6.898057822
A128: Transmission Lines - Transmission tower support structures | B128: Transmission Lines | C128: Calculated | D128: $Millions | Y128: =SUM(Y$39:Y$121*($BO$39:$BO$121=$A128)) -> 0 | Z128: =SUM(Z$39:Z$121*($BO$39:$BO$121=$A128)) -> 0 | AA128: =SUM(AA$39:AA$121*($BO$39:$BO$121=$A128)) -> 0 | AB128: =SUM(AB$39:AB$121*($BO$39:$BO$121=$A128)) -> 0 | AC128: =SUM(AC$39:AC$121*($BO$39:$BO$121=$A128)) -> 0 | AD128: =SUM(AD$39:AD$121*($BO$39:$BO$121=$A128)) -> 0 | AE128: =SUM(AE$39:AE$121*($BO$39:$BO$121=$A128)) -> 0.1863586033 | AF128: =SUM(AF$39:AF$121*($BO$39:$BO$121=$A128)) -> 1.51623979 | AG128: =SUM(AG$39:AG$121*($BO$39:$BO$121=$A128)) -> 1.581018495 | AH128: =SUM(AH$39:AH$121*($BO$39:$BO$121=$A128)) -> 0.6115467146 | AI128: =SUM(AI$39:AI$121*($BO$39:$BO$121=$A128)) -> 0 | AJ128: =SUM(AJ$39:AJ$121*($BO$39:$BO$121=$A128)) -> 0 | AK128: =SUM(Y128:AJ128) -> 3.895163603 | BA128: =SUM(BA$39:BA$121*($BO$39:$BO$121=$A128)) -> 0 | BB128: =SUM(BB$39:BB$121*($BO$39:$BO$121=$A128)) -> 0 | BC128: =SUM(BC$39:BC$121*($BO$39:$BO$121=$A128)) -> 0 | BD128: =SUM(BD$39:BD$121*($BO$39:$BO$121=$A128)) -> 0 | BE128: =SUM(BE$39:BE$121*($BO$39:$BO$121=$A128)) -> 0 | BF128: =SUM(BF$39:BF$121*($BO$39:$BO$121=$A128)) -> 0 | BG128: =SUM(BG$39:BG$121*($BO$39:$BO$121=$A128)) -> 0 | BH128: =SUM(BH$39:BH$121*($BO$39:$BO$121=$A128)) -> 0 | BI128: =SUM(BI$39:BI$121*($BO$39:$BO$121=$A128)) -> 0 | BJ128: =SUM(BJ$39:BJ$121*($BO$39:$BO$121=$A128)) -> 3.895163603 | BK128: =SUM(BK$39:BK$121*($BO$39:$BO$121=$A128)) -> 0 | BL128: =SUM(BL$39:BL$121*($BO$39:$BO$121=$A128)) -> 0 | BM128: =SUM(BA128:BL128) -> 3.895163603
A129: Transmission Lines - Conductors | B129: Transmission Lines | C129: Calculated | D129: $Millions | Y129: =SUM(Y$39:Y$121*($BO$39:$BO$121=$A129)) -> 0 | Z129: =SUM(Z$39:Z$121*($BO$39:$BO$121=$A129)) -> 0 | AA129: =SUM(AA$39:AA$121*($BO$39:$BO$121=$A129)) -> 0 | AB129: =SUM(AB$39:AB$121*($BO$39:$BO$121=$A129)) -> 0 | AC129: =SUM(AC$39:AC$121*($BO$39:$BO$121=$A129)) -> 0 | AD129: =SUM(AD$39:AD$121*($BO$39:$BO$121=$A129)) -> 0 | AE129: =SUM(AE$39:AE$121*($BO$39:$BO$121=$A129)) -> 0.09440269763 | AF129: =SUM(AF$39:AF$121*($BO$39:$BO$121=$A129)) -> 0.7680736168 | AG129: =SUM(AG$39:AG$121*($BO$39:$BO$121=$A129)) -> 0.8008882245 | AH129: =SUM(AH$39:AH$121*($BO$39:$BO$121=$A129)) -> 0.3097880031 | AI129: =SUM(AI$39:AI$121*($BO$39:$BO$121=$A129)) -> 0 | AJ129: =SUM(AJ$39:AJ$121*($BO$39:$BO$121=$A129)) -> 0 | AK129: 1.973152542 | BA129: =SUM(BA$39:BA$121*($BO$39:$BO$121=$A129)) -> 0 | BB129: =SUM(BB$39:BB$121*($BO$39:$BO$121=$A129)) -> 0 | BC129: =SUM(BC$39:BC$121*($BO$39:$BO$121=$A129)) -> 0 | BD129: =SUM(BD$39:BD$121*($BO$39:$BO$121=$A129)) -> 0 | BE129: =SUM(BE$39:BE$121*($BO$39:$BO$121=$A129)) -> 0 | BF129: =SUM(BF$39:BF$121*($BO$39:$BO$121=$A129)) -> 0 | BG129: =SUM(BG$39:BG$121*($BO$39:$BO$121=$A129)) -> 0 | BH129: =SUM(BH$39:BH$121*($BO$39:$BO$121=$A129)) -> 0 | BI129: =SUM(BI$39:BI$121*($BO$39:$BO$121=$A129)) -> 0 | BJ129: =SUM(BJ$39:BJ$121*($BO$39:$BO$121=$A129)) -> 1.973152542 | BK129: =SUM(BK$39:BK$121*($BO$39:$BO$121=$A129)) -> 0 | BL129: =SUM(BL$39:BL$121*($BO$39:$BO$121=$A129)) -> 0 | BM129: =SUM(BA129:BL129) -> 1.973152542
A130: Transmission Lines - Other non network | B130: Transmission Line Life Extension | C130: Calculated | D130: $Millions | Y130: =SUM(Y$39:Y$121*($BO$39:$BO$121=$A130)) -> 0 | Z130: =SUM(Z$39:Z$121*($BO$39:$BO$121=$A130)) -> 0 | AA130: =SUM(AA$39:AA$121*($BO$39:$BO$121=$A130)) -> 0 | AB130: =SUM(AB$39:AB$121*($BO$39:$BO$121=$A130)) -> 0 | AC130: =SUM(AC$39:AC$121*($BO$39:$BO$121=$A130)) -> 0 | AD130: =SUM(AD$39:AD$121*($BO$39:$BO$121=$A130)) -> 0 | AE130: =SUM(AE$39:AE$121*($BO$39:$BO$121=$A130)) -> 0 | AF130: =SUM(AF$39:AF$121*($BO$39:$BO$121=$A130)) -> 0 | AG130: =SUM(AG$39:AG$121*($BO$39:$BO$121=$A130)) -> 0 | AH130: =SUM(AH$39:AH$121*($BO$39:$BO$121=$A130)) -> 0 | AI130: =SUM(AI$39:AI$121*($BO$39:$BO$121=$A130)) -> 0 | AJ130: =SUM(AJ$39:AJ$121*($BO$39:$BO$121=$A130)) -> 0 | AK130: =SUM(Y130:AJ130) -> 0 | BA130: =SUM(BA$39:BA$121*($BO$39:$BO$121=$A130)) -> 0 | BB130: =SUM(BB$39:BB$121*($BO$39:$BO$121=$A130)) -> 0 | BC130: =SUM(BC$39:BC$121*($BO$39:$BO$121=$A130)) -> 0 | BD130: =SUM(BD$39:BD$121*($BO$39:$BO$121=$A130)) -> 0 | BE130: =SUM(BE$39:BE$121*($BO$39:$BO$121=$A130)) -> 0 | BF130: =SUM(BF$39:BF$121*($BO$39:$BO$121=$A130)) -> 0 | BG130: =SUM(BG$39:BG$121*($BO$39:$BO$121=$A130)) -> 0 | BH130: =SUM(BH$39:BH$121*($BO$39:$BO$121=$A130)) -> 0 | BI130: =SUM(BI$39:BI$121*($BO$39:$BO$121=$A130)) -> 0 | BJ130: =SUM(BJ$39:BJ$121*($BO$39:$BO$121=$A130)) -> 0 | BK130: =SUM(BK$39:BK$121*($BO$39:$BO$121=$A130)) -> 0 | BL130: =SUM(BL$39:BL$121*($BO$39:$BO$121=$A130)) -> 0 | BM130: =SUM(BA130:BL130) -> 0
A131: Transmission Lines - Transmission cables | B131: Underground Cables | C131: Calculated | D131: $Millions | Y131: =SUM(Y$39:Y$121*($BO$39:$BO$121=$A131)) -> 0 | Z131: =SUM(Z$39:Z$121*($BO$39:$BO$121=$A131)) -> 0 | AA131: =SUM(AA$39:AA$121*($BO$39:$BO$121=$A131)) -> 0 | AB131: =SUM(AB$39:AB$121*($BO$39:$BO$121=$A131)) -> 0 | AC131: =SUM(AC$39:AC$121*($BO$39:$BO$121=$A131)) -> 0 | AD131: =SUM(AD$39:AD$121*($BO$39:$BO$121=$A131)) -> 0 | AE131: =SUM(AE$39:AE$121*($BO$39:$BO$121=$A131)) -> 0 | AF131: =SUM(AF$39:AF$121*($BO$39:$BO$121=$A131)) -> 0 | AG131: =SUM(AG$39:AG$121*($BO$39:$BO$121=$A131)) -> 0 | AH131: =SUM(AH$39:AH$121*($BO$39:$BO$121=$A131)) -> 0 | AI131: =SUM(AI$39:AI$121*($BO$39:$BO$121=$A131)) -> 0 | AJ131: =SUM(AJ$39:AJ$121*($BO$39:$BO$121=$A131)) -> 0 | AK131: 0 | BA131: =SUM(BA$39:BA$121*($BO$39:$BO$121=$A131)) -> 0 | BB131: =SUM(BB$39:BB$121*($BO$39:$BO$121=$A131)) -> 0 | BC131: =SUM(BC$39:BC$121*($BO$39:$BO$121=$A131)) -> 0 | BD131: =SUM(BD$39:BD$121*($BO$39:$BO$121=$A131)) -> 0 | BE131: =SUM(BE$39:BE$121*($BO$39:$BO$121=$A131)) -> 0 | BF131: =SUM(BF$39:BF$121*($BO$39:$BO$121=$A131)) -> 0 | BG131: =SUM(BG$39:BG$121*($BO$39:$BO$121=$A131)) -> 0 | BH131: =SUM(BH$39:BH$121*($BO$39:$BO$121=$A131)) -> 0 | BI131: =SUM(BI$39:BI$121*($BO$39:$BO$121=$A131)) -> 0 | BJ131: =SUM(BJ$39:BJ$121*($BO$39:$BO$121=$A131)) -> 0 | BK131: =SUM(BK$39:BK$121*($BO$39:$BO$121=$A131)) -> 0 | BL131: =SUM(BL$39:BL$121*($BO$39:$BO$121=$A131)) -> 0 | BM131: =SUM(BA131:BL131) -> 0
A132: Substations - Substation switchbays | B132: Substations | C132: Calculated | D132: $Millions | Y132: =SUM(Y$39:Y$121*($BO$39:$BO$121=$A132)) -> 0 | Z132: =SUM(Z$39:Z$121*($BO$39:$BO$121=$A132)) -> 0 | AA132: =SUM(AA$39:AA$121*($BO$39:$BO$121=$A132)) -> 0 | AB132: =SUM(AB$39:AB$121*($BO$39:$BO$121=$A132)) -> 0 | AC132: =SUM(AC$39:AC$121*($BO$39:$BO$121=$A132)) -> 0 | AD132: =SUM(AD$39:AD$121*($BO$39:$BO$121=$A132)) -> 0 | AE132: =SUM(AE$39:AE$121*($BO$39:$BO$121=$A132)) -> 1.591249276 | AF132: =SUM(AF$39:AF$121*($BO$39:$BO$121=$A132)) -> 1.351487787 | AG132: =SUM(AG$39:AG$121*($BO$39:$BO$121=$A132)) -> 0.6433632892 | AH132: =SUM(AH$39:AH$121*($BO$39:$BO$121=$A132)) -> 0.2488564852 | AI132: =SUM(AI$39:AI$121*($BO$39:$BO$121=$A132)) -> 0 | AJ132: =SUM(AJ$39:AJ$121*($BO$39:$BO$121=$A132)) -> 0 | AK132: 3.834956838 | BA132: =SUM(BA$39:BA$121*($BO$39:$BO$121=$A132)) -> 0 | BB132: =SUM(BB$39:BB$121*($BO$39:$BO$121=$A132)) -> 0 | BC132: =SUM(BC$39:BC$121*($BO$39:$BO$121=$A132)) -> 0 | BD132: =SUM(BD$39:BD$121*($BO$39:$BO$121=$A132)) -> 0 | BE132: =SUM(BE$39:BE$121*($BO$39:$BO$121=$A132)) -> 0 | BF132: =SUM(BF$39:BF$121*($BO$39:$BO$121=$A132)) -> 0 | BG132: =SUM(BG$39:BG$121*($BO$39:$BO$121=$A132)) -> 1.515414437 | BH132: =SUM(BH$39:BH$121*($BO$39:$BO$121=$A132)) -> 0.734484873 | BI132: =SUM(BI$39:BI$121*($BO$39:$BO$121=$A132)) -> 0 | BJ132: =SUM(BJ$39:BJ$121*($BO$39:$BO$121=$A132)) -> 1.585057528 | BK132: =SUM(BK$39:BK$121*($BO$39:$BO$121=$A132)) -> 0 | BL132: =SUM(BL$39:BL$121*($BO$39:$BO$121=$A132)) -> 0 | BM132: 3.834956838
A133: Substations - Substation power transformers | B133: Substations | C133: Calculated | D133: $Millions | Y133: =SUM(Y$39:Y$121*($BO$39:$BO$121=$A133)) -> 0 | Z133: =SUM(Z$39:Z$121*($BO$39:$BO$121=$A133)) -> 0 | AA133: =SUM(AA$39:AA$121*($BO$39:$BO$121=$A133)) -> 0 | AB133: =SUM(AB$39:AB$121*($BO$39:$BO$121=$A133)) -> 0 | AC133: =SUM(AC$39:AC$121*($BO$39:$BO$121=$A133)) -> 0 | AD133: =SUM(AD$39:AD$121*($BO$39:$BO$121=$A133)) -> 0 | AE133: =SUM(AE$39:AE$121*($BO$39:$BO$121=$A133)) -> 1.205694491 | AF133: =SUM(AF$39:AF$121*($BO$39:$BO$121=$A133)) -> 0.4502253389 | AG133: =SUM(AG$39:AG$121*($BO$39:$BO$121=$A133)) -> 0.4694604325 | AH133: =SUM(AH$39:AH$121*($BO$39:$BO$121=$A133)) -> 0.1815898966 | AI133: =SUM(AI$39:AI$121*($BO$39:$BO$121=$A133)) -> 0 | AJ133: =SUM(AJ$39:AJ$121*($BO$39:$BO$121=$A133)) -> 0 | AK133: 2.306970159 | BA133: =SUM(BA$39:BA$121*($BO$39:$BO$121=$A133)) -> 0 | BB133: =SUM(BB$39:BB$121*($BO$39:$BO$121=$A133)) -> 0 | BC133: =SUM(BC$39:BC$121*($BO$39:$BO$121=$A133)) -> 0 | BD133: =SUM(BD$39:BD$121*($BO$39:$BO$121=$A133)) -> 0 | BE133: =SUM(BE$39:BE$121*($BO$39:$BO$121=$A133)) -> 0 | BF133: =SUM(BF$39:BF$121*($BO$39:$BO$121=$A133)) -> 0 | BG133: =SUM(BG$39:BG$121*($BO$39:$BO$121=$A133)) -> 1.150358016 | BH133: =SUM(BH$39:BH$121*($BO$39:$BO$121=$A133)) -> 0 | BI133: =SUM(BI$39:BI$121*($BO$39:$BO$121=$A133)) -> 0 | BJ133: =SUM(BJ$39:BJ$121*($BO$39:$BO$121=$A133)) -> 1.156612143 | BK133: =SUM(BK$39:BK$121*($BO$39:$BO$121=$A133)) -> 0 | BL133: =SUM(BL$39:BL$121*($BO$39:$BO$121=$A133)) -> 0 | BM133: 2.306970159
A134: Substations - Substation reactive plant | B134: Substations | C134: Calculated | D134: $Millions | Y134: =SUM(Y$39:Y$121*($BO$39:$BO$121=$A134)) -> 0 | Z134: =SUM(Z$39:Z$121*($BO$39:$BO$121=$A134)) -> 0 | AA134: =SUM(AA$39:AA$121*($BO$39:$BO$121=$A134)) -> 0 | AB134: =SUM(AB$39:AB$121*($BO$39:$BO$121=$A134)) -> 0 | AC134: =SUM(AC$39:AC$121*($BO$39:$BO$121=$A134)) -> 0 | AD134: =SUM(AD$39:AD$121*($BO$39:$BO$121=$A134)) -> 0 | AE134: =SUM(AE$39:AE$121*($BO$39:$BO$121=$A134)) -> 0.8970132731 | AF134: =SUM(AF$39:AF$121*($BO$39:$BO$121=$A134)) -> 0 | AG134: =SUM(AG$39:AG$121*($BO$39:$BO$121=$A134)) -> 0 | AH134: =SUM(AH$39:AH$121*($BO$39:$BO$121=$A134)) -> 0 | AI134: =SUM(AI$39:AI$121*($BO$39:$BO$121=$A134)) -> 0 | AJ134: =SUM(AJ$39:AJ$121*($BO$39:$BO$121=$A134)) -> 0 | AK134: 0.8970132731 | BA134: =SUM(BA$39:BA$121*($BO$39:$BO$121=$A134)) -> 0 | BB134: =SUM(BB$39:BB$121*($BO$39:$BO$121=$A134)) -> 0 | BC134: =SUM(BC$39:BC$121*($BO$39:$BO$121=$A134)) -> 0 | BD134: =SUM(BD$39:BD$121*($BO$39:$BO$121=$A134)) -> 0 | BE134: =SUM(BE$39:BE$121*($BO$39:$BO$121=$A134)) -> 0 | BF134: =SUM(BF$39:BF$121*($BO$39:$BO$121=$A134)) -> 0 | BG134: =SUM(BG$39:BG$121*($BO$39:$BO$121=$A134)) -> 0.8970132731 | BH134: =SUM(BH$39:BH$121*($BO$39:$BO$121=$A134)) -> 0 | BI134: =SUM(BI$39:BI$121*($BO$39:$BO$121=$A134)) -> 0 | BJ134: =SUM(BJ$39:BJ$121*($BO$39:$BO$121=$A134)) -> 0 | BK134: =SUM(BK$39:BK$121*($BO$39:$BO$121=$A134)) -> 0 | BL134: =SUM(BL$39:BL$121*($BO$39:$BO$121=$A134)) -> 0 | BM134: 0.8970132731
A135: Secondary System - SCADA, network control and protection systems | B135: Secondary System | C135: Calculated | D135: $Millions | Y135: =SUM(Y$39:Y$121*($BO$39:$BO$121=$A135)) -> 0 | Z135: =SUM(Z$39:Z$121*($BO$39:$BO$121=$A135)) -> 0 | AA135: =SUM(AA$39:AA$121*($BO$39:$BO$121=$A135)) -> 0 | AB135: =SUM(AB$39:AB$121*($BO$39:$BO$121=$A135)) -> 0 | AC135: =SUM(AC$39:AC$121*($BO$39:$BO$121=$A135)) -> 0 | AD135: =SUM(AD$39:AD$121*($BO$39:$BO$121=$A135)) -> 0 | AE135: =SUM(AE$39:AE$121*($BO$39:$BO$121=$A135)) -> 1.259669539 | AF135: =SUM(AF$39:AF$121*($BO$39:$BO$121=$A135)) -> 0.3249111974 | AG135: =SUM(AG$39:AG$121*($BO$39:$BO$121=$A135)) -> 0 | AH135: =SUM(AH$39:AH$121*($BO$39:$BO$121=$A135)) -> 0 | AI135: =SUM(AI$39:AI$121*($BO$39:$BO$121=$A135)) -> 0 | AJ135: =SUM(AJ$39:AJ$121*($BO$39:$BO$121=$A135)) -> 0 | AK135: 1.584580737 | BA135: =SUM(BA$39:BA$121*($BO$39:$BO$121=$A135)) -> 0 | BB135: =SUM(BB$39:BB$121*($BO$39:$BO$121=$A135)) -> 0 | BC135: =SUM(BC$39:BC$121*($BO$39:$BO$121=$A135)) -> 0 | BD135: =SUM(BD$39:BD$121*($BO$39:$BO$121=$A135)) -> 0 | BE135: =SUM(BE$39:BE$121*($BO$39:$BO$121=$A135)) -> 0 | BF135: =SUM(BF$39:BF$121*($BO$39:$BO$121=$A135)) -> 0 | BG135: =SUM(BG$39:BG$121*($BO$39:$BO$121=$A135)) -> 1.259669539 | BH135: =SUM(BH$39:BH$121*($BO$39:$BO$121=$A135)) -> 0.3249111974 | BI135: =SUM(BI$39:BI$121*($BO$39:$BO$121=$A135)) -> 0 | BJ135: =SUM(BJ$39:BJ$121*($BO$39:$BO$121=$A135)) -> 0 | BK135: =SUM(BK$39:BK$121*($BO$39:$BO$121=$A135)) -> 0 | BL135: =SUM(BL$39:BL$121*($BO$39:$BO$121=$A135)) -> 0 | BM135: 1.584580737
A136: Communications (short life) - [Spare] | B136: Communications (short life) | C136: Calculated | D136: $Millions | Y136: =SUM(Y$39:Y$121*($BO$39:$BO$121=$A136)) -> 0 | Z136: =SUM(Z$39:Z$121*($BO$39:$BO$121=$A136)) -> 0 | AA136: =SUM(AA$39:AA$121*($BO$39:$BO$121=$A136)) -> 0 | AB136: =SUM(AB$39:AB$121*($BO$39:$BO$121=$A136)) -> 0 | AC136: =SUM(AC$39:AC$121*($BO$39:$BO$121=$A136)) -> 0 | AD136: =SUM(AD$39:AD$121*($BO$39:$BO$121=$A136)) -> 0 | AE136: =SUM(AE$39:AE$121*($BO$39:$BO$121=$A136)) -> 0 | AF136: =SUM(AF$39:AF$121*($BO$39:$BO$121=$A136)) -> 0 | AG136: =SUM(AG$39:AG$121*($BO$39:$BO$121=$A136)) -> 0 | AH136: =SUM(AH$39:AH$121*($BO$39:$BO$121=$A136)) -> 0 | AI136: =SUM(AI$39:AI$121*($BO$39:$BO$121=$A136)) -> 0 | AJ136: =SUM(AJ$39:AJ$121*($BO$39:$BO$121=$A136)) -> 0 | AK136: 0 | BA136: =SUM(BA$39:BA$121*($BO$39:$BO$121=$A136)) -> 0 | BB136: =SUM(BB$39:BB$121*($BO$39:$BO$121=$A136)) -> 0 | BC136: =SUM(BC$39:BC$121*($BO$39:$BO$121=$A136)) -> 0 | BD136: =SUM(BD$39:BD$121*($BO$39:$BO$121=$A136)) -> 0 | BE136: =SUM(BE$39:BE$121*($BO$39:$BO$121=$A136)) -> 0 | BF136: =SUM(BF$39:BF$121*($BO$39:$BO$121=$A136)) -> 0 | BG136: =SUM(BG$39:BG$121*($BO$39:$BO$121=$A136)) -> 0 | BH136: =SUM(BH$39:BH$121*($BO$39:$BO$121=$A136)) -> 0 | BI136: =SUM(BI$39:BI$121*($BO$39:$BO$121=$A136)) -> 0 | BJ136: =SUM(BJ$39:BJ$121*($BO$39:$BO$121=$A136)) -> 0 | BK136: =SUM(BK$39:BK$121*($BO$39:$BO$121=$A136)) -> 0 | BL136: =SUM(BL$39:BL$121*($BO$39:$BO$121=$A136)) -> 0 | BM136: 0
A137: SIPS Control - [Spare] | B137: SIPS Control | C137: Calculated | D137: $Millions | Y137: =SUM(Y$39:Y$121*($BO$39:$BO$121=$A137)) -> 0 | Z137: =SUM(Z$39:Z$121*($BO$39:$BO$121=$A137)) -> 0 | AA137: =SUM(AA$39:AA$121*($BO$39:$BO$121=$A137)) -> 0 | AB137: =SUM(AB$39:AB$121*($BO$39:$BO$121=$A137)) -> 0 | AC137: =SUM(AC$39:AC$121*($BO$39:$BO$121=$A137)) -> 0 | AD137: =SUM(AD$39:AD$121*($BO$39:$BO$121=$A137)) -> 0 | AE137: =SUM(AE$39:AE$121*($BO$39:$BO$121=$A137)) -> 0 | AF137: =SUM(AF$39:AF$121*($BO$39:$BO$121=$A137)) -> 0 | AG137: =SUM(AG$39:AG$121*($BO$39:$BO$121=$A137)) -> 0 | AH137: =SUM(AH$39:AH$121*($BO$39:$BO$121=$A137)) -> 0 | AI137: =SUM(AI$39:AI$121*($BO$39:$BO$121=$A137)) -> 0 | AJ137: =SUM(AJ$39:AJ$121*($BO$39:$BO$121=$A137)) -> 0 | AK137: 0 | BA137: =SUM(BA$39:BA$121*($BO$39:$BO$121=$A137)) -> 0 | BB137: =SUM(BB$39:BB$121*($BO$39:$BO$121=$A137)) -> 0 | BC137: =SUM(BC$39:BC$121*($BO$39:$BO$121=$A137)) -> 0 | BD137: =SUM(BD$39:BD$121*($BO$39:$BO$121=$A137)) -> 0 | BE137: =SUM(BE$39:BE$121*($BO$39:$BO$121=$A137)) -> 0 | BF137: =SUM(BF$39:BF$121*($BO$39:$BO$121=$A137)) -> 0 | BG137: =SUM(BG$39:BG$121*($BO$39:$BO$121=$A137)) -> 0 | BH137: =SUM(BH$39:BH$121*($BO$39:$BO$121=$A137)) -> 0 | BI137: =SUM(BI$39:BI$121*($BO$39:$BO$121=$A137)) -> 0 | BJ137: =SUM(BJ$39:BJ$121*($BO$39:$BO$121=$A137)) -> 0 | BK137: =SUM(BK$39:BK$121*($BO$39:$BO$121=$A137)) -> 0 | BL137: =SUM(BL$39:BL$121*($BO$39:$BO$121=$A137)) -> 0 | BM137: 0
A138: =A253 -> Synchronous condensers - [Spare] | B138: Synchronous Condensers | C138: Calculated | D138: $Millions | Y138: =SUM(Y$39:Y$121*($BO$39:$BO$121=$A138)) -> 0 | Z138: =SUM(Z$39:Z$121*($BO$39:$BO$121=$A138)) -> 0 | AA138: =SUM(AA$39:AA$121*($BO$39:$BO$121=$A138)) -> 0 | AB138: =SUM(AB$39:AB$121*($BO$39:$BO$121=$A138)) -> 0 | AC138: =SUM(AC$39:AC$121*($BO$39:$BO$121=$A138)) -> 0 | AD138: =SUM(AD$39:AD$121*($BO$39:$BO$121=$A138)) -> 0 | AE138: =SUM(AE$39:AE$121*($BO$39:$BO$121=$A138)) -> 0 | AF138: =SUM(AF$39:AF$121*($BO$39:$BO$121=$A138)) -> 0 | AG138: =SUM(AG$39:AG$121*($BO$39:$BO$121=$A138)) -> 0 | AH138: =SUM(AH$39:AH$121*($BO$39:$BO$121=$A138)) -> 0 | AI138: =SUM(AI$39:AI$121*($BO$39:$BO$121=$A138)) -> 0 | AJ138: =SUM(AJ$39:AJ$121*($BO$39:$BO$121=$A138)) -> 0 | AK138: 0 | BA138: =SUM(BA$39:BA$121*($BO$39:$BO$121=$A138)) -> 0 | BB138: =SUM(BB$39:BB$121*($BO$39:$BO$121=$A138)) -> 0 | BC138: =SUM(BC$39:BC$121*($BO$39:$BO$121=$A138)) -> 0 | BD138: =SUM(BD$39:BD$121*($BO$39:$BO$121=$A138)) -> 0 | BE138: =SUM(BE$39:BE$121*($BO$39:$BO$121=$A138)) -> 0 | BF138: =SUM(BF$39:BF$121*($BO$39:$BO$121=$A138)) -> 0 | BG138: =SUM(BG$39:BG$121*($BO$39:$BO$121=$A138)) -> 0 | BH138: =SUM(BH$39:BH$121*($BO$39:$BO$121=$A138)) -> 0 | BI138: =SUM(BI$39:BI$121*($BO$39:$BO$121=$A138)) -> 0 | BJ138: =SUM(BJ$39:BJ$121*($BO$39:$BO$121=$A138)) -> 0 | BK138: =SUM(BK$39:BK$121*($BO$39:$BO$121=$A138)) -> 0 | BL138: =SUM(BL$39:BL$121*($BO$39:$BO$121=$A138)) -> 0 | BM138: 0
A139: =A254 -> Leasehold Land and Property - Other | B139: Leasehold Land and Property | C139: Calculated | D139: $Millions | Y139: =SUM(Y$39:Y$121*($BO$39:$BO$121=$A139)) -> 0 | Z139: =SUM(Z$39:Z$121*($BO$39:$BO$121=$A139)) -> 0 | AA139: =SUM(AA$39:AA$121*($BO$39:$BO$121=$A139)) -> 0 | AB139: =SUM(AB$39:AB$121*($BO$39:$BO$121=$A139)) -> 0 | AC139: =SUM(AC$39:AC$121*($BO$39:$BO$121=$A139)) -> 0 | AD139: =SUM(AD$39:AD$121*($BO$39:$BO$121=$A139)) -> 0 | AE139: =SUM(AE$39:AE$121*($BO$39:$BO$121=$A139)) -> 0 | AF139: =SUM(AF$39:AF$121*($BO$39:$BO$121=$A139)) -> 0 | AG139: =SUM(AG$39:AG$121*($BO$39:$BO$121=$A139)) -> 0 | AH139: =SUM(AH$39:AH$121*($BO$39:$BO$121=$A139)) -> 0 | AI139: =SUM(AI$39:AI$121*($BO$39:$BO$121=$A139)) -> 0 | AJ139: =SUM(AJ$39:AJ$121*($BO$39:$BO$121=$A139)) -> 0 | AK139: 0 | BA139: =SUM(BA$39:BA$121*($BO$39:$BO$121=$A139)) -> 0 | BB139: =SUM(BB$39:BB$121*($BO$39:$BO$121=$A139)) -> 0 | BC139: =SUM(BC$39:BC$121*($BO$39:$BO$121=$A139)) -> 0 | BD139: =SUM(BD$39:BD$121*($BO$39:$BO$121=$A139)) -> 0 | BE139: =SUM(BE$39:BE$121*($BO$39:$BO$121=$A139)) -> 0 | BF139: =SUM(BF$39:BF$121*($BO$39:$BO$121=$A139)) -> 0 | BG139: =SUM(BG$39:BG$121*($BO$39:$BO$121=$A139)) -> 0 | BH139: =SUM(BH$39:BH$121*($BO$39:$BO$121=$A139)) -> 0 | BI139: =SUM(BI$39:BI$121*($BO$39:$BO$121=$A139)) -> 0 | BJ139: =SUM(BJ$39:BJ$121*($BO$39:$BO$121=$A139)) -> 0 | BK139: =SUM(BK$39:BK$121*($BO$39:$BO$121=$A139)) -> 0 | BL139: =SUM(BL$39:BL$121*($BO$39:$BO$121=$A139)) -> 0 | BM139: 0
A140: =A255 -> Biodiversity offsets - Stewardship sites - Biodiversity Offsets | B140: Biodiversity offsets - Stewardship sites | C140: Calculated | D140: $Millions | Y140: =SUM(Y$39:Y$121*($BO$39:$BO$121=$A140)) -> 0 | Z140: =SUM(Z$39:Z$121*($BO$39:$BO$121=$A140)) -> 0 | AA140: =SUM(AA$39:AA$121*($BO$39:$BO$121=$A140)) -> 0 | AB140: =SUM(AB$39:AB$121*($BO$39:$BO$121=$A140)) -> 0 | AC140: =SUM(AC$39:AC$121*($BO$39:$BO$121=$A140)) -> 0 | AD140: =SUM(AD$39:AD$121*($BO$39:$BO$121=$A140)) -> 0 | AE140: [C-i-C] | AF140: [C-i-C] | AG140: [C-i-C] | AH140: =SUM(AH$39:AH$121*($BO$39:$BO$121=$A140)) -> 0 | AI140: =SUM(AI$39:AI$121*($BO$39:$BO$121=$A140)) -> 0 | AJ140: =SUM(AJ$39:AJ$121*($BO$39:$BO$121=$A140)) -> 0 | AK140: [C-i-C] | BA140: =SUM(BA$39:BA$121*($BO$39:$BO$121=$A140)) -> 0 | BB140: =SUM(BB$39:BB$121*($BO$39:$BO$121=$A140)) -> 0 | BC140: =SUM(BC$39:BC$121*($BO$39:$BO$121=$A140)) -> 0 | BD140: =SUM(BD$39:BD$121*($BO$39:$BO$121=$A140)) -> 0 | BE140: =SUM(BE$39:BE$121*($BO$39:$BO$121=$A140)) -> 0 | BF140: =SUM(BF$39:BF$121*($BO$39:$BO$121=$A140)) -> 0 | BG140: [C-i-C] | BH140: [C-i-C] | BI140: [C-i-C] | BJ140: =SUM(BJ$39:BJ$121*($BO$39:$BO$121=$A140)) -> 0 | BK140: =SUM(BK$39:BK$121*($BO$39:$BO$121=$A140)) -> 0 | BL140: =SUM(BL$39:BL$121*($BO$39:$BO$121=$A140)) -> 0 | BM140: [C-i-C]
A141: =A256 -> Biodiversity offsets - Direct payments & Other costs - Biodiversity Offsets | B141: Biodiversity offsets - Direct payments & Other costs | C141: Calculated | D141: $Millions | Y141: =SUM(Y$39:Y$121*($BO$39:$BO$121=$A141)) -> 0 | Z141: =SUM(Z$39:Z$121*($BO$39:$BO$121=$A141)) -> 0 | AA141: =SUM(AA$39:AA$121*($BO$39:$BO$121=$A141)) -> 0 | AB141: =SUM(AB$39:AB$121*($BO$39:$BO$121=$A141)) -> 0 | AC141: =SUM(AC$39:AC$121*($BO$39:$BO$121=$A141)) -> 0 | AD141: =SUM(AD$39:AD$121*($BO$39:$BO$121=$A141)) -> 0 | AE141: [C-i-C] | AF141: [C-i-C] | AG141: [C-i-C] | AH141: =SUM(AH$39:AH$121*($BO$39:$BO$121=$A141)) -> 0 | AI141: =SUM(AI$39:AI$121*($BO$39:$BO$121=$A141)) -> 0 | AJ141: =SUM(AJ$39:AJ$121*($BO$39:$BO$121=$A141)) -> 0 | AK141: [C-i-C] | BA141: =SUM(BA$39:BA$121*($BO$39:$BO$121=$A141)) -> 0 | BB141: =SUM(BB$39:BB$121*($BO$39:$BO$121=$A141)) -> 0 | BC141: =SUM(BC$39:BC$121*($BO$39:$BO$121=$A141)) -> 0 | BD141: =SUM(BD$39:BD$121*($BO$39:$BO$121=$A141)) -> 0 | BE141: =SUM(BE$39:BE$121*($BO$39:$BO$121=$A141)) -> 0 | BF141: =SUM(BF$39:BF$121*($BO$39:$BO$121=$A141)) -> 0 | BG141: [C-i-C] | BH141: [C-i-C] | BI141: [C-i-C] | BJ141: =SUM(BJ$39:BJ$121*($BO$39:$BO$121=$A141)) -> 0 | BK141: =SUM(BK$39:BK$121*($BO$39:$BO$121=$A141)) -> 0 | BL141: =SUM(BL$39:BL$121*($BO$39:$BO$121=$A141)) -> 0 | BM141: [C-i-C]
A142: =A257 -> Land & Easements - Other | B142: Land & Easements | C142: Calculated | D142: $Millions | Y142: =SUM(Y$39:Y$121*($BO$39:$BO$121=$A142)) -> 0 | Z142: =SUM(Z$39:Z$121*($BO$39:$BO$121=$A142)) -> 0 | AA142: =SUM(AA$39:AA$121*($BO$39:$BO$121=$A142)) -> 0 | AB142: =SUM(AB$39:AB$121*($BO$39:$BO$121=$A142)) -> 0 | AC142: =SUM(AC$39:AC$121*($BO$39:$BO$121=$A142)) -> 0 | AD142: [C-i-C] | AE142: [C-i-C] | AF142: [C-i-C] | AG142: =SUM(AG$39:AG$121*($BO$39:$BO$121=$A142)) -> 0 | AH142: =SUM(AH$39:AH$121*($BO$39:$BO$121=$A142)) -> 0 | AI142: =SUM(AI$39:AI$121*($BO$39:$BO$121=$A142)) -> 0 | AJ142: =SUM(AJ$39:AJ$121*($BO$39:$BO$121=$A142)) -> 0 | AK142: [C-i-C] | BA142: =SUM(BA$39:BA$121*($BO$39:$BO$121=$A142)) -> 0 | BB142: =SUM(BB$39:BB$121*($BO$39:$BO$121=$A142)) -> 0 | BC142: =SUM(BC$39:BC$121*($BO$39:$BO$121=$A142)) -> 0 | BD142: =SUM(BD$39:BD$121*($BO$39:$BO$121=$A142)) -> 0 | BE142: =SUM(BE$39:BE$121*($BO$39:$BO$121=$A142)) -> 0 | BF142: =SUM(BF$39:BF$121*($BO$39:$BO$121=$A142)) -> 0 | BG142: [C-i-C] | BH142: [C-i-C] | BI142: [C-i-C] | BJ142: =SUM(BJ$39:BJ$121*($BO$39:$BO$121=$A142)) -> 0 | BK142: =SUM(BK$39:BK$121*($BO$39:$BO$121=$A142)) -> 0 | BL142: =SUM(BL$39:BL$121*($BO$39:$BO$121=$A142)) -> 0 | BM142: [C-i-C]
A143: Buildings - capital works - Buildings and Property | B143: Buildings - capital works | C143: Calculated | D143: $Millions | Y143: =SUM(Y$39:Y$121*($BO$39:$BO$121=$A143)) -> 0 | Z143: =SUM(Z$39:Z$121*($BO$39:$BO$121=$A143)) -> 0 | AA143: =SUM(AA$39:AA$121*($BO$39:$BO$121=$A143)) -> 0 | AB143: =SUM(AB$39:AB$121*($BO$39:$BO$121=$A143)) -> 0 | AC143: =SUM(AC$39:AC$121*($BO$39:$BO$121=$A143)) -> 0 | AD143: =SUM(AD$39:AD$121*($BO$39:$BO$121=$A143)) -> 0 | AE143: =SUM(AE$39:AE$121*($BO$39:$BO$121=$A143)) -> 0 | AF143: =SUM(AF$39:AF$121*($BO$39:$BO$121=$A143)) -> 0 | AG143: =SUM(AG$39:AG$121*($BO$39:$BO$121=$A143)) -> 0 | AH143: =SUM(AH$39:AH$121*($BO$39:$BO$121=$A143)) -> 0 | AI143: =SUM(AI$39:AI$121*($BO$39:$BO$121=$A143)) -> 0 | AJ143: =SUM(AJ$39:AJ$121*($BO$39:$BO$121=$A143)) -> 0 | AK143: 0 | BA143: =SUM(BA$39:BA$121*($BO$39:$BO$121=$A143)) -> 0 | BB143: =SUM(BB$39:BB$121*($BO$39:$BO$121=$A143)) -> 0 | BC143: =SUM(BC$39:BC$121*($BO$39:$BO$121=$A143)) -> 0 | BD143: =SUM(BD$39:BD$121*($BO$39:$BO$121=$A143)) -> 0 | BE143: =SUM(BE$39:BE$121*($BO$39:$BO$121=$A143)) -> 0 | BF143: =SUM(BF$39:BF$121*($BO$39:$BO$121=$A143)) -> 0 | BG143: =SUM(BG$39:BG$121*($BO$39:$BO$121=$A143)) -> 0 | BH143: =SUM(BH$39:BH$121*($BO$39:$BO$121=$A143)) -> 0 | BI143: =SUM(BI$39:BI$121*($BO$39:$BO$121=$A143)) -> 0 | BJ143: =SUM(BJ$39:BJ$121*($BO$39:$BO$121=$A143)) -> 0 | BK143: =SUM(BK$39:BK$121*($BO$39:$BO$121=$A143)) -> 0 | BL143: =SUM(BL$39:BL$121*($BO$39:$BO$121=$A143)) -> 0 | BM143: =SUM(BA143:BL143) -> 0
A144: Non-network - Business IT | B144: Business IT | C144: Calculated | D144: $Millions | Y144: =SUM(Y$39:Y$121*($BO$39:$BO$121=$A144)) -> 0 | Z144: =SUM(Z$39:Z$121*($BO$39:$BO$121=$A144)) -> 0 | AA144: =SUM(AA$39:AA$121*($BO$39:$BO$121=$A144)) -> 0 | AB144: =SUM(AB$39:AB$121*($BO$39:$BO$121=$A144)) -> 0 | AC144: =SUM(AC$39:AC$121*($BO$39:$BO$121=$A144)) -> 0 | AD144: =SUM(AD$39:AD$121*($BO$39:$BO$121=$A144)) -> 0 | AE144: =SUM(AE$39:AE$121*($BO$39:$BO$121=$A144)) -> 0 | AF144: =SUM(AF$39:AF$121*($BO$39:$BO$121=$A144)) -> 0 | AG144: =SUM(AG$39:AG$121*($BO$39:$BO$121=$A144)) -> 0 | AH144: =SUM(AH$39:AH$121*($BO$39:$BO$121=$A144)) -> 0 | AI144: =SUM(AI$39:AI$121*($BO$39:$BO$121=$A144)) -> 0 | AJ144: =SUM(AJ$39:AJ$121*($BO$39:$BO$121=$A144)) -> 0 | AK144: 0 | BA144: =SUM(BA$39:BA$121*($BO$39:$BO$121=$A144)) -> 0 | BB144: =SUM(BB$39:BB$121*($BO$39:$BO$121=$A144)) -> 0 | BC144: =SUM(BC$39:BC$121*($BO$39:$BO$121=$A144)) -> 0 | BD144: =SUM(BD$39:BD$121*($BO$39:$BO$121=$A144)) -> 0 | BE144: =SUM(BE$39:BE$121*($BO$39:$BO$121=$A144)) -> 0 | BF144: =SUM(BF$39:BF$121*($BO$39:$BO$121=$A144)) -> 0 | BG144: =SUM(BG$39:BG$121*($BO$39:$BO$121=$A144)) -> 0 | BH144: =SUM(BH$39:BH$121*($BO$39:$BO$121=$A144)) -> 0 | BI144: =SUM(BI$39:BI$121*($BO$39:$BO$121=$A144)) -> 0 | BJ144: =SUM(BJ$39:BJ$121*($BO$39:$BO$121=$A144)) -> 0 | BK144: =SUM(BK$39:BK$121*($BO$39:$BO$121=$A144)) -> 0 | BL144: =SUM(BL$39:BL$121*($BO$39:$BO$121=$A144)) -> 0 | BM144: =SUM(BA144:BL144) -> 0
A145: Non-network - Minor Plant, Motor Vehicles & Mobile Plant | B145: Minor Plant, Motor Vehicles & Mobile Plant | C145: Calculated | D145: $Millions | Y145: =SUM(Y$39:Y$121*($BO$39:$BO$121=$A145)) -> 0 | Z145: =SUM(Z$39:Z$121*($BO$39:$BO$121=$A145)) -> 0 | AA145: =SUM(AA$39:AA$121*($BO$39:$BO$121=$A145)) -> 0 | AB145: =SUM(AB$39:AB$121*($BO$39:$BO$121=$A145)) -> 0 | AC145: =SUM(AC$39:AC$121*($BO$39:$BO$121=$A145)) -> 0 | AD145: =SUM(AD$39:AD$121*($BO$39:$BO$121=$A145)) -> 0 | AE145: =SUM(AE$39:AE$121*($BO$39:$BO$121=$A145)) -> 0 | AF145: =SUM(AF$39:AF$121*($BO$39:$BO$121=$A145)) -> 0 | AG145: =SUM(AG$39:AG$121*($BO$39:$BO$121=$A145)) -> 0 | AH145: =SUM(AH$39:AH$121*($BO$39:$BO$121=$A145)) -> 0 | AI145: =SUM(AI$39:AI$121*($BO$39:$BO$121=$A145)) -> 0 | AJ145: =SUM(AJ$39:AJ$121*($BO$39:$BO$121=$A145)) -> 0 | AK145: 0 | BA145: =SUM(BA$39:BA$121*($BO$39:$BO$121=$A145)) -> 0 | BB145: =SUM(BB$39:BB$121*($BO$39:$BO$121=$A145)) -> 0 | BC145: =SUM(BC$39:BC$121*($BO$39:$BO$121=$A145)) -> 0 | BD145: =SUM(BD$39:BD$121*($BO$39:$BO$121=$A145)) -> 0 | BE145: =SUM(BE$39:BE$121*($BO$39:$BO$121=$A145)) -> 0 | BF145: =SUM(BF$39:BF$121*($BO$39:$BO$121=$A145)) -> 0 | BG145: =SUM(BG$39:BG$121*($BO$39:$BO$121=$A145)) -> 0 | BH145: =SUM(BH$39:BH$121*($BO$39:$BO$121=$A145)) -> 0 | BI145: =SUM(BI$39:BI$121*($BO$39:$BO$121=$A145)) -> 0 | BJ145: =SUM(BJ$39:BJ$121*($BO$39:$BO$121=$A145)) -> 0 | BK145: =SUM(BK$39:BK$121*($BO$39:$BO$121=$A145)) -> 0 | BL145: =SUM(BL$39:BL$121*($BO$39:$BO$121=$A145)) -> 0 | BM145: =SUM(BA145:BL145) -> 0
A146: Non-network - Buildings | B146: Buildings - capital works | C146: Calculated | D146: $Millions | Y146: =SUM(Y$39:Y$121*($BO$39:$BO$121=$A146)) -> 0 | Z146: =SUM(Z$39:Z$121*($BO$39:$BO$121=$A146)) -> 0 | AA146: =SUM(AA$39:AA$121*($BO$39:$BO$121=$A146)) -> 0 | AB146: =SUM(AB$39:AB$121*($BO$39:$BO$121=$A146)) -> 0 | AC146: =SUM(AC$39:AC$121*($BO$39:$BO$121=$A146)) -> 0 | AD146: =SUM(AD$39:AD$121*($BO$39:$BO$121=$A146)) -> 0 | AE146: =SUM(AE$39:AE$121*($BO$39:$BO$121=$A146)) -> 0 | AF146: =SUM(AF$39:AF$121*($BO$39:$BO$121=$A146)) -> 0 | AG146: =SUM(AG$39:AG$121*($BO$39:$BO$121=$A146)) -> 0 | AH146: =SUM(AH$39:AH$121*($BO$39:$BO$121=$A146)) -> 0 | AI146: =SUM(AI$39:AI$121*($BO$39:$BO$121=$A146)) -> 0 | AJ146: =SUM(AJ$39:AJ$121*($BO$39:$BO$121=$A146)) -> 0 | AK146: 0 | BA146: =SUM(BA$39:BA$121*($BO$39:$BO$121=$A146)) -> 0 | BB146: =SUM(BB$39:BB$121*($BO$39:$BO$121=$A146)) -> 0 | BC146: =SUM(BC$39:BC$121*($BO$39:$BO$121=$A146)) -> 0 | BD146: =SUM(BD$39:BD$121*($BO$39:$BO$121=$A146)) -> 0 | BE146: =SUM(BE$39:BE$121*($BO$39:$BO$121=$A146)) -> 0 | BF146: =SUM(BF$39:BF$121*($BO$39:$BO$121=$A146)) -> 0 | BG146: =SUM(BG$39:BG$121*($BO$39:$BO$121=$A146)) -> 0 | BH146: =SUM(BH$39:BH$121*($BO$39:$BO$121=$A146)) -> 0 | BI146: =SUM(BI$39:BI$121*($BO$39:$BO$121=$A146)) -> 0 | BJ146: =SUM(BJ$39:BJ$121*($BO$39:$BO$121=$A146)) -> 0 | BK146: =SUM(BK$39:BK$121*($BO$39:$BO$121=$A146)) -> 0 | BL146: =SUM(BL$39:BL$121*($BO$39:$BO$121=$A146)) -> 0 | BM146: =SUM(BA146:BL146) -> 0
A147: Non-network - In-house software | B147: In-house software | C147: Calculated | D147: $Millions | Y147: =SUM(Y$39:Y$121*($BO$39:$BO$121=$A147)) -> 0 | Z147: =SUM(Z$39:Z$121*($BO$39:$BO$121=$A147)) -> 0 | AA147: =SUM(AA$39:AA$121*($BO$39:$BO$121=$A147)) -> 0 | AB147: =SUM(AB$39:AB$121*($BO$39:$BO$121=$A147)) -> 0 | AC147: =SUM(AC$39:AC$121*($BO$39:$BO$121=$A147)) -> 0 | AD147: =SUM(AD$39:AD$121*($BO$39:$BO$121=$A147)) -> 0 | AE147: =SUM(AE$39:AE$121*($BO$39:$BO$121=$A147)) -> 0 | AF147: =SUM(AF$39:AF$121*($BO$39:$BO$121=$A147)) -> 0 | AG147: =SUM(AG$39:AG$121*($BO$39:$BO$121=$A147)) -> 0 | AH147: =SUM(AH$39:AH$121*($BO$39:$BO$121=$A147)) -> 0 | AI147: =SUM(AI$39:AI$121*($BO$39:$BO$121=$A147)) -> 0 | AJ147: =SUM(AJ$39:AJ$121*($BO$39:$BO$121=$A147)) -> 0 | AK147: 0 | BA147: =SUM(BA$39:BA$121*($BO$39:$BO$121=$A147)) -> 0 | BB147: =SUM(BB$39:BB$121*($BO$39:$BO$121=$A147)) -> 0 | BC147: =SUM(BC$39:BC$121*($BO$39:$BO$121=$A147)) -> 0 | BD147: =SUM(BD$39:BD$121*($BO$39:$BO$121=$A147)) -> 0 | BE147: =SUM(BE$39:BE$121*($BO$39:$BO$121=$A147)) -> 0 | BF147: =SUM(BF$39:BF$121*($BO$39:$BO$121=$A147)) -> 0 | BG147: =SUM(BG$39:BG$121*($BO$39:$BO$121=$A147)) -> 0 | BH147: =SUM(BH$39:BH$121*($BO$39:$BO$121=$A147)) -> 0 | BI147: =SUM(BI$39:BI$121*($BO$39:$BO$121=$A147)) -> 0 | BJ147: =SUM(BJ$39:BJ$121*($BO$39:$BO$121=$A147)) -> 0 | BK147: =SUM(BK$39:BK$121*($BO$39:$BO$121=$A147)) -> 0 | BL147: =SUM(BL$39:BL$121*($BO$39:$BO$121=$A147)) -> 0 | BM147: =SUM(BA147:BL147) -> 0
X149: Total Direct Non Labour | Y149: 0 | Z149: 0 | AA149: 0 | AB149: 0 | AC149: 0 | AD149: 8.330881448 | AE149: 47.52259611 | AF149: 110.9279759 | AG149: 80.49414048 | AH149: 6.783403396 | AI149: 0 | AJ149: 0 | AK149: 254.0589974 | BA149: 0 | BB149: 0 | BC149: 0 | BD149: 0 | BE149: 0 | BF149: 0 | BG149: 21.53813641 | BH149: 93.50779828 | BI149: 121.6764329 | BJ149: 17.33662978 | BK149: 0 | BL149: 0 | BM149: 254.0589974
Y150: =IF(ROUND(Y149-Y123,3)=0,0,1) -> 0 | Z150: =IF(ROUND(Z149-Z123,3)=0,0,1) -> 0 | AA150: 0 | AB150: 0 | AC150: 0 | AD150: 0 | AE150: 0 | AF150: 0 | AG150: 0 | AH150: =IF(ROUND(AH149-AH123,3)=0,0,1) -> 0 | AI150: =IF(ROUND(AI149-AI123,3)=0,0,1) -> 0 | AJ150: =IF(ROUND(AJ149-AJ123,3)=0,0,1) -> 0 | AK150: 0 | BA150: =IF(ROUND(BA149-BA123,3)=0,0,1) -> 0 | BB150: =IF(ROUND(BB149-BB123,3)=0,0,1) -> 0 | BC150: 0 | BD150: 0 | BE150: 0 | BF150: 0 | BG150: 0 | BH150: 0 | BI150: 0 | BJ150: =IF(ROUND(BJ149-BJ123,3)=0,0,1) -> 0 | BK150: =IF(ROUND(BK149-BK123,3)=0,0,1) -> 0 | BL150: =IF(ROUND(BL149-BL123,3)=0,0,1) -> 0 | BM150: =IF(ROUND(BM149-BM123,3)=0,0,1) -> 0
A152: Labour Costs - Direct Labour and Direct Labour Related
A154: Labour Costs | E154: Conversion | H154: Mapping | K154: ="Direct Labour and Direct Labour Related Costs (June "&E169&" dollars, unescalated)" -> Direct Labour and Direct Labour Related Costs (June 2026 dollars, unescalated)
A155: Component | B155: Source | C155: Units | E155: Dollar Yr | F155: Escalation Yr | K155: =K20 -> 2020 | L155: 2021 | M155: 2022 | N155: 2023 | O155: 2024 | P155: 2025 | Q155: 2026 | R155: 2027 | S155: 2028 | T155: 2029 | U155: 2030 | V155: 2031 | W155: Total | X155: FY27 IPF %
A156: Actuals (to 28 February 2025)
A157: Labour - Project management | B157: Transgrid | C157: $Millions | E157: 2026 | F157: n/a | H157: =Inputs!$A$320 -> Project management | K157: 0 | L157: 0.001913651388 | M157: 1.949416785 | N157: 1.911590197 | O157: 4.654244701 | P157: 4.198748615 | W157: =SUM(K157:V157) -> 12.71591395
A158: Labour - Other support and corporate roles | B158: Transgrid | C158: $Millions | E158: =$E$157 -> 2026 | F158: n/a | H158: =Inputs!$A$321 -> Other support and corporate roles | K158: 0 | L158: 0 | M158: 0.08511623355 | N158: 0.03399328801 | O158: 0.4017985817 | P158: 1.030108193 | W158: =SUM(K158:V158) -> 1.551016296
A159: Labour - Regulatory approvals | B159: Transgrid | C159: $Millions | E159: =$E$157 -> 2026 | F159: n/a | H159: =Inputs!$A$322 -> Regulatory approvals | K159: 0 | L159: 0 | M159: 0 | N159: 0 | O159: 0 | P159: 0 | W159: =SUM(K159:V159) -> 0
A160: Labour - Community and stakeholder engagement | B160: Transgrid | C160: $Millions | E160: 2026 | F160: n/a | H160: =Inputs!$A$323 -> Community and stakeholder engagement | K160: 0 | L160: 0.8278272572 | M160: 0.3632917066 | N160: 0.05561078627 | O160: 0.05699230937 | P160: 0.1116219816 | W160: 1.415344041
A161: Labour - Land and Environment | B161: Transgrid | C161: $Millions | E161: 2026 | F161: n/a | H161: =Inputs!$A$324 -> Land and Environment | K161: 0 | L161: 0.5559895238 | M161: 0.4235619644 | N161: 0.4169171365 | O161: 0.9467526751 | P161: 0.8086365838 | W161: 3.151857884
A162: Labour - Transaction Procurement Support | B162: Transgrid | C162: $Millions | E162: 2026 | F162: n/a | H162: =Inputs!$A$325 -> Transaction Procurement Support | K162: 0 | L162: 0 | M162: 0 | N162: 0 | O162: 0 | P162: 0 | W162: 0
A163: Labour - Project Development | B163: Transgrid | C163: $Millions | E163: 2026 | F163: n/a | H163: =Inputs!$A$326 -> Project Development | K163: 0 | L163: 0.00128387456 | M163: 0.7793504628 | N163: 0.8246731542 | O163: 3.002534828 | P163: 2.269789065 | W163: 6.877631385
A164: Labour - Project Controls | B164: Transgrid | C164: $Millions | E164: 2026 | F164: n/a | H164: =Inputs!$A$327 -> Project Controls | K164: 0 | L164: 0 | M164: 0 | N164: 0 | O164: 0 | P164: 0 | W164: 0
A165: Labour - Commercial Management | B165: Transgrid | C165: $Millions | E165: 2026 | F165: n/a | H165: =Inputs!$A$328 -> Commercial Management | K165: 0 | L165: 0 | M165: 0 | N165: 0 | O165: 0 | P165: 0 | W165: 0
A166: Labour - Construction Management | B166: Transgrid | C166: $Millions | E166: 2026 | F166: n/a | H166: =Inputs!$A$329 -> Construction Management | K166: 0 | L166: 0 | M166: 0 | N166: 0 | O166: 0 | P166: 0 | W166: 0
W167: 0
A168: Forecasts (from 1 March 2025)
A169: =A157 -> Labour - Project management | B169: Transgrid | C169: $Millions | E169: =$E$157 -> 2026 | F169: 2026 | H169: =Inputs!$A$320 -> Project management | P169: 0.8276394059 | Q169: 3.082811081 | R169: 4.965721306 | S169: 4.455677292 | T169: 0.9669805227 | W169: =SUM(K169:V169) -> 14.29882961 | X169: 0.4992921512
A170: Labour - Other support and corporate roles | B170: Transgrid | C170: $Millions | E170: 2026 | F170: =F169 -> 2026 | H170: =Inputs!$A$321 -> Other support and corporate roles | P170: 1.265115289 | Q170: 2.868325413 | R170: 3.083407779 | S170: 3.041595116 | T170: 1.214260366 | W170: 11.47270396 | X170: 0.4872001498
A171: Labour - Regulatory approvals | B171: Transgrid | C171: $Millions | E171: 2026 | F171: 2026 | H171: =Inputs!$A$322 -> Regulatory approvals | P171: 0 | Q171: 0 | R171: 0 | S171: 0 | T171: 0 | W171: 0 | X171: 0
A172: Labour - Community and stakeholder engagement | B172: Transgrid | C172: $Millions | E172: 2026 | F172: 2026 | H172: =Inputs!$A$323 -> Community and stakeholder engagement | P172: 0.2618728904 | Q172: 0.5209115386 | R172: 0.1480325725 | S172: 0.1253537133 | T172: 0.04073044405 | W172: 1.096901159 | X172: 0.5
A173: Labour - Land and Environment | B173: Transgrid | C173: $Millions | E173: 2026 | F173: 2026 | H173: =Inputs!$A$324 -> Land and Environment | P173: 0.9913097513 | Q173: 2.486395591 | R173: 2.058989935 | S173: 1.489619095 | T173: 0.3796723987 | W173: 7.405986771 | X173: 0.548508729
A174: Labour - Transaction Procurement Support | B174: Transgrid | C174: $Millions | E174: 2026 | F174: 2026 | H174: =Inputs!$A$325 -> Transaction Procurement Support | P174: 0 | Q174: 0 | R174: 0 | S174: 0 | T174: 0 | W174: 0 | X174: 0
A175: Labour - Project Development | B175: Transgrid | C175: $Millions | E175: 2026 | F175: 2026 | H175: =Inputs!$A$326 -> Project Development | P175: 1.42014245 | Q175: 4.287984887 | R175: 0.8874542999 | S175: 0.585328705 | T175: 0.003745742976 | W175: 7.184656085 | X175: 0.5920771329
A176: Labour - Project Controls | B176: Transgrid | C176: $Millions | E176: 2026 | F176: 2026 | H176: =Inputs!$A$327 -> Project Controls | P176: 0.5025052391 | Q176: 1.427076512 | R176: 1.648138173 | S176: 1.266400498 | T176: 0.04544530265 | W176: 4.889565725 | X176: 0.5
A177: Labour - Commercial Management | B177: Transgrid | C177: $Millions | E177: 2026 | F177: 2026 | H177: =Inputs!$A$328 -> Commercial Management | P177: 0.9869339637 | Q177: 3.084198963 | R177: 4.102147195 | S177: 4.714504382 | T177: 0 | W177: 12.8877845 | X177: 0.2873887726
A178: Labour - Construction Management | B178: Transgrid | C178: $Millions | E178: 2026 | F178: 2026 | H178: =Inputs!$A$329 -> Construction Management | P178: 0.4344865403 | Q178: 1.682137054 | R178: 5.872154171 | S178: 9.373279495 | T178: 0.5576234022 | W178: 17.91968066 | X178: 0.38554944
W179: 0
A180: Total
A181: Labour | B181: Transgrid | C181: $Millions | K181: =SUM(K157:K167,K169:K179) -> 0 | L181: 1.387014307 | M181: 3.600737153 | N181: 3.242784562 | O181: 9.062323096 | P181: 15.10890997 | Q181: 19.43984104 | R181: 22.76604543 | S181: 25.0517583 | T181: 3.20845818 | U181: 0 | V181: 0 | W181: 102.867872 | X181: =IF(ROUND(W181-SUM(K157:V179),3)=0,0,1) -> 0
A183: Note: Direct labour costs for each year are pro-rated across escalated capex by asset class for that year | J183: Total | K183: =K181 -> 0 | L183: =L181 -> 1.387014307 | M183: 3.600737153 | N183: 3.242784562 | O183: 9.062323096 | P183: 15.10890997 | Q183: 19.43984104 | R183: 22.76604543 | S183: 25.0517583 | T183: =T181 -> 3.20845818 | U183: =U181 -> 0 | V183: =V181 -> 0 | W183: =SUM(K183:V183) -> 102.867872
J184: ="Actuals ("&$A$8&")" -> Actuals (Real $2026) | K184: =SUM(K157:K167) -> 0 | L184: =SUM(L157:L167) -> 1.387014307 | M184: 3.600737153 | N184: 3.242784562 | O184: 9.062323096 | P184: 8.418904438 | Q184: 0 | R184: 0 | S184: 0 | T184: 0 | U184: 0 | V184: 0 | W184: =SUM(K184:V184) -> 25.71176356
A185: Note: Input dollar basis conversion factor | E185: =INDEX($J$21:$V$21,,MATCH($A$6,$J$20:$V$20,0))/INDEX($J$21:$V$21,,MATCH(E169,$J$20:$V$20,0)) -> 1 | J185: ="Forecast ("&$A$8&")" -> Forecast (Real $2026) | K185: =SUM(K169:K179)*$E$185 -> 0 | L185: 0 | M185: 0 | N185: 0 | O185: 0 | P185: 6.69000553 | Q185: 19.43984104 | R185: 22.76604543 | S185: 25.0517583 | T185: 3.20845818 | U185: 0 | V185: 0 | W185: =SUM(K185:V185) -> 77.15610848
J186: ="Total ("&$A$8&")" -> Total (Real $2026) | K186: =SUM(K184:K185) -> 0 | L186: =SUM(L184:L185) -> 1.387014307 | M186: 3.600737153 | N186: 3.242784562 | O186: 9.062323096 | P186: 15.10890997 | Q186: 19.43984104 | R186: 22.76604543 | S186: 25.0517583 | T186: 3.20845818 | U186: =SUM(U184:U185) -> 0 | V186: =SUM(V184:V185) -> 0 | W186: =SUM(K186:V186) -> 102.867872
J187: ="Total including escalation ("&$A$8&")" -> Total including escalation (Real $2026) | K187: =K186* IF(K155<$F$169,1,K$22/INDEX(Inputs!$K$22:$V$22,MATCH(Inputs!$F$169,Years,0))) -> 0 | L187: =L186* IF(L155<$F$169,1,L$22/INDEX(Inputs!$K$22:$V$22,MATCH(Inputs!$F$169,Years,0))) -> 1.387014307 | M187: =M186* IF(M155<$F$169,1,M$22/INDEX(Inputs!$K$22:$V$22,MATCH(Inputs!$F$169,Years,0))) -> 3.600737153 | N187: =N186* IF(N155<$F$169,1,N$22/INDEX(Inputs!$K$22:$V$22,MATCH(Inputs!$F$169,Years,0))) -> 3.242784562 | O187: =O186* IF(O155<$F$169,1,O$22/INDEX(Inputs!$K$22:$V$22,MATCH(Inputs!$F$169,Years,0))) -> 9.062323096 | P187: =P186* IF(P155<$F$169,1,P$22/INDEX(Inputs!$K$22:$V$22,MATCH(Inputs!$F$169,Years,0))) -> 15.10890997 | Q187: =Q186* IF(Q155<$F$169,1,Q$22/INDEX(Inputs!$K$22:$V$22,MATCH(Inputs!$F$169,Years,0))) -> 19.43984104 | R187: =R186* IF(R155<$F$169,1,R$22/INDEX(Inputs!$K$22:$V$22,MATCH(Inputs!$F$169,Years,0))) -> 22.86463283 | S187: =S186* IF(S155<$F$169,1,S$22/INDEX(Inputs!$K$22:$V$22,MATCH(Inputs!$F$169,Years,0))) -> 25.23596145 | T187: =T186* IF(T155<$F$169,1,T$22/INDEX(Inputs!$K$22:$V$22,MATCH(Inputs!$F$169,Years,0))) -> 3.243911075 | U187: =U186* IF(U155<$F$169,1,U$22/INDEX(Inputs!$K$22:$V$22,MATCH(Inputs!$F$169,Years,0))) -> 0 | V187: =V186* IF(V155<$F$169,1,V$22/INDEX(Inputs!$K$22:$V$22,MATCH(Inputs!$F$169,Years,0))) -> 0 | W187: =SUM(K187:V187) -> 103.1861155
A189: Indirect Costs - Non Labour and Indirect Labour
A191: Indirect Costs | E191: Conversion | H191: Mapping | K191: ="Indirect Costs (June "&E206&" dollars, unescalated)" -> Indirect Costs (June 2026 dollars, unescalated)
A192: Component | B192: Source | C192: Units | E192: Dollar Yr | F192: Escalation Yr | K192: =K$20 -> 2020 | L192: =L$20 -> 2021 | M192: 2022 | N192: 2023 | O192: 2024 | P192: 2025 | Q192: 2026 | R192: 2027 | S192: 2028 | T192: 2029 | U192: 2030 | V192: 2031 | W192: Total | X192: FY27 IPF %
A193: =A156 -> Actuals (to 28 February 2025)
A194: Non Labour - Project management | B194: Transgrid | C194: $Millions | E194: =$E$157 -> 2026 | F194: n/a | H194: =Inputs!$A$320 -> Project management | K194: 0 | L194: 0.420874051 | M194: 0.5981761091 | N194: 1.195774326 | O194: 5.441549721 | P194: 3.199631861 | W194: =SUM(K194:V194) -> 10.85600607
A195: Non Labour - Other support and corporate roles | B195: Transgrid | C195: $Millions | E195: 2026 | F195: n/a | H195: =Inputs!$A$321 -> Other support and corporate roles | K195: 0 | L195: 0.08005960225 | M195: 0.3554654446 | N195: 0.03375240035 | O195: 1.216683317 | P195: 1.424188864 | W195: =SUM(K195:V195) -> 3.110149628
A196: Non Labour - Regulatory approvals | B196: Transgrid | C196: $Millions | E196: 2026 | F196: n/a | H196: =Inputs!$A$322 -> Regulatory approvals | K196: 0 | L196: 0 | M196: 0 | N196: 0 | O196: 0 | P196: 0 | W196: 0
A197: Non Labour - Community and stakeholder engagement | B197: Transgrid | C197: $Millions | E197: 2026 | F197: n/a | H197: =Inputs!$A$323 -> Community and stakeholder engagement | K197: 0 | L197: 0.2184821433 | M197: 0.248796575 | N197: 0.3782204504 | O197: 0.6441132864 | P197: 0.4756881348 | W197: =SUM(K197:V197) -> 1.96530059
A198: Non Labour - Land and Environment | B198: Transgrid | C198: $Millions | E198: 2026 | F198: n/a | H198: =Inputs!$A$324 -> Land and Environment | K198: 0 | L198: 1.106350458 | M198: -0.2890162395 | N198: 0.1029634209 | O198: 1.613850325 | P198: 1.39299609 | W198: 3.927144054
A199: Non Labour - Transaction Procurement Support | B199: Transgrid | C199: $Millions | E199: 2026 | F199: n/a | H199: =Inputs!$A$325 -> Transaction Procurement Support | K199: 0 | L199: 0 | M199: 0 | N199: 0 | O199: 0 | P199: 0 | W199: 0
A200: Non Labour - Project Development | B200: Transgrid | C200: $Millions | E200: 2026 | F200: n/a | H200: =Inputs!$A$326 -> Project Development | K200: 0 | L200: 1.519056195 | M200: 7.650092689 | N200: 0.1507546327 | O200: -5.153484659 | P200: 0.553638703 | W200: 4.72005756
A201: Non Labour - Project Controls | B201: Transgrid | C201: $Millions | E201: 2026 | F201: n/a | H201: =Inputs!$A$327 -> Project Controls | K201: 0 | L201: 0 | M201: 0 | N201: 0 | O201: 0 | P201: 0 | W201: 0
A202: Non Labour - Commercial Management | B202: Transgrid | C202: $Millions | E202: 2026 | F202: n/a | H202: =Inputs!$A$328 -> Commercial Management | K202: 0 | L202: 0 | M202: 0 | N202: 0 | O202: 0 | P202: 0 | W202: 0
A203: Non Labour - Construction Management | B203: Transgrid | C203: $Millions | E203: 2026 | F203: n/a | H203: =Inputs!$A$329 -> Construction Management | K203: 0 | L203: 0 | M203: 0 | N203: 0 | O203: 0 | P203: 0 | W203: 0
W204: 0
A205: =A168 -> Forecasts (from 1 March 2025)
A206: =A194 -> Non Labour - Project management | B206: Transgrid | C206: $Millions | E206: =$E$157 -> 2026 | F206: n/a | H206: =Inputs!$A$320 -> Project management | P206: 2.543797515 | Q206: 3.987753197 | R206: 3.366848367 | S206: 2.849417621 | T206: 0.441776463 | W206: =SUM(K206:V206) -> 13.18959316 | X206: 0.4995525727
A207: Non Labour - Other support and corporate roles | B207: Transgrid | C207: $Millions | E207: 2026 | F207: n/a | H207: =Inputs!$A$321 -> Other support and corporate roles | P207: 1.213874007 | Q207: 1.38779752 | R207: 1.448272637 | S207: 1.419785244 | T207: 0.5203972999 | W207: 5.990126708 | X207: 0.4883209171
A208: Non Labour - Regulatory approvals | B208: Transgrid | C208: $Millions | E208: 2026 | F208: n/a | H208: =Inputs!$A$322 -> Regulatory approvals | P208: 0 | Q208: 0 | R208: 0 | S208: 0 | T208: 0 | W208: 0 | X208: 0
A209: Non Labour - Community and stakeholder engagement | B209: Transgrid | C209: $Millions | E209: 2026 | F209: n/a | H209: =Inputs!$A$323 -> Community and stakeholder engagement | P209: 0.1978294467 | Q209: 0.2919377223 | R209: 0.06344253106 | S209: 0.05372301998 | T209: 0.01745590459 | W209: 0.6243886246 | X209: 0.5
A210: Non Labour - Land and Environment | B210: Transgrid | C210: $Millions | E210: 2026 | F210: n/a | H210: =Inputs!$A$324 -> Land and Environment | P210: 2.036374452 | Q210: 5.575131448 | R210: 2.377358213 | S210: 1.301530103 | T210: 0.1627167423 | W210: 11.45311096 | X210: 0.5339993662
A211: Non Labour - Transaction Procurement Support | B211: Transgrid | C211: $Millions | E211: 2026 | F211: n/a | H211: =Inputs!$A$325 -> Transaction Procurement Support | P211: 0 | Q211: 0 | R211: 0 | S211: 0 | T211: 0 | W211: 0 | X211: 0
A212: Non Labour - Project Development | B212: Transgrid | C212: $Millions | E212: 2026 | F212: n/a | H212: =Inputs!$A$326 -> Project Development | P212: 2.431469567 | Q212: 4.808354517 | R212: 0.3803375571 | S212: 0.3318617103 | T212: 0.001605318418 | W212: 7.95362867 | X212: 0.5920771329
A213: Non Labour - Project Controls | B213: Transgrid | C213: $Millions | E213: 2026 | F213: n/a | H213: =Inputs!$A$327 -> Project Controls | P213: 0.2153593882 | Q213: 0.6116042192 | R213: 0.7063449313 | S213: 0.5427430707 | T213: 0.01947655828 | W213: 2.095528168 | X213: 0.5
A214: Non Labour - Commercial Management | B214: Transgrid | C214: $Millions | E214: 2026 | F214: n/a | H214: =Inputs!$A$328 -> Commercial Management | P214: 0.4229716987 | Q214: 1.321799556 | R214: 1.758063084 | S214: 2.020501878 | T214: 0 | W214: 5.523336216 | X214: 0.2873887726
A215: Non Labour - Construction Management | B215: Transgrid | C215: $Millions | E215: 2026 | F215: n/a | H215: =Inputs!$A$329 -> Construction Management | P215: 0.1862085173 | Q215: 0.7209158802 | R215: 2.516637502 | S215: 4.017119784 | T215: 0.2389814581 | W215: 7.679863141 | X215: 0.38554944
A216: =A180 -> Total
A217: Non-Labour | B217: Transgrid | C217: $Millions | K217: =SUM(K194:K204,K206:K215) -> 0 | L217: 3.344822449 | M217: 8.563514578 | N217: 1.86146523 | O217: 3.76271199 | P217: 16.29402824 | Q217: 18.70529406 | R217: 12.61730482 | S217: 12.53668243 | T217: 1.402409745 | U217: 0 | V217: 0 | W217: 79.08823355 | X217: =IF(ROUND(W217-SUM(K194:V215),3)=0,0,1) -> 0
A219: Note: Indirect costs for each year are pro-rated across escalated capex (including direct labour costs) by asset class for that year | J219: Total | K219: =K217 -> 0 | L219: =L217 -> 3.344822449 | M219: 8.563514578 | N219: 1.86146523 | O219: 3.76271199 | P219: 16.29402824 | Q219: 18.70529406 | R219: 12.61730482 | S219: 12.53668243 | T219: =T217 -> 1.402409745 | U219: =U217 -> 0 | V219: =V217 -> 0 | W219: =SUM(K219:V219) -> 79.08823355
J220: ="Actuals ("&$A$8&")" -> Actuals (Real $2026) | K220: =SUM(K194:K204) -> 0 | L220: =SUM(L194:L204) -> 3.344822449 | M220: 8.563514578 | N220: 1.86146523 | O220: 3.76271199 | P220: 7.046143652 | Q220: 0 | R220: 0 | S220: 0 | T220: 0 | U220: 0 | V220: 0 | W220: =SUM(K220:V220) -> 24.5786579
A221: Note: Input dollar basis conversion factor | E221: =INDEX($J$21:$V$21,,MATCH($A$6,$J$20:$V$20,0))/INDEX($J$21:$V$21,,MATCH(E206,$J$20:$V$20,0)) -> 1 | J221: ="Forecast ("&$A$8&")" -> Forecast (Real $2026) | K221: =SUM(K206:K215)*$E$221 -> 0 | L221: 0 | M221: 0 | N221: 0 | O221: 0 | P221: 9.247884592 | Q221: 18.70529406 | R221: 12.61730482 | S221: 12.53668243 | T221: 1.402409745 | U221: 0 | V221: 0 | W221: =SUM(K221:V221) -> 54.50957565
J222: ="Total ("&$A$8&")" -> Total (Real $2026) | K222: =SUM(K220:K221) -> 0 | L222: =SUM(L220:L221) -> 3.344822449 | M222: 8.563514578 | N222: 1.86146523 | O222: 3.76271199 | P222: 16.29402824 | Q222: 18.70529406 | R222: 12.61730482 | S222: 12.53668243 | T222: =SUM(T220:T221) -> 1.402409745 | U222: =SUM(U220:U221) -> 0 | V222: =SUM(V220:V221) -> 0 | W222: =SUM(K222:V222) -> 79.08823355
... 97 more rows

Sheet Calculations
A1: Calculations | E1: =Inputs!$A$8 -> Real $2026
B3: Incremental Capital Expenditure (Excluding Equity Raising Costs) by Capex Category | Q3: Total | S3: Mapping | T3: Mapping
B4: Capex category | C4: Dollar basis | D4: Units | E4: =Inputs!K$20 -> 2020 | F4: =Inputs!L$20 -> 2021 | G4: =Inputs!M$20 -> 2022 | H4: =Inputs!N$20 -> 2023 | I4: =Inputs!O$20 -> 2024 | J4: =Inputs!P$20 -> 2025 | K4: =Inputs!Q$20 -> 2026 | L4: =Inputs!R$20 -> 2027 | M4: =Inputs!S$20 -> 2028 | N4: =Inputs!T$20 -> 2029 | O4: =Inputs!U$20 -> 2030 | P4: =Inputs!V$20 -> 2031 | S4: RAB Asset Class | T4: RIN Network and Non network
B6: Direct Non-Labour Costs
B7: =Inputs!$A$242 -> Transmission Lines - Transmission Towers | C7: =Inputs!$A$8 -> Real $2026 | D7: $Million | E7: =Inputs!Y127 -> 0 | F7: =Inputs!Z127 -> 0 | G7: =Inputs!AA127 -> 0 | H7: =Inputs!AB127 -> 0 | I7: =Inputs!AC127 -> 0 | J7: =Inputs!AD127 -> 0 | K7: =Inputs!AE127 -> 0.1756300323 | L7: =Inputs!AF127 -> 4.656087456 | M7: =Inputs!AG127 -> 1.490000056 | N7: =Inputs!AH127 -> 0.576340278 | O7: =Inputs!AI127 -> 0 | P7: =Inputs!AJ127 -> 0 | Q7: =SUM(E7:P7) -> 6.898057822 | S7: =Inputs!B242 -> Transmission Lines | T7: =Inputs!C242 -> Transmission towers
B8: =Inputs!$A$243 -> Transmission Lines - Transmission tower support structures | C8: =Inputs!$A$8 -> Real $2026 | D8: $Million | E8: =Inputs!Y128 -> 0 | F8: =Inputs!Z128 -> 0 | G8: =Inputs!AA128 -> 0 | H8: =Inputs!AB128 -> 0 | I8: =Inputs!AC128 -> 0 | J8: =Inputs!AD128 -> 0 | K8: =Inputs!AE128 -> 0.1863586033 | L8: =Inputs!AF128 -> 1.51623979 | M8: =Inputs!AG128 -> 1.581018495 | N8: =Inputs!AH128 -> 0.6115467146 | O8: =Inputs!AI128 -> 0 | P8: =Inputs!AJ128 -> 0 | Q8: =SUM(E8:P8) -> 3.895163603 | S8: =Inputs!B243 -> Transmission Lines | T8: =Inputs!C243 -> Transmission Tower support structures
B9: =Inputs!$A$244 -> Transmission Lines - Conductors | C9: =Inputs!$A$8 -> Real $2026 | D9: $Million | E9: =Inputs!Y129 -> 0 | F9: =Inputs!Z129 -> 0 | G9: =Inputs!AA129 -> 0 | H9: =Inputs!AB129 -> 0 | I9: =Inputs!AC129 -> 0 | J9: =Inputs!AD129 -> 0 | K9: =Inputs!AE129 -> 0.09440269763 | L9: =Inputs!AF129 -> 0.7680736168 | M9: =Inputs!AG129 -> 0.8008882245 | N9: =Inputs!AH129 -> 0.3097880031 | O9: =Inputs!AI129 -> 0 | P9: =Inputs!AJ129 -> 0 | Q9: 1.973152542 | S9: =Inputs!B244 -> Transmission Lines | T9: =Inputs!C244 -> Conductors
B10: =Inputs!$A$245 -> Transmission Lines - Other non network | C10: =Inputs!$A$8 -> Real $2026 | D10: $Million | E10: =Inputs!Y130 -> 0 | F10: =Inputs!Z130 -> 0 | G10: =Inputs!AA130 -> 0 | H10: =Inputs!AB130 -> 0 | I10: =Inputs!AC130 -> 0 | J10: =Inputs!AD130 -> 0 | K10: =Inputs!AE130 -> 0 | L10: =Inputs!AF130 -> 0 | M10: =Inputs!AG130 -> 0 | N10: =Inputs!AH130 -> 0 | O10: =Inputs!AI130 -> 0 | P10: =Inputs!AJ130 -> 0 | Q10: 0 | S10: =Inputs!B245 -> Transmission Line Life Extension | T10: =Inputs!C245 -> Other non network
B11: =Inputs!$A$246 -> Transmission Lines - Transmission cables | C11: =Inputs!$A$8 -> Real $2026 | D11: $Million | E11: =Inputs!Y131 -> 0 | F11: =Inputs!Z131 -> 0 | G11: =Inputs!AA131 -> 0 | H11: =Inputs!AB131 -> 0 | I11: =Inputs!AC131 -> 0 | J11: =Inputs!AD131 -> 0 | K11: =Inputs!AE131 -> 0 | L11: =Inputs!AF131 -> 0 | M11: =Inputs!AG131 -> 0 | N11: =Inputs!AH131 -> 0 | O11: =Inputs!AI131 -> 0 | P11: =Inputs!AJ131 -> 0 | Q11: =SUM(E11:P11) -> 0 | S11: =Inputs!B246 -> Underground Cables | T11: =Inputs!C246 -> Transmission cables
B12: =Inputs!$A$247 -> Substations - Substation switchbays | C12: =Inputs!$A$8 -> Real $2026 | D12: $Million | E12: =Inputs!Y132 -> 0 | F12: =Inputs!Z132 -> 0 | G12: =Inputs!AA132 -> 0 | H12: =Inputs!AB132 -> 0 | I12: =Inputs!AC132 -> 0 | J12: =Inputs!AD132 -> 0 | K12: =Inputs!AE132 -> 1.591249276 | L12: =Inputs!AF132 -> 1.351487787 | M12: =Inputs!AG132 -> 0.6433632892 | N12: =Inputs!AH132 -> 0.2488564852 | O12: =Inputs!AI132 -> 0 | P12: =Inputs!AJ132 -> 0 | Q12: 3.834956838 | S12: =Inputs!B247 -> Substations | T12: =Inputs!C247 -> Substation switchbays
B13: =Inputs!$A$248 -> Substations - Substation power transformers | C13: =Inputs!$A$8 -> Real $2026 | D13: $Million | E13: =Inputs!Y133 -> 0 | F13: =Inputs!Z133 -> 0 | G13: =Inputs!AA133 -> 0 | H13: =Inputs!AB133 -> 0 | I13: =Inputs!AC133 -> 0 | J13: =Inputs!AD133 -> 0 | K13: =Inputs!AE133 -> 1.205694491 | L13: =Inputs!AF133 -> 0.4502253389 | M13: =Inputs!AG133 -> 0.4694604325 | N13: =Inputs!AH133 -> 0.1815898966 | O13: =Inputs!AI133 -> 0 | P13: =Inputs!AJ133 -> 0 | Q13: 2.306970159 | S13: =Inputs!B248 -> Substations | T13: =Inputs!C248 -> Substation power transformers
B14: =Inputs!$A$249 -> Substations - Substation reactive plant | C14: =Inputs!$A$8 -> Real $2026 | D14: $Million | E14: =Inputs!Y134 -> 0 | F14: =Inputs!Z134 -> 0 | G14: =Inputs!AA134 -> 0 | H14: =Inputs!AB134 -> 0 | I14: =Inputs!AC134 -> 0 | J14: =Inputs!AD134 -> 0 | K14: =Inputs!AE134 -> 0.8970132731 | L14: =Inputs!AF134 -> 0 | M14: =Inputs!AG134 -> 0 | N14: =Inputs!AH134 -> 0 | O14: =Inputs!AI134 -> 0 | P14: =Inputs!AJ134 -> 0 | Q14: 0.8970132731 | S14: =Inputs!B249 -> Substations | T14: =Inputs!C249 -> Substation reactive plant
B15: =Inputs!$A$250 -> Secondary System - SCADA, network control and protection systems | C15: =Inputs!$A$8 -> Real $2026 | D15: $Million | E15: =Inputs!Y135 -> 0 | F15: =Inputs!Z135 -> 0 | G15: =Inputs!AA135 -> 0 | H15: =Inputs!AB135 -> 0 | I15: =Inputs!AC135 -> 0 | J15: =Inputs!AD135 -> 0 | K15: =Inputs!AE135 -> 1.259669539 | L15: =Inputs!AF135 -> 0.3249111974 | M15: =Inputs!AG135 -> 0 | N15: =Inputs!AH135 -> 0 | O15: =Inputs!AI135 -> 0 | P15: =Inputs!AJ135 -> 0 | Q15: 1.584580737 | S15: =Inputs!B250 -> Secondary System | T15: =Inputs!C250 -> SCADA, network control and protection systems
B16: =Inputs!$A$251 -> Communications (short life) - [Spare] | C16: =Inputs!$A$8 -> Real $2026 | D16: $Million | E16: =Inputs!Y136 -> 0 | F16: =Inputs!Z136 -> 0 | G16: =Inputs!AA136 -> 0 | H16: =Inputs!AB136 -> 0 | I16: =Inputs!AC136 -> 0 | J16: =Inputs!AD136 -> 0 | K16: =Inputs!AE136 -> 0 | L16: =Inputs!AF136 -> 0 | M16: =Inputs!AG136 -> 0 | N16: =Inputs!AH136 -> 0 | O16: =Inputs!AI136 -> 0 | P16: =Inputs!AJ136 -> 0 | Q16: 0 | S16: =Inputs!B251 -> Communications (short life) | T16: =Inputs!C251 -> Other non network
B17: =Inputs!$A$252 -> SIPS Control - [Spare] | C17: =Inputs!$A$8 -> Real $2026 | D17: $Million | E17: =Inputs!Y137 -> 0 | F17: =Inputs!Z137 -> 0 | G17: =Inputs!AA137 -> 0 | H17: =Inputs!AB137 -> 0 | I17: =Inputs!AC137 -> 0 | J17: =Inputs!AD137 -> 0 | K17: =Inputs!AE137 -> 0 | L17: =Inputs!AF137 -> 0 | M17: =Inputs!AG137 -> 0 | N17: =Inputs!AH137 -> 0 | O17: =Inputs!AI137 -> 0 | P17: =Inputs!AJ137 -> 0 | Q17: 0 | S17: =Inputs!B252 -> SIPS Control | T17: =Inputs!C252 -> Other non network
B18: =Inputs!$A$253 -> Synchronous condensers - [Spare] | C18: =Inputs!$A$8 -> Real $2026 | D18: $Million | E18: =Inputs!Y138 -> 0 | F18: =Inputs!Z138 -> 0 | G18: =Inputs!AA138 -> 0 | H18: =Inputs!AB138 -> 0 | I18: =Inputs!AC138 -> 0 | J18: =Inputs!AD138 -> 0 | K18: =Inputs!AE138 -> 0 | L18: =Inputs!AF138 -> 0 | M18: =Inputs!AG138 -> 0 | N18: =Inputs!AH138 -> 0 | O18: =Inputs!AI138 -> 0 | P18: =Inputs!AJ138 -> 0 | Q18: 0 | S18: =Inputs!B253 -> Synchronous Condensers | T18: =Inputs!C253 -> Other non network
B19: =Inputs!$A$254 -> Leasehold Land and Property - Other | C19: =Inputs!$A$8 -> Real $2026 | D19: $Million | E19: =Inputs!Y139 -> 0 | F19: =Inputs!Z139 -> 0 | G19: =Inputs!AA139 -> 0 | H19: =Inputs!AB139 -> 0 | I19: =Inputs!AC139 -> 0 | J19: =Inputs!AD139 -> 0 | K19: =Inputs!AE139 -> 0 | L19: =Inputs!AF139 -> 0 | M19: =Inputs!AG139 -> 0 | N19: =Inputs!AH139 -> 0 | O19: =Inputs!AI139 -> 0 | P19: =Inputs!AJ139 -> 0 | Q19: 0 | S19: =Inputs!B254 -> Leasehold Land and Property | T19: =Inputs!C254 -> Other
B20: =Inputs!$A$255 -> Biodiversity offsets - Stewardship sites - Biodiversity Offsets | C20: =Inputs!$A$8 -> Real $2026 | D20: $Million | E20: =Inputs!Y140 -> 0 | F20: =Inputs!Z140 -> 0 | G20: =Inputs!AA140 -> 0 | H20: =Inputs!AB140 -> 0 | I20: =Inputs!AC140 -> 0 | J20: =Inputs!AD140 -> 0 | K20: [C-i-C] | L20: [C-i-C] | M20: [C-i-C] | N20: =Inputs!AH140 -> 0 | O20: =Inputs!AI140 -> 0 | P20: =Inputs!AJ140 -> 0 | Q20: [C-i-C] | S20: =Inputs!B255 -> Biodiversity offsets - Stewardship sites | T20: =Inputs!C255 -> Biodiversity Offsets
B21: =Inputs!$A$256 -> Biodiversity offsets - Direct payments & Other costs - Biodiversity Offsets | C21: =Inputs!$A$8 -> Real $2026 | D21: $Million | E21: =Inputs!Y141 -> 0 | F21: =Inputs!Z141 -> 0 | G21: =Inputs!AA141 -> 0 | H21: =Inputs!AB141 -> 0 | I21: =Inputs!AC141 -> 0 | J21: =Inputs!AD141 -> 0 | K21: [C-i-C] | L21: [C-i-C] | M21: [C-i-C] | N21: =Inputs!AH141 -> 0 | O21: =Inputs!AI141 -> 0 | P21: =Inputs!AJ141 -> 0 | Q21: [C-i-C] | S21: =Inputs!B256 -> Biodiversity offsets - Direct payments & Other costs | T21: =Inputs!C256 -> Biodiversity Offsets
B22: =Inputs!$A$257 -> Land & Easements - Other | C22: =Inputs!$A$8 -> Real $2026 | D22: $Million | E22: =Inputs!Y142 -> 0 | F22: =Inputs!Z142 -> 0 | G22: =Inputs!AA142 -> 0 | H22: =Inputs!AB142 -> 0 | I22: =Inputs!AC142 -> 0 | J22: [C-i-C] | K22: [C-i-C] | L22: [C-i-C] | M22: =Inputs!AG142 -> 0 | N22: =Inputs!AH142 -> 0 | O22: =Inputs!AI142 -> 0 | P22: =Inputs!AJ142 -> 0 | Q22: [C-i-C] | S22: =Inputs!B257 -> Land & Easements | T22: =Inputs!C257 -> Other
B23: =Inputs!$A$258 -> Buildings - capital works - Buildings and Property | C23: =Inputs!$A$8 -> Real $2026 | D23: $Million | E23: =Inputs!Y143 -> 0 | F23: =Inputs!Z143 -> 0 | G23: =Inputs!AA143 -> 0 | H23: =Inputs!AB143 -> 0 | I23: =Inputs!AC143 -> 0 | J23: =Inputs!AD143 -> 0 | K23: =Inputs!AE143 -> 0 | L23: =Inputs!AF143 -> 0 | M23: =Inputs!AG143 -> 0 | N23: =Inputs!AH143 -> 0 | O23: =Inputs!AI143 -> 0 | P23: =Inputs!AJ143 -> 0 | Q23: 0 | S23: =Inputs!B258 -> Buildings - capital works | T23: =Inputs!C258 -> Buildings and Property
B24: =Inputs!$A$259 -> Non-network - Business IT | C24: =Inputs!$A$8 -> Real $2026 | D24: $Million | E24: =Inputs!Y144 -> 0 | F24: =Inputs!Z144 -> 0 | G24: =Inputs!AA144 -> 0 | H24: =Inputs!AB144 -> 0 | I24: =Inputs!AC144 -> 0 | J24: =Inputs!AD144 -> 0 | K24: =Inputs!AE144 -> 0 | L24: =Inputs!AF144 -> 0 | M24: =Inputs!AG144 -> 0 | N24: =Inputs!AH144 -> 0 | O24: =Inputs!AI144 -> 0 | P24: =Inputs!AJ144 -> 0 | Q24: 0 | S24: =Inputs!B259 -> Business IT | T24: =Inputs!C259 -> IT & Communications
B25: =Inputs!$A$260 -> Non-network - Minor Plant, Motor Vehicles & Mobile Plant | C25: =Inputs!$A$8 -> Real $2026 | D25: $Million | E25: =Inputs!Y145 -> 0 | F25: =Inputs!Z145 -> 0 | G25: =Inputs!AA145 -> 0 | H25: =Inputs!AB145 -> 0 | I25: =Inputs!AC145 -> 0 | J25: =Inputs!AD145 -> 0 | K25: =Inputs!AE145 -> 0 | L25: =Inputs!AF145 -> 0 | M25: =Inputs!AG145 -> 0 | N25: =Inputs!AH145 -> 0 | O25: =Inputs!AI145 -> 0 | P25: =Inputs!AJ145 -> 0 | Q25: 0 | S25: =Inputs!B260 -> Minor Plant, Motor Vehicles & Mobile Plant | T25: =Inputs!C260 -> Other non network
B26: =Inputs!$A$261 -> Non-network - Buildings | C26: =Inputs!$A$8 -> Real $2026 | D26: $Million | E26: =Inputs!Y146 -> 0 | F26: =Inputs!Z146 -> 0 | G26: =Inputs!AA146 -> 0 | H26: =Inputs!AB146 -> 0 | I26: =Inputs!AC146 -> 0 | J26: =Inputs!AD146 -> 0 | K26: =Inputs!AE146 -> 0 | L26: =Inputs!AF146 -> 0 | M26: =Inputs!AG146 -> 0 | N26: =Inputs!AH146 -> 0 | O26: =Inputs!AI146 -> 0 | P26: =Inputs!AJ146 -> 0 | Q26: 0 | S26: =Inputs!B261 -> Buildings - capital works | T26: =Inputs!C261 -> Buildings and Property
B27: =Inputs!$A$262 -> Non-network - In-house software | C27: =Inputs!$A$8 -> Real $2026 | D27: $Million | E27: =Inputs!Y147 -> 0 | F27: =Inputs!Z147 -> 0 | G27: =Inputs!AA147 -> 0 | H27: =Inputs!AB147 -> 0 | I27: =Inputs!AC147 -> 0 | J27: =Inputs!AD147 -> 0 | K27: =Inputs!AE147 -> 0 | L27: =Inputs!AF147 -> 0 | M27: =Inputs!AG147 -> 0 | N27: =Inputs!AH147 -> 0 | O27: =Inputs!AI147 -> 0 | P27: =Inputs!AJ147 -> 0 | Q27: 0 | S27: =Inputs!B262 -> In-house software | T27: =Inputs!C262 -> IT & Communications
B28: Sub-Total | C28: =Inputs!$A$8 -> Real $2026 | D28: $Million | E28: 0 | F28: 0 | G28: 0 | H28: 0 | I28: 0 | J28: 8.330881448 | K28: 47.52259611 | L28: 110.9279759 | M28: 80.49414048 | N28: 6.783403396 | O28: 0 | P28: 0 | Q28: 254.0589974
B30: Labour Costs | V30: ← This value is pro-rated over the escalated capital forecast by year and asset class
B31: =Inputs!$A$242 -> Transmission Lines - Transmission Towers | C31: =Inputs!$A$8 -> Real $2026 | D31: $Million | E31: 0 | F31: 0.3708163207 | G31: 0.9626520045 | H31: 0.8669538836 | I31: 2.422799311 | J31: 3.426322591 | K31: 3.312758541 | L31: 6.682502002 | M31: 7.047083883 | N31: 1.452186459 | O31: 0 | P31: 0 | Q31: =SUM(E31:P31) -> 26.544075 | S31: =S7 -> Transmission Lines | T31: Transmission towers
B32: =Inputs!$A$243 -> Transmission Lines - Transmission tower support structures | C32: =Inputs!$A$8 -> Real $2026 | D32: $Million | E32: 0 | F32: 0.3419452315 | G32: 0.8877016575 | H32: 0.7994544195 | I32: 2.234164531 | J32: 3.635623613 | K32: 3.088995063 | L32: 6.043119493 | M32: 6.718886263 | N32: 1.113662269 | O32: 0 | P32: 0 | Q32: =SUM(E32:P32) -> 24.86355254 | S32: Transmission Lines | T32: Transmission Tower support structures
B33: =Inputs!$A$244 -> Transmission Lines - Conductors | C33: =Inputs!$A$8 -> Real $2026 | D33: $Million | E33: 0 | F33: 0.1661539545 | G33: 0.4313414174 | H33: 0.3884613705 | I33: 1.085598621 | J33: 1.841678734 | K33: 1.473089126 | L33: 2.987693762 | M33: 3.240311568 | N33: 0.4722173313 | O33: 0 | P33: 0 | Q33: 12.08654588 | S33: Transmission Lines | T33: Conductors
B34: =Inputs!$A$245 -> Transmission Lines - Other non network | C34: =Inputs!$A$8 -> Real $2026 | D34: $Million | E34: 0 | F34: 0 | G34: 0 | H34: 0 | I34: 0 | J34: 0 | K34: 0 | L34: 0 | M34: 0 | N34: 0 | O34: 0 | P34: 0 | Q34: 0 | S34: Transmission Line Life Extension | T34: Other non network
B35: =Inputs!$A$246 -> Transmission Lines - Transmission cables | C35: =Inputs!$A$8 -> Real $2026 | D35: $Million | E35: 0 | F35: 0 | G35: 0 | H35: 0 | I35: 0 | J35: 0 | K35: 0 | L35: 0 | M35: 0 | N35: 0 | O35: 0 | P35: 0 | Q35: 0 | S35: Underground Cables | T35: Transmission cables
B36: =Inputs!$A$247 -> Substations - Substation switchbays | C36: =Inputs!$A$8 -> Real $2026 | D36: $Million | E36: 0 | F36: 0.1257529098 | G36: 0.3264589067 | H36: 0.2940053266 | I36: 0.821630673 | J36: 1.479443013 | K36: 1.543595841 | L36: 2.343185116 | M36: 2.140686709 | N36: 0.1190063839 | O36: 0 | P36: 0 | Q36: 9.193764879 | S36: Substations | T36: Substation switchbays
B37: =Inputs!$A$248 -> Substations - Substation power transformers | C37: =Inputs!$A$8 -> Real $2026 | D37: $Million | E37: 0 | F37: 0.08907886524 | G37: 0.2312518176 | H37: 0.2082628618 | I37: 0.582013793 | J37: 1.07954552 | K37: 1.144587346 | L37: 1.599344661 | M37: 1.562053237 | N37: 0.08683863284 | O37: 0 | P37: 0 | Q37: 6.582976734 | S37: Substations | T37: Substation power transformers
B38: =Inputs!$A$249 -> Substations - Substation reactive plant | C38: =Inputs!$A$8 -> Real $2026 | D38: $Million | E38: 0 | F38: 0.004897170563 | G38: 0.0127132243 | H38: 0.01144939098 | I38: 0.03199659995 | J38: 0 | K38: 0.3669369282 | L38: 0 | M38: 0 | N38: 0 | O38: 0 | P38: 0 | Q38: 0.427993314 | S38: Substations | T38: Substation reactive plant
B39: =Inputs!$A$250 -> Secondary System - SCADA, network control and protection systems | C39: =Inputs!$A$8 -> Real $2026 | D39: $Million | E39: 0 | F39: 0.09052367752 | G39: 0.2350026003 | H39: 0.2116407758 | I39: 0.5914537502 | J39: 1.155604157 | K39: 1.212559168 | L39: 1.679657222 | M39: 1.514555059 | N39: 0 | O39: 0 | P39: 0 | Q39: 6.69099641 | S39: Secondary System | T39: SCADA, network control and protection systems
B40: =Inputs!$A$251 -> Communications (short life) - [Spare] | C40: =Inputs!$A$8 -> Real $2026 | D40: $Million | E40: 0 | F40: 0 | G40: 0 | H40: 0 | I40: 0 | J40: 0 | K40: 0 | L40: 0 | M40: 0 | N40: 0 | O40: 0 | P40: 0 | Q40: 0 | S40: Communications (short life) | T40: Other non network
B41: =Inputs!$A$252 -> SIPS Control - [Spare] | C41: =Inputs!$A$8 -> Real $2026 | D41: $Million | E41: 0 | F41: 0 | G41: 0 | H41: 0 | I41: 0 | J41: 0 | K41: 0 | L41: 0 | M41: 0 | N41: 0 | O41: 0 | P41: 0 | Q41: 0 | S41: SIPS Control | T41: Other non network
B42: =Inputs!$A$253 -> Synchronous condensers - [Spare] | C42: =Inputs!$A$8 -> Real $2026 | D42: $Million | E42: 0 | F42: 0 | G42: 0 | H42: 0 | I42: 0 | J42: 0 | K42: 0 | L42: 0 | M42: 0 | N42: 0 | O42: 0 | P42: 0 | Q42: 0 | S42: Synchronous Condensers | T42: Other non network
B43: =Inputs!$A$254 -> Leasehold Land and Property - Other | C43: =Inputs!$A$8 -> Real $2026 | D43: $Million | E43: 0 | F43: 0 | G43: 0 | H43: 0 | I43: 0 | J43: 0 | K43: 0 | L43: 0 | M43: 0 | N43: 0 | O43: 0 | P43: 0 | Q43: 0 | S43: Leasehold Land and Property | T43: Other
B44: =Inputs!$A$255 -> Biodiversity offsets - Stewardship sites - Biodiversity Offsets | C44: =Inputs!$A$8 -> Real $2026 | D44: $Million | E44: [C-i-C] | F44: [C-i-C] | G44: [C-i-C] | H44: [C-i-C] | I44: [C-i-C] | J44: [C-i-C] | K44: [C-i-C] | L44: [C-i-C] | M44: [C-i-C] | N44: [C-i-C] | O44: [C-i-C] | P44: [C-i-C] | Q44: [C-i-C] | S44: Biodiversity offsets - Stewardship sites | T44: Biodiversity Offsets
B45: =Inputs!$A$256 -> Biodiversity offsets - Direct payments & Other costs - Biodiversity Offsets | C45: =Inputs!$A$8 -> Real $2026 | D45: $Million | E45: [C-i-C] | F45: [C-i-C] | G45: [C-i-C] | H45: [C-i-C] | I45: [C-i-C] | J45: [C-i-C] | K45: [C-i-C] | L45: [C-i-C] | M45: [C-i-C] | N45: [C-i-C] | O45: [C-i-C] | P45: [C-i-C] | Q45: [C-i-C] | S45: Biodiversity offsets - Direct payments & Other costs | T45: Biodiversity Offsets
B46: =Inputs!$A$257 -> Land & Easements - Other | C46: =Inputs!$A$8 -> Real $2026 | D46: $Million | E46: [C-i-C] | F46: [C-i-C] | G46: [C-i-C] | H46: [C-i-C] | I46: [C-i-C] | J46: [C-i-C] | K46: [C-i-C] | L46: [C-i-C] | M46: [C-i-C] | N46: [C-i-C] | O46: [C-i-C] | P46: [C-i-C] | Q46: [C-i-C] | S46: Land & Easements | T46: Other
B47: =Inputs!$A$258 -> Buildings - capital works - Buildings and Property | C47: =Inputs!$A$8 -> Real $2026 | D47: $Million | E47: 0 | F47: 0 | G47: 0 | H47: 0 | I47: 0 | J47: 0 | K47: 0 | L47: 0 | M47: 0 | N47: 0 | O47: 0 | P47: 0 | Q47: =SUM(E47:P47) -> 0 | S47: Buildings - capital works | T47: Buildings and Property
B48: =Inputs!$A$259 -> Non-network - Business IT | C48: =Inputs!$A$8 -> Real $2026 | D48: $Million | E48: 0 | F48: 0 | G48: 0 | H48: 0 | I48: 0 | J48: 0 | K48: 0 | L48: 0 | M48: 0 | N48: 0 | O48: 0 | P48: 0 | Q48: 0 | S48: Business IT | T48: IT & Communications
B49: =Inputs!$A$260 -> Non-network - Minor Plant, Motor Vehicles & Mobile Plant | C49: =Inputs!$A$8 -> Real $2026 | D49: $Million | E49: 0 | F49: 0 | G49: 0 | H49: 0 | I49: 0 | J49: 0 | K49: 0 | L49: 0 | M49: 0 | N49: 0 | O49: 0 | P49: 0 | Q49: 0 | S49: Minor Plant, Motor Vehicles & Mobile Plant | T49: Other non network
B50: =Inputs!$A$261 -> Non-network - Buildings | C50: =Inputs!$A$8 -> Real $2026 | D50: $Million | E50: 0 | F50: 0 | G50: 0 | H50: 0 | I50: 0 | J50: 0 | K50: 0 | L50: 0 | M50: 0 | N50: 0 | O50: 0 | P50: 0 | Q50: 0 | S50: Buildings - capital works | T50: Buildings and Property
B51: =Inputs!$A$262 -> Non-network - In-house software | C51: =Inputs!$A$8 -> Real $2026 | D51: $Million | E51: 0 | F51: 0 | G51: 0 | H51: 0 | I51: 0 | J51: 0 | K51: 0 | L51: 0 | M51: 0 | N51: 0 | O51: 0 | P51: 0 | Q51: 0 | S51: In-house software | T51: IT & Communications
B52: Sub-Total | C52: =Inputs!$A$8 -> Real $2026 | D52: $Million | E52: 0 | F52: 1.387014307 | G52: 3.600737153 | H52: 3.242784562 | I52: 9.062323096 | J52: 15.10890997 | K52: 19.43984104 | L52: 22.86463283 | M52: 25.23596145 | N52: 3.243911075 | O52: 0 | P52: 0 | Q52: 103.1861155
B54: Indirect Non-Labour Costs | V54: ← This value is pro-rated over the escalated capital forecast (including direct labour costs) by year and asset class
B55: =Inputs!$A$242 -> Transmission Lines - Transmission Towers | C55: =Inputs!$A$8 -> Real $2026 | D55: $Million | E55: 0 | F55: 0.8942335691 | G55: 2.289443557 | H55: 0.4976601066 | I55: 1.005955749 | J55: 3.695077752 | K55: 3.187583815 | L55: 3.687580088 | M55: 3.500839581 | N55: 0.6278101937 | O55: 0 | P55: 0 | Q55: =SUM(E55:P55) -> 19.38618441 | S55: =S31 -> Transmission Lines | T55: Transmission towers
B56: =Inputs!$A$243 -> Transmission Lines - Transmission tower support structures | C56: =Inputs!$A$8 -> Real $2026 | D56: $Million | E56: 0 | F56: 0.8246101579 | G56: 2.111191615 | H56: 0.4589131892 | I56: 0.9276338507 | J56: 3.920796004 | K56: 2.972275385 | L56: 3.334752029 | M56: 3.337798068 | N56: 0.4814591958 | O56: 0 | P56: 0 | Q56: =SUM(E56:P56) -> 18.36942949 | S56: Transmission Lines | T56: Transmission Tower support structures
B57: =Inputs!$A$244 -> Transmission Lines - Conductors | C57: =Inputs!$A$8 -> Real $2026 | D57: $Million | E57: 0 | F57: 0.4006847473 | G57: 1.025845087 | H57: 0.2229896315 | I57: 0.4507447932 | J57: 1.986137012 | K57: 1.417427499 | L57: 1.648687875 | M57: 1.609717038 | N57: 0.2041493036 | O57: 0 | P57: 0 | Q57: =SUM(E57:P57) -> 8.966382987 | S57: Transmission Lines | T57: Conductors
B58: =Inputs!$A$245 -> Transmission Lines - Other non network | C58: =Inputs!$A$8 -> Real $2026 | D58: $Million | E58: 0 | F58: 0 | G58: 0 | H58: 0 | I58: 0 | J58: 0 | K58: 0 | L58: 0 | M58: 0 | N58: 0 | O58: 0 | P58: 0 | Q58: 0 | S58: Transmission Line Life Extension | T58: Other non network
B59: =Inputs!$A$246 -> Transmission Lines - Transmission cables | C59: =Inputs!$A$8 -> Real $2026 | D59: $Million | E59: 0 | F59: 0 | G59: 0 | H59: 0 | I59: 0 | J59: 0 | K59: 0 | L59: 0 | M59: 0 | N59: 0 | O59: 0 | P59: 0 | Q59: 0 | S59: Underground Cables | T59: Transmission cables
B60: =Inputs!$A$247 -> Substations - Substation switchbays | C60: =Inputs!$A$8 -> Real $2026 | D60: $Million | E60: 0 | F60: 0.3032565371 | G60: 0.7764064657 | H60: 0.1687687488 | I60: 0.3411442686 | J60: 1.595488112 | K60: 1.485270073 | L60: 1.293031079 | M60: 1.063447078 | N60: 0.05144891724 | O60: 0 | P60: 0 | Q60: 7.078261279 | S60: Substations | T60: Substation switchbays
B61: =Inputs!$A$248 -> Substations - Substation power transformers | C61: =Inputs!$A$8 -> Real $2026 | D61: $Million | E61: 0 | F61: 0.2148160886 | G61: 0.5499785815 | H61: 0.1195497477 | I61: 0.241654403 | J61: 1.164223311 | K61: 1.101338372 | L61: 0.8825603827 | M61: 0.7759944241 | N61: 0.03754213419 | O61: 0 | P61: 0 | Q61: 5.087657445 | S61: Substations | T61: Substation power transformers
B62: =Inputs!$A$249 -> Substations - Substation reactive plant | C62: =Inputs!$A$8 -> Real $2026 | D62: $Million | E62: 0 | F62: 0.01180965903 | G62: 0.03023544263 | H62: 0.00657232783 | I62: 0.01328511343 | J62: 0 | K62: 0.3530719788 | L62: 0 | M62: 0 | N62: 0 | O62: 0 | P62: 0 | Q62: 0.4149745218 | S62: Substations | T62: Substation reactive plant
B63: =Inputs!$A$250 -> Secondary System - SCADA, network control and protection systems | C63: =Inputs!$A$8 -> Real $2026 | D63: $Million | E63: 0 | F63: 0.2183002924 | G63: 0.5588989444 | H63: 0.1214887816 | I63: 0.2455739101 | J63: 1.246247864 | K63: 1.166741834 | L63: 0.926878963 | M63: 0.752398352 | N63: 0 | O63: 0 | P63: 0 | Q63: 5.236528942 | S63: Secondary System | T63: SCADA, network control and protection systems
B64: =Inputs!$A$251 -> Communications (short life) - [Spare] | C64: =Inputs!$A$8 -> Real $2026 | D64: $Million | E64: 0 | F64: 0 | G64: 0 | H64: 0 | I64: 0 | J64: 0 | K64: 0 | L64: 0 | M64: 0 | N64: 0 | O64: 0 | P64: 0 | Q64: 0 | S64: Communications (short life) | T64: Other non network
B65: =Inputs!$A$252 -> SIPS Control - [Spare] | C65: =Inputs!$A$8 -> Real $2026 | D65: $Million | E65: 0 | F65: 0 | G65: 0 | H65: 0 | I65: 0 | J65: 0 | K65: 0 | L65: 0 | M65: 0 | N65: 0 | O65: 0 | P65: 0 | Q65: 0 | S65: SIPS Control | T65: Other non network
B66: =Inputs!$A$253 -> Synchronous condensers - [Spare] | C66: =Inputs!$A$8 -> Real $2026 | D66: $Million | E66: 0 | F66: 0 | G66: 0 | H66: 0 | I66: 0 | J66: 0 | K66: 0 | L66: 0 | M66: 0 | N66: 0 | O66: 0 | P66: 0 | Q66: 0 | S66: Synchronous Condensers | T66: Other non network
B67: =Inputs!$A$254 -> Leasehold Land and Property - Other | C67: =Inputs!$A$8 -> Real $2026 | D67: $Million | E67: 0 | F67: 0 | G67: 0 | H67: 0 | I67: 0 | J67: 0 | K67: 0 | L67: 0 | M67: 0 | N67: 0 | O67: 0 | P67: 0 | Q67: 0 | S67: Leasehold Land and Property | T67: Other
B68: =Inputs!$A$255 -> Biodiversity offsets - Stewardship sites - Biodiversity Offsets | C68: =Inputs!$A$8 -> Real $2026 | D68: $Million | E68: [C-i-C] | F68: [C-i-C] | G68: [C-i-C] | H68: [C-i-C] | I68: [C-i-C] | J68: [C-i-C] | K68: [C-i-C] | L68: [C-i-C] | M68: [C-i-C] | N68: [C-i-C] | O68: [C-i-C] | P68: [C-i-C] | Q68: [C-i-C] | S68: Biodiversity offsets - Stewardship sites | T68: Biodiversity Offsets
B69: =Inputs!$A$256 -> Biodiversity offsets - Direct payments & Other costs - Biodiversity Offsets | C69: =Inputs!$A$8 -> Real $2026 | D69: $Million | E69: [C-i-C] | F69: [C-i-C] | G69: [C-i-C] | H69: [C-i-C] | I69: [C-i-C] | J69: [C-i-C] | K69: [C-i-C] | L69: [C-i-C] | M69: [C-i-C] | N69: [C-i-C] | O69: [C-i-C] | P69: [C-i-C] | Q69: [C-i-C] | S69: Biodiversity offsets - Direct payments & Other costs | T69: Biodiversity Offsets
B70: =Inputs!$A$257 -> Land & Easements - Other | C70: =Inputs!$A$8 -> Real $2026 | D70: $Million | E70: [C-i-C] | F70: [C-i-C] | G70: [C-i-C] | H70: [C-i-C] | I70: [C-i-C] | J70: [C-i-C] | K70: [C-i-C] | L70: [C-i-C] | M70: [C-i-C] | N70: [C-i-C] | O70: [C-i-C] | P70: [C-i-C] | Q70: [C-i-C] | S70: Land & Easements | T70: Other
B71: =Inputs!$A$258 -> Buildings - capital works - Buildings and Property | C71: =Inputs!$A$8 -> Real $2026 | D71: $Million | E71: 0 | F71: 0 | G71: 0 | H71: 0 | I71: 0 | J71: 0 | K71: 0 | L71: 0 | M71: 0 | N71: 0 | O71: 0 | P71: 0 | Q71: =SUM(E71:P71) -> 0 | S71: Buildings - capital works | T71: Buildings and Property
B72: =Inputs!$A$259 -> Non-network - Business IT | C72: =Inputs!$A$8 -> Real $2026 | D72: $Million | E72: 0 | F72: 0 | G72: 0 | H72: 0 | I72: 0 | J72: 0 | K72: 0 | L72: 0 | M72: 0 | N72: 0 | O72: 0 | P72: 0 | Q72: 0 | S72: Business IT | T72: IT & Communications
B73: =Inputs!$A$260 -> Non-network - Minor Plant, Motor Vehicles & Mobile Plant | C73: =Inputs!$A$8 -> Real $2026 | D73: $Million | E73: 0 | F73: 0 | G73: 0 | H73: 0 | I73: 0 | J73: 0 | K73: 0 | L73: 0 | M73: 0 | N73: 0 | O73: 0 | P73: 0 | Q73: 0 | S73: Minor Plant, Motor Vehicles & Mobile Plant | T73: Other non network
B74: =Inputs!$A$261 -> Non-network - Buildings | C74: =Inputs!$A$8 -> Real $2026 | D74: $Million | E74: 0 | F74: 0 | G74: 0 | H74: 0 | I74: 0 | J74: 0 | K74: 0 | L74: 0 | M74: 0 | N74: 0 | O74: 0 | P74: 0 | Q74: 0 | S74: Buildings - capital works | T74: Buildings and Property
B75: =Inputs!$A$262 -> Non-network - In-house software | C75: =Inputs!$A$8 -> Real $2026 | D75: $Million | E75: 0 | F75: 0 | G75: 0 | H75: 0 | I75: 0 | J75: 0 | K75: 0 | L75: 0 | M75: 0 | N75: 0 | O75: 0 | P75: 0 | Q75: 0 | S75: In-house software | T75: IT & Communications
B76: Sub-Total | C76: =Inputs!$A$8 -> Real $2026 | D76: $Million | E76: 0 | F76: 3.344822449 | G76: 8.563514578 | H76: 1.86146523 | I76: 3.76271199 | J76: 16.29402824 | K76: 18.70529406 | L76: 12.61730482 | M76: 12.53668243 | N76: 1.402409745 | O76: 0 | P76: 0 | Q76: 79.08823355
B78: Total
B79: =Inputs!$A$242 -> Transmission Lines - Transmission Towers | C79: =Inputs!$A$8 -> Real $2026 | D79: $Million | E79: =E7+E31+E55 -> 0 | F79: 1.26504989 | G79: 3.252095561 | H79: 1.36461399 | I79: 3.42875506 | J79: 7.121400343 | K79: 6.675972389 | L79: 15.02616955 | M79: 12.03792352 | N79: 2.65633693 | O79: =O7+O31+O55 -> 0 | P79: 0 | Q79: =SUM(E79:P79) -> 52.82831723 | S79: =S55 -> Transmission Lines | T79: Transmission towers
B80: =Inputs!$A$243 -> Transmission Lines - Transmission tower support structures | C80: =Inputs!$A$8 -> Real $2026 | D80: $Million | E80: =E8+E32+E56 -> 0 | F80: 1.166555389 | G80: 2.998893273 | H80: 1.258367609 | I80: 3.161798382 | J80: 7.556419617 | K80: 6.247629051 | L80: 10.89411131 | M80: 11.63770283 | N80: 2.206668179 | O80: 0 | P80: 0 | Q80: =SUM(E80:P80) -> 47.12814564 | S80: Transmission Lines | T80: Transmission Tower support structures
B81: =Inputs!$A$244 -> Transmission Lines - Conductors | C81: =Inputs!$A$8 -> Real $2026 | D81: $Million | E81: =E9+E33+E57 -> 0 | F81: 0.5668387019 | G81: 1.457186504 | H81: 0.611451002 | I81: 1.536343415 | J81: 3.827815746 | K81: 2.984919323 | L81: 5.404455253 | M81: 5.650916831 | N81: 0.9861546379 | O81: 0 | P81: 0 | Q81: 23.02608141 | S81: Transmission Lines | T81: Conductors
B82: =Inputs!$A$245 -> Transmission Lines - Other non network | C82: =Inputs!$A$8 -> Real $2026 | D82: $Million | E82: =E10+E34+E58 -> 0 | F82: 0 | G82: 0 | H82: 0 | I82: 0 | J82: 0 | K82: 0 | L82: 0 | M82: 0 | N82: 0 | O82: 0 | P82: 0 | Q82: 0 | S82: Transmission Line Life Extension | T82: Other non network
B83: =Inputs!$A$246 -> Transmission Lines - Transmission cables | C83: =Inputs!$A$8 -> Real $2026 | D83: $Million | E83: =E11+E35+E59 -> 0 | F83: 0 | G83: 0 | H83: 0 | I83: 0 | J83: 0 | K83: 0 | L83: 0 | M83: 0 | N83: 0 | O83: 0 | P83: 0 | Q83: 0 | S83: Underground Cables | T83: Transmission cables
B84: =Inputs!$A$247 -> Substations - Substation switchbays | C84: =Inputs!$A$8 -> Real $2026 | D84: $Million | E84: =E12+E36+E60 -> 0 | F84: 0.4290094468 | G84: 1.102865372 | H84: 0.4627740754 | I84: 1.162774942 | J84: 3.074931125 | K84: 4.62011519 | L84: 4.987703983 | M84: 3.847497076 | N84: 0.4193117864 | O84: 0 | P84: 0 | Q84: 20.106983 | S84: Substations | T84: Substation switchbays
B85: =Inputs!$A$248 -> Substations - Substation power transformers | C85: =Inputs!$A$8 -> Real $2026 | D85: $Million | E85: =E13+E37+E61 -> 0 | F85: 0.3038949538 | G85: 0.7812303991 | H85: 0.3278126095 | I85: 0.823668196 | J85: 2.243768832 | K85: 3.45162021 | L85: 2.932130382 | M85: 2.807508093 | N85: 0.3059706637 | O85: 0 | P85: 0 | Q85: 13.97760434 | S85: Substations | T85: Substation power transformers
B86: =Inputs!$A$249 -> Substations - Substation reactive plant | C86: =Inputs!$A$8 -> Real $2026 | D86: $Million | E86: =E14+E38+E62 -> 0 | F86: 0.0167068296 | G86: 0.04294866693 | H86: 0.01802171881 | I86: 0.04528171338 | J86: 0 | K86: 1.61702218 | L86: 0 | M86: 0 | N86: 0 | O86: 0 | P86: 0 | Q86: 1.739981109 | S86: Substations | T86: Substation reactive plant
B87: =Inputs!$A$250 -> Secondary System - SCADA, network control and protection systems | C87: =Inputs!$A$8 -> Real $2026 | D87: $Million | E87: =E15+E39+E63 -> 0 | F87: 0.3088239699 | G87: 0.7939015448 | H87: 0.3331295574 | I87: 0.8370276604 | J87: 2.401852021 | K87: 3.638970541 | L87: 2.931447382 | M87: 2.266953411 | N87: 0 | O87: 0 | P87: 0 | Q87: 13.51210609 | S87: Secondary System | T87: SCADA, network control and protection systems
B88: =Inputs!$A$251 -> Communications (short life) - [Spare] | C88: =Inputs!$A$8 -> Real $2026 | D88: $Million | E88: =E16+E40+E64 -> 0 | F88: 0 | G88: 0 | H88: 0 | I88: 0 | J88: 0 | K88: 0 | L88: 0 | M88: 0 | N88: 0 | O88: 0 | P88: 0 | Q88: 0 | S88: Communications (short life) | T88: Other non network
B89: =Inputs!$A$252 -> SIPS Control - [Spare] | C89: =Inputs!$A$8 -> Real $2026 | D89: $Million | E89: =E17+E41+E65 -> 0 | F89: 0 | G89: 0 | H89: 0 | I89: 0 | J89: 0 | K89: 0 | L89: 0 | M89: 0 | N89: 0 | O89: 0 | P89: 0 | Q89: 0 | S89: SIPS Control | T89: Other non network
B90: =Inputs!$A$253 -> Synchronous condensers - [Spare] | C90: =Inputs!$A$8 -> Real $2026 | D90: $Million | E90: =E18+E42+E66 -> 0 | F90: 0 | G90: 0 | H90: 0 | I90: 0 | J90: 0 | K90: 0 | L90: 0 | M90: 0 | N90: 0 | O90: 0 | P90: 0 | Q90: 0 | S90: Synchronous Condensers | T90: Other non network
B91: =Inputs!$A$254 -> Leasehold Land and Property - Other | C91: =Inputs!$A$8 -> Real $2026 | D91: $Million | E91: =E19+E43+E67 -> 0 | F91: 0 | G91: 0 | H91: 0 | I91: 0 | J91: 0 | K91: 0 | L91: 0 | M91: 0 | N91: 0 | O91: 0 | P91: 0 | Q91: 0 | S91: Leasehold Land and Property | T91: Other
B92: =Inputs!$A$255 -> Biodiversity offsets - Stewardship sites - Biodiversity Offsets | C92: =Inputs!$A$8 -> Real $2026 | D92: $Million | E92: [C-i-C] | F92: [C-i-C] | G92: [C-i-C] | H92: [C-i-C] | I92: [C-i-C] | J92: [C-i-C] | K92: [C-i-C] | L92: [C-i-C] | M92: [C-i-C] | N92: [C-i-C] | O92: [C-i-C] | P92: [C-i-C] | Q92: [C-i-C] | S92: Biodiversity offsets - Stewardship sites | T92: Biodiversity Offsets
B93: =Inputs!$A$256 -> Biodiversity offsets - Direct payments & Other costs - Biodiversity Offsets | C93: =Inputs!$A$8 -> Real $2026 | D93: $Million | E93: [C-i-C] | F93: [C-i-C] | G93: [C-i-C] | H93: [C-i-C] | I93: [C-i-C] | J93: [C-i-C] | K93: [C-i-C] | L93: [C-i-C] | M93: [C-i-C] | N93: [C-i-C] | O93: [C-i-C] | P93: [C-i-C] | Q93: [C-i-C] | S93: Biodiversity offsets - Direct payments & Other costs | T93: Biodiversity Offsets
B94: =Inputs!$A$257 -> Land & Easements - Other | C94: =Inputs!$A$8 -> Real $2026 | D94: $Million | E94: [C-i-C] | F94: [C-i-C] | G94: [C-i-C] | H94: [C-i-C] | I94: [C-i-C] | J94: [C-i-C] | K94: [C-i-C] | L94: [C-i-C] | M94: [C-i-C] | N94: [C-i-C] | O94: [C-i-C] | P94: [C-i-C] | Q94: [C-i-C] | S94: Land & Easements | T94: Other
B95: =Inputs!$A$258 -> Buildings - capital works - Buildings and Property | C95: =Inputs!$A$8 -> Real $2026 | D95: $Million | E95: =E23+E47+E71 -> 0 | F95: 0 | G95: 0 | H95: 0 | I95: 0 | J95: 0 | K95: 0 | L95: 0 | M95: 0 | N95: 0 | O95: 0 | P95: 0 | Q95: =SUM(E95:P95) -> 0 | S95: Buildings - capital works | T95: Buildings and Property
B96: =Inputs!$A$259 -> Non-network - Business IT | C96: =Inputs!$A$8 -> Real $2026 | D96: $Million | E96: =E24+E48+E72 -> 0 | F96: 0 | G96: 0 | H96: 0 | I96: 0 | J96: 0 | K96: 0 | L96: 0 | M96: 0 | N96: 0 | O96: 0 | P96: 0 | Q96: 0 | S96: Business IT | T96: IT & Communications
B97: =Inputs!$A$260 -> Non-network - Minor Plant, Motor Vehicles & Mobile Plant | C97: =Inputs!$A$8 -> Real $2026 | D97: $Million | E97: =E25+E49+E73 -> 0 | F97: 0 | G97: 0 | H97: 0 | I97: 0 | J97: 0 | K97: 0 | L97: 0 | M97: 0 | N97: 0 | O97: 0 | P97: 0 | Q97: 0 | S97: Minor Plant, Motor Vehicles & Mobile Plant | T97: Other non network
B98: =Inputs!$A$261 -> Non-network - Buildings | C98: =Inputs!$A$8 -> Real $2026 | D98: $Million | E98: =E26+E50+E74 -> 0 | F98: 0 | G98: 0 | H98: 0 | I98: 0 | J98: 0 | K98: 0 | L98: 0 | M98: 0 | N98: 0 | O98: 0 | P98: 0 | Q98: 0 | S98: Buildings - capital works | T98: Buildings and Property
B99: =Inputs!$A$262 -> Non-network - In-house software | C99: =Inputs!$A$8 -> Real $2026 | D99: $Million | E99: =E27+E51+E75 -> 0 | F99: 0 | G99: 0 | H99: 0 | I99: 0 | J99: 0 | K99: 0 | L99: 0 | M99: 0 | N99: 0 | O99: 0 | P99: 0 | Q99: 0 | S99: In-house software | T99: IT & Communications
B100: Total | C100: =Inputs!$A$8 -> Real $2026 | D100: $Million | E100: 0 | F100: 4.731836756 | G100: 12.16425173 | H100: 5.104249792 | I100: 12.82503509 | J100: 39.73381966 | K100: 85.6677312 | L100: 146.4099136 | M100: 118.2667844 | N100: 11.42972422 | O100: 0 | P100: 0 | Q100: 436.3333464
A102: =IF(SUM(E102:Q102)=0,0,1) -> 0 | B102: ="Check "&$B$109 -> Check Direct Non-Labour | E102: =IF(ROUND(E$28-Inputs!Y149,3)=0,0,1) -> 0 | F102: =IF(ROUND(F$28-Inputs!Z149,3)=0,0,1) -> 0 | G102: =IF(ROUND(G$28-Inputs!AA149,3)=0,0,1) -> 0 | H102: =IF(ROUND(H$28-Inputs!AB149,3)=0,0,1) -> 0 | I102: =IF(ROUND(I$28-Inputs!AC149,3)=0,0,1) -> 0 | J102: =IF(ROUND(J$28-Inputs!AD149,3)=0,0,1) -> 0 | K102: =IF(ROUND(K$28-Inputs!AE149,3)=0,0,1) -> 0 | L102: =IF(ROUND(L$28-Inputs!AF149,3)=0,0,1) -> 0 | M102: =IF(ROUND(M$28-Inputs!AG149,3)=0,0,1) -> 0 | N102: =IF(ROUND(N$28-Inputs!AH149,3)=0,0,1) -> 0 | O102: =IF(ROUND(O$28-Inputs!AI149,3)=0,0,1) -> 0 | P102: =IF(ROUND(P$28-Inputs!AJ149,3)=0,0,1) -> 0 | Q102: =IF(ROUND(Q$28-Inputs!AK149,3)=0,0,1) -> 0
A103: =IF(SUM(E103:Q103)=0,0,1) -> 0 | B103: ="Check "&$B$113 -> Check Labour Costs | E103: =IF(ROUND(E$52-Inputs!K187,3)=0,0,1) -> 0 | F103: =IF(ROUND(F$52-Inputs!L187,3)=0,0,1) -> 0 | G103: =IF(ROUND(G$52-Inputs!M187,3)=0,0,1) -> 0 | H103: =IF(ROUND(H$52-Inputs!N187,3)=0,0,1) -> 0 | I103: =IF(ROUND(I$52-Inputs!O187,3)=0,0,1) -> 0 | J103: =IF(ROUND(J$52-Inputs!P187,3)=0,0,1) -> 0 | K103: =IF(ROUND(K$52-Inputs!Q187,3)=0,0,1) -> 0 | L103: =IF(ROUND(L$52-Inputs!R187,3)=0,0,1) -> 0 | M103: =IF(ROUND(M$52-Inputs!S187,3)=0,0,1) -> 0 | N103: =IF(ROUND(N$52-Inputs!T187,3)=0,0,1) -> 0 | O103: =IF(ROUND(O$52-Inputs!U187,3)=0,0,1) -> 0 | P103: =IF(ROUND(P$52-Inputs!V187,3)=0,0,1) -> 0 | Q103: =IF(ROUND(Q$52-Inputs!W187,3)=0,0,1) -> 0
A104: =IF(SUM(E104:Q104)=0,0,1) -> 0 | B104: ="Check "&$B$118 -> Check Indirect Non-Labour Costs | E104: =IF(ROUND(E$76-Inputs!K222,3)=0,0,1) -> 0 | F104: =IF(ROUND(F$76-Inputs!L222,3)=0,0,1) -> 0 | G104: =IF(ROUND(G$76-Inputs!M222,3)=0,0,1) -> 0 | H104: =IF(ROUND(H$76-Inputs!N222,3)=0,0,1) -> 0 | I104: =IF(ROUND(I$76-Inputs!O222,3)=0,0,1) -> 0 | J104: =IF(ROUND(J$76-Inputs!P222,3)=0,0,1) -> 0 | K104: =IF(ROUND(K$76-Inputs!Q222,3)=0,0,1) -> 0 | L104: =IF(ROUND(L$76-Inputs!R222,3)=0,0,1) -> 0 | M104: =IF(ROUND(M$76-Inputs!S222,3)=0,0,1) -> 0 | N104: =IF(ROUND(N$76-Inputs!T222,3)=0,0,1) -> 0 | O104: =IF(ROUND(O$76-Inputs!U222,3)=0,0,1) -> 0 | P104: =IF(ROUND(P$76-Inputs!V222,3)=0,0,1) -> 0 | Q104: =IF(ROUND(Q$76-Inputs!W222,3)=0,0,1) -> 0
B106: Incremental Capital Expenditure (Excluding Equity Raising Costs) by Driver | Q106: Total
B107: Component | C107: Dollar basis | D107: Units | E107: =Inputs!K$20 -> 2020 | F107: =Inputs!L$20 -> 2021 | G107: =Inputs!M$20 -> 2022 | H107: =Inputs!N$20 -> 2023 | I107: =Inputs!O$20 -> 2024 | J107: =Inputs!P$20 -> 2025 | K107: =Inputs!Q$20 -> 2026 | L107: =Inputs!R$20 -> 2027 | M107: =Inputs!S$20 -> 2028 | N107: =Inputs!T$20 -> 2029 | O107: =Inputs!U$20 -> 2030 | P107: =Inputs!V$20 -> 2031
B109: Direct Non-Labour
B110: Non-Labour | C110: =Inputs!$A$8 -> Real $2026 | D110: $Million | E110: =Inputs!Y149 -> 0 | F110: =Inputs!Z149 -> 0 | G110: =Inputs!AA149 -> 0 | H110: =Inputs!AB149 -> 0 | I110: =Inputs!AC149 -> 0 | J110: =Inputs!AD149 -> 8.330881448 | K110: =Inputs!AE149 -> 47.52259611 | L110: =Inputs!AF149 -> 110.9279759 | M110: =Inputs!AG149 -> 80.49414048 | N110: =Inputs!AH149 -> 6.783403396 | O110: =Inputs!AI149 -> 0 | P110: =Inputs!AJ149 -> 0 | Q110: =SUM(E110:P110) -> 254.0589974
B111: Sub-Total | C111: =Inputs!$A$8 -> Real $2026 | D111: $Million | E111: =SUM(E110:E110) -> 0 | F111: 0 | G111: 0 | H111: 0 | I111: 0 | J111: 8.330881448 | K111: =SUM(K110:K110) -> 47.52259611 | L111: 110.9279759 | M111: 80.49414048 | N111: =SUM(N110:N110) -> 6.783403396 | O111: =SUM(O110:O110) -> 0 | P111: =SUM(P110:P110) -> 0 | Q111: 254.0589974
B113: Labour Costs
B114: Labour | C114: =Inputs!$A$8 -> Real $2026 | D114: $Million | E114: =Inputs!K$186 -> 0 | F114: =Inputs!L$186 -> 1.387014307 | G114: =Inputs!M$186 -> 3.600737153 | H114: =Inputs!N$186 -> 3.242784562 | I114: =Inputs!O$186 -> 9.062323096 | J114: =Inputs!P$186 -> 15.10890997 | K114: =Inputs!Q$186 -> 19.43984104 | L114: =Inputs!R$186 -> 22.76604543 | M114: =Inputs!S$186 -> 25.0517583 | N114: =Inputs!T$186 -> 3.20845818 | O114: =Inputs!U$186 -> 0 | P114: =Inputs!V$186 -> 0 | Q114: =SUM(E114:P114) -> 102.867872
B115: Labour Escalation | C115: =Inputs!$A$8 -> Real $2026 | D115: $Million | E115: =E114* IF(E4<Inputs!$F$169,1,Inputs!K$22/INDEX(Inputs!$K$22:$V$22,MATCH(Inputs!$F$169,Years,0)))-E114 -> 0 | F115: =F114* IF(F4<Inputs!$F$169,1,Inputs!L$22/INDEX(Inputs!$K$22:$V$22,MATCH(Inputs!$F$169,Years,0)))-F114 -> 0 | G115: =G114* IF(G4<Inputs!$F$169,1,Inputs!M$22/INDEX(Inputs!$K$22:$V$22,MATCH(Inputs!$F$169,Years,0)))-G114 -> 0 | H115: =H114* IF(H4<Inputs!$F$169,1,Inputs!N$22/INDEX(Inputs!$K$22:$V$22,MATCH(Inputs!$F$169,Years,0)))-H114 -> 0 | I115: =I114* IF(I4<Inputs!$F$169,1,Inputs!O$22/INDEX(Inputs!$K$22:$V$22,MATCH(Inputs!$F$169,Years,0)))-I114 -> 0 | J115: =J114* IF(J4<Inputs!$F$169,1,Inputs!P$22/INDEX(Inputs!$K$22:$V$22,MATCH(Inputs!$F$169,Years,0)))-J114 -> 0 | K115: =K114* IF(K4<Inputs!$F$169,1,Inputs!Q$22/INDEX(Inputs!$K$22:$V$22,MATCH(Inputs!$F$169,Years,0)))-K114 -> 0 | L115: =L114* IF(L4<Inputs!$F$169,1,Inputs!R$22/INDEX(Inputs!$K$22:$V$22,MATCH(Inputs!$F$169,Years,0)))-L114 -> 0.09858739415 | M115: =M114* IF(M4<Inputs!$F$169,1,Inputs!S$22/INDEX(Inputs!$K$22:$V$22,MATCH(Inputs!$F$169,Years,0)))-M114 -> 0.1842031502 | N115: =N114* IF(N4<Inputs!$F$169,1,Inputs!T$22/INDEX(Inputs!$K$22:$V$22,MATCH(Inputs!$F$169,Years,0)))-N114 -> 0.03545289564 | O115: =O114* IF(O4<Inputs!$F$169,1,Inputs!U$22/INDEX(Inputs!$K$22:$V$22,MATCH(Inputs!$F$169,Years,0)))-O114 -> 0 | P115: =P114* IF(P4<Inputs!$F$169,1,Inputs!V$22/INDEX(Inputs!$K$22:$V$22,MATCH(Inputs!$F$169,Years,0)))-P114 -> 0 | Q115: =SUM(E115:P115) -> 0.31824344
B116: Sub-Total | C116: =Inputs!$A$8 -> Real $2026 | D116: $Million | E116: =SUM(E114:E115) -> 0 | F116: 1.387014307 | G116: 3.600737153 | H116: 3.242784562 | I116: 9.062323096 | J116: 15.10890997 | K116: =SUM(K114:K115) -> 19.43984104 | L116: 22.86463283 | M116: 25.23596145 | N116: =SUM(N114:N115) -> 3.243911075 | O116: =SUM(O114:O115) -> 0 | P116: =SUM(P114:P115) -> 0 | Q116: 103.1861155
B118: Indirect Non-Labour Costs
B119: Non-Labour | C119: =Inputs!$A$8 -> Real $2026 | D119: $Million | E119: =Inputs!K$222 -> 0 | F119: =Inputs!L$222 -> 3.344822449 | G119: =Inputs!M$222 -> 8.563514578 | H119: =Inputs!N$222 -> 1.86146523 | I119: =Inputs!O$222 -> 3.76271199 | J119: =Inputs!P$222 -> 16.29402824 | K119: =Inputs!Q$222 -> 18.70529406 | L119: =Inputs!R$222 -> 12.61730482 | M119: =Inputs!S$222 -> 12.53668243 | N119: =Inputs!T$222 -> 1.402409745 | O119: =Inputs!U$222 -> 0 | P119: =Inputs!V$222 -> 0 | Q119: =SUM(E119:P119) -> 79.08823355
B120: Sub-Total | C120: =Inputs!$A$8 -> Real $2026 | D120: $Million | E120: =SUM(E119:E119) -> 0 | F120: 3.344822449 | G120: 8.563514578 | H120: 1.86146523 | I120: 3.76271199 | J120: 16.29402824 | K120: =SUM(K119:K119) -> 18.70529406 | L120: 12.61730482 | M120: 12.53668243 | N120: =SUM(N119:N119) -> 1.402409745 | O120: =SUM(O119:O119) -> 0 | P120: =SUM(P119:P119) -> 0 | Q120: 79.08823355
B122: Total
B123: Labour | C123: =Inputs!$A$8 -> Real $2026 | D123: $Million | E123: =E114 -> 0 | F123: 1.387014307 | G123: 3.600737153 | H123: 3.242784562 | I123: 9.062323096 | J123: =J114 -> 15.10890997 | K123: =K114 -> 19.43984104 | L123: 22.76604543 | M123: 25.0517583 | N123: =N114 -> 3.20845818 | O123: 0 | P123: 0 | Q123: =SUM(E123:P123) -> 102.867872
B124: Labour Escalation | C124: =Inputs!$A$8 -> Real $2026 | D124: $Million | E124: 0 | F124: 0 | G124: 0 | H124: 0 | I124: 0 | J124: 0 | K124: 0 | L124: 0.09858739415 | M124: 0.1842031502 | N124: 0.03545289564 | O124: 0 | P124: 0 | Q124: =SUM(E124:P124) -> 0.31824344
B125: Non-Labour | C125: =Inputs!$A$8 -> Real $2026 | D125: $Million | E125: =E110+E119 -> 0 | F125: 3.344822449 | G125: 8.563514578 | H125: 1.86146523 | I125: 3.76271199 | J125: =J110+J119 -> 24.62490969 | K125: 66.22789017 | L125: 123.5452808 | M125: 93.03082291 | N125: =N110+N119 -> 8.18581314 | O125: =O110+O119 -> 0 | P125: =P110+P119 -> 0 | Q125: =SUM(E125:P125) -> 333.1472309
B126: Total | C126: =Inputs!$A$8 -> Real $2026 | D126: $Million | E126: =SUM(E123:E125) -> 0 | F126: 4.731836756 | G126: 12.16425173 | H126: 5.104249792 | I126: 12.82503509 | J126: 39.73381966 | K126: =SUM(K123:K125) -> 85.6677312 | L126: 146.4099136 | M126: 118.2667844 | N126: =SUM(N123:N125) -> 11.42972422 | O126: =SUM(O123:O125) -> 0 | P126: =SUM(P123:P125) -> 0 | Q126: 436.3333464
A128: =IF(SUM(E128:R128)=0,0,1) -> 0 | B128: ="Check "&$B$109 -> Check Direct Non-Labour | E128: =IF(ROUND(E$28-E111,3)=0,0,1) -> 0 | F128: =IF(ROUND(F$28-F111,3)=0,0,1) -> 0 | G128: 0 | H128: 0 | I128: 0 | J128: 0 | K128: 0 | L128: 0 | M128: 0 | N128: =IF(ROUND(N$28-N111,3)=0,0,1) -> 0 | O128: =IF(ROUND(O$28-O111,3)=0,0,1) -> 0 | P128: =IF(ROUND(P$28-P111,3)=0,0,1) -> 0 | Q128: =IF(ROUND(Q$28-Q111,3)=0,0,1) -> 0
A129: =IF(SUM(E129:R129)=0,0,1) -> 0 | B129: ="Check "&$B$113 -> Check Labour Costs | E129: =IF(ROUND(E$52-E116,3)=0,0,1) -> 0 | F129: =IF(ROUND(F$52-F116,3)=0,0,1) -> 0 | G129: 0 | H129: 0 | I129: 0 | J129: 0 | K129: 0 | L129: 0 | M129: 0 | N129: =IF(ROUND(N$52-N116,3)=0,0,1) -> 0 | O129: =IF(ROUND(O$52-O116,3)=0,0,1) -> 0 | P129: =IF(ROUND(P$52-P116,3)=0,0,1) -> 0 | Q129: =IF(ROUND(Q$52-Q116,3)=0,0,1) -> 0
A130: =IF(SUM(E130:R130)=0,0,1) -> 0 | B130: ="Check "&$B$118 -> Check Indirect Non-Labour Costs | E130: =IF(ROUND(E$76-E120,3)=0,0,1) -> 0 | F130: =IF(ROUND(F$76-F120,3)=0,0,1) -> 0 | G130: 0 | H130: 0 | I130: 0 | J130: 0 | K130: 0 | L130: 0 | M130: 0 | N130: =IF(ROUND(N$76-N120,3)=0,0,1) -> 0 | O130: =IF(ROUND(O$76-O120,3)=0,0,1) -> 0 | P130: =IF(ROUND(P$76-P120,3)=0,0,1) -> 0 | Q130: =IF(ROUND(Q$76-Q120,3)=0,0,1) -> 0
B132: Incremental Capital Expenditure (Excluding Equity Raising Costs) by Component | Q132: Total
B133: Component | C133: Dollar basis | D133: Units | E133: =Inputs!K$20 -> 2020 | F133: =Inputs!L$20 -> 2021 | G133: =Inputs!M$20 -> 2022 | H133: =Inputs!N$20 -> 2023 | I133: =Inputs!O$20 -> 2024 | J133: =Inputs!P$20 -> 2025 | K133: =Inputs!Q$20 -> 2026 | L133: =Inputs!R$20 -> 2027 | M133: =Inputs!S$20 -> 2028 | N133: =Inputs!T$20 -> 2029 | O133: =Inputs!U$20 -> 2030 | P133: =Inputs!V$20 -> 2031
B135: Direct Non-Labour Cost
B136: =Inputs!$A$320 -> Project management | C136: =Inputs!$A$8 -> Real $2026 | D136: $Million | E136: =IFERROR(E$111 *IF((E$185+E$224)<>0,(E175+E214)/(E$185+E$224),($Q175+$Q214)/($Q$185+$Q$224)),0) -> 0 | F136: 0 | G136: 0 | H136: 0 | I136: 0 | J136: 2.857123475 | K136: 8.808766034 | L136: 26.11752705 | M136: 15.63709705 | N136: 2.072316509 | O136: 0 | P136: 0 | Q136: =SUM(E136:P136) -> 55.49283012
B137: =Inputs!$A$321 -> Other support and corporate roles | C137: =Inputs!$A$8 -> Real $2026 | D137: $Million | E137: =IFERROR(E$111 *IF((E$185+E$224)<>0,(E176+E215)/(E$185+E$224),($Q176+$Q215)/($Q$185+$Q$224)),0) -> 0 | F137: 0 | G137: 0 | H137: 0 | I137: 0 | J137: 1.308750903 | K137: 5.302432685 | L137: 14.20923835 | M137: 9.554935952 | N137: 2.55210489 | O137: 0 | P137: 0 | Q137: 32.92746279
B138: =Inputs!$A$322 -> Regulatory approvals | C138: =Inputs!$A$8 -> Real $2026 | D138: $Million | E138: =IFERROR(E$111 *IF((E$185+E$224)<>0,(E177+E216)/(E$185+E$224),($Q177+$Q216)/($Q$185+$Q$224)),0) -> 0 | F138: 0 | G138: 0 | H138: 0 | I138: 0 | J138: 0 | K138: 0 | L138: 0 | M138: 0 | N138: 0 | O138: 0 | P138: 0 | Q138: 0
B139: =Inputs!$A$323 -> Community and stakeholder engagement | C139: =Inputs!$A$8 -> Real $2026 | D139: $Million | E139: =IFERROR(E$111 *IF((E$185+E$224)<>0,(E178+E217)/(E$185+E$224),($Q178+$Q217)/($Q$185+$Q$224)),0) -> 0 | F139: 0 | G139: 0 | H139: 0 | I139: 0 | J139: 0.2777617994 | K139: 1.012677161 | L139: 0.6631434752 | M139: 0.3835797231 | N139: 0.08560632325 | O139: 0 | P139: 0 | Q139: 2.422768482
B140: =Inputs!$A$324 -> Land and Environment | C140: =Inputs!$A$8 -> Real $2026 | D140: $Million | E140: =IFERROR(E$111 *IF((E$185+E$224)<>0,(E179+E218)/(E$185+E$224),($Q179+$Q218)/($Q$185+$Q$224)),0) -> 0 | F140: 0 | G140: 0 | H140: 0 | I140: 0 | J140: 1.387284803 | K140: 10.04334347 | L140: 13.89732997 | M140: 5.971327046 | N140: 0.797986834 | O140: 0 | P140: 0 | Q140: 32.09727212
B141: =Inputs!$A$325 -> Transaction Procurement Support | C141: =Inputs!$A$8 -> Real $2026 | D141: $Million | E141: =IFERROR(E$111 *IF((E$185+E$224)<>0,(E180+E219)/(E$185+E$224),($Q180+$Q219)/($Q$185+$Q$224)),0) -> 0 | F141: 0 | G141: 0 | H141: 0 | I141: 0 | J141: 0 | K141: 0 | L141: 0 | M141: 0 | N141: 0 | O141: 0 | P141: 0 | Q141: 0
B142: =Inputs!$A$326 -> Project Development | C142: =Inputs!$A$8 -> Real $2026 | D142: $Million | E142: =IFERROR(E$111 *IF((E$185+E$224)<>0,(E181+E220)/(E$185+E$224),($Q181+$Q220)/($Q$185+$Q$224)),0) -> 0 | F142: 0 | G142: 0 | H142: 0 | I142: 0 | J142: 1.770820448 | K142: 11.33255034 | L142: 3.975540779 | M142: 1.963719837 | N142: 0.007872717608 | O142: 0 | P142: 0 | Q142: 19.05050412
B143: =Inputs!$A$327 -> Project Controls | C143: =Inputs!$A$8 -> Real $2026 | D143: $Million | E143: =IFERROR(E$111 *IF((E$185+E$224)<>0,(E182+E221)/(E$185+E$224),($Q182+$Q221)/($Q$185+$Q$224)),0) -> 0 | F143: 0 | G143: 0 | H143: 0 | I143: 0 | J143: 0.1904422149 | K143: 2.539862573 | L143: 7.383186399 | M143: 3.875158858 | N143: 0.09551590609 | O143: 0 | P143: 0 | Q143: =SUM(E143:P143) -> 14.08416595
B144: =Inputs!$A$328 -> Commercial Management | C144: =Inputs!$A$8 -> Real $2026 | D144: $Million | E144: =IFERROR(E$111 *IF((E$185+E$224)<>0,(E183+E222)/(E$185+E$224),($Q183+$Q222)/($Q$185+$Q$224)),0) -> 0 | F144: 0 | G144: 0 | H144: 0 | I144: 0 | J144: 0.3740336923 | K144: 5.489153139 | L144: 18.37644311 | M144: 14.42628414 | N144: 0 | O144: 0 | P144: 0 | Q144: =SUM(E144:P144) -> 38.66591408
B145: =Inputs!$A$329 -> Construction Management | C145: =Inputs!$A$8 -> Real $2026 | D145: $Million | E145: =IFERROR(E$111 *IF((E$185+E$224)<>0,(E184+E223)/(E$185+E$224),($Q184+$Q223)/($Q$185+$Q$224)),0) -> 0 | F145: 0 | G145: 0 | H145: 0 | I145: 0 | J145: 0.1646641122 | K145: 2.99381071 | L145: 26.3055668 | M145: 28.68203788 | N145: 1.172000216 | O145: 0 | P145: 0 | Q145: =SUM(E145:P145) -> 59.31807972
B146: Sub-Total | C146: =Inputs!$A$8 -> Real $2026 | D146: $Million | E146: =SUM(E136:E145) -> 0 | F146: 0 | G146: 0 | H146: 0 | I146: 0 | J146: 8.330881448 | K146: 47.52259611 | L146: 110.9279759 | M146: 80.49414048 | N146: 6.783403396 | O146: 0 | P146: 0 | Q146: 254.0589974
B148: Labour Costs - Actual
B149: =Inputs!$A$320 -> Project management | C149: =Inputs!$A$8 -> Real $2026 | D149: $Million | E149: =IFERROR(SUMIF(Inputs!$H$157:$H$167,$B149,Inputs!K$157:K$167),0) -> 0 | F149: =IFERROR(SUMIF(Inputs!$H$157:$H$167,$B149,Inputs!L$157:L$167),0) -> 0.001913651388 | G149: =IFERROR(SUMIF(Inputs!$H$157:$H$167,$B149,Inputs!M$157:M$167),0) -> 1.949416785 | H149: =IFERROR(SUMIF(Inputs!$H$157:$H$167,$B149,Inputs!N$157:N$167),0) -> 1.911590197 | I149: =IFERROR(SUMIF(Inputs!$H$157:$H$167,$B149,Inputs!O$157:O$167),0) -> 4.654244701 | J149: =IFERROR(SUMIF(Inputs!$H$157:$H$167,$B149,Inputs!P$157:P$167),0) -> 4.198748615 | K149: =IFERROR(SUMIF(Inputs!$H$157:$H$167,$B149,Inputs!Q$157:Q$167),0) -> 0 | L149: =IFERROR(SUMIF(Inputs!$H$157:$H$167,$B149,Inputs!R$157:R$167),0) -> 0 | M149: =IFERROR(SUMIF(Inputs!$H$157:$H$167,$B149,Inputs!S$157:S$167),0) -> 0 | N149: =IFERROR(SUMIF(Inputs!$H$157:$H$167,$B149,Inputs!T$157:T$167),0) -> 0 | O149: =IFERROR(SUMIF(Inputs!$H$157:$H$167,$B149,Inputs!U$157:U$167),0) -> 0 | P149: =IFERROR(SUMIF(Inputs!$H$157:$H$167,$B149,Inputs!V$157:V$167),0) -> 0 | Q149: =SUM(E149:P149) -> 12.71591395
B150: =Inputs!$A$321 -> Other support and corporate roles | C150: =Inputs!$A$8 -> Real $2026 | D150: $Million | E150: =IFERROR(SUMIF(Inputs!$H$157:$H$167,$B150,Inputs!K$157:K$167),0) -> 0 | F150: =IFERROR(SUMIF(Inputs!$H$157:$H$167,$B150,Inputs!L$157:L$167),0) -> 0 | G150: =IFERROR(SUMIF(Inputs!$H$157:$H$167,$B150,Inputs!M$157:M$167),0) -> 0.08511623355 | H150: =IFERROR(SUMIF(Inputs!$H$157:$H$167,$B150,Inputs!N$157:N$167),0) -> 0.03399328801 | I150: =IFERROR(SUMIF(Inputs!$H$157:$H$167,$B150,Inputs!O$157:O$167),0) -> 0.4017985817 | J150: =IFERROR(SUMIF(Inputs!$H$157:$H$167,$B150,Inputs!P$157:P$167),0) -> 1.030108193 | K150: =IFERROR(SUMIF(Inputs!$H$157:$H$167,$B150,Inputs!Q$157:Q$167),0) -> 0 | L150: =IFERROR(SUMIF(Inputs!$H$157:$H$167,$B150,Inputs!R$157:R$167),0) -> 0 | M150: =IFERROR(SUMIF(Inputs!$H$157:$H$167,$B150,Inputs!S$157:S$167),0) -> 0 | N150: =IFERROR(SUMIF(Inputs!$H$157:$H$167,$B150,Inputs!T$157:T$167),0) -> 0 | O150: =IFERROR(SUMIF(Inputs!$H$157:$H$167,$B150,Inputs!U$157:U$167),0) -> 0 | P150: =IFERROR(SUMIF(Inputs!$H$157:$H$167,$B150,Inputs!V$157:V$167),0) -> 0 | Q150: 1.551016296
B151: =Inputs!$A$322 -> Regulatory approvals | C151: =Inputs!$A$8 -> Real $2026 | D151: $Million | E151: =IFERROR(SUMIF(Inputs!$H$157:$H$167,$B151,Inputs!K$157:K$167),0) -> 0 | F151: =IFERROR(SUMIF(Inputs!$H$157:$H$167,$B151,Inputs!L$157:L$167),0) -> 0 | G151: =IFERROR(SUMIF(Inputs!$H$157:$H$167,$B151,Inputs!M$157:M$167),0) -> 0 | H151: =IFERROR(SUMIF(Inputs!$H$157:$H$167,$B151,Inputs!N$157:N$167),0) -> 0 | I151: =IFERROR(SUMIF(Inputs!$H$157:$H$167,$B151,Inputs!O$157:O$167),0) -> 0 | J151: =IFERROR(SUMIF(Inputs!$H$157:$H$167,$B151,Inputs!P$157:P$167),0) -> 0 | K151: =IFERROR(SUMIF(Inputs!$H$157:$H$167,$B151,Inputs!Q$157:Q$167),0) -> 0 | L151: =IFERROR(SUMIF(Inputs!$H$157:$H$167,$B151,Inputs!R$157:R$167),0) -> 0 | M151: =IFERROR(SUMIF(Inputs!$H$157:$H$167,$B151,Inputs!S$157:S$167),0) -> 0 | N151: =IFERROR(SUMIF(Inputs!$H$157:$H$167,$B151,Inputs!T$157:T$167),0) -> 0 | O151: =IFERROR(SUMIF(Inputs!$H$157:$H$167,$B151,Inputs!U$157:U$167),0) -> 0 | P151: =IFERROR(SUMIF(Inputs!$H$157:$H$167,$B151,Inputs!V$157:V$167),0) -> 0 | Q151: 0
B152: =Inputs!$A$323 -> Community and stakeholder engagement | C152: =Inputs!$A$8 -> Real $2026 | D152: $Million | E152: =IFERROR(SUMIF(Inputs!$H$157:$H$167,$B152,Inputs!K$157:K$167),0) -> 0 | F152: =IFERROR(SUMIF(Inputs!$H$157:$H$167,$B152,Inputs!L$157:L$167),0) -> 0.8278272572 | G152: =IFERROR(SUMIF(Inputs!$H$157:$H$167,$B152,Inputs!M$157:M$167),0) -> 0.3632917066 | H152: =IFERROR(SUMIF(Inputs!$H$157:$H$167,$B152,Inputs!N$157:N$167),0) -> 0.05561078627 | I152: =IFERROR(SUMIF(Inputs!$H$157:$H$167,$B152,Inputs!O$157:O$167),0) -> 0.05699230937 | J152: =IFERROR(SUMIF(Inputs!$H$157:$H$167,$B152,Inputs!P$157:P$167),0) -> 0.1116219816 | K152: =IFERROR(SUMIF(Inputs!$H$157:$H$167,$B152,Inputs!Q$157:Q$167),0) -> 0 | L152: =IFERROR(SUMIF(Inputs!$H$157:$H$167,$B152,Inputs!R$157:R$167),0) -> 0 | M152: =IFERROR(SUMIF(Inputs!$H$157:$H$167,$B152,Inputs!S$157:S$167),0) -> 0 | N152: =IFERROR(SUMIF(Inputs!$H$157:$H$167,$B152,Inputs!T$157:T$167),0) -> 0 | O152: =IFERROR(SUMIF(Inputs!$H$157:$H$167,$B152,Inputs!U$157:U$167),0) -> 0 | P152: =IFERROR(SUMIF(Inputs!$H$157:$H$167,$B152,Inputs!V$157:V$167),0) -> 0 | Q152: 1.415344041
B153: =Inputs!$A$324 -> Land and Environment | C153: =Inputs!$A$8 -> Real $2026 | D153: $Million | E153: =IFERROR(SUMIF(Inputs!$H$157:$H$167,$B153,Inputs!K$157:K$167),0) -> 0 | F153: =IFERROR(SUMIF(Inputs!$H$157:$H$167,$B153,Inputs!L$157:L$167),0) -> 0.5559895238 | G153: =IFERROR(SUMIF(Inputs!$H$157:$H$167,$B153,Inputs!M$157:M$167),0) -> 0.4235619644 | H153: =IFERROR(SUMIF(Inputs!$H$157:$H$167,$B153,Inputs!N$157:N$167),0) -> 0.4169171365 | I153: =IFERROR(SUMIF(Inputs!$H$157:$H$167,$B153,Inputs!O$157:O$167),0) -> 0.9467526751 | J153: =IFERROR(SUMIF(Inputs!$H$157:$H$167,$B153,Inputs!P$157:P$167),0) -> 0.8086365838 | K153: =IFERROR(SUMIF(Inputs!$H$157:$H$167,$B153,Inputs!Q$157:Q$167),0) -> 0 | L153: =IFERROR(SUMIF(Inputs!$H$157:$H$167,$B153,Inputs!R$157:R$167),0) -> 0 | M153: =IFERROR(SUMIF(Inputs!$H$157:$H$167,$B153,Inputs!S$157:S$167),0) -> 0 | N153: =IFERROR(SUMIF(Inputs!$H$157:$H$167,$B153,Inputs!T$157:T$167),0) -> 0 | O153: =IFERROR(SUMIF(Inputs!$H$157:$H$167,$B153,Inputs!U$157:U$167),0) -> 0 | P153: =IFERROR(SUMIF(Inputs!$H$157:$H$167,$B153,Inputs!V$157:V$167),0) -> 0 | Q153: 3.151857884
B154: =Inputs!$A$325 -> Transaction Procurement Support | C154: =Inputs!$A$8 -> Real $2026 | D154: $Million | E154: =IFERROR(SUMIF(Inputs!$H$157:$H$167,$B154,Inputs!K$157:K$167),0) -> 0 | F154: =IFERROR(SUMIF(Inputs!$H$157:$H$167,$B154,Inputs!L$157:L$167),0) -> 0 | G154: =IFERROR(SUMIF(Inputs!$H$157:$H$167,$B154,Inputs!M$157:M$167),0) -> 0 | H154: =IFERROR(SUMIF(Inputs!$H$157:$H$167,$B154,Inputs!N$157:N$167),0) -> 0 | I154: =IFERROR(SUMIF(Inputs!$H$157:$H$167,$B154,Inputs!O$157:O$167),0) -> 0 | J154: =IFERROR(SUMIF(Inputs!$H$157:$H$167,$B154,Inputs!P$157:P$167),0) -> 0 | K154: =IFERROR(SUMIF(Inputs!$H$157:$H$167,$B154,Inputs!Q$157:Q$167),0) -> 0 | L154: =IFERROR(SUMIF(Inputs!$H$157:$H$167,$B154,Inputs!R$157:R$167),0) -> 0 | M154: =IFERROR(SUMIF(Inputs!$H$157:$H$167,$B154,Inputs!S$157:S$167),0) -> 0 | N154: =IFERROR(SUMIF(Inputs!$H$157:$H$167,$B154,Inputs!T$157:T$167),0) -> 0 | O154: =IFERROR(SUMIF(Inputs!$H$157:$H$167,$B154,Inputs!U$157:U$167),0) -> 0 | P154: =IFERROR(SUMIF(Inputs!$H$157:$H$167,$B154,Inputs!V$157:V$167),0) -> 0 | Q154: 0
B155: =Inputs!$A$326 -> Project Development | C155: =Inputs!$A$8 -> Real $2026 | D155: $Million | E155: =IFERROR(SUMIF(Inputs!$H$157:$H$167,$B155,Inputs!K$157:K$167),0) -> 0 | F155: =IFERROR(SUMIF(Inputs!$H$157:$H$167,$B155,Inputs!L$157:L$167),0) -> 0.00128387456 | G155: =IFERROR(SUMIF(Inputs!$H$157:$H$167,$B155,Inputs!M$157:M$167),0) -> 0.7793504628 | H155: =IFERROR(SUMIF(Inputs!$H$157:$H$167,$B155,Inputs!N$157:N$167),0) -> 0.8246731542 | I155: =IFERROR(SUMIF(Inputs!$H$157:$H$167,$B155,Inputs!O$157:O$167),0) -> 3.002534828 | J155: =IFERROR(SUMIF(Inputs!$H$157:$H$167,$B155,Inputs!P$157:P$167),0) -> 2.269789065 | K155: =IFERROR(SUMIF(Inputs!$H$157:$H$167,$B155,Inputs!Q$157:Q$167),0) -> 0 | L155: =IFERROR(SUMIF(Inputs!$H$157:$H$167,$B155,Inputs!R$157:R$167),0) -> 0 | M155: =IFERROR(SUMIF(Inputs!$H$157:$H$167,$B155,Inputs!S$157:S$167),0) -> 0 | N155: =IFERROR(SUMIF(Inputs!$H$157:$H$167,$B155,Inputs!T$157:T$167),0) -> 0 | O155: =IFERROR(SUMIF(Inputs!$H$157:$H$167,$B155,Inputs!U$157:U$167),0) -> 0 | P155: =IFERROR(SUMIF(Inputs!$H$157:$H$167,$B155,Inputs!V$157:V$167),0) -> 0 | Q155: 6.877631385
B156: =Inputs!$A$327 -> Project Controls | C156: =Inputs!$A$8 -> Real $2026 | D156: $Million | E156: =IFERROR(SUMIF(Inputs!$H$157:$H$167,$B156,Inputs!K$157:K$167),0) -> 0 | F156: =IFERROR(SUMIF(Inputs!$H$157:$H$167,$B156,Inputs!L$157:L$167),0) -> 0 | G156: =IFERROR(SUMIF(Inputs!$H$157:$H$167,$B156,Inputs!M$157:M$167),0) -> 0 | H156: =IFERROR(SUMIF(Inputs!$H$157:$H$167,$B156,Inputs!N$157:N$167),0) -> 0 | I156: =IFERROR(SUMIF(Inputs!$H$157:$H$167,$B156,Inputs!O$157:O$167),0) -> 0 | J156: =IFERROR(SUMIF(Inputs!$H$157:$H$167,$B156,Inputs!P$157:P$167),0) -> 0 | K156: =IFERROR(SUMIF(Inputs!$H$157:$H$167,$B156,Inputs!Q$157:Q$167),0) -> 0 | L156: =IFERROR(SUMIF(Inputs!$H$157:$H$167,$B156,Inputs!R$157:R$167),0) -> 0 | M156: =IFERROR(SUMIF(Inputs!$H$157:$H$167,$B156,Inputs!S$157:S$167),0) -> 0 | N156: =IFERROR(SUMIF(Inputs!$H$157:$H$167,$B156,Inputs!T$157:T$167),0) -> 0 | O156: =IFERROR(SUMIF(Inputs!$H$157:$H$167,$B156,Inputs!U$157:U$167),0) -> 0 | P156: =IFERROR(SUMIF(Inputs!$H$157:$H$167,$B156,Inputs!V$157:V$167),0) -> 0 | Q156: =SUM(E156:P156) -> 0
B157: =Inputs!$A$328 -> Commercial Management | C157: =Inputs!$A$8 -> Real $2026 | D157: $Million | E157: =IFERROR(SUMIF(Inputs!$H$157:$H$167,$B157,Inputs!K$157:K$167),0) -> 0 | F157: =IFERROR(SUMIF(Inputs!$H$157:$H$167,$B157,Inputs!L$157:L$167),0) -> 0 | G157: =IFERROR(SUMIF(Inputs!$H$157:$H$167,$B157,Inputs!M$157:M$167),0) -> 0 | H157: =IFERROR(SUMIF(Inputs!$H$157:$H$167,$B157,Inputs!N$157:N$167),0) -> 0 | I157: =IFERROR(SUMIF(Inputs!$H$157:$H$167,$B157,Inputs!O$157:O$167),0) -> 0 | J157: =IFERROR(SUMIF(Inputs!$H$157:$H$167,$B157,Inputs!P$157:P$167),0) -> 0 | K157: =IFERROR(SUMIF(Inputs!$H$157:$H$167,$B157,Inputs!Q$157:Q$167),0) -> 0 | L157: =IFERROR(SUMIF(Inputs!$H$157:$H$167,$B157,Inputs!R$157:R$167),0) -> 0 | M157: =IFERROR(SUMIF(Inputs!$H$157:$H$167,$B157,Inputs!S$157:S$167),0) -> 0 | N157: =IFERROR(SUMIF(Inputs!$H$157:$H$167,$B157,Inputs!T$157:T$167),0) -> 0 | O157: =IFERROR(SUMIF(Inputs!$H$157:$H$167,$B157,Inputs!U$157:U$167),0) -> 0 | P157: =IFERROR(SUMIF(Inputs!$H$157:$H$167,$B157,Inputs!V$157:V$167),0) -> 0 | Q157: =SUM(E157:P157) -> 0
B158: =Inputs!$A$329 -> Construction Management | C158: =Inputs!$A$8 -> Real $2026 | D158: $Million | E158: =IFERROR(SUMIF(Inputs!$H$157:$H$167,$B158,Inputs!K$157:K$167),0) -> 0 | F158: =IFERROR(SUMIF(Inputs!$H$157:$H$167,$B158,Inputs!L$157:L$167),0) -> 0 | G158: =IFERROR(SUMIF(Inputs!$H$157:$H$167,$B158,Inputs!M$157:M$167),0) -> 0 | H158: =IFERROR(SUMIF(Inputs!$H$157:$H$167,$B158,Inputs!N$157:N$167),0) -> 0 | I158: =IFERROR(SUMIF(Inputs!$H$157:$H$167,$B158,Inputs!O$157:O$167),0) -> 0 | J158: =IFERROR(SUMIF(Inputs!$H$157:$H$167,$B158,Inputs!P$157:P$167),0) -> 0 | K158: =IFERROR(SUMIF(Inputs!$H$157:$H$167,$B158,Inputs!Q$157:Q$167),0) -> 0 | L158: =IFERROR(SUMIF(Inputs!$H$157:$H$167,$B158,Inputs!R$157:R$167),0) -> 0 | M158: =IFERROR(SUMIF(Inputs!$H$157:$H$167,$B158,Inputs!S$157:S$167),0) -> 0 | N158: =IFERROR(SUMIF(Inputs!$H$157:$H$167,$B158,Inputs!T$157:T$167),0) -> 0 | O158: =IFERROR(SUMIF(Inputs!$H$157:$H$167,$B158,Inputs!U$157:U$167),0) -> 0 | P158: =IFERROR(SUMIF(Inputs!$H$157:$H$167,$B158,Inputs!V$157:V$167),0) -> 0 | Q158: =SUM(E158:P158) -> 0
B159: Sub-Total | C159: =Inputs!$A$8 -> Real $2026 | D159: $Million | E159: =SUM(E149:E158) -> 0 | F159: 1.387014307 | G159: 3.600737153 | H159: 3.242784562 | I159: 9.062323096 | J159: 8.418904438 | K159: 0 | L159: 0 | M159: 0 | N159: 0 | O159: 0 | P159: 0 | Q159: 25.71176356
B161: Labour Costs - Forecast
B162: =Inputs!$A$320 -> Project management | C162: =Inputs!$A$8 -> Real $2026 | D162: $Million | E162: =IFERROR(SUMIF(Inputs!$H$169:$H$179,$B162,Inputs!K$169:K$179)*Inputs!$E$185*Inputs!K$22/INDEX(Inputs!$K$22:$T$22,MATCH(Inputs!$F$169,Years,0)),0) -> 0 | F162: =IFERROR(SUMIF(Inputs!$H$169:$H$179,$B162,Inputs!L$169:L$179)*Inputs!$E$185*Inputs!L$22/INDEX(Inputs!$K$22:$T$22,MATCH(Inputs!$F$169,Years,0)),0) -> 0 | G162: =IFERROR(SUMIF(Inputs!$H$169:$H$179,$B162,Inputs!M$169:M$179)*Inputs!$E$185*Inputs!M$22/INDEX(Inputs!$K$22:$T$22,MATCH(Inputs!$F$169,Years,0)),0) -> 0 | H162: =IFERROR(SUMIF(Inputs!$H$169:$H$179,$B162,Inputs!N$169:N$179)*Inputs!$E$185*Inputs!N$22/INDEX(Inputs!$K$22:$T$22,MATCH(Inputs!$F$169,Years,0)),0) -> 0 | I162: =IFERROR(SUMIF(Inputs!$H$169:$H$179,$B162,Inputs!O$169:O$179)*Inputs!$E$185*Inputs!O$22/INDEX(Inputs!$K$22:$T$22,MATCH(Inputs!$F$169,Years,0)),0) -> 0 | J162: =IFERROR(SUMIF(Inputs!$H$169:$H$179,$B162,Inputs!P$169:P$179)*Inputs!$E$185*Inputs!P$22/INDEX(Inputs!$K$22:$T$22,MATCH(Inputs!$F$169,Years,0)),0) -> 0.8276394059 | K162: =IFERROR(SUMIF(Inputs!$H$169:$H$179,$B162,Inputs!Q$169:Q$179)*Inputs!$E$185*Inputs!Q$22/INDEX(Inputs!$K$22:$T$22,MATCH(Inputs!$F$169,Years,0)),0) -> 3.082811081 | L162: =IFERROR(SUMIF(Inputs!$H$169:$H$179,$B162,Inputs!R$169:R$179)*Inputs!$E$185*Inputs!R$22/INDEX(Inputs!$K$22:$T$22,MATCH(Inputs!$F$169,Years,0)),0) -> 4.987225152 | M162: =IFERROR(SUMIF(Inputs!$H$169:$H$179,$B162,Inputs!S$169:S$179)*Inputs!$E$185*Inputs!S$22/INDEX(Inputs!$K$22:$T$22,MATCH(Inputs!$F$169,Years,0)),0) -> 4.488439455 | N162: =IFERROR(SUMIF(Inputs!$H$169:$H$179,$B162,Inputs!T$169:T$179)*Inputs!$E$185*Inputs!T$22/INDEX(Inputs!$K$22:$T$22,MATCH(Inputs!$F$169,Years,0)),0) -> 0.9776654865 | O162: =IFERROR(SUMIF(Inputs!$H$169:$H$179,$B162,Inputs!U$169:U$179)*Inputs!$E$185*Inputs!U$22/INDEX(Inputs!$K$22:$T$22,MATCH(Inputs!$F$169,Years,0)),0) -> 0 | P162: =IFERROR(SUMIF(Inputs!$H$169:$H$179,$B162,Inputs!V$169:V$179)*Inputs!$E$185*Inputs!V$22/INDEX(Inputs!$K$22:$T$22,MATCH(Inputs!$F$169,Years,0)),0) -> 0 | Q162: =SUM(E162:P162) -> 14.36378058
B163: =Inputs!$A$321 -> Other support and corporate roles | C163: =Inputs!$A$8 -> Real $2026 | D163: $Million | E163: =IFERROR(SUMIF(Inputs!$H$169:$H$179,$B163,Inputs!K$169:K$179)*Inputs!$E$185*Inputs!K$22/INDEX(Inputs!$K$22:$T$22,MATCH(Inputs!$F$169,Years,0)),0) -> 0 | F163: =IFERROR(SUMIF(Inputs!$H$169:$H$179,$B163,Inputs!L$169:L$179)*Inputs!$E$185*Inputs!L$22/INDEX(Inputs!$K$22:$T$22,MATCH(Inputs!$F$169,Years,0)),0) -> 0 | G163: =IFERROR(SUMIF(Inputs!$H$169:$H$179,$B163,Inputs!M$169:M$179)*Inputs!$E$185*Inputs!M$22/INDEX(Inputs!$K$22:$T$22,MATCH(Inputs!$F$169,Years,0)),0) -> 0 | H163: =IFERROR(SUMIF(Inputs!$H$169:$H$179,$B163,Inputs!N$169:N$179)*Inputs!$E$185*Inputs!N$22/INDEX(Inputs!$K$22:$T$22,MATCH(Inputs!$F$169,Years,0)),0) -> 0 | I163: =IFERROR(SUMIF(Inputs!$H$169:$H$179,$B163,Inputs!O$169:O$179)*Inputs!$E$185*Inputs!O$22/INDEX(Inputs!$K$22:$T$22,MATCH(Inputs!$F$169,Years,0)),0) -> 0 | J163: =IFERROR(SUMIF(Inputs!$H$169:$H$179,$B163,Inputs!P$169:P$179)*Inputs!$E$185*Inputs!P$22/INDEX(Inputs!$K$22:$T$22,MATCH(Inputs!$F$169,Years,0)),0) -> 1.265115289 | K163: =IFERROR(SUMIF(Inputs!$H$169:$H$179,$B163,Inputs!Q$169:Q$179)*Inputs!$E$185*Inputs!Q$22/INDEX(Inputs!$K$22:$T$22,MATCH(Inputs!$F$169,Years,0)),0) -> 2.868325413 | L163: =IFERROR(SUMIF(Inputs!$H$169:$H$179,$B163,Inputs!R$169:R$179)*Inputs!$E$185*Inputs!R$22/INDEX(Inputs!$K$22:$T$22,MATCH(Inputs!$F$169,Years,0)),0) -> 3.096760346 | M163: =IFERROR(SUMIF(Inputs!$H$169:$H$179,$B163,Inputs!S$169:S$179)*Inputs!$E$185*Inputs!S$22/INDEX(Inputs!$K$22:$T$22,MATCH(Inputs!$F$169,Years,0)),0) -> 3.06395967 | N163: =IFERROR(SUMIF(Inputs!$H$169:$H$179,$B163,Inputs!T$169:T$179)*Inputs!$E$185*Inputs!T$22/INDEX(Inputs!$K$22:$T$22,MATCH(Inputs!$F$169,Years,0)),0) -> 1.227677729 | O163: =IFERROR(SUMIF(Inputs!$H$169:$H$179,$B163,Inputs!U$169:U$179)*Inputs!$E$185*Inputs!U$22/INDEX(Inputs!$K$22:$T$22,MATCH(Inputs!$F$169,Years,0)),0) -> 0 | P163: =IFERROR(SUMIF(Inputs!$H$169:$H$179,$B163,Inputs!V$169:V$179)*Inputs!$E$185*Inputs!V$22/INDEX(Inputs!$K$22:$T$22,MATCH(Inputs!$F$169,Years,0)),0) -> 0 | Q163: 11.52183845
B164: =Inputs!$A$322 -> Regulatory approvals | C164: =Inputs!$A$8 -> Real $2026 | D164: $Million | E164: =IFERROR(SUMIF(Inputs!$H$169:$H$179,$B164,Inputs!K$169:K$179)*Inputs!$E$185*Inputs!K$22/INDEX(Inputs!$K$22:$T$22,MATCH(Inputs!$F$169,Years,0)),0) -> 0 | F164: =IFERROR(SUMIF(Inputs!$H$169:$H$179,$B164,Inputs!L$169:L$179)*Inputs!$E$185*Inputs!L$22/INDEX(Inputs!$K$22:$T$22,MATCH(Inputs!$F$169,Years,0)),0) -> 0 | G164: =IFERROR(SUMIF(Inputs!$H$169:$H$179,$B164,Inputs!M$169:M$179)*Inputs!$E$185*Inputs!M$22/INDEX(Inputs!$K$22:$T$22,MATCH(Inputs!$F$169,Years,0)),0) -> 0 | H164: =IFERROR(SUMIF(Inputs!$H$169:$H$179,$B164,Inputs!N$169:N$179)*Inputs!$E$185*Inputs!N$22/INDEX(Inputs!$K$22:$T$22,MATCH(Inputs!$F$169,Years,0)),0) -> 0 | I164: =IFERROR(SUMIF(Inputs!$H$169:$H$179,$B164,Inputs!O$169:O$179)*Inputs!$E$185*Inputs!O$22/INDEX(Inputs!$K$22:$T$22,MATCH(Inputs!$F$169,Years,0)),0) -> 0 | J164: =IFERROR(SUMIF(Inputs!$H$169:$H$179,$B164,Inputs!P$169:P$179)*Inputs!$E$185*Inputs!P$22/INDEX(Inputs!$K$22:$T$22,MATCH(Inputs!$F$169,Years,0)),0) -> 0 | K164: =IFERROR(SUMIF(Inputs!$H$169:$H$179,$B164,Inputs!Q$169:Q$179)*Inputs!$E$185*Inputs!Q$22/INDEX(Inputs!$K$22:$T$22,MATCH(Inputs!$F$169,Years,0)),0) -> 0 | L164: =IFERROR(SUMIF(Inputs!$H$169:$H$179,$B164,Inputs!R$169:R$179)*Inputs!$E$185*Inputs!R$22/INDEX(Inputs!$K$22:$T$22,MATCH(Inputs!$F$169,Years,0)),0) -> 0 | M164: =IFERROR(SUMIF(Inputs!$H$169:$H$179,$B164,Inputs!S$169:S$179)*Inputs!$E$185*Inputs!S$22/INDEX(Inputs!$K$22:$T$22,MATCH(Inputs!$F$169,Years,0)),0) -> 0 | N164: =IFERROR(SUMIF(Inputs!$H$169:$H$179,$B164,Inputs!T$169:T$179)*Inputs!$E$185*Inputs!T$22/INDEX(Inputs!$K$22:$T$22,MATCH(Inputs!$F$169,Years,0)),0) -> 0 | O164: =IFERROR(SUMIF(Inputs!$H$169:$H$179,$B164,Inputs!U$169:U$179)*Inputs!$E$185*Inputs!U$22/INDEX(Inputs!$K$22:$T$22,MATCH(Inputs!$F$169,Years,0)),0) -> 0 | P164: =IFERROR(SUMIF(Inputs!$H$169:$H$179,$B164,Inputs!V$169:V$179)*Inputs!$E$185*Inputs!V$22/INDEX(Inputs!$K$22:$T$22,MATCH(Inputs!$F$169,Years,0)),0) -> 0 | Q164: 0
B165: =Inputs!$A$323 -> Community and stakeholder engagement | C165: =Inputs!$A$8 -> Real $2026 | D165: $Million | E165: =IFERROR(SUMIF(Inputs!$H$169:$H$179,$B165,Inputs!K$169:K$179)*Inputs!$E$185*Inputs!K$22/INDEX(Inputs!$K$22:$T$22,MATCH(Inputs!$F$169,Years,0)),0) -> 0 | F165: =IFERROR(SUMIF(Inputs!$H$169:$H$179,$B165,Inputs!L$169:L$179)*Inputs!$E$185*Inputs!L$22/INDEX(Inputs!$K$22:$T$22,MATCH(Inputs!$F$169,Years,0)),0) -> 0 | G165: =IFERROR(SUMIF(Inputs!$H$169:$H$179,$B165,Inputs!M$169:M$179)*Inputs!$E$185*Inputs!M$22/INDEX(Inputs!$K$22:$T$22,MATCH(Inputs!$F$169,Years,0)),0) -> 0 | H165: =IFERROR(SUMIF(Inputs!$H$169:$H$179,$B165,Inputs!N$169:N$179)*Inputs!$E$185*Inputs!N$22/INDEX(Inputs!$K$22:$T$22,MATCH(Inputs!$F$169,Years,0)),0) -> 0 | I165: =IFERROR(SUMIF(Inputs!$H$169:$H$179,$B165,Inputs!O$169:O$179)*Inputs!$E$185*Inputs!O$22/INDEX(Inputs!$K$22:$T$22,MATCH(Inputs!$F$169,Years,0)),0) -> 0 | J165: =IFERROR(SUMIF(Inputs!$H$169:$H$179,$B165,Inputs!P$169:P$179)*Inputs!$E$185*Inputs!P$22/INDEX(Inputs!$K$22:$T$22,MATCH(Inputs!$F$169,Years,0)),0) -> 0.2618728904 | K165: =IFERROR(SUMIF(Inputs!$H$169:$H$179,$B165,Inputs!Q$169:Q$179)*Inputs!$E$185*Inputs!Q$22/INDEX(Inputs!$K$22:$T$22,MATCH(Inputs!$F$169,Years,0)),0) -> 0.5209115386 | L165: =IFERROR(SUMIF(Inputs!$H$169:$H$179,$B165,Inputs!R$169:R$179)*Inputs!$E$185*Inputs!R$22/INDEX(Inputs!$K$22:$T$22,MATCH(Inputs!$F$169,Years,0)),0) -> 0.1486736212 | M165: =IFERROR(SUMIF(Inputs!$H$169:$H$179,$B165,Inputs!S$169:S$179)*Inputs!$E$185*Inputs!S$22/INDEX(Inputs!$K$22:$T$22,MATCH(Inputs!$F$169,Years,0)),0) -> 0.126275427 | N165: =IFERROR(SUMIF(Inputs!$H$169:$H$179,$B165,Inputs!T$169:T$179)*Inputs!$E$185*Inputs!T$22/INDEX(Inputs!$K$22:$T$22,MATCH(Inputs!$F$169,Years,0)),0) -> 0.04118050826 | O165: =IFERROR(SUMIF(Inputs!$H$169:$H$179,$B165,Inputs!U$169:U$179)*Inputs!$E$185*Inputs!U$22/INDEX(Inputs!$K$22:$T$22,MATCH(Inputs!$F$169,Years,0)),0) -> 0 | P165: =IFERROR(SUMIF(Inputs!$H$169:$H$179,$B165,Inputs!V$169:V$179)*Inputs!$E$185*Inputs!V$22/INDEX(Inputs!$K$22:$T$22,MATCH(Inputs!$F$169,Years,0)),0) -> 0 | Q165: 1.098913985
B166: =Inputs!$A$324 -> Land and Environment | C166: =Inputs!$A$8 -> Real $2026 | D166: $Million | E166: =IFERROR(SUMIF(Inputs!$H$169:$H$179,$B166,Inputs!K$169:K$179)*Inputs!$E$185*Inputs!K$22/INDEX(Inputs!$K$22:$T$22,MATCH(Inputs!$F$169,Years,0)),0) -> 0 | F166: =IFERROR(SUMIF(Inputs!$H$169:$H$179,$B166,Inputs!L$169:L$179)*Inputs!$E$185*Inputs!L$22/INDEX(Inputs!$K$22:$T$22,MATCH(Inputs!$F$169,Years,0)),0) -> 0 | G166: =IFERROR(SUMIF(Inputs!$H$169:$H$179,$B166,Inputs!M$169:M$179)*Inputs!$E$185*Inputs!M$22/INDEX(Inputs!$K$22:$T$22,MATCH(Inputs!$F$169,Years,0)),0) -> 0 | H166: =IFERROR(SUMIF(Inputs!$H$169:$H$179,$B166,Inputs!N$169:N$179)*Inputs!$E$185*Inputs!N$22/INDEX(Inputs!$K$22:$T$22,MATCH(Inputs!$F$169,Years,0)),0) -> 0 | I166: =IFERROR(SUMIF(Inputs!$H$169:$H$179,$B166,Inputs!O$169:O$179)*Inputs!$E$185*Inputs!O$22/INDEX(Inputs!$K$22:$T$22,MATCH(Inputs!$F$169,Years,0)),0) -> 0 | J166: =IFERROR(SUMIF(Inputs!$H$169:$H$179,$B166,Inputs!P$169:P$179)*Inputs!$E$185*Inputs!P$22/INDEX(Inputs!$K$22:$T$22,MATCH(Inputs!$F$169,Years,0)),0) -> 0.9913097513 | K166: =IFERROR(SUMIF(Inputs!$H$169:$H$179,$B166,Inputs!Q$169:Q$179)*Inputs!$E$185*Inputs!Q$22/INDEX(Inputs!$K$22:$T$22,MATCH(Inputs!$F$169,Years,0)),0) -> 2.486395591 | L166: =IFERROR(SUMIF(Inputs!$H$169:$H$179,$B166,Inputs!R$169:R$179)*Inputs!$E$185*Inputs!R$22/INDEX(Inputs!$K$22:$T$22,MATCH(Inputs!$F$169,Years,0)),0) -> 2.067906304 | M166: =IFERROR(SUMIF(Inputs!$H$169:$H$179,$B166,Inputs!S$169:S$179)*Inputs!$E$185*Inputs!S$22/INDEX(Inputs!$K$22:$T$22,MATCH(Inputs!$F$169,Years,0)),0) -> 1.500572119 | N166: =IFERROR(SUMIF(Inputs!$H$169:$H$179,$B166,Inputs!T$169:T$179)*Inputs!$E$185*Inputs!T$22/INDEX(Inputs!$K$22:$T$22,MATCH(Inputs!$F$169,Years,0)),0) -> 0.3838677116 | O166: =IFERROR(SUMIF(Inputs!$H$169:$H$179,$B166,Inputs!U$169:U$179)*Inputs!$E$185*Inputs!U$22/INDEX(Inputs!$K$22:$T$22,MATCH(Inputs!$F$169,Years,0)),0) -> 0 | P166: =IFERROR(SUMIF(Inputs!$H$169:$H$179,$B166,Inputs!V$169:V$179)*Inputs!$E$185*Inputs!V$22/INDEX(Inputs!$K$22:$T$22,MATCH(Inputs!$F$169,Years,0)),0) -> 0 | Q166: 7.430051478
B167: =Inputs!$A$325 -> Transaction Procurement Support | C167: =Inputs!$A$8 -> Real $2026 | D167: $Million | E167: =IFERROR(SUMIF(Inputs!$H$169:$H$179,$B167,Inputs!K$169:K$179)*Inputs!$E$185*Inputs!K$22/INDEX(Inputs!$K$22:$T$22,MATCH(Inputs!$F$169,Years,0)),0) -> 0 | F167: =IFERROR(SUMIF(Inputs!$H$169:$H$179,$B167,Inputs!L$169:L$179)*Inputs!$E$185*Inputs!L$22/INDEX(Inputs!$K$22:$T$22,MATCH(Inputs!$F$169,Years,0)),0) -> 0 | G167: =IFERROR(SUMIF(Inputs!$H$169:$H$179,$B167,Inputs!M$169:M$179)*Inputs!$E$185*Inputs!M$22/INDEX(Inputs!$K$22:$T$22,MATCH(Inputs!$F$169,Years,0)),0) -> 0 | H167: =IFERROR(SUMIF(Inputs!$H$169:$H$179,$B167,Inputs!N$169:N$179)*Inputs!$E$185*Inputs!N$22/INDEX(Inputs!$K$22:$T$22,MATCH(Inputs!$F$169,Years,0)),0) -> 0 | I167: =IFERROR(SUMIF(Inputs!$H$169:$H$179,$B167,Inputs!O$169:O$179)*Inputs!$E$185*Inputs!O$22/INDEX(Inputs!$K$22:$T$22,MATCH(Inputs!$F$169,Years,0)),0) -> 0 | J167: =IFERROR(SUMIF(Inputs!$H$169:$H$179,$B167,Inputs!P$169:P$179)*Inputs!$E$185*Inputs!P$22/INDEX(Inputs!$K$22:$T$22,MATCH(Inputs!$F$169,Years,0)),0) -> 0 | K167: =IFERROR(SUMIF(Inputs!$H$169:$H$179,$B167,Inputs!Q$169:Q$179)*Inputs!$E$185*Inputs!Q$22/INDEX(Inputs!$K$22:$T$22,MATCH(Inputs!$F$169,Years,0)),0) -> 0 | L167: =IFERROR(SUMIF(Inputs!$H$169:$H$179,$B167,Inputs!R$169:R$179)*Inputs!$E$185*Inputs!R$22/INDEX(Inputs!$K$22:$T$22,MATCH(Inputs!$F$169,Years,0)),0) -> 0 | M167: =IFERROR(SUMIF(Inputs!$H$169:$H$179,$B167,Inputs!S$169:S$179)*Inputs!$E$185*Inputs!S$22/INDEX(Inputs!$K$22:$T$22,MATCH(Inputs!$F$169,Years,0)),0) -> 0 | N167: =IFERROR(SUMIF(Inputs!$H$169:$H$179,$B167,Inputs!T$169:T$179)*Inputs!$E$185*Inputs!T$22/INDEX(Inputs!$K$22:$T$22,MATCH(Inputs!$F$169,Years,0)),0) -> 0 | O167: =IFERROR(SUMIF(Inputs!$H$169:$H$179,$B167,Inputs!U$169:U$179)*Inputs!$E$185*Inputs!U$22/INDEX(Inputs!$K$22:$T$22,MATCH(Inputs!$F$169,Years,0)),0) -> 0 | P167: =IFERROR(SUMIF(Inputs!$H$169:$H$179,$B167,Inputs!V$169:V$179)*Inputs!$E$185*Inputs!V$22/INDEX(Inputs!$K$22:$T$22,MATCH(Inputs!$F$169,Years,0)),0) -> 0 | Q167: 0
